Workbook

Sheet Questionnaire
A20: QUESTIONNAIRE À REMPLIR AVANT UTILISATION DE L'OUTIL SESAME
A22: Ce questionnaire permet de réaliser un diagnostic préliminaire à l'utilisation de l'outil Sésame afin de choisir les espèces idéales pour votre projet de plantation d'arbres. Dans un premier temps, une série de questions ciblées associées à des données sur le territoire de la Seine-Saint-Denis vous permettront d'identifier les services écosystèmiques à prioriser dans le cadre de votre projet. Vous pourrez ainsi retranscrire cette analyse dans l'outil sous forme de notes de pondération de chaque service écosystémique. Dans un deuxième temps, il vous sera demandé dans l'outil Sésame, d'identifier les contraintes associées à la plantation d'arbres qui sont compatibles ou non avec votre projet. Afin de vous accompagner dans votre choix, les risques associés à chaque contrainte sont décrits à la fin de ce questionnaire.
A24: 1. Type d'espace du projet
A25: Suivant la taille du projet, il se peut que celui-ci soit découpé en plusieurs types d'espaces, il faudra alors répondre au questionnaire et lancer l'outil autant de fois qu'il y a de types d'espaces au sein du projet.
A27: Type d'espace : | B27: Square et espace vert d'accompagnement | D27: Type(s) d'usage(s) associé(s) : | E27: =LOOKUP(B27,Feuil3!A1:A14,Feuil3!C1:C14) -> promenades, détente, jeux
B28: =LOOKUP(B27,Feuil3!A1:A14,Feuil3!B1:B14) -> Jardin public de proximité, espace vert d'agrément, d'équipement public (sport, jeux, enseignement supérieur), généralement clos, en cœur de quartier offrant une ambiance et du mobilier propice au séjour et à la détente
A30: 2. Services écosystémiques rendus
G32: Réponse | I32: Pour aller plus loin
A33: Est-ce que le projet se trouve sur une zone de vulnérabilité aux effets d’Ilots de Chaleur Urbains¹ (ICU) ? | I33: Si votre projet doit contribuer à diminuer les effets d'îlots de chaleur urbains, il doit donc valoriser les espèces qui régulent le climat local par ses fonctions d'ombrage et d'évapotranspiration. Point de vigilance : Pour garantir et renforcer l'effet rafraîchissant des arbres, il est important d'associer la plantation à la désimperméabilisation et à la renaturation des sols.
B34: Consulter la carte de vulnérabilité de nuit à une vague de chaleur avec ICU potentiel, modélisée à partir des Local Climate Zone (LCZ) de l'Institut Paris Région
B35: Cliquez sur la parcelle pour connaitre sa note de vulnérabiltié de nuit aux ICU : à partir de 3 un site est concidéré comme vulnérable Pour une analyse plus fine, la légende de la carte est disponible en cliquant sur le bouton constitué de trois barres horizontales en haut à gauche. A noter que pour un projet sur l'espace public, c'est la moyenne des parcelles alentours qui définit la vulnérabilité du site aux vagues de chaleurs et ICU.
A36: Définition : | B36: ¹ élévations localisées des températures, particulièrement des températures maximales diurnes et/ou nocturnes, enregistrées en milieu urbain par rapport aux zones rurales ou forestières voisines ou par rapport aux températures moyennes régionales.
A38: =IF(G33="Oui","La valeur attribuée à l'importance du service 'Régulation du climat local' dans l'onglet 'Choix_Critères' ne pourra pas être inférieure à 6.",IF(G33="Non","Pas de seuil minimal attribué à l'importance du service 'Régulation du climat local' dans l'onglet 'Choix_Critères'",IF(G33="Ne sait pas","Pas de seuil minimal attribué à l'importance du service 'Régulation du climat local' dans l'onglet 'Choix_Critères'"," "))) -> 
G40: Réponse | I40: Pour aller plus loin
A41: Mon projet vise-t-il à contribuer à l'atténuation de la pollution de l'air ? | I41: Si votre projet doit contribuer à réguler la pollution de l'air, il doit valoriser les espèces favorisant l'absorption des polluants gazeux et la fixation des particules fines seront alors favorisées. Par exemple, si votre projet est à proximité d'un public à risque, ou dans une zone de fort trafic, vous pouvez décider de valoriser le service de régulation de la pollution atmosphérique en lui attribuant un poids plus important. Point de vigilance : Seule, la plantation d’arbres ne peut pas lutter contre la régulation de la pollution de l’air (nécessité de réduire les émissions à la source). Une différence est à faire entre l’impact de la pollution sur les arbres (non traité dans Sesame) et l’effet des arbres dans la régulation de la pollution.
B42: Consulter les émissions de polluants atmosphériques
A44: =IF(G41="Oui","La valeur attribuée à l'importance des services 'Absorption des polluants' et 'Fixation des particules fines' dans l'onglet 'Choix_Critères' ne pourront pas être inférieures à 6.",IF(G41="Non","Pas de seuil minimal attribué à l'importance des services 'Absorption des polluants' et 'Fixation des particules fines' dans l'onglet 'Choix_Critères'",IF(G41="Ne sait pas","Pas de seuil minimal attribué à l'importance des services 'Absorption des polluants' et 'Fixation des particules fines' dans l'onglet 'Choix_Critères'"," "))) -> 
G46: Réponse | I46: Pour aller plus loin
A47: Est-ce que mon projet se trouve dans ou à proximité (< 1km) d'un élément remarquable de la trame verte et bleue locale? Une zone de réservoir de biodiversité², un corridor écologique³, un secteur ou une laison d'intérêt écologique? | I47: Si votre projet doit contribuer à une continuité écologique (réservoir ou corridor avéré ou d'intérêt), les espèces choisies doivent donc être attractives pour la faune sauvage, en termes d'alimentation, d'abri, de repos et de déplacement. La préservation de la biodiversité devient dès lors une des fonctions principales de l'espace végétalisé. Points de vigilance : - En raison de l’effondrement de la biodiversité constatée à l’heure actuelle, il est considéré ici que sa nécessaire préservation doit être prise en compte dans tout projet. La valeur minimale acceptée pour ce service ne pourra être inférieure à 4. - Même en zone dense, éloignée de plus d'1km d'une zone de réservoir de biodiversité ou de corridors écologiques, il est nécessaire que le porteur de projet contribue à renforcer et étendre les continuités en prenant en compte ce service.
B48: Consulter la carte du Schéma Régional de Cohérence Ecologique (SRCE) pour situer la zone de projet
B49: La légende de la carte est disponible en cliquant sur le bouton constitué de trois barres horizontales en haut à gauche. Les données recensées dans le Schéma Régional de Cohérence Ecologique (SRCE) sont disponibles à l'échelle nationale. Il existe cependant des données de trames écologiques locales plus précises, disponibles dans les PLUi/PLU des collectivités, qui sont à privilégier à l'échelle d'un projet. Exemple : l'EPT de la Plaine Commune
A51: Définition : | B51: ² espaces dans lesquels la biodiversité est la plus riche ou la mieux représentée, où les espèces peuvent effectuer tout ou partie de leur cycle de vie et où les habitats naturels peuvent assurer leur fonctionnement en ayant notamment une taille suffisante, qui abritent des noyaux de populations d'espèces à partir desquels les individus se dispersent ou qui sont susceptibles de permettre l'accueil de nouvelles populations d'espèces (OFB).
B52: ³ servent prioritairement à assurer les déplacements des espèces entre les réservoirs de biodiversité, qu’il s’agisse de déplacements routiniers, de dispersion ou de migration, on distingue ainsi trois types de corridors écologiques : les corridors linéaires, discontinus et paysagers. Pour en savoir plus
A54: =IF(G47="Oui","La valeur attribuée à l'importance du service 'Support de biodiversité' dans l'onglet 'Choix_Critères' ne pourra pas être inférieure à 6.",IF(G47="Non","La valeur attribuée à l'importance du service 'Support de biodiversité' dans l'onglet 'Choix_Critères' ne pourra pas être inférieure à 4.",IF(G47="Ne sait pas","La valeur attribuée à l'importance du service 'Support de biodiversité' dans l'onglet 'Choix_Critères' ne pourra pas être inférieure à 4.","La valeur attribuée à l'importance du service 'Support de biodiversité' dans l'onglet 'Choix_Critères' ne pourra pas être inférieure à 4."))) -> La valeur attribuée à l'importance du service 'Support de biodiversité' dans l'onglet 'Choix_Critères' ne pourra pas être inférieure à 4.
G56: Réponse | I56: Pour aller plus loin
A57: Est-ce que mon projet se trouve dans une zone carencée en couverture arborée ? | I57: Si votre projet doit contribuer au dévéloppement de la canopée, l'envergure des espèces ne doit pas être notée comme une contrainte discriminante afin de ne pas mettre de côté les espèces à fort développement de canopée. L'information relative au développement de la canopée d'une espèce se trouve dans les fiches espèces.
B58: Consulter la carte du pourcentage de couverture arborée du département de Seine-Saint-Denis
B59: L'utilisateur doit cliquer sur la maille comportant son projet pour connaître le pourcentage de couverture arborée dans cette zone. Dans le plan Canopée, une zone est considérée comme carencée si le pourcentage de couverture arborée est inférieur à 20%.
A61: =IF(G57="Oui","Le critère éliminatoire 'Arbre de grande envergure' dans l'onglet 'Choix_Critères' sera non discriminant",IF(G57="Non","Le critère éliminatoire 'Arbre de grande envergure' dans l'onglet Choix_Critères' peut être discriminant",IF(G57="Ne sait pas","Le critère éliminatoire 'Arbre de grande envergure' dans l'onglet Choix_Critères' peut être discriminant"," "))) -> 
G63: Réponse | I63: Pour aller plus loin
A64: Est-ce que mon projet a pour objectif de fournir de la nourriture aux habitant.e.s ? | I64: La nature et la capacité à fournir de la nourriture ainsi que la période de récolte sont mentionnées dans les fiches espèces. Point de vigilance : La contamination ou la pollution du sol peut engendrer des transferts de contaminants vers les fruits (plus ou moins important selon l'espèce) et in fine vers le consommat.eur.rice. Si aucune donnée n'est disponible, un diagnostic de la qualité des sols est conseillé et une étude de transfert peut être envisagée avant la réalisation du projet.
A66: =IF(G64="Oui","La valeur attribuée à l'importance du service 'Fourniture de nourriture' dans l'onglet 'Choix_Critères' ne pourra pas être inférieure à 6.",IF(G64="Non","Pas de seuil minimal attribué à l'importance du service 'Fourniture de nourriture' dans l'onglet 'Choix_Critères'",IF(G64="Ne sait pas","Pas de seuil minimal attribué à l'importance du service 'Fourniture de nourriture' dans l'onglet 'Choix_Critères'"," "))) -> 
G68: Réponse | I68: Pour aller plus loin
A69: Est-ce que mon projet a pour vocation de gérer quantitativement les eaux pluviales⁴ en limitant le ruissellement vers les réseaux ? | I69: Si votre projet doit contribuer à gérer quantitativement la ressource en eau notamment en favorisant les processus d'absorption/transpiration et d'infiltration de l'eau, il doit valoriser les espèces qui sont le plus favorables à l'infiltration et à l'évapotranspiration des eaux pluviales seront donc favorisées. Points de vigilance : - Si le projet est plutôt orienté rétention des eaux pluviales, se référer aux types d’espaces en sélectionnant, par exemple, la typologie « noues ». - L’outil Sesame gère le choix des essences mais pas le dimensionnement d’ouvrages, on se réfère donc bien ici à l’arbre mais pas aux ouvrages. - Seule, la plantation de l’arbre ne permet pas de limiter efficacement la gestion des eaux pluviales. Il est donc important d’encourager la désimperméabilisation pour favoriser ce service de régulation.
A70: Définition : | B70: ⁴ limitation du ruissellement en favorisant les processus l’infiltration/d’absorption (via le système racinaire) et l’évapotranspiration des eaux par les espèces
A72: =IF(G69="Oui","La valeur attribuée à l'importance du service 'Gestion quantitative des eaux' dans l'onglet 'Choix_Critères' ne pourra pas être inférieure à 6.",IF(G69="Non","Pas de seuil minimal attribué à l'importance du service 'Gestion quantitative de la ressource en eau' dans l'onglet 'Choix_Critères'",IF(G69="Ne sait pas","Pas de seuil minimal attribué à l'importance du service 'Gestion quantitative de la ressource en eau' dans l'onglet 'Choix_Critères'"," "))) -> 
G74: Réponse | I74: Pour aller plus loin
A75: Est-ce que le cadre de vie et l'aspect paysager sont des éléments prioritaires de mon projet ? | I75: Si votre projet doit avoir un rôle paysager important, il doit alors favoriser les espèces emblématiques ou les espèces possibles en lien avec le type d'espace identifié. Les différents rôles assurés par les espèces en terme paysager sont décrits plus précisément dans les fiches espèces.
A77: =IF(G75="Oui","La valeur attribuée à l'importance du service 'Rôle paysager' dans l'onglet 'Choix_Critères' ne pourra pas être inférieure à 6.",IF(G75="Non","Pas de seuil minimal attribué à l'importance du service 'Rôle paysager' dans l'onglet 'Choix_Critères'",IF(G75="Ne sait pas","Pas de seuil minimal attribué à l'importance du service 'Rôle paysager' dans l'onglet 'Choix_Critères'"," "))) -> 
A80: 3. Synthèse des valeurs minimales à renseigner dans l'onglet 'Choix_Critères'
B82: Service écosystémique | C82: Valeurs minimales de l'importance du service | E82: Remarques
B83: Régulation du climat local | C83: =IF(G33="Oui", "La valeur minimale associée à ce service est de 6 ","Pas de seuil minimal associé à ce service") -> Pas de seuil minimal associé à ce service | E83: En fonction du type d'espace du projet, du/des type(s) d'usage(s) associé(s) et de l'importance que vous attribuez à chaque service, vous pourrez faire varier les seuils de 6 à 10 (6 représentant un enjeu important du projet et 10 représentant un enjeu majeur pour le projet) NB : Pour le service Support de biodiversité, la note minimale est de 4.
B84: Absorption des polluants | C84: =IF(G41="Oui","La valeur minimale associée à ce service est de 6 ","Pas de seuil minimal associé à ce service") -> Pas de seuil minimal associé à ce service
B85: Fixation des particules fines | C85: =IF(G41="Oui","La valeur minimale associée à ce service est de 6 ","Pas de seuil minimal associé à ce service") -> Pas de seuil minimal associé à ce service
B86: Support de biodiversité | C86: La valeur minimale associée à ce service est de 4
B87: Fourniture de nourriture | C87: =IF(G64="Oui","La valeur minimale associée à ce service est de 6 ","Pas de seuil minimal associé à ce service") -> Pas de seuil minimal associé à ce service
B88: Gestion quantitative des eaux | C88: =IF(G69="Oui","La valeur minimale associée à ce service est de 6 ","Pas de seuil minimal associé à ce service") -> Pas de seuil minimal associé à ce service
B89: Rôle paysager | C89: =IF(G75="Oui","La valeur minimale associée à ce service est de 6 ","Pas de seuil minimal associé à ce service") -> Pas de seuil minimal associé à ce service
A92: 4. Critères éliminatoires
B94: Contraintes | E94: Risque(s) associé(s)
B95: Racines superficielles et /ou puissantes dommageables | E95: entraîne des dommages aux revêtements, pavements, murs, fondations avoisinants ainsi qu'aux ouvrages souterrains
B97: Branches cassantes | E97: chute de branches pouvant entrainer des dommages corporels et matériels
B99: Espèce sensible au chablis | E99: arbre renversé généralement sous l’action du vent pouvant entrainer des dommages
B101: Fructification pouvant entraîner des dommages | E101: peut entraîner des dommages de par la dimension, le poids et la dureté (ex: coque) des fruits
B103: Dépôt de miellat et/ou production de résine | E103: peut constituer des dépôts collants
B105: Fruits malodorants | E105: dégage une odeur désagréable et incommodante
B107: Fruits toxiques | E107: incidence sur la santé humaine selon le volume ingéré, l'état de maturité du fruit …
B109: Arbre de grande hauteur | E109: peut être considérée comme une gêne (ombrage, volume très important de feuillage, humidité, …)
B111: Arbre de grande envergure | E111: à prendre en compte si l’espace est réduit | I111: =IF(G57="Oui","Pensez à choisir l'option 4 pour cette contrainte dans l'onglet 'Choix_Critères' afin de ne pas mettre de côté les espèces à fort développement de canopée", " ") -> 
B113: Caractère allergène | E113: peut entrainer une allergie, enjeu de santé publique
B115: Espèce abritant des chenilles processionnaires | E115: incidence sur la santé humaine pouvant entrainer des réactions allergiques très sérieuses
B117: Caractère épineux | E117: peut entraîner des dommages corporels comme des blessures/infections
B121: Vous avez maintenant terminé de répondre au questionnaire. Pour lancer l'outil Sésame, veuillez remplir les informations demandées dans l'onglet Choix_Critères

Sheet Choix_Critères
B1: Version 4 - CD93
A21: Quelles sont les espèces recommandées au vu de mes priorités ? | F21: Notice d'utilisation
B22: 1. Quel type d’espace public est aménagé ? | F22: 1. Quel type d’espace public est aménagé ?
B24: Place | F24: Choisissez le type d'espace public objet du projet de végétalisation (si vous avez déjà répondu à cette question dans l'onglet Questionnaire, veuillez vérifier que le type d'espace inscrit correspond à votre réponse)
B27: 2. Caractérisez votre projet : quelles sont les attentes en termes de végétalisation ? | F27: 2. Caractérisez votre projet : quelles sont les attentes en termes de végétalisation ?
F28: La caractérisation du projet passe par l'expression de l'exigence en matière de résistance aux aléas climatiques, puis par l'expression de l'importance relative des services écosystémiques attendus, puis enfin par l'expression des contraintes éliminatoires.
B30: 2.1. Il est important d'implanter des végétaux autant que possible, adaptés au climat local, adaptés aux spécifictés du climat urbain, adaptés aux conséquences attendues du changement climatique. Quelle importance accordez-vous à ce critère ? | F30: Caractérisez l'importance pour votre projet, de l'adaptation au climat urbain dans le contexte du changement climatique, au besoin en vous inspirant des exemples ci-dessous : 10 : Projet en contexte très difficile, très exposé aux difficultés du climat urbain ou aux effets d'épisodes climatiques remettant en cause la survie des végétaux.
B31: Adaptation au climat urbain | C31: 10
F32: 8 : Projet en contexte difficile pour la survie des végétaux
F33: 2 : Projet en contexte peu sensible : espace naturel, zone humide, …
B35: 2.2. Parmi les services suivants, lesquels sont à prendre en compte de manière prioritaire dans l’aménagement ?
C37: Importance du service | F37: Renseignez les cellules orange par des valeurs comprises entre 0 et 10.
A38: 4 | B38: Support de biodiversité | C38: 5 | D38: =C38/$C$48% -> 12.5 | F38: 10 : cet enjeu est majeur pour le projet, c'est la motivation du projet.
A39: 3 | B39: Régulation du climat local | C39: 5 | D39: =C39/$C$48% -> 12.5 | F39: 8 : c'est l'enjeu le plus important du projet.
A40: 1 | B40: Absorption des polluants | C40: 5 | D40: 12.5 | F40: 6 : c'est un des enjeux importants du projet.
A41: 2 | B41: Fixation des particules fines | C41: 5 | D41: 12.5 | F41: 4 : cet enjeu est pris en compte, mais il n'est pas jugé prioritaire.
A42: 5 | B42: Régulation quantitative des eaux pluviales | C42: 5 | D42: 12.5 | F42: 2 : c'est un enjeu très secondaire dans le cadre du projet.
A43: 8 | B43: Stockage de carbone | C43: 5 | D43: 12.5 | F43: remarque : tous les services rendus par les végétaux sont importants et
A44: 9 | B44: Fourniture de nourriture | C44: 5 | D44: 12.5 | F44: interdépendants. Il est recommandé de ne pas utiliser les valeurs 0 ou 1,
A45: 6 | B45: Rôle paysager | C45: 5 | D45: 12.5 | F45: et marginalement 2 ou 3.
F46: remarque : pour la biodiversité, la valeur minimale est de 4.
B48: Total | C48: =IF(SUM(C38:C45)>64,"L'arbre parfait n'existe pas, veuillez rééquilibrer votre pondération",SUM(C38:C45)) -> 40 | F48: Pour une utilisation équilibrée de l'outil, il est souhaitable que la somme des pondérations choisies soit située entre 40 et 64.
B51: 3. Quels sont les critères éliminatoires ? | F51: 3. Quels sont les critères éliminatoires ?
C52: Elimination des espèces présentant…
B53: racines superficielles | C53: 4. Critère non discriminant | F53: Indiquez ici selon quels critères vous souhaitez éliminer des espèces. Critère très défavorable au projet : éliminez toutes les espèces présentant cette contrainte à un niveau faible, moyen ou fort : choisissez 1. Critère défavorable au projet : éliminez les espèces présentant cette contrainte à un niveau moyen ou fort : choisissez 2. Critère peu défavorable au projet : éliminez les espèces présentant cette contrainte à un niveau fort forte : choisissez 3.
B54: branches cassantes | C54: 4. Critère non discriminant
B55: espèces sensibles au chablis | C55: 4. Critère non discriminant
B56: fructifications pouvant entraîner des dommages | C56: 4. Critère non discriminant
B57: dépôt de miellat / production de résine | C57: 4. Critère non discriminant
B58: fruits toxiques | C58: 4. Critère non discriminant
B59: arbre de grande hauteur | C59: 4. Critère non discriminant
B60: arbre de grande envergure | C60: 4. Critère non discriminant
B61: arbre dont le pollen présente un risque allergique | C61: 4. Critère non discriminant
B62: arbre aux fruits malodorants | C62: 4. Critère non discriminant
B63: arbre abritant des chenilles processionnaires | C63: 4. Critère non discriminant | F63: remarque : veillez à avoir une utilisation raisonnée et limitée des critères d'élimination
B64: arbre épineux | C64: 4. Critère non discriminant
B66: 4. J'appuie sur ce bouton | C66: Nombre d'espèces souhaitées : | D66: 12 | F66: 4. J'appuie sur ce bouton
F67: Appuyez sur le bouton pour proposer des espèces adaptées aux critères choisis
B69: Au vu des priorités définies, nous vous recommandons les essences suivantes :
B71: Copalme d’Amérique | C71: =IF(ISNA(VLOOKUP(B71,Base_Arbres,2,FALSE)),"",VLOOKUP(B71,Base_Arbres,2,FALSE)) -> Liquidambar styraciflua
B72: Merisier | C72: =IF(ISNA(VLOOKUP(B72,Base_Arbres,2,FALSE)),"",VLOOKUP(B72,Base_Arbres,2,FALSE)) -> Prunus avium
B73: Aubépine monogyne | C73: =IF(ISNA(VLOOKUP(B73,Base_Arbres,2,FALSE)),"",VLOOKUP(B73,Base_Arbres,2,FALSE)) -> Crataegus monogyna
B74: Micocoulier occidental | C74: Celtis occidentalis
B75: Arbre aux quarante écus | C75: Gingko biloba
B76: Micocoulier de Provence | C76: Celtis australis
B77: Faux-orme du Japon | C77: Zelkova serrata
B78: Chataîgnier commun | C78: Castanea sativa
B79: Alisier blanc | C79: Sorbus aria
B80: Charme houblon, Ostryer commun | C80: Ostrya caprinifolia
B81: Aubépine épineuse | C81: Crataegus laevigata
B82: Alisier de Suède Brouwers | C82: Sorbus intermedia Brouwers
B85: Elles sont présentées sans ordre de préférence, comme un panel d'espèces adaptées.
B86: L'analyse menée ne dispense pas d'un examen de l'adaptation à la texture, la structure et l'alimentation en eau du sol.

Sheet Base_Arbres
A1: Nom vernaculaire | B1: Nom scientifique | C1: 11. Absorption des polluants | D1: 12. Fixation des particules fines | E1: 13. Régulation du climat local | F1: 14. Support de biodiversité | G1: 15. Régulation quantitative des eaux pluviales | H1: 16. Stockage de carbone | I1: 17. Fourniture de nourriture | J1: racines superficielles | K1: branches cassantes | L1: espèce sensible au chablis | M1: fructification pouvant entraîner des dommages | N1: dépôt de miellat et ou de résine | O1: fruits toxiques | P1: arbre de grande hauteur | Q1: arbre de grande envergure | R1: risque allergique | S1: fruits malodorants | T1: espèce abritant des chenilles processionnaires | U1: caractère epineux | V1: Adaptation au climat francilien, dans le contexte du changement Climatique
A2: Sapin du colorado | B2: Abies concolor | C2: 4.2 | D2: 7.57 | E2: 5.69 | F2: 1 | G2: 6.3 | H2: 4 | I2: 3 | J2: 2.Moyenne | K2: 0 | L2: 2.Moyenne | M2: 1.Faible | N2: 2.Moyenne | O2: 0 | P2: 3.Forte | Q2: 0 | R2: 0 | S2: 0 | T2: 2.Moyenne | U2: 0 | V2: 7
A3: Sapin d'Espagne | B3: Abies pinsapo | C3: 3.25 | D3: 7 | E3: 4.44 | F3: 0.8 | G3: 5.1 | H3: 3.33 | I3: 3 | J3: 2.Moyenne | K3: 0 | L3: 2.Moyenne | M3: 1.Faible | N3: 2.Moyenne | O3: 0 | P3: 2.Moyenne | Q3: 0 | R3: 0 | S3: 0 | T3: 2.Moyenne | U3: 0 | V3: 8
A4: Érable champêtre | B4: Acer campestre | C4: 6.59 | D4: 4.48 | E4: 6.63 | F4: 6.3 | G4: 7 | H4: 2 | I4: 3 | J4: 0 | K4: 0 | L4: 0 | M4: 0 | N4: 2.Moyenne | O4: 0 | P4: 1.Faible | Q4: 1.Faible | R4: 2.Moyenne | S4: 0 | T4: 0 | U4: 0 | V4: 10
A5: Erable de Montpellier | B5: Acer monspessulanum | C5: 5.02 | D5: 4.61 | E5: 5.77 | F5: 2.1 | G5: 5.9 | H5: 2 | I5: 3 | J5: 0 | K5: 0 | L5: 0 | M5: 0 | N5: 2.Moyenne | O5: 0 | P5: 0 | Q5: 0 | R5: 1.Faible | S5: 0 | T5: 0 | U5: 0 | V5: 8
A6: Érable plane | B6: Acer platanoïdes | C6: 6.9 | D6: 5.8 | E6: 8.44 | F6: 4.6 | G6: 8.2 | H6: 3.33 | I6: 3 | J6: 2.Moyenne | K6: 0 | L6: 0 | M6: 0 | N6: 2.Moyenne | O6: 0 | P6: 3.Forte | Q6: 1.Faible | R6: 2.Moyenne | S6: 0 | T6: 0 | U6: 0 | V6: 9
A7: Érable sycomore | B7: Acer pseudoplatanus | C7: 5.83 | D7: 6.3 | E7: 8.13 | F7: 5.8 | G7: 7.7 | H7: 8 | I7: 3 | J7: 2.Moyenne | K7: 1.Faible | L7: 0 | M7: 0 | N7: 2.Moyenne | O7: 0 | P7: 3.Forte | Q7: 1.Faible | R7: 2.Moyenne | S7: 0 | T7: 0 | U7: 0 | V7: 5
A8: Érable rouge d'Amérique | B8: Acer rubrum | C8: 4.99 | D8: 5.8 | E8: 7.19 | F8: 3.3 | G8: 7.6 | H8: 4 | I8: 3 | J8: 2.Moyenne | K8: 2.Moyenne | L8: 2.Moyenne | M8: 0 | N8: 2.Moyenne | O8: 0 | P8: 2.Moyenne | Q8: 0 | R8: 1.Faible | S8: 0 | T8: 0 | U8: 0 | V8: 4
A9: Erable rouge Scanlon | B9: Acer rubrum ‘Scanlon’ | C9: 5.71 | D9: 5.09 | E9: 6.56 | F9: 3.3 | G9: 6.5 | H9: 4 | I9: 3 | J9: 2.Moyenne | K9: 2.Moyenne | L9: 2.Moyenne | M9: 0 | N9: 2.Moyenne | O9: 0 | P9: 1.Faible | Q9: 0 | R9: 1.Faible | S9: 0 | T9: 0 | U9: 0 | V9: 6
A10: Érable hybride de Freeman | B10: Acer x freemanii | C10: 7.31 | D10: 4.91 | E10: 7.52 | F10: 2.5 | G10: 7 | H10: 2.67 | I10: 3 | J10: 0 | K10: 0 | L10: 0 | M10: 0 | N10: 2.Moyenne | O10: 0 | P10: 1.Faible | Q10: 1.Faible | R10: 1.Faible | S10: 0 | T10: 0 | U10: 0 | V10: 6
A11: Marronnier d’Inde | B11: Aesculus hypocastanum | C11: 8.13 | D11: 5.4 | E11: 8.69 | F11: 4.2 | G11: 8.1 | H11: 8 | I11: 3 | J11: 3.Forte | K11: 2.Moyenne | L11: 0 | M11: 3.Forte | N11: 0 | O11: 1.Faible | P11: 3.Forte | Q11: 1.Faible | R11: 0 | S11: 0 | T11: 0 | U11: 0 | V11: 6
A12: Marronnier rouge | B12: Aesculus x carnea | C12: 5.99 | D12: 5.4 | E12: 6.81 | F12: 2.9 | G12: 6.7 | H12: 4 | I12: 3 | J12: 2.Moyenne | K12: 3.Forte | L12: 0 | M12: 2.Moyenne | N12: 0 | O12: 1.Faible | P12: 2.Moyenne | Q12: 0 | R12: 0 | S12: 0 | T12: 0 | U12: 0 | V12: 6
A13: Arbre à soie | B13: Albizia julibrissin | C13: 5.45 | D13: 3.87 | E13: 4.65 | F13: 2.1 | G13: 5 | H13: 1.33 | I13: 3 | J13: 0 | K13: 0 | L13: 0 | M13: 0 | N13: 0 | O13: 1.Faible | P13: 1.Faible | Q13: 0 | R13: 0 | S13: 0 | T13: 0 | U13: 0 | V13: 6
A14: Aulne glutineux | B14: Alnus glutinosa | C14: 5.12 | D14: 4.88 | E14: 5.52 | F14: 7.1 | G14: 5.8 | H14: 3.33 | I14: 3 | J14: 2.Moyenne | K14: 1.Faible | L14: 0 | M14: 0 | N14: 0 | O14: 0 | P14: 3.Forte | Q14: 0 | R14: 3.Forte | S14: 0 | T14: 0 | U14: 0 | V14: 7
A15: Aulne blanc | B15: Alnus incana | C15: 4.31 | D15: 5.54 | E15: 5.65 | F15: 2.9 | G15: 5.8 | H15: 1.33 | I15: 3 | J15: 0 | K15: 0 | L15: 0 | M15: 0 | N15: 0 | O15: 0 | P15: 2.Moyenne | Q15: 0 | R15: 3.Forte | S15: 0 | T15: 0 | U15: 0 | V15: 7
A16: Aulne de Späth | B16: Alnus x spaethii | C16: 4.64 | D16: 5.74 | E16: 5.77 | F16: 1.7 | G16: 5.6 | H16: 1.33 | I16: 3 | J16: 3.Forte | K16: 1.Faible | L16: 0 | M16: 0 | N16: 1.Faible | O16: 0 | P16: 2.Moyenne | Q16: 0 | R16: 3.Forte | S16: 0 | T16: 0 | U16: 0 | V16: 9
A17: Amélanchier arborescent Robin Hill | B17: Amelanchier arborea ‘Robin Hill’ | C17: 4.38 | D17: 4.51 | E17: 4.33 | F17: 1.3 | G17: 4.7 | H17: 1.33 | I17: 3 | J17: 0 | K17: 0 | L17: 0 | M17: 0 | N17: 0 | O17: 0 | P17: 0 | Q17: 0 | R17: 1.Faible | S17: 0 | T17: 0 | U17: 0 | V17: 5
A18: Bouleau à écorce rouge, Bouleau de Chine | B18: Betula albosinensis | C18: 3.5 | D18: 5.05 | E18: 4.27 | F18: 1.3 | G18: 5.1 | H18: 2 | I18: 3 | J18: 0 | K18: 0 | L18: 1.Faible | M18: 0 | N18: 0 | O18: 0 | P18: 0 | Q18: 0 | R18: 3.Forte | S18: 0 | T18: 0 | U18: 0 | V18: 2
A19: Bouleau pendant | B19: Betula pendula | C19: 6.34 | D19: 4.33 | E19: 5.98 | F19: 6.7 | G19: 6.5 | H19: 3.33 | I19: 3 | J19: 2.Moyenne | K19: 1.Faible | L19: 1.Faible | M19: 0 | N19: 0 | O19: 0 | P19: 3.Forte | Q19: 0 | R19: 3.Forte | S19: 0 | T19: 0 | U19: 0 | V19: 10
A20: Bouleau pubescent | B20: Betula pubescens | C20: 4.13 | D20: 5.5 | E20: 5.42 | F20: 5.8 | G20: 6 | H20: 3.33 | I20: 3 | J20: 2.Moyenne | K20: 1.Faible | L20: 1.Faible | M20: 0 | N20: 0 | O20: 0 | P20: 2.Moyenne | Q20: 1.Faible | R20: 3.Forte | S20: 0 | T20: 0 | U20: 0 | V20: 5
A21: Bouleau blanc de l'Himalaya | B21: Betula utilis var. jacquemontii | C21: 5.19 | D21: 4.78 | E21: 5.71 | F21: 2.5 | G21: 6.5 | H21: 1.33 | I21: 3 | J21: 0 | K21: 1.Faible | L21: 1.Faible | M21: 0 | N21: 0 | O21: 0 | P21: 1.Faible | Q21: 0 | R21: 3.Forte | S21: 0 | T21: 0 | U21: 0 | V21: 1
A22: Charme commun | B22: Carpinus betulus | C22: 3.87 | D22: 6.2 | E22: 7 | F22: 5.8 | G22: 7.5 | H22: 4 | I22: 3 | J22: 0 | K22: 0 | L22: 0 | M22: 0 | N22: 0 | O22: 0 | P22: 3.Forte | Q22: 0 | R22: 3.Forte | S22: 0 | T22: 0 | U22: 0 | V22: 7
A23: Charme commun 'Frans Fontaine' | B23: Carpinus betulus 'Frans Fontaine' | C23: 6.06 | D23: 4.23 | E23: 5.5 | F23: 3.3 | G23: 5.7 | H23: 2.67 | I23: 3 | J23: 0 | K23: 0 | L23: 0 | M23: 0 | N23: 0 | O23: 0 | P23: 1.Faible | Q23: 0 | R23: 3.Forte | S23: 0 | T23: 0 | U23: 0 | V23: 5
A24: Charme d'Orient | B24: Carpinus orientalis | C24: 2.87 | D24: 5.75 | E24: 5.38 | F24: 1.7 | G24: 5.5 | H24: 2.67 | I24: 3 | J24: 0 | K24: 0 | L24: 0 | M24: 0 | N24: 0 | O24: 0 | P24: 1.Faible | Q24: 0 | R24: 3.Forte | S24: 0 | T24: 0 | U24: 0 | V24: 5
A25: Caryer glabre | B25: Carya glabra | C25: 7.52 | D25: 4.97 | E25: 7.83 | F25: 1.3 | G25: 6.8 | H25: 4 | I25: 3 | J25: 0 | K25: 1.Faible | L25: 0 | M25: 1.Faible | N25: 1.Faible | O25: 0 | P25: 3.Forte | Q25: 1.Faible | R25: 3.Forte | S25: 0 | T25: 0 | U25: 0 | V25: 5
A26: Chataîgnier commun | B26: Castanea sativa | C26: 6.8 | D26: 5.75 | E26: 8.19 | F26: 5.8 | G26: 7.3 | H26: 2.67 | I26: 10 | J26: 2.Moyenne | K26: 0 | L26: 0 | M26: 3.Forte | N26: 2.Moyenne | O26: 0 | P26: 3.Forte | Q26: 0 | R26: 1.Faible | S26: 0 | T26: 0 | U26: 0 | V26: 7
A27: Catalpa commun | B27: Catalpa bignonioides | C27: 5.62 | D27: 6.4 | E27: 7.58 | F27: 1.3 | G27: 6.7 | H27: 3.33 | I27: 3 | J27: 1.Faible | K27: 2.Moyenne | L27: 0 | M27: 0 | N27: 0 | O27: 0 | P27: 2.Moyenne | Q27: 0 | R27: 0 | S27: 0 | T27: 0 | U27: 0 | V27: 7
A28: Cèdre de l’Atlas | B28: Cedrus atlantica | C28: 3.85 | D28: 7.36 | E28: 5.02 | F28: 0.8 | G28: 5.7 | H28: 10 | I28: 3 | J28: 1.Faible | K28: 1.Faible | L28: 0 | M28: 0 | N28: 1.Faible | O28: 0 | P28: 3.Forte | Q28: 2.Moyenne | R28: 1.Faible | S28: 0 | T28: 0 | U28: 0 | V28: 9
A29: Cèdre du Liban | B29: Cedrus libani | C29: 3.9 | D29: 7.24 | E29: 5.4 | F29: 0.8 | G29: 5.8 | H29: 10 | I29: 3 | J29: 1.Faible | K29: 1.Faible | L29: 0 | M29: 0 | N29: 1.Faible | O29: 0 | P29: 3.Forte | Q29: 0 | R29: 2.Moyenne | S29: 0 | T29: 0 | U29: 0 | V29: 8
A30: Micocoulier de Provence | B30: Celtis australis | C30: 4.93 | D30: 5.77 | E30: 6.77 | F30: 2.5 | G30: 6.7 | H30: 3.33 | I30: 3 | J30: 0 | K30: 0 | L30: 0 | M30: 0 | N30: 0 | O30: 0 | P30: 2.Moyenne | Q30: 0 | R30: 0 | S30: 0 | T30: 0 | U30: 0 | V30: 8
A31: Micocoulier de Julian Cannabaceae | B31: Celtis julianae | C31: 4.69 | D31: 5.7 | E31: 6.15 | F31: 0.8 | G31: 5.7 | H31: 2.67 | I31: 3 | J31: 0 | K31: 0 | L31: 1.Faible | M31: 0 | N31: 0 | O31: 0 | P31: 1.Faible | Q31: 1.Faible | R31: 1.Faible | S31: 0 | T31: 0 | U31: 0 | V31: 4
A32: Micocoulier occidental | B32: Celtis occidentalis | C32: 6.26 | D32: 5.42 | E32: 7.27 | F32: 2.1 | G32: 7 | H32: 4 | I32: 3 | J32: 0 | K32: 0 | L32: 0 | M32: 0 | N32: 0 | O32: 0 | P32: 2.Moyenne | Q32: 2.Moyenne | R32: 0 | S32: 0 | T32: 0 | U32: 0 | V32: 9
A33: Arbre au caramel | B33: Cercidiphyllum japonicum | C33: 6.54 | D33: 4.66 | E33: 6.5 | F33: 1 | G33: 6.6 | H33: 2 | I33: 3 | J33: 0 | K33: 1.Faible | L33: 0 | M33: 0 | N33: 0 | O33: 0 | P33: 1.Faible | Q33: 0 | R33: 1.Faible | S33: 0 | T33: 0 | U33: 0 | V33: 3
A34: Gainier du Canada | B34: Cercis canadensis | C34: 6.93 | D34: 4.68 | E34: 7.27 | F34: 2.1 | G34: 6.7 | H34: 1.33 | I34: 3 | J34: 0 | K34: 0 | L34: 0 | M34: 0 | N34: 0 | O34: 0 | P34: 0 | Q34: 0 | R34: 1.Faible | S34: 0 | T34: 0 | U34: 0 | V34: 7
A35: Arbre de Judée | B35: Cercis siliquastrum | C35: 6.62 | D35: 4.5 | E35: 6.71 | F35: 2.1 | G35: 6.2 | H35: 2 | I35: 3 | J35: 0 | K35: 0 | L35: 0 | M35: 0 | N35: 0 | O35: 0 | P35: 0 | Q35: 0 | R35: 0 | S35: 0 | T35: 0 | U35: 0 | V35: 8
A36: Arbre de neige | B36: Chionanthus virginicus | C36: 4.62 | D36: 5.65 | E36: 6.21 | F36: 1.3 | G36: 6.2 | H36: 2 | I36: 3 | J36: 0 | K36: 0 | L36: 1.Faible | M36: 1.Faible | N36: 0 | O36: 0 | P36: 0 | Q36: 0 | R36: 0 | S36: 0 | T36: 0 | U36: 0 | V36: 2
A37: Cornouiller sanguin | B37: Cornus sanguinea | C37: 2.76 | D37: 5.54 | E37: 5.33 | F37: 5.8 | G37: 6.5 | H37: 1.33 | I37: 3 | J37: 0 | K37: 0 | L37: 0 | M37: 0 | N37: 0 | O37: 1.Faible | P37: 0 | Q37: 0 | R37: 0 | S37: 0 | T37: 0 | U37: 0 | V37: 8
A38: Noisetier commun | B38: Corylus avellana | C38: 3.54 | D38: 6.08 | E38: 6.63 | F38: 6.3 | G38: 6.9 | H38: 1.33 | I38: 10 | J38: 0 | K38: 0 | L38: 0 | M38: 1.Faible | N38: 0 | O38: 0 | P38: 0 | Q38: 0 | R38: 3.Forte | S38: 0 | T38: 0 | U38: 0 | V38: 5
A39: Noisetier de Byzance | B39: Corylus colurna | C39: 6.17 | D39: 5.37 | E39: 7.52 | F39: 2.5 | G39: 7.1 | H39: 3.33 | I39: 10 | J39: 0 | K39: 0 | L39: 0 | M39: 2.Moyenne | N39: 0 | O39: 0 | P39: 2.Moyenne | Q39: 0 | R39: 3.Forte | S39: 0 | T39: 0 | U39: 0 | V39: 9
A40: Noisetier de Byzance ‘VDB Obelisk’ | B40: Corylus colurna ‘VDB Obelisk’ | C40: 4.67 | D40: 5.68 | E40: 6.33 | F40: 2.1 | G40: 6.1 | H40: 2 | I40: 6 | J40: 0 | K40: 0 | L40: 0 | M40: 1.Faible | N40: 0 | O40: 0 | P40: 1.Faible | Q40: 0 | R40: 3.Forte | S40: 0 | T40: 0 | U40: 0 | V40: 3
A41: Aubépine épineuse | B41: Crataegus laevigata | C41: 4.76 | D41: 4.45 | E41: 5.58 | F41: 5.8 | G41: 5.8 | H41: 2.67 | I41: 6 | J41: 0 | K41: 0 | L41: 0 | M41: 0 | N41: 0 | O41: 0 | P41: 0 | Q41: 0 | R41: 0 | S41: 0 | T41: 0 | U41: 2.Moyenne | V41: 9
A42: Aubépine monogyne | B42: Crataegus monogyna | C42: 6.06 | D42: 4.09 | E42: 6.25 | F42: 5.8 | G42: 6.3 | H42: 2.67 | I42: 6 | J42: 0 | K42: 0 | L42: 0 | M42: 0 | N42: 0 | O42: 0 | P42: 0 | Q42: 0 | R42: 0 | S42: 0 | T42: 0 | U42: 2.Moyenne | V42: 9
A43: Arbre aux mouchoirs | B43: Davidia involucrata | C43: 4.79 | D43: 5.82 | E43: 6.65 | F43: 1.3 | G43: 6.3 | H43: 4 | I43: 3 | J43: 0 | K43: 0 | L43: 0 | M43: 0 | N43: 0 | O43: 0 | P43: 1.Faible | Q43: 0 | R43: 0 | S43: 0 | T43: 0 | U43: 0 | V43: 3
A44: Arbre à Gutta-Percha | B44: Eucommia ulmoides | C44: 6.38 | D44: 5.42 | E44: 7.58 | F44: 1 | G44: 7.2 | H44: 4 | I44: 3 | J44: 0 | K44: 1.Faible | L44: 0 | M44: 0 | N44: 0 | O44: 0 | P44: 2.Moyenne | Q44: 1.Faible | R44: 1.Faible | S44: 0 | T44: 0 | U44: 0 | V44: 7
A45: Fusain d’Europe | B45: Euonymus europaeus | C45: 4.5 | D45: 4.3 | E45: 4.65 | F45: 4.6 | G45: 5.3 | H45: 2 | I45: 0 | J45: 0 | K45: 0 | L45: 0 | M45: 0 | N45: 2.Moyenne | O45: 3.Forte | P45: 0 | Q45: 0 | R45: 0 | S45: 0 | T45: 0 | U45: 0 | V45: 6
A46: Hêtre commun | B46: Fagus sylvatica | C46: 6.3 | D46: 5.45 | E46: 7.38 | F46: 7.1 | G46: 7.7 | H46: 8 | I46: 3 | J46: 0 | K46: 0 | L46: 0 | M46: 0 | N46: 0 | O46: 0 | P46: 3.Forte | Q46: 2.Moyenne | R46: 2.Moyenne | S46: 0 | T46: 0 | U46: 0 | V46: 3
A47: Hêtre commun ‘Dawyck ’ | B47: Fagus sylvatica ‘Dawyck ’ | C47: 4.92 | D47: 4.69 | E47: 5.25 | F47: 5.4 | G47: 5.4 | H47: 4 | I47: 3 | J47: 0 | K47: 0 | L47: 0 | M47: 0 | N47: 0 | O47: 0 | P47: 1.Faible | Q47: 0 | R47: 2.Moyenne | S47: 0 | T47: 0 | U47: 0 | V47: 1
A48: Frêne d'Amérique, Frêne blanc | B48: Fraxinus americana | C48: 6.02 | D48: 6.57 | E48: 7.9 | F48: 3.8 | G48: 7 | H48: 4 | I48: 3 | J48: 0 | K48: 2.Moyenne | L48: 0 | M48: 0 | N48: 0 | O48: 0 | P48: 3.Forte | Q48: 3.Forte | R48: 3.Forte | S48: 0 | T48: 0 | U48: 0 | V48: 9
A49: Frêne à feuilles étroites, Frêne du midi, Frêne oxyphylle | B49: Fraxinus angustifolia | C49: 5.57 | D49: 5.08 | E49: 6.21 | F49: 5 | G49: 5.8 | H49: 4 | I49: 3 | J49: 0 | K49: 2.Moyenne | L49: 0 | M49: 0 | N49: 0 | O49: 0 | P49: 2.Moyenne | Q49: 1.Faible | R49: 3.Forte | S49: 0 | T49: 0 | U49: 0 | V49: 9
A50: Frêne commun, Frêne élevé | B50: Fraxinus excelsior | C50: 4.57 | D50: 5.77 | E50: 5.83 | F50: 6.3 | G50: 6 | H50: 8 | I50: 3 | J50: 0 | K50: 3.Forte | L50: 0 | M50: 0 | N50: 0 | O50: 0 | P50: 3.Forte | Q50: 1.Faible | R50: 3.Forte | S50: 0 | T50: 0 | U50: 0 | V50: 7
A51: Frêne à fleurs | B51: Fraxinus ornus | C51: 6.19 | D51: 4.17 | E51: 6.08 | F51: 3.8 | G51: 5.9 | H51: 2 | I51: 3 | J51: 2.Moyenne | K51: 2.Moyenne | L51: 0 | M51: 0 | N51: 0 | O51: 0 | P51: 0 | Q51: 0 | R51: 3.Forte | S51: 0 | T51: 0 | U51: 0 | V51: 8
A52: Frêne à fleurs colonnaire | B52: Fraxinus ornus 'Paus Johannes-Paulus II' | C52: 5.9 | D52: 4.14 | E52: 5.08 | F52: 3.3 | G52: 4.9 | H52: 2 | I52: 3 | J52: 0 | K52: 0 | L52: 0 | M52: 0 | N52: 0 | O52: 0 | P52: 1.Faible | Q52: 0 | R52: 3.Forte | S52: 0 | T52: 0 | U52: 0 | V52: 8
A53: Frêne rouge d'Amérique | B53: Fraxinus pennsylvanica | C53: 5.88 | D53: 6.34 | E53: 8.02 | F53: 3.8 | G53: 7.1 | H53: 2.67 | I53: 3 | J53: 2.Moyenne | K53: 2.Moyenne | L53: 0 | M53: 0 | N53: 0 | O53: 0 | P53: 3.Forte | Q53: 1.Faible | R53: 3.Forte | S53: 0 | T53: 0 | U53: 0 | V53: 7
A54: Arbre aux quarante écus | B54: Gingko biloba | C54: 4.56 | D54: 6.31 | E54: 6.98 | F54: 1.3 | G54: 6.5 | H54: 4 | I54: 6 | J54: 0 | K54: 0 | L54: 0 | M54: 3.Forte | N54: 0 | O54: 2.Moyenne | P54: 3.Forte | Q54: 1.Faible | R54: 0 | S54: 3.Forte | T54: 0 | U54: 0 | V54: 9
A55: Arbre aux quarante écus Blagon | B55: Ginkgo biloba ‘Blagon’ | C55: 3.42 | D55: 5.62 | E55: 5.48 | F55: 0.8 | G55: 5.5 | H55: 4 | I55: 3 | J55: 0 | K55: 0 | L55: 0 | M55: 0 | N55: 0 | O55: 0 | P55: 1.Faible | Q55: 0 | R55: 0 | S55: 0 | T55: 0 | U55: 0 | V55: 8
A56: Févier d’Amérique | B56: Gleditsia triacanthos | C56: 4.51 | D56: 5.44 | E56: 6.17 | F56: 3.3 | G56: 6.6 | H56: 4 | I56: 0 | J56: 0 | K56: 2.Moyenne | L56: 1.Faible | M56: 2.Moyenne | N56: 0 | O56: 3.Forte | P56: 3.Forte | Q56: 2.Moyenne | R56: 0 | S56: 0 | T56: 0 | U56: 3.Forte | V56: 9
A57: Houx commun | B57: Ilex aquifolium | C57: 5.32 | D57: 5.45 | E57: 5.88 | F57: 5.4 | G57: 6.5 | H57: 2 | I57: 0 | J57: 0 | K57: 0 | L57: 0 | M57: 0 | N57: 0 | O57: 3.Forte | P57: 1.Faible | Q57: 0 | R57: 0 | S57: 0 | T57: 0 | U57: 1.Faible | V57: 4
A58: Noyer commun | B58: Juglans regia | C58: 7.6 | D58: 5.08 | E58: 7.77 | F58: 2.5 | G58: 7.6 | H58: 3.33 | I58: 10 | J58: 3.Forte | K58: 0 | L58: 0 | M58: 3.Forte | N58: 0 | O58: 0 | P58: 3.Forte | Q58: 1.Faible | R58: 1.Faible | S58: 0 | T58: 0 | U58: 0 | V58: 5
A59: Genévrier commun | B59: Juniperus communis | C59: 2.91 | D59: 6.65 | E59: 4.31 | F59: 4.2 | G59: 5.5 | H59: 2.67 | I59: 3 | J59: 0 | K59: 0 | L59: 0 | M59: 0 | N59: 0 | O59: 0 | P59: 0 | Q59: 0 | R59: 1.Faible | S59: 0 | T59: 0 | U59: 0 | V59: 8
A60: Savonnier de chine | B60: Koelreuteria paniculata | C60: 6.1 | D60: 4.11 | E60: 5.6 | F60: 1.7 | G60: 5.5 | H60: 2 | I60: 3 | J60: 0 | K60: 2.Moyenne | L60: 0 | M60: 0 | N60: 0 | O60: 0 | P60: 1.Faible | Q60: 0 | R60: 0 | S60: 0 | T60: 0 | U60: 0 | V60: 8
A61: Mélèze d’Europe | B61: Larix decidua | C61: 3.04 | D61: 5.4 | E61: 4.48 | F61: 1.3 | G61: 5 | H61: 4 | I61: 3 | J61: 0 | K61: 2.Moyenne | L61: 0 | M61: 0 | N61: 1.Faible | O61: 0 | P61: 3.Forte | Q61: 0 | R61: 0 | S61: 0 | T61: 2.Moyenne | U61: 0 | V61: 7
A62: Troène commun | B62: Ligustrum vulgare | C62: 5.96 | D62: 4.7 | E62: 5.31 | F62: 5 | G62: 5.7 | H62: 2 | I62: 0 | J62: 0 | K62: 0 | L62: 0 | M62: 0 | N62: 0 | O62: 3.Forte | P62: 0 | Q62: 0 | R62: 2.Moyenne | S62: 0 | T62: 0 | U62: 0 | V62: 9
A63: Copalme d'Orient | B63: Liquidambar orientalis | C63: 6.3 | D63: 4.38 | E63: 6.13 | F63: 1.7 | G63: 6 | H63: 2 | I63: 3 | J63: 0 | K63: 0 | L63: 1.Faible | M63: 0 | N63: 0 | O63: 0 | P63: 0 | Q63: 0 | R63: 0 | S63: 0 | T63: 0 | U63: 0 | V63: 3
A64: Copalme d’Amérique | B64: Liquidambar styraciflua | C64: 6.38 | D64: 5.71 | E64: 6.83 | F64: 2.1 | G64: 6.5 | H64: 4 | I64: 3 | J64: 3.Forte | K64: 0 | L64: 0 | M64: 0 | N64: 0 | O64: 0 | P64: 3.Forte | Q64: 1.Faible | R64: 0 | S64: 0 | T64: 0 | U64: 0 | V64: 7
A65: Tulipier de Virginie | B65: Liriodendron tulipifera | C65: 6.57 | D65: 4.61 | E65: 5.83 | F65: 2.9 | G65: 6 | H65: 4 | I65: 3 | J65: 2.Moyenne | K65: 2.Moyenne | L65: 0 | M65: 0 | N65: 0 | O65: 0 | P65: 3.Forte | Q65: 1.Faible | R65: 0 | S65: 0 | T65: 0 | U65: 0 | V65: 6
A66: Magnolia à grandes fleurs | B66: Magnolia grandiflora | C66: 5.34 | D66: 6.82 | E66: 6.69 | F66: 1.3 | G66: 6.3 | H66: 4 | I66: 3 | J66: 0 | K66: 0 | L66: 0 | M66: 0 | N66: 0 | O66: 0 | P66: 3.Forte | Q66: 0 | R66: 1.Faible | S66: 0 | T66: 0 | U66: 0 | V66: 4
A67: Magnolia de Kobé | B67: Magnolia kobus | C67: 5.14 | D67: 4.97 | E67: 5.33 | F67: 1.3 | G67: 5.2 | H67: 2.67 | I67: 3 | J67: 0 | K67: 0 | L67: 0 | M67: 0 | N67: 0 | O67: 0 | P67: 0 | Q67: 0 | R67: 0 | S67: 0 | T67: 0 | U67: 0 | V67: 3
A68: Magnolia de Kobé ‘Isis’ | B68: Magnolia Kobus ‘Isis’ | C68: 6.02 | D68: 4.14 | E68: 5.4 | F68: 1.3 | G68: 4.9 | H68: 2.67 | I68: 3 | J68: 0 | K68: 0 | L68: 0 | M68: 0 | N68: 0 | O68: 0 | P68: 0 | Q68: 0 | R68: 0 | S68: 0 | T68: 0 | U68: 0 | V68: 1
A69: Pommier sauvage | B69: Malus sylvestris | C69: 5.88 | D69: 4.05 | E69: 5.52 | F69: 5.8 | G69: 5.6 | H69: 2 | I69: 6 | J69: 2.Moyenne | K69: 2.Moyenne | L69: 0 | M69: 3.Forte | N69: 0 | O69: 0 | P69: 0 | Q69: 0 | R69: 0 | S69: 0 | T69: 0 | U69: 0 | V69: 4
A70: Pommier d'ornement japonais Brouwers Beauty | B70: Malus toringo ‘Brouwers Beauty’ | C70: 3.6 | D70: 5.18 | E70: 4.52 | F70: 3.8 | G70: 4.6 | H70: 2 | I70: 3 | J70: 0 | K70: 0 | L70: 0 | M70: 0 | N70: 0 | O70: 0 | P70: 0 | Q70: 0 | R70: 0 | S70: 0 | T70: 0 | U70: 0 | V70: 2
A71: Pommier trilobé | B71: Malus trilobata | C71: 4.06 | D71: 5.32 | E71: 5.5 | F71: 3.8 | G71: 5.3 | H71: 2 | I71: 3 | J71: 0 | K71: 2.Moyenne | L71: 0 | M71: 0 | N71: 0 | O71: 0 | P71: 0 | Q71: 0 | R71: 0 | S71: 0 | T71: 0 | U71: 0 | V71: 3
A72: Pommier de Sukawa | B72: Malus tschonoskii | C72: 4.38 | D72: 5.51 | E72: 5.58 | F72: 2.9 | G72: 5.2 | H72: 2 | I72: 3 | J72: 0 | K72: 0 | L72: 0 | M72: 0 | N72: 0 | O72: 0 | P72: 1.Faible | Q72: 0 | R72: 0 | S72: 0 | T72: 0 | U72: 0 | V72: 4
A73: Néflier commun | B73: Mespilus germanica | C73: 3.25 | D73: 5.98 | E73: 5.88 | F73: 3.3 | G73: 5.6 | H73: 2 | I73: 8 | J73: 0 | K73: 0 | L73: 0 | M73: 1.Faible | N73: 0 | O73: 0 | P73: 0 | Q73: 0 | R73: 0 | S73: 0 | T73: 0 | U73: 0 | V73: 8
A74: Metaséquoia, Métaséquoia du Sechuan | B74: Metasequoia glyptostroboides | C74: 2.8 | D74: 5.4 | E74: 3.85 | F74: 1 | G74: 4.4 | H74: 8 | I74: 3 | J74: 0 | K74: 2.Moyenne | L74: 0 | M74: 0 | N74: 1.Faible | O74: 0 | P74: 3.Forte | Q74: 0 | R74: 1.Faible | S74: 0 | T74: 0 | U74: 0 | V74: 6
A75: Tupélo de Chine | B75: Nyssa sylvatica | C75: 5.83 | D75: 5.17 | E75: 6.4 | F75: 2.9 | G75: 6 | H75: 2.67 | I75: 3 | J75: 2.Moyenne | K75: 1.Faible | L75: 1.Faible | M75: 0 | N75: 1.Faible | O75: 0 | P75: 3.Forte | Q75: 1.Faible | R75: 0 | S75: 0 | T75: 0 | U75: 0 | V75: 6
A76: Charme houblon, Ostryer commun | B76: Ostrya caprinifolia | C76: 4.13 | D76: 5.29 | E76: 5.94 | F76: 1.3 | G76: 6 | H76: 2 | I76: 3 | J76: 0 | K76: 0 | L76: 0 | M76: 0 | N76: 0 | O76: 0 | P76: 0 | Q76: 0 | R76: 1.Faible | S76: 0 | T76: 0 | U76: 0 | V76: 8
A77: Parrotie de Perse, Arbre de fer | B77: Parrotia persica | C77: 5.12 | D77: 4.74 | E77: 5.77 | F77: 2.1 | G77: 5.6 | H77: 2 | I77: 3 | J77: 0 | K77: 1.Faible | L77: 0 | M77: 0 | N77: 0 | O77: 0 | P77: 0 | Q77: 0 | R77: 0 | S77: 0 | T77: 0 | U77: 0 | V77: 8
A78: Paulownia Fast Blue | B78: Paulownia fortunei 'Minfast' FAST BLUE® | C78: 7.14 | D78: 4.88 | E78: 7.08 | F78: 0.8 | G78: 5.9 | H78: 2 | I78: 3 | J78: 0 | K78: 3.Forte | L78: 1.Faible | M78: 0 | N78: 0 | O78: 0 | P78: 1.Faible | Q78: 0 | R78: 1.Faible | S78: 0 | T78: 0 | U78: 0 | V78: 5
A79: Paulownia tomenteux ou impérial | B79: Paulownia tomentosa | C79: 5.17 | D79: 7.2 | E79: 8.4 | F79: 0.8 | G79: 7.4 | H79: 3.33 | I79: 3 | J79: 2.Moyenne | K79: 2.Moyenne | L79: 0 | M79: 2.Moyenne | N79: 0 | O79: 0 | P79: 2.Moyenne | Q79: 2.Moyenne | R79: 0 | S79: 0 | T79: 0 | U79: 0 | V79: 7
A80: Seringa, Jasmin des poètes | B80: Philadelphus coronarius | C80: 5.13 | D80: 3.82 | E80: 3.81 | F80: 1.3 | G80: 3.9 | H80: 2 | I80: 3 | J80: 0 | K80: 0 | L80: 0 | M80: 0 | N80: 0 | O80: 0 | P80: 0 | Q80: 0 | R80: 0 | S80: 0 | T80: 0 | U80: 0 | V80: 6
A81: Epicéa commun | B81: Picea abies | C81: 3.44 | D81: 7.11 | E81: 4.69 | F81: 2.1 | G81: 5.8 | H81: 4 | I81: 3 | J81: 3.Forte | K81: 0 | L81: 3.Forte | M81: 2.Moyenne | N81: 2.Moyenne | O81: 0 | P81: 3.Forte | Q81: 0 | R81: 0 | S81: 0 | T81: 0 | U81: 0 | V81: 1
A82: Pin sylvestre | B82: Pinus sylvestris | C82: 3.85 | D82: 7.36 | E82: 5.02 | F82: 4.6 | G82: 5.9 | H82: 3.33 | I82: 3 | J82: 2.Moyenne | K82: 2.Moyenne | L82: 2.Moyenne | M82: 2.Moyenne | N82: 1.Faible | O82: 0 | P82: 3.Forte | Q82: 0 | R82: 0 | S82: 0 | T82: 2.Moyenne | U82: 0 | V82: 8
A83: Pistachier de Chine | B83: Pistacia chinensis | C83: 6 | D83: 4.05 | E83: 5.83 | F83: 0.8 | G83: 5.7 | H83: 2.67 | I83: 3 | J83: 0 | K83: 1.Faible | L83: 0 | M83: 3.Forte | N83: 0 | O83: 0 | P83: 0 | Q83: 0 | R83: 0 | S83: 0 | T83: 0 | U83: 0 | V83: 6
A84: Platane d’Occident | B84: Platanus occidentalis | C84: 8.02 | D84: 5.48 | E84: 8.15 | F84: 1.7 | G84: 6.8 | H84: 8 | I84: 3 | J84: 2.Moyenne | K84: 0 | L84: 0 | M84: 0 | N84: 0 | O84: 0 | P84: 3.Forte | Q84: 2.Moyenne | R84: 3.Forte | S84: 0 | T84: 0 | U84: 0 | V84: 6
A85: Platane d'Orient | B85: Platanus orientalis | C85: 7.12 | D85: 5.94 | E85: 8.52 | F85: 1.7 | G85: 7.1 | H85: 10 | I85: 3 | J85: 2.Moyenne | K85: 0 | L85: 0 | M85: 0 | N85: 0 | O85: 0 | P85: 3.Forte | Q85: 2.Moyenne | R85: 3.Forte | S85: 0 | T85: 0 | U85: 0 | V85: 9
A86: Platane commun | B86: Platanus x hispanica | C86: 8.26 | D86: 5.48 | E86: 8.77 | F86: 2.9 | G86: 8 | H86: 10 | I86: 3 | J86: 2.Moyenne | K86: 0 | L86: 0 | M86: 2.Moyenne | N86: 0 | O86: 0 | P86: 3.Forte | Q86: 3.Forte | R86: 3.Forte | S86: 0 | T86: 0 | U86: 0 | V86: 8
A87: Peuplier blanc | B87: Populus alba | C87: 4.67 | D87: 5.75 | E87: 6.08 | F87: 5 | G87: 5.8 | H87: 7.33 | I87: 3 | J87: 2.Moyenne | K87: 2.Moyenne | L87: 0 | M87: 0 | N87: 0 | O87: 0 | P87: 3.Forte | Q87: 0 | R87: 1.Faible | S87: 0 | T87: 0 | U87: 0 | V87: 6
A88: Peuplier tremble | B88: Populus tremula | C88: 6.69 | D88: 4.68 | E88: 6.65 | F88: 6.3 | G88: 6.8 | H88: 4 | I88: 3 | J88: 2.Moyenne | K88: 2.Moyenne | L88: 0 | M88: 0 | N88: 2.Moyenne | O88: 0 | P88: 3.Forte | Q88: 0 | R88: 1.Faible | S88: 0 | T88: 0 | U88: 0 | V88: 7
A89: Merisier | B89: Prunus avium | C89: 6.9 | D89: 4.67 | E89: 6.71 | F89: 7.9 | G89: 6.6 | H89: 2.67 | I89: 8 | J89: 2.Moyenne | K89: 0 | L89: 0 | M89: 2.Moyenne | N89: 2.Moyenne | O89: 0 | P89: 3.Forte | Q89: 1.Faible | R89: 0 | S89: 0 | T89: 0 | U89: 0 | V89: 7
A90: Merisier 'Landscape Bloom' | B90: Prunus avium 'Landscape Bloom' | C90: 6.97 | D90: 4.92 | E90: 6.38 | F90: 3.8 | G90: 5.9 | H90: 2.67 | I90: 3 | J90: 0 | K90: 0 | L90: 0 | M90: 2.Moyenne | N90: 0 | O90: 0 | P90: 2.Moyenne | Q90: 1.Faible | R90: 0 | S90: 0 | T90: 0 | U90: 0 | V90: 5
A91: Cerisier de Sainte-Lucie | B91: Prunus mahaleb | C91: 5.47 | D91: 4.88 | E91: 6.44 | F91: 5.4 | G91: 6.4 | H91: 3.33 | I91: 3 | J91: 2.Moyenne | K91: 0 | L91: 0 | M91: 0 | N91: 1.Faible | O91: 0 | P91: 1.Faible | Q91: 0 | R91: 0 | S91: 0 | T91: 0 | U91: 0 | V91: 8
A92: Cerisier à grappes | B92: Prunus padus | C92: 6.56 | D92: 4.46 | E92: 6.31 | F92: 5 | G92: 6 | H92: 2 | I92: 3 | J92: 2.Moyenne | K92: 0 | L92: 0 | M92: 1.Faible | N92: 1.Faible | O92: 0 | P92: 2.Moyenne | Q92: 0 | R92: 0 | S92: 0 | T92: 0 | U92: 0 | V92: 5
A93: Cerisier de Sargent | B93: Prunus sargentii | C93: 7.1 | D93: 4.78 | E93: 6.96 | F93: 4.2 | G93: 6.3 | H93: 1.33 | I93: 3 | J93: 2.Moyenne | K93: 0 | L93: 0 | M93: 0 | N93: 0 | O93: 0 | P93: 2.Moyenne | Q93: 0 | R93: 0 | S93: 0 | T93: 0 | U93: 0 | V93: 4
A94: Prunelier | B94: Prunus spinosa | C94: 4.29 | D94: 4.17 | E94: 4.83 | F94: 7.9 | G94: 5.3 | H94: 2 | I94: 8 | J94: 2.Moyenne | K94: 0 | L94: 0 | M94: 1.Faible | N94: 0 | O94: 0 | P94: 0 | Q94: 0 | R94: 0 | S94: 0 | T94: 0 | U94: 2.Moyenne | V94: 7
A95: Cerisier d'hiver | B95: Prunus x subhirtella | C95: 5.19 | D95: 4.78 | E95: 5.71 | F95: 3.8 | G95: 5.6 | H95: 1.33 | I95: 3 | J95: 1.Faible | K95: 0 | L95: 0 | M95: 0 | N95: 1.Faible | O95: 0 | P95: 0 | Q95: 0 | R95: 0 | S95: 0 | T95: 0 | U95: 0 | V95: 2
A96: Ptérocarier de Chine | B96: Pterocarya stenoptera | C96: 6.18 | D96: 4.38 | E96: 5.81 | F96: 1 | G96: 5.6 | H96: 10 | I96: 3 | J96: 3.Forte | K96: 0 | L96: 0 | M96: 0 | N96: 0 | O96: 0 | P96: 1.Faible | Q96: 1.Faible | R96: 0 | S96: 0 | T96: 0 | U96: 0 | V96: 2
A97: Poirier commun | B97: Pyrus communis | C97: 5.24 | D97: 4.74 | E97: 6.08 | F97: 6.3 | G97: 6.2 | H97: 2 | I97: 8 | J97: 2.Moyenne | K97: 0 | L97: 0 | M97: 3.Forte | N97: 0 | O97: 0 | P97: 1.Faible | Q97: 0 | R97: 0 | S97: 0 | T97: 0 | U97: 0 | V97: 6
A98: Chêne blanc | B98: Quercus alba | C98: 6.33 | D98: 6.6 | E98: 8.94 | F98: 5 | G98: 7.9 | H98: 8 | I98: 3 | J98: 2.Moyenne | K98: 0 | L98: 0 | M98: 2.Moyenne | N98: 0 | O98: 0 | P98: 3.Forte | Q98: 3.Forte | R98: 2.Moyenne | S98: 0 | T98: 1.Faible | U98: 0 | V98: 7
A99: Chêne chevelu de bourgogne | B99: Quercus cerris | C99: 6.29 | D99: 5.37 | E99: 7.58 | F99: 4.6 | G99: 6.7 | H99: 4 | I99: 3 | J99: 2.Moyenne | K99: 0 | L99: 0 | M99: 2.Moyenne | N99: 0 | O99: 0 | P99: 3.Forte | Q99: 1.Faible | R99: 2.Moyenne | S99: 0 | T99: 1.Faible | U99: 0 | V99: 9
A100: Chêne de Hongrie | B100: Quercus frainetto | C100: 8 | D100: 5.25 | E100: 8.58 | F100: 5.4 | G100: 7.5 | H100: 4 | I100: 3 | J100: 2.Moyenne | K100: 0 | L100: 0 | M100: 2.Moyenne | N100: 0 | O100: 0 | P100: 3.Forte | Q100: 1.Faible | R100: 2.Moyenne | S100: 0 | T100: 1.Faible | U100: 0 | V100: 8
A101: Chêne vert | B101: Quercus ilex | C101: 4.79 | D101: 6.28 | E101: 6.75 | F101: 4.6 | G101: 6.6 | H101: 4 | I101: 3 | J101: 2.Moyenne | K101: 0 | L101: 0 | M101: 2.Moyenne | N101: 0 | O101: 0 | P101: 2.Moyenne | Q101: 0 | R101: 2.Moyenne | S101: 0 | T101: 0 | U101: 0 | V101: 9
A102: Chêne à feuilles de laurier | B102: Quercus imbricaria | C102: 5.19 | D102: 5.92 | E102: 6.96 | F102: 5 | G102: 6.4 | H102: 2 | I102: 3 | J102: 2.Moyenne | K102: 0 | L102: 0 | M102: 2.Moyenne | N102: 0 | O102: 0 | P102: 1.Faible | Q102: 1.Faible | R102: 2.Moyenne | S102: 0 | T102: 1.Faible | U102: 0 | V102: 5
A103: Chêne du Caucase | B103: Quercus macranthera | C103: 5.3 | D103: 5.92 | E103: 7.75 | F103: 4.6 | G103: 7.2 | H103: 2.67 | I103: 3 | J103: 2.Moyenne | K103: 0 | L103: 0 | M103: 2.Moyenne | N103: 0 | O103: 0 | P103: 1.Faible | Q103: 0 | R103: 2.Moyenne | S103: 0 | T103: 1.Faible | U103: 0 | V103: 8
A104: Chêne sessile, Chêne rouvre | B104: Quercus petraea | C104: 7.85 | D104: 5.23 | E104: 8.44 | F104: 7.5 | G104: 7.3 | H104: 8 | I104: 3 | J104: 2.Moyenne | K104: 0 | L104: 0 | M104: 2.Moyenne | N104: 0 | O104: 0 | P104: 3.Forte | Q104: 2.Moyenne | R104: 2.Moyenne | S104: 0 | T104: 2.Moyenne | U104: 0 | V104: 10
A105: Chêne pubescent | B105: Quercus pubescens | C105: 4.74 | D105: 5.58 | E105: 6.52 | F105: 6.7 | G105: 6.4 | H105: 2.67 | I105: 3 | J105: 2.Moyenne | K105: 0 | L105: 0 | M105: 2.Moyenne | N105: 0 | O105: 0 | P105: 2.Moyenne | Q105: 1.Faible | R105: 2.Moyenne | S105: 0 | T105: 1.Faible | U105: 0 | V105: 9
A106: Chêne pédonculé | B106: Quercus robur | C106: 8 | D106: 5 | E106: 8 | F106: 8 | G106: 7.4 | H106: 8 | I106: 3 | J106: 2.Moyenne | K106: 0 | L106: 0 | M106: 2.Moyenne | N106: 0 | O106: 0 | P106: 3.Forte | Q106: 3.Forte | R106: 2.Moyenne | S106: 0 | T106: 2.Moyenne | U106: 0 | V106: 8
A107: Chêne rouge d’Amérique | B107: Quercus rubra | C107: 7.88 | D107: 5.25 | E107: 8.27 | F107: 2 | G107: 6.9 | H107: 4 | I107: 3 | J107: 2.Moyenne | K107: 0 | L107: 0 | M107: 2.Moyenne | N107: 0 | O107: 0 | P107: 3.Forte | Q107: 1.Faible | R107: 2.Moyenne | S107: 0 | T107: 1.Faible | U107: 0 | V107: 8
A108: Chêne du Mexique Maya | B108: Quercus rysophylla 'Maya' | C108: 6 | D108: 6 | E108: 7 | F108: 3 | G108: 6.4 | H108: 2 | I108: 3 | J108: 2.Moyenne | K108: 0 | L108: 0 | M108: 2.Moyenne | N108: 0 | O108: 0 | P108: 1.Faible | Q108: 0 | R108: 2.Moyenne | S108: 0 | T108: 0 | U108: 0 | V108: 5
A109: Chêne de Turner Pseudoturneri | B109: Quercus x turneri pseudoturneri | C109: 6.75 | D109: 5.17 | E109: 6.63 | F109: 5 | G109: 6.3 | H109: 2 | I109: 3 | J109: 2.Moyenne | K109: 0 | L109: 0 | M109: 1.Faible | N109: 0 | O109: 0 | P109: 0 | Q109: 0 | R109: 2.Moyenne | S109: 0 | T109: 0 | U109: 0 | V109: 8
A110: Saule blanc | B110: Salix alba | C110: 3.46 | D110: 6.17 | E110: 5.42 | F110: 7.9 | G110: 6.1 | H110: 7.33 | I110: 3 | J110: 2.Moyenne | K110: 3.Forte | L110: 2.Moyenne | M110: 0 | N110: 2.Moyenne | O110: 0 | P110: 3.Forte | Q110: 1.Faible | R110: 2.Moyenne | S110: 0 | T110: 0 | U110: 0 | V110: 6
A111: Saule de Babylone, Saule pleureur à bois vert | B111: Salix babylonica | C111: 3.81 | D111: 6.38 | E111: 6.08 | F111: 5 | G111: 6.1 | H111: 3.33 | I111: 3 | J111: 0 | K111: 0 | L111: 2.Moyenne | M111: 0 | N111: 2.Moyenne | O111: 0 | P111: 1.Faible | Q111: 0 | R111: 2.Moyenne | S111: 0 | T111: 0 | U111: 0 | V111: 3
A112: Osier vert | B112: Salix viminalis | C112: 4.52 | D112: 5.67 | E112: 5.46 | F112: 7.5 | G112: 5.3 | H112: 2.67 | I112: 3 | J112: 0 | K112: 0 | L112: 0 | M112: 0 | N112: 2.Moyenne | O112: 0 | P112: 0 | Q112: 0 | R112: 2.Moyenne | S112: 0 | T112: 0 | U112: 0 | V112: 6
A113: Sureau noir | B113: Sambucus nigra | C113: 6.13 | D113: 4.2 | E113: 5.17 | F113: 5.8 | G113: 4.7 | H113: 2 | I113: 8 | J113: 0 | K113: 1.Faible | L113: 0 | M113: 2.Moyenne | N113: 0 | O113: 2.Moyenne | P113: 0 | Q113: 0 | R113: 0 | S113: 0 | T113: 0 | U113: 0 | V113: 7
A114: Séquoia toujours vert | B114: Sequoia sempervirens | C114: 3.47 | D114: 7.13 | E114: 4.52 | F114: 1.7 | G114: 5.9 | H114: 10 | I114: 3 | J114: 2.Moyenne | K114: 2.Moyenne | L114: 0 | M114: 2.Moyenne | N114: 0 | O114: 0 | P114: 3.Forte | Q114: 0 | R114: 0 | S114: 0 | T114: 0 | U114: 0 | V114: 0
A115: Séquoia géant | B115: Sequoiadendron giganteum | C115: 3.51 | D115: 7.22 | E115: 4.63 | F115: 2.1 | G115: 5.7 | H115: 10 | I115: 3 | J115: 2.Moyenne | K115: 2.Moyenne | L115: 0 | M115: 2.Moyenne | N115: 0 | O115: 0 | P115: 3.Forte | Q115: 1.Faible | R115: 0 | S115: 0 | T115: 0 | U115: 0 | V115: 2
A116: Alisier blanc | B116: Sorbus aria | C116: 4.74 | D116: 5.58 | E116: 6.52 | F116: 5 | G116: 6.5 | H116: 2 | I116: 6 | J116: 0 | K116: 0 | L116: 0 | M116: 0 | N116: 0 | O116: 0 | P116: 1.Faible | Q116: 0 | R116: 0 | S116: 0 | T116: 0 | U116: 0 | V116: 8
A117: Sorbier des oiseleurs | B117: Sorbus aucuparia | C117: 4.36 | D117: 5.35 | E117: 6.02 | F117: 6.7 | G117: 6.3 | H117: 2 | I117: 3 | J117: 0 | K117: 0 | L117: 0 | M117: 0 | N117: 0 | O117: 1.Faible | P117: 1.Faible | Q117: 0 | R117: 0 | S117: 0 | T117: 0 | U117: 0 | V117: 6
A118: Sorbier des oiseleurs fastigiata | B118: Sorbus aucuparia fastigiata | C118: 3.62 | D118: 5.05 | E118: 4.58 | F118: 3.8 | G118: 5.2 | H118: 2.67 | I118: 3 | J118: 0 | K118: 0 | L118: 0 | M118: 0 | N118: 0 | O118: 1.Faible | P118: 0 | Q118: 0 | R118: 0 | S118: 0 | T118: 0 | U118: 0 | V118: 3
A119: Alisier de Suède | B119: Sorbus intermedia | C119: 6.31 | D119: 4.38 | E119: 5.9 | F119: 2.9 | G119: 5.5 | H119: 2 | I119: 6 | J119: 0 | K119: 0 | L119: 0 | M119: 0 | N119: 0 | O119: 0 | P119: 1.Faible | Q119: 0 | R119: 0 | S119: 0 | T119: 0 | U119: 0 | V119: 6
A120: Alisier de Suède Brouwers | B120: Sorbus intermedia Brouwers | C120: 6.52 | D120: 4.44 | E120: 6.21 | F120: 2.9 | G120: 5.8 | H120: 2 | I120: 6 | J120: 0 | K120: 0 | L120: 0 | M120: 0 | N120: 0 | O120: 0 | P120: 1.Faible | Q120: 0 | R120: 0 | S120: 0 | T120: 0 | U120: 0 | V120: 7
A121: Alisier torminal | B121: Sorbus torminalis | C121: 5.02 | D121: 5.75 | E121: 7.02 | F121: 5.4 | G121: 6.7 | H121: 2 | I121: 3 | J121: 0 | K121: 0 | L121: 0 | M121: 0 | N121: 0 | O121: 1.Faible | P121: 2.Moyenne | Q121: 1.Faible | R121: 0 | S121: 0 | T121: 0 | U121: 0 | V121: 8
A122: Alisier de Thuringe | B122: Sorbus x thuringiaca | C122: 6.97 | D122: 4.7 | E122: 7.13 | F122: 2.9 | G122: 6.4 | H122: 2 | I122: 3 | J122: 0 | K122: 0 | L122: 0 | M122: 0 | N122: 0 | O122: 0 | P122: 1.Faible | Q122: 0 | R122: 0 | S122: 0 | T122: 0 | U122: 0 | V122: 7
A123: Sophora du Japon | B123: Styphnolobium japonicum | C123: 4.74 | D123: 5.58 | E123: 6.52 | F123: 2.5 | G123: 6.7 | H123: 3.33 | I123: 3 | J123: 2.Moyenne | K123: 1.Faible | L123: 0 | M123: 2.Moyenne | N123: 0 | O123: 0 | P123: 3.Forte | Q123: 1.Faible | R123: 0 | S123: 0 | T123: 0 | U123: 0 | V123: 9
A124: Tilleul à petites feuilles | B124: Tilia cordata | C124: 5.13 | D124: 6.03 | E124: 7.31 | F124: 7.5 | G124: 7.6 | H124: 3.33 | I124: 3 | J124: 2.Moyenne | K124: 0 | L124: 0 | M124: 0 | N124: 3.Forte | O124: 0 | P124: 3.Forte | Q124: 1.Faible | R124: 2.Moyenne | S124: 0 | T124: 0 | U124: 0 | V124: 10
A125: Tilleul à grandes feuilles | B125: Tilia Platyphyllos | C125: 5.9 | D125: 6.49 | E125: 8.31 | F125: 6.7 | G125: 8.2 | H125: 8 | I125: 3 | J125: 2.Moyenne | K125: 0 | L125: 0 | M125: 0 | N125: 3.Forte | O125: 0 | P125: 3.Forte | Q125: 3.Forte | R125: 2.Moyenne | S125: 0 | T125: 0 | U125: 0 | V125: 9
A126: Tilleul de Crimée | B126: Tilia x euchlora | C126: 5.9 | D126: 5.35 | E126: 7.06 | F126: 3.3 | G126: 6.8 | H126: 3.33 | I126: 3 | J126: 2.Moyenne | K126: 0 | L126: 0 | M126: 0 | N126: 0 | O126: 0 | P126: 2.Moyenne | Q126: 1.Faible | R126: 2.Moyenne | S126: 0 | T126: 0 | U126: 0 | V126: 7
A127: Orme hybride 'Columella' | B127: Ulmus ‘Columella’ | C127: 5.67 | D127: 4.14 | E127: 4.46 | F127: 1.7 | G127: 4.4 | H127: 4 | I127: 3 | J127: 0 | K127: 0 | L127: 0 | M127: 0 | N127: 0 | O127: 0 | P127: 2.Moyenne | Q127: 0 | R127: 1.Faible | S127: 0 | T127: 0 | U127: 0 | V127: 7
A128: Orme de montagne | B128: Ulmus glabra | C128: 5.5 | D128: 6.11 | E128: 7.52 | F128: 3.3 | G128: 7 | H128: 8 | I128: 3 | J128: 1.Faible | K128: 1.Faible | L128: 0 | M128: 0 | N128: 0 | O128: 0 | P128: 3.Forte | Q128: 1.Faible | R128: 1.Faible | S128: 0 | T128: 0 | U128: 0 | V128: 4
A129: Orme lisse | B129: Ulmus laevis | C129: 5.12 | D129: 5.88 | E129: 7.02 | F129: 2.5 | G129: 6.4 | H129: 4 | I129: 3 | J129: 1.Faible | K129: 1.Faible | L129: 0 | M129: 0 | N129: 0 | O129: 0 | P129: 3.Forte | Q129: 1.Faible | R129: 1.Faible | S129: 0 | T129: 0 | U129: 0 | V129: 3
A130: Orme champêtre | B130: Ulmus minor | C130: 6.07 | D130: 5.31 | E130: 7.02 | F130: 4.6 | G130: 6.7 | H130: 4 | I130: 3 | J130: 1.Faible | K130: 1.Faible | L130: 0 | M130: 0 | N130: 0 | O130: 0 | P130: 3.Forte | Q130: 2.Moyenne | R130: 1.Faible | S130: 0 | T130: 0 | U130: 0 | V130: 5
A131: Orme hybride Lutèce | B131: Ulmus 'Nanguen' LUTECE® | C131: 6.6 | D131: 4.48 | E131: 6.15 | F131: 2.9 | G131: 5.4 | H131: 4 | I131: 3 | J131: 0 | K131: 0 | L131: 0 | M131: 0 | N131: 0 | O131: 0 | P131: 1.Faible | Q131: 0 | R131: 1.Faible | S131: 0 | T131: 0 | U131: 0 | V131: 4
A132: Viorne lantane | B132: Viburnum lantana | C132: 5.83 | D132: 3.95 | E132: 5.15 | F132: 3.3 | G132: 5.3 | H132: 2.67 | I132: 3 | J132: 0 | K132: 0 | L132: 0 | M132: 0 | N132: 0 | O132: 1.Faible | P132: 0 | Q132: 0 | R132: 0 | S132: 0 | T132: 0 | U132: 0 | V132: 8
A133: Viorne obier | B133: Viburnum opulus | C133: 5.9 | D133: 3.99 | E133: 5.56 | F133: 3.8 | G133: 5.6 | H133: 2 | I133: 3 | J133: 0 | K133: 0 | L133: 0 | M133: 0 | N133: 0 | O133: 1.Faible | P133: 0 | Q133: 0 | R133: 0 | S133: 1.Faible | T133: 0 | U133: 0 | V133: 5
A134: Faux-orme du Japon | B134: Zelkova serrata | C134: 6.83 | D134: 4.55 | E134: 6.77 | F134: 1.67 | G134: 6.8 | H134: 3.33 | I134: 3 | J134: 1.Faible | K134: 0 | L134: 0 | M134: 0 | N134: 0 | O134: 0 | P134: 2.Moyenne | Q134: 2.Moyenne | R134: 0 | S134: 0 | T134: 0 | U134: 0 | V134: 9

Sheet Base_Typologie
A2: Critère de notation des essences en fonction de la typologie : | D2: Emblématique | E2: 10
D3: Possible | E3: 6
D4: Autre | E4: 2
C5: 1 | D5: 2 | E5: 3 | F5: 4 | G5: 5 | H5: 6 | I5: 7 | J5: 8 | K5: 9 | L5: 10 | M5: 11 | N5: 12 | O5: 13 | P5: 14
B6: Nom scientifique | C6: Grande voie de circulation | D6: Voie résidentielle | E6: Stationnement | F6: Cheminement | G6: Quai et berge | H6: Place | I6: Square et espace vert d’accompagnement | J6: Parc | K6: Cour d'école et aire de jeu pour jeunes enfants | L6: Cimetière | M6: Cœur d'ilôt ombragé | N6: Boisement urbain | O6: Noue et bassin d'orage | P6: Espace intermédiaire
A7: =IF(Base_Arbres!$A2<>"",Base_Arbres!$A2,"") -> Sapin du colorado | B7: Abies concolor | C7: Autre | D7: Autre | E7: Autre | F7: Autre | G7: Autre | H7: Autre | I7: Possible | J7: Emblématique | K7: Autre | L7: Possible | M7: Possible | N7: Autre | O7: Possible | P7: Possible
A8: =IF(Base_Arbres!$A3<>"",Base_Arbres!$A3,"") -> Sapin d'Espagne | B8: Abies pinsapo | C8: Autre | D8: Autre | E8: Autre | F8: Autre | G8: Autre | H8: Autre | I8: Possible | J8: Emblématique | K8: Autre | L8: Possible | M8: Autre | N8: Autre | O8: Autre | P8: Possible
A9: =IF(Base_Arbres!$A4<>"",Base_Arbres!$A4,"") -> Érable champêtre | B9: Acer campestre | C9: Possible | D9: Emblématique | E9: Possible | F9: Emblématique | G9: Possible | H9: Possible | I9: Emblématique | J9: Possible | K9: Emblématique | L9: Emblématique | M9: Emblématique | N9: Emblématique | O9: Possible | P9: Possible
A10: =IF(Base_Arbres!$A5<>"",Base_Arbres!$A5,"") -> Erable de Montpellier | B10: Acer monspessulanum | C10: Autre | D10: Emblématique | E10: Possible | F10: Possible | G10: Autre | H10: Possible | I10: Emblématique | J10: Possible | K10: Possible | L10: Emblématique | M10: Possible | N10: Emblématique | O10: Autre | P10: Possible
A11: =IF(Base_Arbres!$A6<>"",Base_Arbres!$A6,"") -> Érable plane | B11: Acer platanoïdes | C11: Emblématique | D11: Possible | E11: Emblématique | F11: Autre | G11: Emblématique | H11: Emblématique | I11: Possible | J11: Possible | K11: Possible | L11: Emblématique | M11: Emblématique | N11: Autre | O11: Emblématique | P11: Emblématique
A12: =IF(Base_Arbres!$A7<>"",Base_Arbres!$A7,"") -> Érable sycomore | B12: Acer pseudoplatanus | C12: Emblématique | D12: Autre | E12: Emblématique | F12: Autre | G12: Emblématique | H12: Possible | I12: Autre | J12: Possible | K12: Possible | L12: Emblématique | M12: Possible | N12: Autre | O12: Possible | P12: Emblématique
A13: =IF(Base_Arbres!$A8<>"",Base_Arbres!$A8,"") -> Érable rouge d'Amérique | B13: Acer rubrum | C13: Emblématique | D13: Emblématique | E13: Emblématique | F13: Emblématique | G13: Possible | H13: Emblématique | I13: Emblématique | J13: Emblématique | K13: Emblématique | L13: Emblématique | M13: Possible | N13: Emblématique | O13: Possible | P13: Emblématique
A14: =IF(Base_Arbres!$A9<>"",Base_Arbres!$A9,"") -> Erable rouge Scanlon | B14: Acer rubrum ‘Scanlon’ | C14: Possible | D14: Emblématique | E14: Autre | F14: Emblématique | G14: Possible | H14: Possible | I14: Emblématique | J14: Emblématique | K14: Possible | L14: Emblématique | M14: Possible | N14: Emblématique | O14: Emblématique | P14: Possible
A15: =IF(Base_Arbres!$A10<>"",Base_Arbres!$A10,"") -> Érable hybride de Freeman | B15: Acer x freemanii | C15: Emblématique | D15: Emblématique | E15: Emblématique | F15: Possible | G15: Emblématique | H15: Autre | I15: Emblématique | J15: Emblématique | K15: Possible | L15: Emblématique | M15: Emblématique | N15: Emblématique | O15: Emblématique | P15: Emblématique
A16: =IF(Base_Arbres!$A11<>"",Base_Arbres!$A11,"") -> Marronnier d’Inde | B16: Aesculus hypocastanum | C16: Autre | D16: Autre | E16: Autre | F16: Autre | G16: Possible | H16: Possible | I16: Autre | J16: Emblématique | K16: Autre | L16: Emblématique | M16: Possible | N16: Emblématique | O16: Possible | P16: Possible
A17: =IF(Base_Arbres!$A12<>"",Base_Arbres!$A12,"") -> Marronnier rouge | B17: Aesculus x carnea | C17: Autre | D17: Autre | E17: Autre | F17: Possible | G17: Possible | H17: Possible | I17: Possible | J17: Emblématique | K17: Autre | L17: Emblématique | M17: Possible | N17: Autre | O17: Possible | P17: Possible
A18: =IF(Base_Arbres!$A13<>"",Base_Arbres!$A13,"") -> Arbre à soie | B18: Albizia julibrissin | C18: Autre | D18: Autre | E18: Autre | F18: Emblématique | G18: Emblématique | H18: Possible | I18: Emblématique | J18: Emblématique | K18: Autre | L18: Emblématique | M18: Autre | N18: Autre | O18: Autre | P18: Possible
A19: =IF(Base_Arbres!$A14<>"",Base_Arbres!$A14,"") -> Aulne glutineux | B19: Alnus glutinosa | C19: Autre | D19: Autre | E19: Autre | F19: Autre | G19: Emblématique | H19: Autre | I19: Possible | J19: Possible | K19: Autre | L19: Autre | M19: Possible | N19: Possible | O19: Emblématique | P19: Autre
A20: =IF(Base_Arbres!$A15<>"",Base_Arbres!$A15,"") -> Aulne blanc | B20: Alnus incana | C20: Autre | D20: Autre | E20: Autre | F20: Possible | G20: Emblématique | H20: Autre | I20: Possible | J20: Possible | K20: Autre | L20: Emblématique | M20: Possible | N20: Autre | O20: Emblématique | P20: Possible
A21: =IF(Base_Arbres!$A16<>"",Base_Arbres!$A16,"") -> Aulne de Späth | B21: Alnus x spaethii | C21: Emblématique | D21: Autre | E21: Autre | F21: Autre | G21: Emblématique | H21: Autre | I21: Possible | J21: Emblématique | K21: Emblématique | L21: Emblématique | M21: Possible | N21: Emblématique | O21: Emblématique | P21: Emblématique
A22: =IF(Base_Arbres!$A17<>"",Base_Arbres!$A17,"") -> Amélanchier arborescent Robin Hill | B22: Amelanchier arborea ‘Robin Hill’ | C22: Possible | D22: Emblématique | E22: Emblématique | F22: Emblématique | G22: Emblématique | H22: Emblématique | I22: Emblématique | J22: Emblématique | K22: Emblématique | L22: Possible | M22: Emblématique | N22: Autre | O22: Possible | P22: Emblématique
A23: =IF(Base_Arbres!$A18<>"",Base_Arbres!$A18,"") -> Bouleau à écorce rouge, Bouleau de Chine | B23: Betula albosinensis | C23: Autre | D23: Autre | E23: Autre | F23: Possible | G23: Autre | H23: Autre | I23: Emblématique | J23: Emblématique | K23: Possible | L23: Emblématique | M23: Autre | N23: Autre | O23: Emblématique | P23: Possible
A24: =IF(Base_Arbres!$A19<>"",Base_Arbres!$A19,"") -> Bouleau pendant | B24: Betula pendula | C24: Autre | D24: Autre | E24: Autre | F24: Emblématique | G24: Possible | H24: Autre | I24: Emblématique | J24: Possible | K24: Possible | L24: Emblématique | M24: Autre | N24: Possible | O24: Possible | P24: Possible
A25: =IF(Base_Arbres!$A20<>"",Base_Arbres!$A20,"") -> Bouleau pubescent | B25: Betula pubescens | C25: Autre | D25: Autre | E25: Autre | F25: Emblématique | G25: Emblématique | H25: Autre | I25: Emblématique | J25: Emblématique | K25: Possible | L25: Emblématique | M25: Autre | N25: Emblématique | O25: Emblématique | P25: Possible
A26: =IF(Base_Arbres!$A21<>"",Base_Arbres!$A21,"") -> Bouleau blanc de l'Himalaya | B26: Betula utilis var. jacquemontii | C26: Possible | D26: Emblématique | E26: Autre | F26: Emblématique | G26: Emblématique | H26: Autre | I26: Emblématique | J26: Emblématique | K26: Possible | L26: Emblématique | M26: Autre | N26: Emblématique | O26: Possible | P26: Possible
A27: =IF(Base_Arbres!$A22<>"",Base_Arbres!$A22,"") -> Charme commun | B27: Carpinus betulus | C27: Autre | D27: Autre | E27: Possible | F27: Emblématique | G27: Emblématique | H27: Possible | I27: Emblématique | J27: Emblématique | K27: Autre | L27: Emblématique | M27: Emblématique | N27: Emblématique | O27: Autre | P27: Possible
A28: =IF(Base_Arbres!$A23<>"",Base_Arbres!$A23,"") -> Charme commun 'Frans Fontaine' | B28: Carpinus betulus 'Frans Fontaine' | C28: Emblématique | D28: Emblématique | E28: Emblématique | F28: Emblématique | G28: Emblématique | H28: Possible | I28: Emblématique | J28: Emblématique | K28: Emblématique | L28: Emblématique | M28: Emblématique | N28: Emblématique | O28: Possible | P28: Emblématique
A29: =IF(Base_Arbres!$A24<>"",Base_Arbres!$A24,"") -> Charme d'Orient | B29: Carpinus orientalis | C29: Possible | D29: Emblématique | E29: Emblématique | F29: Emblématique | G29: Emblématique | H29: Emblématique | I29: Emblématique | J29: Emblématique | K29: Emblématique | L29: Emblématique | M29: Emblématique | N29: Emblématique | O29: Possible | P29: Emblématique
A30: =IF(Base_Arbres!$A25<>"",Base_Arbres!$A25,"") -> Caryer glabre | B30: Carya glabra | C30: Autre | D30: Autre | E30: Autre | F30: Emblématique | G30: Autre | H30: Autre | I30: Emblématique | J30: Emblématique | K30: Autre | L30: Emblématique | M30: Emblématique | N30: Emblématique | O30: Autre | P30: Emblématique
A31: =IF(Base_Arbres!$A26<>"",Base_Arbres!$A26,"") -> Chataîgnier commun | B31: Castanea sativa | C31: Autre | D31: Autre | E31: Autre | F31: Autre | G31: Possible | H31: Autre | I31: Autre | J31: Emblématique | K31: Possible | L31: Autre | M31: Possible | N31: Emblématique | O31: Autre | P31: Autre
A32: =IF(Base_Arbres!$A27<>"",Base_Arbres!$A27,"") -> Catalpa commun | B32: Catalpa bignonioides | C32: Possible | D32: Autre | E32: Possible | F32: Autre | G32: Possible | H32: Emblématique | I32: Emblématique | J32: Emblématique | K32: Possible | L32: Emblématique | M32: Autre | N32: Autre | O32: Possible | P32: Emblématique
A33: =IF(Base_Arbres!$A28<>"",Base_Arbres!$A28,"") -> Cèdre de l’Atlas | B33: Cedrus atlantica | C33: Autre | D33: Autre | E33: Autre | F33: Autre | G33: Autre | H33: Possible | I33: Possible | J33: Emblématique | K33: Autre | L33: Emblématique | M33: Possible | N33: Autre | O33: Possible | P33: Autre
A34: =IF(Base_Arbres!$A29<>"",Base_Arbres!$A29,"") -> Cèdre du Liban | B34: Cedrus libani | C34: Autre | D34: Autre | E34: Autre | F34: Autre | G34: Autre | H34: Possible | I34: Possible | J34: Emblématique | K34: Autre | L34: Emblématique | M34: Autre | N34: Autre | O34: Possible | P34: Autre
A35: =IF(Base_Arbres!$A30<>"",Base_Arbres!$A30,"") -> Micocoulier de Provence | B35: Celtis australis | C35: Emblématique | D35: Autre | E35: Emblématique | F35: Autre | G35: Emblématique | H35: Emblématique | I35: Possible | J35: Emblématique | K35: Emblématique | L35: Emblématique | M35: Possible | N35: Autre | O35: Autre | P35: Possible
A36: =IF(Base_Arbres!$A31<>"",Base_Arbres!$A31,"") -> Micocoulier de Julian Cannabaceae | B36: Celtis julianae | C36: Emblématique | D36: Autre | E36: Autre | F36: Autre | G36: Emblématique | H36: Emblématique | I36: Possible | J36: Emblématique | K36: Emblématique | L36: Emblématique | M36: Possible | N36: Autre | O36: Autre | P36: Possible
A37: =IF(Base_Arbres!$A32<>"",Base_Arbres!$A32,"") -> Micocoulier occidental | B37: Celtis occidentalis | C37: Emblématique | D37: Autre | E37: Emblématique | F37: Autre | G37: Emblématique | H37: Emblématique | I37: Possible | J37: Emblématique | K37: Emblématique | L37: Emblématique | M37: Possible | N37: Autre | O37: Autre | P37: Possible
A38: =IF(Base_Arbres!$A33<>"",Base_Arbres!$A33,"") -> Arbre au caramel | B38: Cercidiphyllum japonicum | C38: Autre | D38: Possible | E38: Possible | F38: Possible | G38: Autre | H38: Autre | I38: Emblématique | J38: Emblématique | K38: Emblématique | L38: Possible | M38: Possible | N38: Autre | O38: Autre | P38: Possible
A39: =IF(Base_Arbres!$A34<>"",Base_Arbres!$A34,"") -> Gainier du Canada | B39: Cercis canadensis | C39: Autre | D39: Autre | E39: Autre | F39: Emblématique | G39: Emblématique | H39: Autre | I39: Emblématique | J39: Emblématique | K39: Autre | L39: Emblématique | M39: Possible | N39: Autre | O39: Possible | P39: Possible
A40: =IF(Base_Arbres!$A35<>"",Base_Arbres!$A35,"") -> Arbre de Judée | B40: Cercis siliquastrum | C40: Autre | D40: Emblématique | E40: Autre | F40: Emblématique | G40: Autre | H40: Possible | I40: Emblématique | J40: Emblématique | K40: Emblématique | L40: Possible | M40: Possible | N40: Autre | O40: Autre | P40: Emblématique
A41: =IF(Base_Arbres!$A36<>"",Base_Arbres!$A36,"") -> Arbre de neige | B41: Chionanthus virginicus | C41: Autre | D41: Autre | E41: Autre | F41: Emblématique | G41: Autre | H41: Autre | I41: Emblématique | J41: Emblématique | K41: Autre | L41: Emblématique | M41: Autre | N41: Possible | O41: Possible | P41: Possible
A42: =IF(Base_Arbres!$A37<>"",Base_Arbres!$A37,"") -> Cornouiller sanguin | B42: Cornus sanguinea | C42: Autre | D42: Autre | E42: Autre | F42: Emblématique | G42: Emblématique | H42: Autre | I42: Emblématique | J42: Emblématique | K42: Emblématique | L42: Emblématique | M42: Possible | N42: Emblématique | O42: Emblématique | P42: Possible
A43: =IF(Base_Arbres!$A38<>"",Base_Arbres!$A38,"") -> Noisetier commun | B43: Corylus avellana | C43: Autre | D43: Autre | E43: Autre | F43: Emblématique | G43: Possible | H43: Autre | I43: Emblématique | J43: Emblématique | K43: Emblématique | L43: Possible | M43: Emblématique | N43: Emblématique | O43: Possible | P43: Emblématique
A44: =IF(Base_Arbres!$A39<>"",Base_Arbres!$A39,"") -> Noisetier de Byzance | B44: Corylus colurna | C44: Autre | D44: Possible | E44: Autre | F44: Autre | G44: Autre | H44: Possible | I44: Emblématique | J44: Possible | K44: Emblématique | L44: Autre | M44: Autre | N44: Autre | O44: Autre | P44: Possible
A45: =IF(Base_Arbres!$A40<>"",Base_Arbres!$A40,"") -> Noisetier de Byzance ‘VDB Obelisk’ | B45: Corylus colurna ‘VDB Obelisk’ | C45: Emblématique | D45: Emblématique | E45: Possible | F45: Emblématique | G45: Emblématique | H45: Emblématique | I45: Emblématique | J45: Possible | K45: Emblématique | L45: Autre | M45: Autre | N45: Autre | O45: Autre | P45: Emblématique
A46: =IF(Base_Arbres!$A41<>"",Base_Arbres!$A41,"") -> Aubépine épineuse | B46: Crataegus laevigata | C46: Autre | D46: Autre | E46: Autre | F46: Emblématique | G46: Emblématique | H46: Autre | I46: Emblématique | J46: Emblématique | K46: Autre | L46: Emblématique | M46: Possible | N46: Emblématique | O46: Emblématique | P46: Possible
A47: =IF(Base_Arbres!$A42<>"",Base_Arbres!$A42,"") -> Aubépine monogyne | B47: Crataegus monogyna | C47: Autre | D47: Autre | E47: Autre | F47: Possible | G47: Emblématique | H47: Autre | I47: Possible | J47: Emblématique | K47: Autre | L47: Emblématique | M47: Possible | N47: Emblématique | O47: Emblématique | P47: Possible
A48: =IF(Base_Arbres!$A43<>"",Base_Arbres!$A43,"") -> Arbre aux mouchoirs | B48: Davidia involucrata | C48: Autre | D48: Autre | E48: Autre | F48: Emblématique | G48: Autre | H48: Autre | I48: Emblématique | J48: Emblématique | K48: Emblématique | L48: Emblématique | M48: Possible | N48: Emblématique | O48: Emblématique | P48: Possible
A49: =IF(Base_Arbres!$A44<>"",Base_Arbres!$A44,"") -> Arbre à Gutta-Percha | B49: Eucommia ulmoides | C49: Possible | D49: Autre | E49: Autre | F49: Autre | G49: Possible | H49: Possible | I49: Autre | J49: Emblématique | K49: Possible | L49: Possible | M49: Possible | N49: Autre | O49: Possible | P49: Possible
A50: =IF(Base_Arbres!$A45<>"",Base_Arbres!$A45,"") -> Fusain d’Europe | B50: Euonymus europaeus | C50: Autre | D50: Emblématique | E50: Emblématique | F50: Emblématique | G50: Possible | H50: Possible | I50: Emblématique | J50: Possible | K50: Emblématique | L50: Possible | M50: Possible | N50: Emblématique | O50: Possible | P50: Emblématique
A51: =IF(Base_Arbres!$A46<>"",Base_Arbres!$A46,"") -> Hêtre commun | B51: Fagus sylvatica | C51: Autre | D51: Autre | E51: Autre | F51: Autre | G51: Autre | H51: Autre | I51: Possible | J51: Emblématique | K51: Autre | L51: Possible | M51: Possible | N51: Emblématique | O51: Possible | P51: Possible
A52: =IF(Base_Arbres!$A47<>"",Base_Arbres!$A47,"") -> Hêtre commun ‘Dawyck ’ | B52: Fagus sylvatica ‘Dawyck ’ | C52: Autre | D52: Autre | E52: Autre | F52: Autre | G52: Autre | H52: Autre | I52: Emblématique | J52: Emblématique | K52: Possible | L52: Emblématique | M52: Possible | N52: Emblématique | O52: Possible | P52: Possible
A53: =IF(Base_Arbres!$A48<>"",Base_Arbres!$A48,"") -> Frêne d'Amérique, Frêne blanc | B53: Fraxinus americana | C53: Emblématique | D53: Possible | E53: Possible | F53: Possible | G53: Emblématique | H53: Emblématique | I53: Possible | J53: Emblématique | K53: Emblématique | L53: Emblématique | M53: Autre | N53: Emblématique | O53: Emblématique | P53: Possible
A54: =IF(Base_Arbres!$A49<>"",Base_Arbres!$A49,"") -> Frêne à feuilles étroites, Frêne du midi, Frêne oxyphylle | B54: Fraxinus angustifolia | C54: Emblématique | D54: Possible | E54: Possible | F54: Possible | G54: Possible | H54: Emblématique | I54: Possible | J54: Emblématique | K54: Emblématique | L54: Emblématique | M54: Possible | N54: Autre | O54: Possible | P54: Possible
A55: =IF(Base_Arbres!$A50<>"",Base_Arbres!$A50,"") -> Frêne commun, Frêne élevé | B55: Fraxinus excelsior | C55: Autre | D55: Autre | E55: Autre | F55: Possible | G55: Emblématique | H55: Autre | I55: Autre | J55: Emblématique | K55: Autre | L55: Emblématique | M55: Possible | N55: Emblématique | O55: Emblématique | P55: Autre
A56: Frêne à fleurs | B56: Fraxinus ornus | C56: Possible | D56: Possible | E56: Possible | F56: Emblématique | G56: Possible | H56: Possible | I56: Emblématique | J56: Emblématique | K56: Possible | L56: Emblématique | M56: Possible | N56: Emblématique | O56: Possible | P56: Emblématique
A57: =IF(Base_Arbres!$A52<>"",Base_Arbres!$A52,"") -> Frêne à fleurs colonnaire | B57: Fraxinus ornus 'Paus Johannes-Paulus II' | C57: Autre | D57: Emblématique | E57: Emblématique | F57: Emblématique | G57: Emblématique | H57: Emblématique | I57: Emblématique | J57: Emblématique | K57: Emblématique | L57: Emblématique | M57: Possible | N57: Autre | O57: Possible | P57: Possible
A58: =IF(Base_Arbres!$A53<>"",Base_Arbres!$A53,"") -> Frêne rouge d'Amérique | B58: Fraxinus pennsylvanica | C58: Emblématique | D58: Possible | E58: Possible | F58: Possible | G58: Emblématique | H58: Emblématique | I58: Possible | J58: Emblématique | K58: Emblématique | L58: Emblématique | M58: Autre | N58: Emblématique | O58: Emblématique | P58: Possible
A59: =IF(Base_Arbres!$A54<>"",Base_Arbres!$A54,"") -> Arbre aux quarante écus | B59: Gingko biloba | C59: Emblématique | D59: Autre | E59: Autre | F59: Possible | G59: Possible | H59: Possible | I59: Possible | J59: Emblématique | K59: Possible | L59: Emblématique | M59: Autre | N59: Autre | O59: Possible | P59: Possible
A60: =IF(Base_Arbres!$A55<>"",Base_Arbres!$A55,"") -> Arbre aux quarante écus Blagon | B60: Ginkgo biloba ‘Blagon’ | C60: Autre | D60: Emblématique | E60: Autre | F60: Emblématique | G60: Possible | H60: Possible | I60: Emblématique | J60: Possible | K60: Emblématique | L60: Emblématique | M60: Autre | N60: Autre | O60: Possible | P60: Emblématique
A61: =IF(Base_Arbres!$A56<>"",Base_Arbres!$A56,"") -> Févier d’Amérique | B61: Gleditsia triacanthos | C61: Autre | D61: Autre | E61: Autre | F61: Autre | G61: Emblématique | H61: Possible | I61: Autre | J61: Emblématique | K61: Autre | L61: Emblématique | M61: Autre | N61: Emblématique | O61: Possible | P61: Possible
A62: =IF(Base_Arbres!$A57<>"",Base_Arbres!$A57,"") -> Houx commun | B62: Ilex aquifolium | C62: Autre | D62: Autre | E62: Autre | F62: Autre | G62: Autre | H62: Autre | I62: Possible | J62: Emblématique | K62: Autre | L62: Emblématique | M62: Emblématique | N62: Emblématique | O62: Possible | P62: Autre
A63: =IF(Base_Arbres!$A58<>"",Base_Arbres!$A58,"") -> Noyer commun | B63: Juglans regia | C63: Autre | D63: Autre | E63: Autre | F63: Autre | G63: Autre | H63: Autre | I63: Autre | J63: Emblématique | K63: Possible | L63: Autre | M63: Autre | N63: Emblématique | O63: Possible | P63: Autre
A64: =IF(Base_Arbres!$A59<>"",Base_Arbres!$A59,"") -> Genévrier commun | B64: Juniperus communis | C64: Autre | D64: Autre | E64: Autre | F64: Emblématique | G64: Autre | H64: Autre | I64: Emblématique | J64: Emblématique | K64: Autre | L64: Possible | M64: Autre | N64: Autre | O64: Autre | P64: Possible
A65: =IF(Base_Arbres!$A60<>"",Base_Arbres!$A60,"") -> Savonnier de chine | B65: Koelreuteria paniculata | C65: Autre | D65: Autre | E65: Autre | F65: Possible | G65: Autre | H65: Autre | I65: Emblématique | J65: Emblématique | K65: Possible | L65: Emblématique | M65: Autre | N65: Autre | O65: Possible | P65: Possible
A66: =IF(Base_Arbres!$A61<>"",Base_Arbres!$A61,"") -> Mélèze d’Europe | B66: Larix decidua | C66: Autre | D66: Autre | E66: Autre | F66: Autre | G66: Autre | H66: Autre | I66: Autre | J66: Emblématique | K66: Autre | L66: Emblématique | M66: Autre | N66: Emblématique | O66: Possible | P66: Possible
A67: =IF(Base_Arbres!$A62<>"",Base_Arbres!$A62,"") -> Troène commun | B67: Ligustrum vulgare | C67: Autre | D67: Emblématique | E67: Emblématique | F67: Emblématique | G67: Possible | H67: Autre | I67: Emblématique | J67: Emblématique | K67: Autre | L67: Emblématique | M67: Possible | N67: Emblématique | O67: Possible | P67: Emblématique
A68: =IF(Base_Arbres!$A63<>"",Base_Arbres!$A63,"") -> Copalme d'Orient | B68: Liquidambar orientalis | C68: Autre | D68: Possible | E68: Possible | F68: Emblématique | G68: Emblématique | H68: Emblématique | I68: Emblématique | J68: Emblématique | K68: Autre | L68: Emblématique | M68: Autre | N68: Emblématique | O68: Emblématique | P68: Emblématique
A69: =IF(Base_Arbres!$A64<>"",Base_Arbres!$A64,"") -> Copalme d’Amérique | B69: Liquidambar styraciflua | C69: Emblématique | D69: Possible | E69: Possible | F69: Emblématique | G69: Emblématique | H69: Possible | I69: Possible | J69: Emblématique | K69: Possible | L69: Autre | M69: Autre | N69: Emblématique | O69: Possible | P69: Possible
A70: =IF(Base_Arbres!$A65<>"",Base_Arbres!$A65,"") -> Tulipier de Virginie | B70: Liriodendron tulipifera | C70: Emblématique | D70: Autre | E70: Autre | F70: Possible | G70: Emblématique | H70: Emblématique | I70: Autre | J70: Emblématique | K70: Emblématique | L70: Emblématique | M70: Possible | N70: Autre | O70: Possible | P70: Possible
A71: =IF(Base_Arbres!$A66<>"",Base_Arbres!$A66,"") -> Magnolia à grandes fleurs | B71: Magnolia grandiflora | C71: Emblématique | D71: Autre | E71: Possible | F71: Autre | G71: Possible | H71: Emblématique | I71: Autre | J71: Emblématique | K71: Autre | L71: Autre | M71: Emblématique | N71: Autre | O71: Autre | P71: Possible
A72: =IF(Base_Arbres!$A67<>"",Base_Arbres!$A67,"") -> Magnolia de Kobé | B72: Magnolia kobus | C72: Possible | D72: Emblématique | E72: Possible | F72: Emblématique | G72: Possible | H72: Emblématique | I72: Emblématique | J72: Emblématique | K72: Emblématique | L72: Emblématique | M72: Autre | N72: Autre | O72: Possible | P72: Emblématique
A73: =IF(Base_Arbres!$A68<>"",Base_Arbres!$A68,"") -> Magnolia de Kobé ‘Isis’ | B73: Magnolia Kobus ‘Isis’ | C73: Possible | D73: Emblématique | E73: Autre | F73: Emblématique | G73: Possible | H73: Emblématique | I73: Emblématique | J73: Emblématique | K73: Emblématique | L73: Emblématique | M73: Autre | N73: Autre | O73: Possible | P73: Emblématique
A74: =IF(Base_Arbres!$A69<>"",Base_Arbres!$A69,"") -> Pommier sauvage | B74: Malus sylvestris | C74: Autre | D74: Autre | E74: Autre | F74: Possible | G74: Autre | H74: Autre | I74: Emblématique | J74: Possible | K74: Possible | L74: Autre | M74: Autre | N74: Emblématique | O74: Emblématique | P74: Autre
A75: =IF(Base_Arbres!$A70<>"",Base_Arbres!$A70,"") -> Pommier d'ornement japonais Brouwers Beauty | B75: Malus toringo ‘Brouwers Beauty’ | C75: Autre | D75: Emblématique | E75: Autre | F75: Emblématique | G75: Possible | H75: Autre | I75: Emblématique | J75: Possible | K75: Emblématique | L75: Autre | M75: Autre | N75: Autre | O75: Emblématique | P75: Emblématique
A76: =IF(Base_Arbres!$A71<>"",Base_Arbres!$A71,"") -> Pommier trilobé | B76: Malus trilobata | C76: Autre | D76: Autre | E76: Autre | F76: Possible | G76: Possible | H76: Autre | I76: Autre | J76: Emblématique | K76: Autre | L76: Emblématique | M76: Possible | N76: Autre | O76: Emblématique | P76: Possible
A77: =IF(Base_Arbres!$A72<>"",Base_Arbres!$A72,"") -> Pommier de Sukawa | B77: Malus tschonoskii | C77: Autre | D77: Emblématique | E77: Possible | F77: Emblématique | G77: Possible | H77: Autre | I77: Emblématique | J77: Emblématique | K77: Emblématique | L77: Emblématique | M77: Possible | N77: Autre | O77: Emblématique | P77: Emblématique
A78: =IF(Base_Arbres!$A73<>"",Base_Arbres!$A73,"") -> Néflier commun | B78: Mespilus germanica | C78: Autre | D78: Autre | E78: Autre | F78: Autre | G78: Autre | H78: Autre | I78: Emblématique | J78: Emblématique | K78: Emblématique | L78: Possible | M78: Possible | N78: Possible | O78: Emblématique | P78: Autre
A79: =IF(Base_Arbres!$A74<>"",Base_Arbres!$A74,"") -> Metaséquoia, Métaséquoia du Sechuan | B79: Metasequoia glyptostroboides | C79: Autre | D79: Autre | E79: Autre | F79: Autre | G79: Emblématique | H79: Emblématique | I79: Autre | J79: Emblématique | K79: Autre | L79: Emblématique | M79: Possible | N79: Emblématique | O79: Emblématique | P79: Autre
A80: =IF(Base_Arbres!$A75<>"",Base_Arbres!$A75,"") -> Tupélo de Chine | B80: Nyssa sylvatica | C80: Autre | D80: Autre | E80: Autre | F80: Emblématique | G80: Emblématique | H80: Autre | I80: Emblématique | J80: Emblématique | K80: Autre | L80: Emblématique | M80: Possible | N80: Autre | O80: Emblématique | P80: Possible
A81: =IF(Base_Arbres!$A76<>"",Base_Arbres!$A76,"") -> Charme houblon, Ostryer commun | B81: Ostrya caprinifolia | C81: Emblématique | D81: Possible | E81: Possible | F81: Possible | G81: Emblématique | H81: Emblématique | I81: Possible | J81: Emblématique | K81: Emblématique | L81: Emblématique | M81: Possible | N81: Possible | O81: Emblématique | P81: Emblématique
A82: =IF(Base_Arbres!$A77<>"",Base_Arbres!$A77,"") -> Parrotie de Perse, Arbre de fer | B82: Parrotia persica | C82: Autre | D82: Autre | E82: Autre | F82: Possible | G82: Possible | H82: Autre | I82: Emblématique | J82: Emblématique | K82: Emblématique | L82: Emblématique | M82: Possible | N82: Autre | O82: Autre | P82: Possible
A83: =IF(Base_Arbres!$A78<>"",Base_Arbres!$A78,"") -> Paulownia Fast Blue | B83: Paulownia fortunei 'Minfast' FAST BLUE® | C83: Possible | D83: Possible | E83: Possible | F83: Possible | G83: Autre | H83: Possible | I83: Emblématique | J83: Emblématique | K83: Possible | L83: Emblématique | M83: Autre | N83: Autre | O83: Autre | P83: Possible
A84: =IF(Base_Arbres!$A79<>"",Base_Arbres!$A79,"") -> Paulownia tomenteux ou impérial | B84: Paulownia tomentosa | C84: Autre | D84: Autre | E84: Autre | F84: Possible | G84: Possible | H84: Possible | I84: Emblématique | J84: Emblématique | K84: Possible | L84: Emblématique | M84: Autre | N84: Autre | O84: Autre | P84: Possible
A85: =IF(Base_Arbres!$A80<>"",Base_Arbres!$A80,"") -> Seringa, Jasmin des poètes | B85: Philadelphus coronarius | C85: Autre | D85: Autre | E85: Possible | F85: Emblématique | G85: Autre | H85: Autre | I85: Emblématique | J85: Emblématique | K85: Emblématique | L85: Possible | M85: Possible | N85: Emblématique | O85: Emblématique | P85: Emblématique
A86: =IF(Base_Arbres!$A81<>"",Base_Arbres!$A81,"") -> Epicéa commun | B86: Picea abies | C86: Autre | D86: Autre | E86: Autre | F86: Autre | G86: Autre | H86: Autre | I86: Possible | J86: Emblématique | K86: Autre | L86: Possible | M86: Possible | N86: Emblématique | O86: Possible | P86: Possible
A87: =IF(Base_Arbres!$A82<>"",Base_Arbres!$A82,"") -> Pin sylvestre | B87: Pinus sylvestris | C87: Autre | D87: Autre | E87: Autre | F87: Autre | G87: Autre | H87: Possible | I87: Emblématique | J87: Emblématique | K87: Autre | L87: Emblématique | M87: Autre | N87: Autre | O87: Possible | P87: Possible
A88: =IF(Base_Arbres!$A83<>"",Base_Arbres!$A83,"") -> Pistachier de Chine | B88: Pistacia chinensis | C88: Autre | D88: Emblématique | E88: Emblématique | F88: Emblématique | G88: Autre | H88: Emblématique | I88: Emblématique | J88: Emblématique | K88: Autre | L88: Emblématique | M88: Autre | N88: Possible | O88: Possible | P88: Emblématique
A89: =IF(Base_Arbres!$A84<>"",Base_Arbres!$A84,"") -> Platane d’Occident | B89: Platanus occidentalis | C89: Emblématique | D89: Autre | E89: Emblématique | F89: Autre | G89: Emblématique | H89: Emblématique | I89: Emblématique | J89: Emblématique | K89: Emblématique | L89: Emblématique | M89: Autre | N89: Autre | O89: Possible | P89: Possible
A90: =IF(Base_Arbres!$A85<>"",Base_Arbres!$A85,"") -> Platane d'Orient | B90: Platanus orientalis | C90: Emblématique | D90: Autre | E90: Emblématique | F90: Autre | G90: Emblématique | H90: Emblématique | I90: Emblématique | J90: Emblématique | K90: Emblématique | L90: Emblématique | M90: Possible | N90: Autre | O90: Possible | P90: Possible
A91: =IF(Base_Arbres!$A86<>"",Base_Arbres!$A86,"") -> Platane commun | B91: Platanus x hispanica | C91: Emblématique | D91: Autre | E91: Emblématique | F91: Autre | G91: Emblématique | H91: Emblématique | I91: Emblématique | J91: Emblématique | K91: Emblématique | L91: Emblématique | M91: Possible | N91: Autre | O91: Possible | P91: Possible
A92: =IF(Base_Arbres!$A87<>"",Base_Arbres!$A87,"") -> Peuplier blanc | B92: Populus alba | C92: Autre | D92: Autre | E92: Autre | F92: Possible | G92: Emblématique | H92: Autre | I92: Autre | J92: Emblématique | K92: Autre | L92: Emblématique | M92: Possible | N92: Autre | O92: Emblématique | P92: Possible
A93: =IF(Base_Arbres!$A88<>"",Base_Arbres!$A88,"") -> Peuplier tremble | B93: Populus tremula | C93: Autre | D93: Autre | E93: Autre | F93: Autre | G93: Emblématique | H93: Autre | I93: Autre | J93: Emblématique | K93: Autre | L93: Possible | M93: Possible | N93: Autre | O93: Emblématique | P93: Autre
A94: =IF(Base_Arbres!$A89<>"",Base_Arbres!$A89,"") -> Merisier | B94: Prunus avium | C94: Autre | D94: Autre | E94: Autre | F94: Autre | G94: Emblématique | H94: Autre | I94: Autre | J94: Emblématique | K94: Autre | L94: Possible | M94: Possible | N94: Possible | O94: Emblématique | P94: Possible
A95: =IF(Base_Arbres!$A90<>"",Base_Arbres!$A90,"") -> Merisier 'Landscape Bloom' | B95: Prunus avium 'Landscape Bloom' | C95: Autre | D95: Autre | E95: Autre | F95: Possible | G95: Possible | H95: Autre | I95: Emblématique | J95: Emblématique | K95: Possible | L95: Possible | M95: Autre | N95: Emblématique | O95: Emblématique | P95: Possible
A96: =IF(Base_Arbres!$A91<>"",Base_Arbres!$A91,"") -> Cerisier de Sainte-Lucie | B96: Prunus mahaleb | C96: Autre | D96: Autre | E96: Autre | F96: Possible | G96: Autre | H96: Autre | I96: Emblématique | J96: Emblématique | K96: Possible | L96: Emblématique | M96: Possible | N96: Emblématique | O96: Possible | P96: Possible
A97: =IF(Base_Arbres!$A92<>"",Base_Arbres!$A92,"") -> Cerisier à grappes | B97: Prunus padus | C97: Autre | D97: Autre | E97: Autre | F97: Autre | G97: Autre | H97: Autre | I97: Emblématique | J97: Emblématique | K97: Possible | L97: Emblématique | M97: Possible | N97: Possible | O97: Possible | P97: Possible
A98: =IF(Base_Arbres!$A93<>"",Base_Arbres!$A93,"") -> Cerisier de Sargent | B98: Prunus sargentii | C98: Autre | D98: Autre | E98: Autre | F98: Possible | G98: Autre | H98: Autre | I98: Emblématique | J98: Emblématique | K98: Emblématique | L98: Emblématique | M98: Autre | N98: Autre | O98: Emblématique | P98: Possible
A99: =IF(Base_Arbres!$A94<>"",Base_Arbres!$A94,"") -> Prunelier | B99: Prunus spinosa | C99: Autre | D99: Autre | E99: Autre | F99: Emblématique | G99: Autre | H99: Autre | I99: Emblématique | J99: Emblématique | K99: Emblématique | L99: Emblématique | M99: Possible | N99: Emblématique | O99: Emblématique | P99: Possible
A100: =IF(Base_Arbres!$A95<>"",Base_Arbres!$A95,"") -> Cerisier d'hiver | B100: Prunus x subhirtella | C100: Autre | D100: Autre | E100: Autre | F100: Possible | G100: Autre | H100: Autre | I100: Emblématique | J100: Emblématique | K100: Emblématique | L100: Emblématique | M100: Autre | N100: Autre | O100: Possible | P100: Possible
A101: =IF(Base_Arbres!$A96<>"",Base_Arbres!$A96,"") -> Ptérocarier de Chine | B101: Pterocarya stenoptera | C101: Emblématique | D101: Possible | E101: Possible | F101: Possible | G101: Emblématique | H101: Emblématique | I101: Emblématique | J101: Emblématique | K101: Autre | L101: Emblématique | M101: Autre | N101: Emblématique | O101: Emblématique | P101: Emblématique
A102: =IF(Base_Arbres!$A97<>"",Base_Arbres!$A97,"") -> Poirier commun | B102: Pyrus communis | C102: Autre | D102: Autre | E102: Autre | F102: Autre | G102: Autre | H102: Autre | I102: Autre | J102: Emblématique | K102: Emblématique | L102: Autre | M102: Possible | N102: Autre | O102: Possible | P102: Emblématique
A103: =IF(Base_Arbres!$A98<>"",Base_Arbres!$A98,"") -> Chêne blanc | B103: Quercus alba | C103: Autre | D103: Autre | E103: Autre | F103: Autre | G103: Possible | H103: Autre | I103: Emblématique | J103: Emblématique | K103: Possible | L103: Emblématique | M103: Autre | N103: Possible | O103: Emblématique | P103: Autre
A104: =IF(Base_Arbres!$A99<>"",Base_Arbres!$A99,"") -> Chêne chevelu de bourgogne | B104: Quercus cerris | C104: Autre | D104: Autre | E104: Autre | F104: Autre | G104: Possible | H104: Autre | I104: Emblématique | J104: Emblématique | K104: Autre | L104: Emblématique | M104: Autre | N104: Possible | O104: Emblématique | P104: Autre
A105: =IF(Base_Arbres!$A100<>"",Base_Arbres!$A100,"") -> Chêne de Hongrie | B105: Quercus frainetto | C105: Emblématique | D105: Autre | E105: Possible | F105: Autre | G105: Emblématique | H105: Emblématique | I105: Autre | J105: Emblématique | K105: Autre | L105: Emblématique | M105: Autre | N105: Possible | O105: Emblématique | P105: Possible
A106: =IF(Base_Arbres!$A101<>"",Base_Arbres!$A101,"") -> Chêne vert | B106: Quercus ilex | C106: Emblématique | D106: Emblématique | E106: Autre | F106: Possible | G106: Autre | H106: Emblématique | I106: Emblématique | J106: Emblématique | K106: Emblématique | L106: Emblématique | M106: Autre | N106: Possible | O106: Autre | P106: Possible
A107: =IF(Base_Arbres!$A102<>"",Base_Arbres!$A102,"") -> Chêne à feuilles de laurier | B107: Quercus imbricaria | C107: Autre | D107: Autre | E107: Autre | F107: Possible | G107: Possible | H107: Possible | I107: Emblématique | J107: Emblématique | K107: Autre | L107: Emblématique | M107: Possible | N107: Emblématique | O107: Emblématique | P107: Possible
A108: =IF(Base_Arbres!$A103<>"",Base_Arbres!$A103,"") -> Chêne du Caucase | B108: Quercus macranthera | C108: Autre | D108: Autre | E108: Autre | F108: Autre | G108: Autre | H108: Autre | I108: Emblématique | J108: Emblématique | K108: Autre | L108: Emblématique | M108: Autre | N108: Possible | O108: Possible | P108: Possible
A109: =IF(Base_Arbres!$A104<>"",Base_Arbres!$A104,"") -> Chêne sessile, Chêne rouvre | B109: Quercus petraea | C109: Autre | D109: Autre | E109: Possible | F109: Autre | G109: Autre | H109: Autre | I109: Emblématique | J109: Emblématique | K109: Possible | L109: Emblématique | M109: Possible | N109: Emblématique | O109: Autre | P109: Possible
A110: =IF(Base_Arbres!$A105<>"",Base_Arbres!$A105,"") -> Chêne pubescent | B110: Quercus pubescens | C110: Autre | D110: Autre | E110: Possible | F110: Autre | G110: Emblématique | H110: Autre | I110: Emblématique | J110: Emblématique | K110: Possible | L110: Emblématique | M110: Possible | N110: Emblématique | O110: Emblématique | P110: Possible
A111: =IF(Base_Arbres!$A106<>"",Base_Arbres!$A106,"") -> Chêne pédonculé | B111: Quercus rhysophylla 'Maya' | C111: Autre | D111: Autre | E111: Possible | F111: Possible | G111: Emblématique | H111: Autre | I111: Emblématique | J111: Emblématique | K111: Possible | L111: Emblématique | M111: Possible | N111: Emblématique | O111: Emblématique | P111: Possible
A112: =IF(Base_Arbres!$A107<>"",Base_Arbres!$A107,"") -> Chêne rouge d’Amérique | B112: Quercus robur | C112: Autre | D112: Autre | E112: Possible | F112: Autre | G112: Emblématique | H112: Autre | I112: Emblématique | J112: Emblématique | K112: Possible | L112: Emblématique | M112: Possible | N112: Emblématique | O112: Emblématique | P112: Possible
A113: =IF(Base_Arbres!$A108<>"",Base_Arbres!$A108,"") -> Chêne du Mexique Maya | B113: Quercus rubra | C113: Autre | D113: Autre | E113: Possible | F113: Autre | G113: Autre | H113: Autre | I113: Emblématique | J113: Emblématique | K113: Possible | L113: Emblématique | M113: Possible | N113: Emblématique | O113: Autre | P113: Possible
A114: =IF(Base_Arbres!$A109<>"",Base_Arbres!$A109,"") -> Chêne de Turner Pseudoturneri | B114: Quercus x turneri pseudoturneri | C114: Autre | D114: Autre | E114: Possible | F114: Emblématique | G114: Emblématique | H114: Autre | I114: Emblématique | J114: Emblématique | K114: Possible | L114: Emblématique | M114: Possible | N114: Emblématique | O114: Emblématique | P114: Emblématique
A115: =IF(Base_Arbres!$A110<>"",Base_Arbres!$A110,"") -> Saule blanc | B115: Salix alba | C115: Autre | D115: Autre | E115: Autre | F115: Autre | G115: Emblématique | H115: Autre | I115: Possible | J115: Emblématique | K115: Autre | L115: Autre | M115: Autre | N115: Autre | O115: Emblématique | P115: Autre
A116: =IF(Base_Arbres!$A111<>"",Base_Arbres!$A111,"") -> Saule de Babylone, Saule pleureur à bois vert | B116: Salix babylonica | C116: Autre | D116: Autre | E116: Autre | F116: Autre | G116: Emblématique | H116: Autre | I116: Possible | J116: Emblématique | K116: Autre | L116: Autre | M116: Autre | N116: Autre | O116: Emblématique | P116: Autre
A117: =IF(Base_Arbres!$A112<>"",Base_Arbres!$A112,"") -> Osier vert | B117: Salix viminalis | C117: Autre | D117: Autre | E117: Autre | F117: Emblématique | G117: Emblématique | H117: Autre | I117: Emblématique | J117: Emblématique | K117: Possible | L117: Autre | M117: Autre | N117: Autre | O117: Emblématique | P117: Autre
A118: =IF(Base_Arbres!$A113<>"",Base_Arbres!$A113,"") -> Sureau noir | B118: Sambucus nigra | C118: Autre | D118: Autre | E118: Autre | F118: Emblématique | G118: Emblématique | H118: Autre | I118: Emblématique | J118: Emblématique | K118: Possible | L118: Emblématique | M118: Possible | N118: Emblématique | O118: Emblématique | P118: Emblématique
A119: =IF(Base_Arbres!$A114<>"",Base_Arbres!$A114,"") -> Séquoia toujours vert | B119: Sequoia sempervirens | C119: Autre | D119: Autre | E119: Autre | F119: Autre | G119: Autre | H119: Autre | I119: Autre | J119: Emblématique | K119: Autre | L119: Possible | M119: Possible | N119: Autre | O119: Possible | P119: Autre
A120: =IF(Base_Arbres!$A115<>"",Base_Arbres!$A115,"") -> Séquoia géant | B120: Sequoiadendron giganteum | C120: Autre | D120: Autre | E120: Autre | F120: Autre | G120: Autre | H120: Autre | I120: Autre | J120: Emblématique | K120: Autre | L120: Possible | M120: Autre | N120: Autre | O120: Possible | P120: Autre
A121: =IF(Base_Arbres!$A116<>"",Base_Arbres!$A116,"") -> Alisier blanc | B121: Sorbus aria | C121: Possible | D121: Emblématique | E121: Possible | F121: Possible | G121: Autre | H121: Autre | I121: Emblématique | J121: Emblématique | K121: Emblématique | L121: Emblématique | M121: Possible | N121: Autre | O121: Possible | P121: Possible
A122: =IF(Base_Arbres!$A117<>"",Base_Arbres!$A117,"") -> Sorbier des oiseleurs | B122: Sorbus aucuparia | C122: Autre | D122: Autre | E122: Autre | F122: Possible | G122: Autre | H122: Autre | I122: Emblématique | J122: Emblématique | K122: Possible | L122: Emblématique | M122: Possible | N122: Emblématique | O122: Possible | P122: Possible
A123: =IF(Base_Arbres!$A118<>"",Base_Arbres!$A118,"") -> Sorbier des oiseleurs fastigiata | B123: Sorbus aucuparia fastigiata | C123: Autre | D123: Autre | E123: Autre | F123: Possible | G123: Autre | H123: Autre | I123: Emblématique | J123: Emblématique | K123: Possible | L123: Emblématique | M123: Possible | N123: Autre | O123: Autre | P123: Possible
A124: =IF(Base_Arbres!$A119<>"",Base_Arbres!$A119,"") -> Alisier de Suède | B124: Sorbus intermedia | C124: Possible | D124: Emblématique | E124: Autre | F124: Possible | G124: Emblématique | H124: Emblématique | I124: Emblématique | J124: Emblématique | K124: Emblématique | L124: Emblématique | M124: Possible | N124: Emblématique | O124: Emblématique | P124: Emblématique
A125: =IF(Base_Arbres!$A120<>"",Base_Arbres!$A120,"") -> Alisier de Suède Brouwers | B125: Sorbus intermedia Brouwers | C125: Possible | D125: Emblématique | E125: Autre | F125: Possible | G125: Emblématique | H125: Emblématique | I125: Emblématique | J125: Emblématique | K125: Emblématique | L125: Emblématique | M125: Possible | N125: Autre | O125: Emblématique | P125: Emblématique
A126: =IF(Base_Arbres!$A121<>"",Base_Arbres!$A121,"") -> Alisier torminal | B126: Sorbus torminalis | C126: Autre | D126: Autre | E126: Autre | F126: Possible | G126: Autre | H126: Autre | I126: Emblématique | J126: Emblématique | K126: Possible | L126: Emblématique | M126: Possible | N126: Possible | O126: Possible | P126: Possible
A127: =IF(Base_Arbres!$A122<>"",Base_Arbres!$A122,"") -> Alisier de Thuringe | B127: Sorbus x thuringiaca | C127: Autre | D127: Emblématique | E127: Autre | F127: Possible | G127: Autre | H127: Autre | I127: Emblématique | J127: Emblématique | K127: Possible | L127: Emblématique | M127: Possible | N127: Possible | O127: Possible | P127: Emblématique
A128: =IF(Base_Arbres!$A123<>"",Base_Arbres!$A123,"") -> Sophora du Japon | B128: Styphnolobium japonicum | C128: Emblématique | D128: Autre | E128: Possible | F128: Autre | G128: Possible | H128: Emblématique | I128: Possible | J128: Emblématique | K128: Autre | L128: Emblématique | M128: Possible | N128: Autre | O128: Autre | P128: Possible
A129: =IF(Base_Arbres!$A124<>"",Base_Arbres!$A124,"") -> Tilleul à petites feuilles | B129: Tilia cordata | C129: Emblématique | D129: Autre | E129: Autre | F129: Autre | G129: Emblématique | H129: Emblématique | I129: Possible | J129: Emblématique | K129: Emblématique | L129: Emblématique | M129: Emblématique | N129: Emblématique | O129: Possible | P129: Possible
A130: =IF(Base_Arbres!$A125<>"",Base_Arbres!$A125,"") -> Tilleul à grandes feuilles | B130: Tilia Platyphyllos | C130: Emblématique | D130: Autre | E130: Autre | F130: Autre | G130: Autre | H130: Emblématique | I130: Autre | J130: Emblématique | K130: Emblématique | L130: Emblématique | M130: Possible | N130: Possible | O130: Possible | P130: Possible
A131: =IF(Base_Arbres!$A126<>"",Base_Arbres!$A126,"") -> Tilleul de Crimée | B131: Tilia x euchlora | C131: Emblématique | D131: Autre | E131: Autre | F131: Autre | G131: Emblématique | H131: Emblématique | I131: Autre | J131: Emblématique | K131: Emblématique | L131: Emblématique | M131: Possible | N131: Autre | O131: Possible | P131: Possible
A132: =IF(Base_Arbres!$A127<>"",Base_Arbres!$A127,"") -> Orme hybride 'Columella' | B132: Ulmus ‘Columella’ | C132: Autre | D132: Possible | E132: Possible | F132: Possible | G132: Emblématique | H132: Autre | I132: Possible | J132: Emblématique | K132: Possible | L132: Emblématique | M132: Autre | N132: Autre | O132: Emblématique | P132: Emblématique
A133: =IF(Base_Arbres!$A128<>"",Base_Arbres!$A128,"") -> Orme de montagne | B133: Ulmus glabra | C133: Autre | D133: Autre | E133: Autre | F133: Possible | G133: Autre | H133: Possible | I133: Autre | J133: Emblématique | K133: Possible | L133: Emblématique | M133: Possible | N133: Autre | O133: Possible | P133: Possible
A134: =IF(Base_Arbres!$A129<>"",Base_Arbres!$A129,"") -> Orme lisse | B134: Ulmus laevis | C134: Autre | D134: Autre | E134: Autre | F134: Possible | G134: Emblématique | H134: Possible | I134: Autre | J134: Emblématique | K134: Possible | L134: Emblématique | M134: Possible | N134: Emblématique | O134: Emblématique | P134: Possible
A135: =IF(Base_Arbres!$A130<>"",Base_Arbres!$A130,"") -> Orme champêtre | B135: Ulmus minor | C135: Autre | D135: Autre | E135: Autre | F135: Possible | G135: Emblématique | H135: Possible | I135: Autre | J135: Emblématique | K135: Possible | L135: Emblématique | M135: Possible | N135: Emblématique | O135: Emblématique | P135: Possible
A136: =IF(Base_Arbres!$A131<>"",Base_Arbres!$A131,"") -> Orme hybride Lutèce | B136: Ulmus 'Nanguen' LUTECE® | C136: Emblématique | D136: Possible | E136: Emblématique | F136: Autre | G136: Emblématique | H136: Emblématique | I136: Autre | J136: Emblématique | K136: Emblématique | L136: Emblématique | M136: Possible | N136: Autre | O136: Emblématique | P136: Possible
A137: =IF(Base_Arbres!$A132<>"",Base_Arbres!$A132,"") -> Viorne lantane | B137: Viburnum lantana | C137: Autre | D137: Autre | E137: Autre | F137: Emblématique | G137: Autre | H137: Possible | I137: Emblématique | J137: Emblématique | K137: Possible | L137: Emblématique | M137: Possible | N137: Emblématique | O137: Emblématique | P137: Possible
A138: =IF(Base_Arbres!$A133<>"",Base_Arbres!$A133,"") -> Viorne obier | B138: Viburnum opulus | C138: Autre | D138: Autre | E138: Autre | F138: Emblématique | G138: Emblématique | H138: Possible | I138: Emblématique | J138: Emblématique | K138: Possible | L138: Emblématique | M138: Possible | N138: Emblématique | O138: Emblématique | P138: Possible
A139: =IF(Base_Arbres!$A134<>"",Base_Arbres!$A134,"") -> Faux-orme du Japon | B139: Zelkova serrata | C139: Emblématique | D139: Possible | E139: Emblématique | F139: Autre | G139: Emblématique | H139: Emblématique | I139: Emblématique | J139: Emblématique | K139: Emblématique | L139: Emblématique | M139: Possible | N139: Autre | O139: Possible | P139: Possible
A140: =IF(Base_Arbres!$A135<>"",Base_Arbres!$A135,"") -> 
A141: =IF(Base_Arbres!$A136<>"",Base_Arbres!$A136,"") -> 
A142: =IF(Base_Arbres!$A137<>"",Base_Arbres!$A137,"") -> 
A143: =IF(Base_Arbres!$A138<>"",Base_Arbres!$A138,"") -> 
A144: =IF(Base_Arbres!$A139<>"",Base_Arbres!$A139,"") -> 
A145: =IF(Base_Arbres!$A140<>"",Base_Arbres!$A140,"") -> 
A146: =IF(Base_Arbres!$A141<>"",Base_Arbres!$A141,"") -> 
A147: =IF(Base_Arbres!$A142<>"",Base_Arbres!$A142,"") -> 
A148: =IF(Base_Arbres!$A143<>"",Base_Arbres!$A143,"") -> 
A149: =IF(Base_Arbres!$A144<>"",Base_Arbres!$A144,"") -> 
A150: =IF(Base_Arbres!$A145<>"",Base_Arbres!$A145,"") -> 
A151: =IF(Base_Arbres!$A146<>"",Base_Arbres!$A146,"") -> 
A152: =IF(Base_Arbres!$A147<>"",Base_Arbres!$A147,"") -> 
A153: =IF(Base_Arbres!$A148<>"",Base_Arbres!$A148,"") -> 
A154: =IF(Base_Arbres!$A149<>"",Base_Arbres!$A149,"") -> 
A155: =IF(Base_Arbres!$A150<>"",Base_Arbres!$A150,"") -> 
A156: =IF(Base_Arbres!$A151<>"",Base_Arbres!$A151,"") -> 
A157: =IF(Base_Arbres!$A152<>"",Base_Arbres!$A152,"") -> 
A158: =IF(Base_Arbres!$A153<>"",Base_Arbres!$A153,"") -> 
A159: =IF(Base_Arbres!$A154<>"",Base_Arbres!$A154,"") -> 
A160: =IF(Base_Arbres!$A155<>"",Base_Arbres!$A155,"") -> 
A161: =IF(Base_Arbres!$A156<>"",Base_Arbres!$A156,"") -> 
A162: =IF(Base_Arbres!$A157<>"",Base_Arbres!$A157,"") -> 
A163: =IF(Base_Arbres!$A158<>"",Base_Arbres!$A158,"") -> 
A164: =IF(Base_Arbres!$A159<>"",Base_Arbres!$A159,"") -> 
A165: =IF(Base_Arbres!$A160<>"",Base_Arbres!$A160,"") -> 
A166: =IF(Base_Arbres!$A161<>"",Base_Arbres!$A161,"") -> 
A167: =IF(Base_Arbres!$A162<>"",Base_Arbres!$A162,"") -> 
A168: =IF(Base_Arbres!$A163<>"",Base_Arbres!$A163,"") -> 
A169: =IF(Base_Arbres!$A164<>"",Base_Arbres!$A164,"") -> 
A170: =IF(Base_Arbres!$A165<>"",Base_Arbres!$A165,"") -> 
A171: =IF(Base_Arbres!$A166<>"",Base_Arbres!$A166,"") -> 
A172: =IF(Base_Arbres!$A167<>"",Base_Arbres!$A167,"") -> 
A173: =IF(Base_Arbres!$A168<>"",Base_Arbres!$A168,"") -> 
A174: =IF(Base_Arbres!$A169<>"",Base_Arbres!$A169,"") -> 
A175: =IF(Base_Arbres!$A170<>"",Base_Arbres!$A170,"") -> 
A176: =IF(Base_Arbres!$A171<>"",Base_Arbres!$A171,"") -> 
A177: =IF(Base_Arbres!$A172<>"",Base_Arbres!$A172,"") -> 
A178: =IF(Base_Arbres!$A173<>"",Base_Arbres!$A173,"") -> 
A179: =IF(Base_Arbres!$A174<>"",Base_Arbres!$A174,"") -> 
A180: =IF(Base_Arbres!$A175<>"",Base_Arbres!$A175,"") -> 
A181: =IF(Base_Arbres!$A176<>"",Base_Arbres!$A176,"") -> 
A182: =IF(Base_Arbres!$A177<>"",Base_Arbres!$A177,"") -> 
A183: =IF(Base_Arbres!$A178<>"",Base_Arbres!$A178,"") -> 
A184: =IF(Base_Arbres!$A179<>"",Base_Arbres!$A179,"") -> 
A185: =IF(Base_Arbres!$A180<>"",Base_Arbres!$A180,"") -> 
A186: =IF(Base_Arbres!$A181<>"",Base_Arbres!$A181,"") -> 
A187: =IF(Base_Arbres!$A182<>"",Base_Arbres!$A182,"") -> 
A188: =IF(Base_Arbres!$A183<>"",Base_Arbres!$A183,"") -> 
A189: =IF(Base_Arbres!$A184<>"",Base_Arbres!$A184,"") -> 
A190: =IF(Base_Arbres!$A185<>"",Base_Arbres!$A185,"") -> 
A191: =IF(Base_Arbres!$A186<>"",Base_Arbres!$A186,"") -> 
A192: =IF(Base_Arbres!$A187<>"",Base_Arbres!$A187,"") -> 
A193: =IF(Base_Arbres!$A188<>"",Base_Arbres!$A188,"") -> 
A194: =IF(Base_Arbres!$A189<>"",Base_Arbres!$A189,"") -> 
A195: =IF(Base_Arbres!$A190<>"",Base_Arbres!$A190,"") -> 
A196: =IF(Base_Arbres!$A191<>"",Base_Arbres!$A191,"") -> 
A197: =IF(Base_Arbres!$A192<>"",Base_Arbres!$A192,"") -> 
A198: =IF(Base_Arbres!$A193<>"",Base_Arbres!$A193,"") -> 
A199: =IF(Base_Arbres!$A194<>"",Base_Arbres!$A194,"") -> 
A200: =IF(Base_Arbres!$A195<>"",Base_Arbres!$A195,"") -> 
A201: =IF(Base_Arbres!$A196<>"",Base_Arbres!$A196,"") -> 
... 848 more rows

Sheet Version
A1: Version | B1: Date | C1: Commentaires
A2: Version 1 | B2: 2022-11-25 | C2: Fonctionnalités de base
A3: version 2 | B3: 2023-01-27 | C3: Protection parties textes de l'onglet Choix-Critères, correction note biodiversité, retrait d'une espèce nuisible (Tilia tomentosa) aux apidés de l'outil
A4: version 3 | B4: 2024-09-15 | C4: Ajout de l’évaluation de l’adaptation des espèces aux climats local, urbain et futur ; modification dela méthode de calcul et de l'amélioration de la méthodologie pour les services écosystémiques de la qualité de l'air, du climat local et de la régulation de la ressource en eau.
A5: version 4 | B5: 2024-12-10 | C5: Retrait de l'Amélanchier ovalis de l'outil : espèce protégée

Sheet Tableau_Tri
A1: Nom | B1: 11. Absorption des polluants | C1: 12. Fixation des particules fines | D1: 13. Régulation du climat local | E1: 14. Support de biodiversité | F1: 15. Régulation quantitative des eaux pluviales | G1: 16. Stockage de carbone | H1: 17. Fourniture de nourriture | I1: 18. Impact paysager | J1: Multiplicateur Critères Racines | K1: Multiplicateur Critères Branches | L1: Multiplicateur Critères Chablis | M1: Multiplicateur Critères Fructification | N1: Multiplicateur Critères Miellat | O1: Multiplicateur Critères Toxique | P1: Multiplicateur Critères Hauteur | Q1: Multiplicateur Critères Envergure | R1: Multiplicateur critère allergique | S1: multiplicateur critère malodorant | T1: Multiplicateur critère chenilles | U1: Multiplicateur critère épineux | V1: Note totale | W1: Adaptation au climat francilien, dans le contexte du changement Climatique
A2: =IF(Base_Arbres!A32<>"",Base_Arbres!A32,"") -> Micocoulier occidental | B2: =IF(Base_Arbres!A32<>"",VLOOKUP($A2,Base_Arbres,3,FALSE)*Crit1,"") -> 31.3 | C2: =IF(Base_Arbres!A32<>"",VLOOKUP($A2,Base_Arbres,4,FALSE)*Crit2,"") -> 27.1 | D2: =IF(Base_Arbres!A32<>"",VLOOKUP($A2,Base_Arbres,5,FALSE)*Crit3,"") -> 36.35 | E2: =IF(Base_Arbres!A32<>"",VLOOKUP($A2,Base_Arbres,6,FALSE)*Crit4,"") -> 10.5 | F2: =IF(Base_Arbres!B32<>"",VLOOKUP($A2,Base_Arbres,7,FALSE)*Crit5,"") -> 35 | G2: =IF(Base_Arbres!C32<>"",VLOOKUP($A2,Base_Arbres,8,FALSE)*crit8,"") -> 20 | H2: =IF(Base_Arbres!D32<>"",VLOOKUP($A2,Base_Arbres,9,FALSE)*crit9,"") -> 15 | I2: =IF(ISNA(VLOOKUP(INDEX(Base_Typologie!$A$6:$P$1003,MATCH(A2,Base_Typologie!$A:$A,0)-5,MATCH(Typologie_Espace_Public,Base_Typologie!$6:$6,0)),TableauScoreTypologie2,2,FALSE)*Crit6),0,VLOOKUP(INDEX(Base_Typologie!$A$6:$P$1003,MATCH(A2,Base_Typologie!$A:$A,0)-5,MATCH(Typologie_Espace_Public,Base_Typologie!$6:$6,0)),TableauScoreTypologie2,2,FALSE)*Crit6) -> 50 | J2: =IF(A2<>"",IF(LEFT(VLOOKUP($A2,Base_Arbres,10,FALSE),1)>=LEFT(Cont_Racines,1),0,1),0) -> 1 | K2: =IF(A2<>"",IF(LEFT(VLOOKUP($A2,Base_Arbres,11,FALSE),1)>=LEFT(Cont_Branches,1),0,1),0) -> 1 | L2: =IF(A2<>"",IF(LEFT(VLOOKUP($A2,Base_Arbres,12,FALSE),1)>=LEFT(Cont_Chablis,1),0,1),0) -> 1 | M2: =IF(A2<>"",IF(LEFT(VLOOKUP($A2,Base_Arbres,13,FALSE),1)>=LEFT(Cont_Fructifications,1),0,1),0) -> 1 | N2: =IF(A2<>"",IF(LEFT(VLOOKUP($A2,Base_Arbres,14,FALSE),1)>=LEFT(Cont_Miellat,1),0,1),0) -> 1 | O2: =IF(A2<>"",IF(LEFT(VLOOKUP($A2,Base_Arbres,15,FALSE),1)>=LEFT(Cont_Fruits_Toxiques,1),0,1),0) -> 1 | P2: =IF(A2<>"",IF(LEFT(VLOOKUP($A2,Base_Arbres,16,FALSE),1)>=LEFT(Cont_Hauteur,1),0,1),0) -> 1 | Q2: =IF(A2<>"",IF(LEFT(VLOOKUP($A2,Base_Arbres,17,FALSE),1)>=LEFT(Cont_Envergure,1),0,1),0) -> 1 | R2: =IF(A2<>"",IF(LEFT(VLOOKUP($A2,Base_Arbres,18,FALSE),1)>=LEFT(Cont_pollen,1),0,1),0) -> 1 | S2: =IF(B2<>"",IF(LEFT(VLOOKUP($A2,Base_Arbres,19,FALSE),1)>=LEFT(Cont_malodo,1),0,1),0) -> 1 | T2: =IF(A2<>"",IF(LEFT(VLOOKUP($A2,Base_Arbres,20,FALSE),1)>=LEFT(Cont_chenilles,1),0,1),0) -> 1 | U2: =IF(A2<>"",IF(LEFT(VLOOKUP($A2,Base_Arbres,21,FALSE),1)>=LEFT(Cont_epineux,1),0,1),0) -> 1 | V2: =(SUM(B2:I2)+W2*1.5)*J2*K2*L2*M2*N2*O2*P2*Q2*R2*S2*T2*U2 -> 360.25 | W2: =IF(Base_Arbres!V104<>"",VLOOKUP($A2,Base_Arbres,22,FALSE)*Crit7,"") -> 90
A3: =IF(Base_Arbres!A134<>"",Base_Arbres!A134,"") -> Faux-orme du Japon | B3: =IF(Base_Arbres!A134<>"",VLOOKUP($A3,Base_Arbres,3,FALSE)*Crit1,"") -> 34.15 | C3: =IF(Base_Arbres!A134<>"",VLOOKUP($A3,Base_Arbres,4,FALSE)*Crit2,"") -> 22.75 | D3: =IF(Base_Arbres!A134<>"",VLOOKUP($A3,Base_Arbres,5,FALSE)*Crit3,"") -> 33.85 | E3: =IF(Base_Arbres!A134<>"",VLOOKUP($A3,Base_Arbres,6,FALSE)*Crit4,"") -> 8.35 | F3: =IF(Base_Arbres!B134<>"",VLOOKUP($A3,Base_Arbres,7,FALSE)*Crit5,"") -> 34 | G3: =IF(Base_Arbres!C134<>"",VLOOKUP($A3,Base_Arbres,8,FALSE)*crit8,"") -> 16.65 | H3: =IF(Base_Arbres!D134<>"",VLOOKUP($A3,Base_Arbres,9,FALSE)*crit9,"") -> 15 | I3: =IF(ISNA(VLOOKUP(INDEX(Base_Typologie!$A$6:$P$1003,MATCH(A3,Base_Typologie!$A:$A,0)-5,MATCH(Typologie_Espace_Public,Base_Typologie!$6:$6,0)),TableauScoreTypologie2,2,FALSE)*Crit6),0,VLOOKUP(INDEX(Base_Typologie!$A$6:$P$1003,MATCH(A3,Base_Typologie!$A:$A,0)-5,MATCH(Typologie_Espace_Public,Base_Typologie!$6:$6,0)),TableauScoreTypologie2,2,FALSE)*Crit6) -> 50 | J3: 1 | K3: 1 | L3: 1 | M3: 1 | N3: 1 | O3: 1 | P3: 1 | Q3: 1 | R3: 1 | S3: 1 | T3: 1 | U3: 1 | V3: 304.75 | W3: =IF(Base_Arbres!V125<>"",VLOOKUP($A22,Base_Arbres,22,FALSE)*Crit7,"") -> 60
A4: =IF(Base_Arbres!A26<>"",Base_Arbres!A26,"") -> Chataîgnier commun | B4: =IF(Base_Arbres!A26<>"",VLOOKUP($A4,Base_Arbres,3,FALSE)*Crit1,"") -> 34 | C4: =IF(Base_Arbres!A126<>"",VLOOKUP($A4,Base_Arbres,4,FALSE)*Crit2,"") -> 28.75 | D4: =IF(Base_Arbres!A26<>"",VLOOKUP($A4,Base_Arbres,5,FALSE)*Crit3,"") -> 40.95 | E4: =IF(Base_Arbres!A26<>"",VLOOKUP($A4,Base_Arbres,6,FALSE)*Crit4,"") -> 29 | F4: =IF(Base_Arbres!B26<>"",VLOOKUP($A4,Base_Arbres,7,FALSE)*Crit5,"") -> 36.5 | G4: =IF(Base_Arbres!C26<>"",VLOOKUP($A4,Base_Arbres,8,FALSE)*crit8,"") -> 13.35 | H4: =IF(Base_Arbres!D26<>"",VLOOKUP($A4,Base_Arbres,9,FALSE)*crit9,"") -> 50 | I4: =IF(ISNA(VLOOKUP(INDEX(Base_Typologie!$A$6:$P$1003,MATCH(A4,Base_Typologie!$A:$A,0)-5,MATCH(Typologie_Espace_Public,Base_Typologie!$6:$6,0)),TableauScoreTypologie2,2,FALSE)*Crit6),0,VLOOKUP(INDEX(Base_Typologie!$A$6:$P$1003,MATCH(A4,Base_Typologie!$A:$A,0)-5,MATCH(Typologie_Espace_Public,Base_Typologie!$6:$6,0)),TableauScoreTypologie2,2,FALSE)*Crit6) -> 10 | J4: 1 | K4: 1 | L4: 1 | M4: 1 | N4: 1 | O4: 1 | P4: 1 | Q4: 1 | R4: 1 | S4: 1 | T4: 1 | U4: 1 | V4: 347.55 | W4: =IF(Base_Arbres!V4<>"",VLOOKUP($A4,Base_Arbres,22,FALSE)*Crit7,"") -> 70
A5: =IF(Base_Arbres!A54<>"",Base_Arbres!A54,"") -> Arbre aux quarante écus | B5: =IF(Base_Arbres!A54<>"",VLOOKUP($A5,Base_Arbres,3,FALSE)*Crit1,"") -> 22.8 | C5: =IF(Base_Arbres!A54<>"",VLOOKUP($A5,Base_Arbres,4,FALSE)*Crit2,"") -> 31.55 | D5: =IF(Base_Arbres!A54<>"",VLOOKUP($A5,Base_Arbres,5,FALSE)*Crit3,"") -> 34.9 | E5: =IF(Base_Arbres!A54<>"",VLOOKUP($A5,Base_Arbres,6,FALSE)*Crit4,"") -> 6.5 | F5: =IF(Base_Arbres!B54<>"",VLOOKUP($A5,Base_Arbres,7,FALSE)*Crit5,"") -> 32.5 | G5: =IF(Base_Arbres!C54<>"",VLOOKUP($A5,Base_Arbres,8,FALSE)*crit8,"") -> 20 | H5: =IF(Base_Arbres!D54<>"",VLOOKUP($A5,Base_Arbres,9,FALSE)*crit9,"") -> 30 | I5: =IF(ISNA(VLOOKUP(INDEX(Base_Typologie!$A$6:$P$1003,MATCH(A5,Base_Typologie!$A:$A,0)-5,MATCH(Typologie_Espace_Public,Base_Typologie!$6:$6,0)),TableauScoreTypologie2,2,FALSE)*Crit6),0,VLOOKUP(INDEX(Base_Typologie!$A$6:$P$1003,MATCH(A5,Base_Typologie!$A:$A,0)-5,MATCH(Typologie_Espace_Public,Base_Typologie!$6:$6,0)),TableauScoreTypologie2,2,FALSE)*Crit6) -> 30 | J5: 1 | K5: 1 | L5: 1 | M5: 1 | N5: 1 | O5: 1 | P5: 1 | Q5: 1 | R5: 1 | S5: 1 | T5: 1 | U5: 1 | V5: 343.25 | W5: =IF(Base_Arbres!V107<>"",VLOOKUP($A5,Base_Arbres,22,FALSE)*Crit7,"") -> 90
A6: =IF(Base_Arbres!A30<>"",Base_Arbres!A30,"") -> Micocoulier de Provence | B6: =IF(Base_Arbres!A30<>"",VLOOKUP($A6,Base_Arbres,3,FALSE)*Crit1,"") -> 24.65 | C6: =IF(Base_Arbres!A30<>"",VLOOKUP($A6,Base_Arbres,4,FALSE)*Crit2,"") -> 28.85 | D6: =IF(Base_Arbres!A30<>"",VLOOKUP($A6,Base_Arbres,5,FALSE)*Crit3,"") -> 33.85 | E6: =IF(Base_Arbres!A30<>"",VLOOKUP($A6,Base_Arbres,6,FALSE)*Crit4,"") -> 12.5 | F6: =IF(Base_Arbres!B30<>"",VLOOKUP($A6,Base_Arbres,7,FALSE)*Crit5,"") -> 33.5 | G6: =IF(Base_Arbres!C30<>"",VLOOKUP($A6,Base_Arbres,8,FALSE)*crit8,"") -> 16.65 | H6: =IF(Base_Arbres!D30<>"",VLOOKUP($A6,Base_Arbres,9,FALSE)*crit9,"") -> 15 | I6: =IF(ISNA(VLOOKUP(INDEX(Base_Typologie!$A$6:$P$1003,MATCH(A6,Base_Typologie!$A:$A,0)-5,MATCH(Typologie_Espace_Public,Base_Typologie!$6:$6,0)),TableauScoreTypologie2,2,FALSE)*Crit6),0,VLOOKUP(INDEX(Base_Typologie!$A$6:$P$1003,MATCH(A6,Base_Typologie!$A:$A,0)-5,MATCH(Typologie_Espace_Public,Base_Typologie!$6:$6,0)),TableauScoreTypologie2,2,FALSE)*Crit6) -> 50 | J6: 1 | K6: 1 | L6: 1 | M6: 1 | N6: 1 | O6: 1 | P6: 1 | Q6: 1 | R6: 1 | S6: 1 | T6: 1 | U6: 1 | V6: 335 | W6: =IF(Base_Arbres!V46<>"",VLOOKUP($A6,Base_Arbres,22,FALSE)*Crit7,"") -> 80
A7: =IF(Base_Arbres!A89<>"",Base_Arbres!A89,"") -> Merisier | B7: =IF(Base_Arbres!A89<>"",VLOOKUP($A7,Base_Arbres,3,FALSE)*Crit1,"") -> 34.5 | C7: =IF(Base_Arbres!A89<>"",VLOOKUP($A7,Base_Arbres,4,FALSE)*Crit2,"") -> 23.35 | D7: =IF(Base_Arbres!A89<>"",VLOOKUP($A7,Base_Arbres,5,FALSE)*Crit3,"") -> 33.55 | E7: =IF(Base_Arbres!A89<>"",VLOOKUP($A7,Base_Arbres,6,FALSE)*Crit4,"") -> 39.5 | F7: =IF(Base_Arbres!B89<>"",VLOOKUP($A7,Base_Arbres,7,FALSE)*Crit5,"") -> 33 | G7: =IF(Base_Arbres!C89<>"",VLOOKUP($A7,Base_Arbres,8,FALSE)*crit8,"") -> 13.35 | H7: =IF(Base_Arbres!D89<>"",VLOOKUP($A7,Base_Arbres,9,FALSE)*crit9,"") -> 40 | I7: =IF(ISNA(VLOOKUP(INDEX(Base_Typologie!$A$6:$P$1003,MATCH(A7,Base_Typologie!$A:$A,0)-5,MATCH(Typologie_Espace_Public,Base_Typologie!$6:$6,0)),TableauScoreTypologie2,2,FALSE)*Crit6),0,VLOOKUP(INDEX(Base_Typologie!$A$6:$P$1003,MATCH(A7,Base_Typologie!$A:$A,0)-5,MATCH(Typologie_Espace_Public,Base_Typologie!$6:$6,0)),TableauScoreTypologie2,2,FALSE)*Crit6) -> 10 | J7: 1 | K7: 1 | L7: 1 | M7: 1 | N7: 1 | O7: 1 | P7: 1 | Q7: 1 | R7: 1 | S7: 1 | T7: 1 | U7: 1 | V7: 332.25 | W7: =IF(Base_Arbres!V26<>"",VLOOKUP($A7,Base_Arbres,22,FALSE)*Crit7,"") -> 70
A8: =IF(Base_Arbres!A42<>"",Base_Arbres!A42,"") -> Aubépine monogyne | B8: =IF(Base_Arbres!A42<>"",VLOOKUP($A8,Base_Arbres,3,FALSE)*Crit1,"") -> 30.3 | C8: =IF(Base_Arbres!A42<>"",VLOOKUP($A8,Base_Arbres,4,FALSE)*Crit2,"") -> 20.45 | D8: =IF(Base_Arbres!A42<>"",VLOOKUP($A8,Base_Arbres,5,FALSE)*Crit3,"") -> 31.25 | E8: =IF(Base_Arbres!A42<>"",VLOOKUP($A8,Base_Arbres,6,FALSE)*Crit4,"") -> 29 | F8: =IF(Base_Arbres!B42<>"",VLOOKUP($A8,Base_Arbres,7,FALSE)*Crit5,"") -> 31.5 | G8: =IF(Base_Arbres!C42<>"",VLOOKUP($A8,Base_Arbres,8,FALSE)*crit8,"") -> 13.35 | H8: =IF(Base_Arbres!D42<>"",VLOOKUP($A8,Base_Arbres,9,FALSE)*crit9,"") -> 30 | I8: =IF(ISNA(VLOOKUP(INDEX(Base_Typologie!$A$6:$P$1003,MATCH(A8,Base_Typologie!$A:$A,0)-5,MATCH(Typologie_Espace_Public,Base_Typologie!$6:$6,0)),TableauScoreTypologie2,2,FALSE)*Crit6),0,VLOOKUP(INDEX(Base_Typologie!$A$6:$P$1003,MATCH(A8,Base_Typologie!$A:$A,0)-5,MATCH(Typologie_Espace_Public,Base_Typologie!$6:$6,0)),TableauScoreTypologie2,2,FALSE)*Crit6) -> 10 | J8: 1 | K8: 1 | L8: 1 | M8: 1 | N8: 1 | O8: 1 | P8: 1 | Q8: 1 | R8: 1 | S8: 1 | T8: 1 | U8: 1 | V8: 330.85 | W8: =IF(Base_Arbres!V89<>"",VLOOKUP($A8,Base_Arbres,22,FALSE)*Crit7,"") -> 90
A9: =IF(Base_Arbres!A120<>"",Base_Arbres!A120,"") -> Alisier de Suède Brouwers | B9: =IF(Base_Arbres!A120<>"",VLOOKUP($A9,Base_Arbres,3,FALSE)*Crit1,"") -> 32.6 | C9: =IF(Base_Arbres!A120<>"",VLOOKUP($A9,Base_Arbres,4,FALSE)*Crit2,"") -> 22.2 | D9: =IF(Base_Arbres!A120<>"",VLOOKUP($A9,Base_Arbres,5,FALSE)*Crit3,"") -> 31.05 | E9: =IF(Base_Arbres!A120<>"",VLOOKUP($A9,Base_Arbres,6,FALSE)*Crit4,"") -> 14.5 | F9: =IF(Base_Arbres!B120<>"",VLOOKUP($A9,Base_Arbres,7,FALSE)*Crit5,"") -> 29 | G9: =IF(Base_Arbres!C120<>"",VLOOKUP($A9,Base_Arbres,8,FALSE)*crit8,"") -> 10 | H9: =IF(Base_Arbres!D120<>"",VLOOKUP($A9,Base_Arbres,9,FALSE)*crit9,"") -> 30 | I9: =IF(ISNA(VLOOKUP(INDEX(Base_Typologie!$A$6:$P$1003,MATCH(A9,Base_Typologie!$A:$A,0)-5,MATCH(Typologie_Espace_Public,Base_Typologie!$6:$6,0)),TableauScoreTypologie2,2,FALSE)*Crit6),0,VLOOKUP(INDEX(Base_Typologie!$A$6:$P$1003,MATCH(A9,Base_Typologie!$A:$A,0)-5,MATCH(Typologie_Espace_Public,Base_Typologie!$6:$6,0)),TableauScoreTypologie2,2,FALSE)*Crit6) -> 50 | J9: 1 | K9: 1 | L9: 1 | M9: 1 | N9: 1 | O9: 1 | P9: 1 | Q9: 1 | R9: 1 | S9: 1 | T9: 1 | U9: 1 | V9: 324.35 | W9: =IF(Base_Arbres!V116<>"",VLOOKUP($A9,Base_Arbres,22,FALSE)*Crit7,"") -> 70
A10: =IF(Base_Arbres!A41<>"",Base_Arbres!A41,"") -> Aubépine épineuse | B10: =IF(Base_Arbres!A41<>"",VLOOKUP($A10,Base_Arbres,3,FALSE)*Crit1,"") -> 23.8 | C10: =IF(Base_Arbres!A41<>"",VLOOKUP($A10,Base_Arbres,4,FALSE)*Crit2,"") -> 22.25 | D10: =IF(Base_Arbres!A41<>"",VLOOKUP($A10,Base_Arbres,5,FALSE)*Crit3,"") -> 27.9 | E10: =IF(Base_Arbres!A41<>"",VLOOKUP($A10,Base_Arbres,6,FALSE)*Crit4,"") -> 29 | F10: =IF(Base_Arbres!B41<>"",VLOOKUP($A10,Base_Arbres,7,FALSE)*Crit5,"") -> 29 | G10: =IF(Base_Arbres!C41<>"",VLOOKUP($A10,Base_Arbres,8,FALSE)*crit8,"") -> 13.35 | H10: =IF(Base_Arbres!D41<>"",VLOOKUP($A10,Base_Arbres,9,FALSE)*crit9,"") -> 30 | I10: =IF(ISNA(VLOOKUP(INDEX(Base_Typologie!$A$6:$P$1003,MATCH(A10,Base_Typologie!$A:$A,0)-5,MATCH(Typologie_Espace_Public,Base_Typologie!$6:$6,0)),TableauScoreTypologie2,2,FALSE)*Crit6),0,VLOOKUP(INDEX(Base_Typologie!$A$6:$P$1003,MATCH(A10,Base_Typologie!$A:$A,0)-5,MATCH(Typologie_Espace_Public,Base_Typologie!$6:$6,0)),TableauScoreTypologie2,2,FALSE)*Crit6) -> 10 | J10: 1 | K10: 1 | L10: 1 | M10: 1 | N10: 1 | O10: 1 | P10: 1 | Q10: 1 | R10: 1 | S10: 1 | T10: 1 | U10: 1 | V10: 320.3 | W10: =IF(Base_Arbres!V101<>"",VLOOKUP($A10,Base_Arbres,22,FALSE)*Crit7,"") -> 90
A11: =IF(Base_Arbres!A116<>"",Base_Arbres!A116,"") -> Alisier blanc | B11: =IF(Base_Arbres!A116<>"",VLOOKUP($A11,Base_Arbres,3,FALSE)*Crit1,"") -> 23.7 | C11: =IF(Base_Arbres!A116<>"",VLOOKUP($A11,Base_Arbres,4,FALSE)*Crit2,"") -> 27.9 | D11: =IF(Base_Arbres!A116<>"",VLOOKUP($A11,Base_Arbres,5,FALSE)*Crit3,"") -> 32.6 | E11: =IF(Base_Arbres!A116<>"",VLOOKUP($A11,Base_Arbres,6,FALSE)*Crit4,"") -> 25 | F11: =IF(Base_Arbres!B116<>"",VLOOKUP($A11,Base_Arbres,7,FALSE)*Crit5,"") -> 32.5 | G11: =IF(Base_Arbres!C116<>"",VLOOKUP($A11,Base_Arbres,8,FALSE)*crit8,"") -> 10 | H11: =IF(Base_Arbres!D116<>"",VLOOKUP($A11,Base_Arbres,9,FALSE)*crit9,"") -> 30 | I11: =IF(ISNA(VLOOKUP(INDEX(Base_Typologie!$A$6:$P$1003,MATCH(A11,Base_Typologie!$A:$A,0)-5,MATCH(Typologie_Espace_Public,Base_Typologie!$6:$6,0)),TableauScoreTypologie2,2,FALSE)*Crit6),0,VLOOKUP(INDEX(Base_Typologie!$A$6:$P$1003,MATCH(A11,Base_Typologie!$A:$A,0)-5,MATCH(Typologie_Espace_Public,Base_Typologie!$6:$6,0)),TableauScoreTypologie2,2,FALSE)*Crit6) -> 10 | J11: 1 | K11: 1 | L11: 1 | M11: 1 | N11: 1 | O11: 1 | P11: 1 | Q11: 1 | R11: 1 | S11: 1 | T11: 1 | U11: 1 | V11: 311.7 | W11: =IF(Base_Arbres!V98<>"",VLOOKUP($A11,Base_Arbres,22,FALSE)*Crit7,"") -> 80
A12: =IF(Base_Arbres!A76<>"",Base_Arbres!A76,"") -> Charme houblon, Ostryer commun | B12: =IF(Base_Arbres!A76<>"",VLOOKUP($A12,Base_Arbres,3,FALSE)*Crit1,"") -> 20.65 | C12: =IF(Base_Arbres!A76<>"",VLOOKUP($A12,Base_Arbres,4,FALSE)*Crit2,"") -> 26.45 | D12: =IF(Base_Arbres!A76<>"",VLOOKUP($A12,Base_Arbres,5,FALSE)*Crit3,"") -> 29.7 | E12: =IF(Base_Arbres!A76<>"",VLOOKUP($A12,Base_Arbres,6,FALSE)*Crit4,"") -> 6.5 | F12: =IF(Base_Arbres!B76<>"",VLOOKUP($A12,Base_Arbres,7,FALSE)*Crit5,"") -> 30 | G12: =IF(Base_Arbres!C76<>"",VLOOKUP($A12,Base_Arbres,8,FALSE)*crit8,"") -> 10 | H12: =IF(Base_Arbres!D76<>"",VLOOKUP($A12,Base_Arbres,9,FALSE)*crit9,"") -> 15 | I12: =IF(ISNA(VLOOKUP(INDEX(Base_Typologie!$A$6:$P$1003,MATCH(A12,Base_Typologie!$A:$A,0)-5,MATCH(Typologie_Espace_Public,Base_Typologie!$6:$6,0)),TableauScoreTypologie2,2,FALSE)*Crit6),0,VLOOKUP(INDEX(Base_Typologie!$A$6:$P$1003,MATCH(A12,Base_Typologie!$A:$A,0)-5,MATCH(Typologie_Espace_Public,Base_Typologie!$6:$6,0)),TableauScoreTypologie2,2,FALSE)*Crit6) -> 50 | J12: 1 | K12: 1 | L12: 1 | M12: 1 | N12: 1 | O12: 1 | P12: 1 | Q12: 1 | R12: 1 | S12: 1 | T12: 1 | U12: 1 | V12: 308.3 | W12: =IF(Base_Arbres!V6<>"",VLOOKUP($A12,Base_Arbres,22,FALSE)*Crit7,"") -> 80
A13: =IF(Base_Arbres!A64<>"",Base_Arbres!A64,"") -> Copalme d’Amérique | B13: =IF(Base_Arbres!A64<>"",VLOOKUP($A13,Base_Arbres,3,FALSE)*Crit1,"") -> 31.9 | C13: =IF(Base_Arbres!A64<>"",VLOOKUP($A13,Base_Arbres,4,FALSE)*Crit2,"") -> 28.55 | D13: =IF(Base_Arbres!A64<>"",VLOOKUP($A13,Base_Arbres,5,FALSE)*Crit3,"") -> 34.15 | E13: =IF(Base_Arbres!A64<>"",VLOOKUP($A13,Base_Arbres,6,FALSE)*Crit4,"") -> 10.5 | F13: =IF(Base_Arbres!B64<>"",VLOOKUP($A13,Base_Arbres,7,FALSE)*Crit5,"") -> 32.5 | G13: =IF(Base_Arbres!C64<>"",VLOOKUP($A13,Base_Arbres,8,FALSE)*crit8,"") -> 20 | H13: =IF(Base_Arbres!D64<>"",VLOOKUP($A13,Base_Arbres,9,FALSE)*crit9,"") -> 15 | I13: =IF(ISNA(VLOOKUP(INDEX(Base_Typologie!$A$6:$P$1003,MATCH(A13,Base_Typologie!$A:$A,0)-5,MATCH(Typologie_Espace_Public,Base_Typologie!$6:$6,0)),TableauScoreTypologie2,2,FALSE)*Crit6),0,VLOOKUP(INDEX(Base_Typologie!$A$6:$P$1003,MATCH(A13,Base_Typologie!$A:$A,0)-5,MATCH(Typologie_Espace_Public,Base_Typologie!$6:$6,0)),TableauScoreTypologie2,2,FALSE)*Crit6) -> 30 | J13: 1 | K13: 1 | L13: 1 | M13: 1 | N13: 1 | O13: 1 | P13: 1 | Q13: 1 | R13: 1 | S13: 1 | T13: 1 | U13: 1 | V13: 307.6 | W13: =IF(Base_Arbres!V7<>"",VLOOKUP($A13,Base_Arbres,22,FALSE)*Crit7,"") -> 70
A14: =IF(Base_Arbres!A35<>"",Base_Arbres!A35,"") -> Arbre de Judée | B14: =IF(Base_Arbres!A35<>"",VLOOKUP($A14,Base_Arbres,3,FALSE)*Crit1,"") -> 33.1 | C14: =IF(Base_Arbres!A35<>"",VLOOKUP($A14,Base_Arbres,4,FALSE)*Crit2,"") -> 22.5 | D14: =IF(Base_Arbres!A35<>"",VLOOKUP($A14,Base_Arbres,5,FALSE)*Crit3,"") -> 33.55 | E14: =IF(Base_Arbres!A35<>"",VLOOKUP($A14,Base_Arbres,6,FALSE)*Crit4,"") -> 10.5 | F14: =IF(Base_Arbres!B35<>"",VLOOKUP($A14,Base_Arbres,7,FALSE)*Crit5,"") -> 31 | G14: =IF(Base_Arbres!C35<>"",VLOOKUP($A14,Base_Arbres,8,FALSE)*crit8,"") -> 10 | H14: =IF(Base_Arbres!D35<>"",VLOOKUP($A14,Base_Arbres,9,FALSE)*crit9,"") -> 15 | I14: =IF(ISNA(VLOOKUP(INDEX(Base_Typologie!$A$6:$P$1003,MATCH(A14,Base_Typologie!$A:$A,0)-5,MATCH(Typologie_Espace_Public,Base_Typologie!$6:$6,0)),TableauScoreTypologie2,2,FALSE)*Crit6),0,VLOOKUP(INDEX(Base_Typologie!$A$6:$P$1003,MATCH(A14,Base_Typologie!$A:$A,0)-5,MATCH(Typologie_Espace_Public,Base_Typologie!$6:$6,0)),TableauScoreTypologie2,2,FALSE)*Crit6) -> 30 | J14: 1 | K14: 1 | L14: 1 | M14: 1 | N14: 1 | O14: 1 | P14: 1 | Q14: 1 | R14: 1 | S14: 1 | T14: 1 | U14: 1 | V14: 305.65 | W14: =IF(Base_Arbres!V8<>"",VLOOKUP($A14,Base_Arbres,22,FALSE)*Crit7,"") -> 80
A15: =IF(Base_Arbres!A119<>"",Base_Arbres!A119,"") -> Alisier de Suède | B15: =IF(Base_Arbres!A119<>"",VLOOKUP($A15,Base_Arbres,3,FALSE)*Crit1,"") -> 31.55 | C15: =IF(Base_Arbres!A119<>"",VLOOKUP($A15,Base_Arbres,4,FALSE)*Crit2,"") -> 21.9 | D15: =IF(Base_Arbres!A119<>"",VLOOKUP($A15,Base_Arbres,5,FALSE)*Crit3,"") -> 29.5 | E15: =IF(Base_Arbres!A119<>"",VLOOKUP($A15,Base_Arbres,6,FALSE)*Crit4,"") -> 14.5 | F15: =IF(Base_Arbres!B119<>"",VLOOKUP($A15,Base_Arbres,7,FALSE)*Crit5,"") -> 27.5 | G15: =IF(Base_Arbres!C119<>"",VLOOKUP($A15,Base_Arbres,8,FALSE)*crit8,"") -> 10 | H15: =IF(Base_Arbres!D119<>"",VLOOKUP($A15,Base_Arbres,9,FALSE)*crit9,"") -> 30 | I15: =IF(ISNA(VLOOKUP(INDEX(Base_Typologie!$A$6:$P$1003,MATCH(A15,Base_Typologie!$A:$A,0)-5,MATCH(Typologie_Espace_Public,Base_Typologie!$6:$6,0)),TableauScoreTypologie2,2,FALSE)*Crit6),0,VLOOKUP(INDEX(Base_Typologie!$A$6:$P$1003,MATCH(A15,Base_Typologie!$A:$A,0)-5,MATCH(Typologie_Espace_Public,Base_Typologie!$6:$6,0)),TableauScoreTypologie2,2,FALSE)*Crit6) -> 50 | J15: 1 | K15: 1 | L15: 1 | M15: 1 | N15: 1 | O15: 1 | P15: 1 | Q15: 1 | R15: 1 | S15: 1 | T15: 1 | U15: 1 | V15: 304.95 | W15: =IF(Base_Arbres!V124<>"",VLOOKUP($A15,Base_Arbres,22,FALSE)*Crit7,"") -> 60
A16: =IF(Base_Arbres!A91<>"",Base_Arbres!A91,"") -> Cerisier de Sainte-Lucie | B16: =IF(Base_Arbres!A91<>"",VLOOKUP($A16,Base_Arbres,3,FALSE)*Crit1,"") -> 27.35 | C16: =IF(Base_Arbres!A91<>"",VLOOKUP($A16,Base_Arbres,4,FALSE)*Crit2,"") -> 24.4 | D16: =IF(Base_Arbres!A91<>"",VLOOKUP($A16,Base_Arbres,5,FALSE)*Crit3,"") -> 32.2 | E16: =IF(Base_Arbres!A91<>"",VLOOKUP($A16,Base_Arbres,6,FALSE)*Crit4,"") -> 27 | F16: =IF(Base_Arbres!B91<>"",VLOOKUP($A16,Base_Arbres,7,FALSE)*Crit5,"") -> 32 | G16: =IF(Base_Arbres!C91<>"",VLOOKUP($A16,Base_Arbres,8,FALSE)*crit8,"") -> 16.65 | H16: =IF(Base_Arbres!D91<>"",VLOOKUP($A16,Base_Arbres,9,FALSE)*crit9,"") -> 15 | I16: =IF(ISNA(VLOOKUP(INDEX(Base_Typologie!$A$6:$P$1003,MATCH(A16,Base_Typologie!$A:$A,0)-5,MATCH(Typologie_Espace_Public,Base_Typologie!$6:$6,0)),TableauScoreTypologie2,2,FALSE)*Crit6),0,VLOOKUP(INDEX(Base_Typologie!$A$6:$P$1003,MATCH(A16,Base_Typologie!$A:$A,0)-5,MATCH(Typologie_Espace_Public,Base_Typologie!$6:$6,0)),TableauScoreTypologie2,2,FALSE)*Crit6) -> 10 | J16: 1 | K16: 1 | L16: 1 | M16: 1 | N16: 1 | O16: 1 | P16: 1 | Q16: 1 | R16: 1 | S16: 1 | T16: 1 | U16: 1 | V16: 304.6 | W16: =IF(Base_Arbres!V10<>"",VLOOKUP($A16,Base_Arbres,22,FALSE)*Crit7,"") -> 80
A17: =IF(Base_Arbres!A121<>"",Base_Arbres!A121,"") -> Alisier torminal | B17: =IF(Base_Arbres!A121<>"",VLOOKUP($A17,Base_Arbres,3,FALSE)*Crit1,"") -> 25.1 | C17: =IF(Base_Arbres!A121<>"",VLOOKUP($A17,Base_Arbres,4,FALSE)*Crit2,"") -> 28.75 | D17: =IF(Base_Arbres!A121<>"",VLOOKUP($A17,Base_Arbres,5,FALSE)*Crit3,"") -> 35.1 | E17: =IF(Base_Arbres!A121<>"",VLOOKUP($A17,Base_Arbres,6,FALSE)*Crit4,"") -> 27 | F17: =IF(Base_Arbres!B121<>"",VLOOKUP($A17,Base_Arbres,7,FALSE)*Crit5,"") -> 33.5 | G17: =IF(Base_Arbres!C121<>"",VLOOKUP($A17,Base_Arbres,8,FALSE)*crit8,"") -> 10 | H17: =IF(Base_Arbres!D121<>"",VLOOKUP($A17,Base_Arbres,9,FALSE)*crit9,"") -> 15 | I17: =IF(ISNA(VLOOKUP(INDEX(Base_Typologie!$A$6:$P$1003,MATCH(A17,Base_Typologie!$A:$A,0)-5,MATCH(Typologie_Espace_Public,Base_Typologie!$6:$6,0)),TableauScoreTypologie2,2,FALSE)*Crit6),0,VLOOKUP(INDEX(Base_Typologie!$A$6:$P$1003,MATCH(A17,Base_Typologie!$A:$A,0)-5,MATCH(Typologie_Espace_Public,Base_Typologie!$6:$6,0)),TableauScoreTypologie2,2,FALSE)*Crit6) -> 10 | J17: 1 | K17: 1 | L17: 1 | M17: 1 | N17: 1 | O17: 1 | P17: 1 | Q17: 1 | R17: 1 | S17: 1 | T17: 1 | U17: 1 | V17: 304.45 | W17: =IF(Base_Arbres!V9<>"",VLOOKUP($A17,Base_Arbres,22,FALSE)*Crit7,"") -> 80
A18: =IF(Base_Arbres!A58<>"",Base_Arbres!A58,"") -> Noyer commun | B18: =IF(Base_Arbres!A58<>"",VLOOKUP($A18,Base_Arbres,3,FALSE)*Crit1,"") -> 38 | C18: =IF(Base_Arbres!A58<>"",VLOOKUP($A18,Base_Arbres,4,FALSE)*Crit2,"") -> 25.4 | D18: =IF(Base_Arbres!A58<>"",VLOOKUP($A18,Base_Arbres,5,FALSE)*Crit3,"") -> 38.85 | E18: =IF(Base_Arbres!A58<>"",VLOOKUP($A18,Base_Arbres,6,FALSE)*Crit4,"") -> 12.5 | F18: =IF(Base_Arbres!B58<>"",VLOOKUP($A18,Base_Arbres,7,FALSE)*Crit5,"") -> 38 | G18: =IF(Base_Arbres!C58<>"",VLOOKUP($A18,Base_Arbres,8,FALSE)*crit8,"") -> 16.65 | H18: =IF(Base_Arbres!D58<>"",VLOOKUP($A18,Base_Arbres,9,FALSE)*crit9,"") -> 50 | I18: =IF(ISNA(VLOOKUP(INDEX(Base_Typologie!$A$6:$P$1003,MATCH(A18,Base_Typologie!$A:$A,0)-5,MATCH(Typologie_Espace_Public,Base_Typologie!$6:$6,0)),TableauScoreTypologie2,2,FALSE)*Crit6),0,VLOOKUP(INDEX(Base_Typologie!$A$6:$P$1003,MATCH(A18,Base_Typologie!$A:$A,0)-5,MATCH(Typologie_Espace_Public,Base_Typologie!$6:$6,0)),TableauScoreTypologie2,2,FALSE)*Crit6) -> 10 | J18: 1 | K18: 1 | L18: 1 | M18: 1 | N18: 1 | O18: 1 | P18: 1 | Q18: 1 | R18: 1 | S18: 1 | T18: 1 | U18: 1 | V18: 304.4 | W18: =IF(Base_Arbres!V110<>"",VLOOKUP($A18,Base_Arbres,22,FALSE)*Crit7,"") -> 50
A19: =IF(Base_Arbres!A73<>"",Base_Arbres!A73,"") -> Néflier commun | B19: =IF(Base_Arbres!A73<>"",VLOOKUP($A19,Base_Arbres,3,FALSE)*Crit1,"") -> 16.25 | C19: =IF(Base_Arbres!A73<>"",VLOOKUP($A19,Base_Arbres,4,FALSE)*Crit2,"") -> 29.9 | D19: =IF(Base_Arbres!A73<>"",VLOOKUP($A19,Base_Arbres,5,FALSE)*Crit3,"") -> 29.4 | E19: =IF(Base_Arbres!A73<>"",VLOOKUP($A19,Base_Arbres,6,FALSE)*Crit4,"") -> 16.5 | F19: =IF(Base_Arbres!B73<>"",VLOOKUP($A19,Base_Arbres,7,FALSE)*Crit5,"") -> 28 | G19: =IF(Base_Arbres!C73<>"",VLOOKUP($A19,Base_Arbres,8,FALSE)*crit8,"") -> 10 | H19: =IF(Base_Arbres!D73<>"",VLOOKUP($A19,Base_Arbres,9,FALSE)*crit9,"") -> 40 | I19: =IF(ISNA(VLOOKUP(INDEX(Base_Typologie!$A$6:$P$1003,MATCH(A19,Base_Typologie!$A:$A,0)-5,MATCH(Typologie_Espace_Public,Base_Typologie!$6:$6,0)),TableauScoreTypologie2,2,FALSE)*Crit6),0,VLOOKUP(INDEX(Base_Typologie!$A$6:$P$1003,MATCH(A19,Base_Typologie!$A:$A,0)-5,MATCH(Typologie_Espace_Public,Base_Typologie!$6:$6,0)),TableauScoreTypologie2,2,FALSE)*Crit6) -> 10 | J19: 1 | K19: 1 | L19: 1 | M19: 1 | N19: 1 | O19: 1 | P19: 1 | Q19: 1 | R19: 1 | S19: 1 | T19: 1 | U19: 1 | V19: 300.05 | W19: =IF(Base_Arbres!V100<>"",VLOOKUP($A19,Base_Arbres,22,FALSE)*Crit7,"") -> 80
A20: =IF(Base_Arbres!A94<>"",Base_Arbres!A94,"") -> Prunelier | B20: =IF(Base_Arbres!A94<>"",VLOOKUP($A20,Base_Arbres,3,FALSE)*Crit1,"") -> 21.45 | C20: =IF(Base_Arbres!A94<>"",VLOOKUP($A20,Base_Arbres,4,FALSE)*Crit2,"") -> 20.85 | D20: =IF(Base_Arbres!A94<>"",VLOOKUP($A20,Base_Arbres,5,FALSE)*Crit3,"") -> 24.15 | E20: =IF(Base_Arbres!A94<>"",VLOOKUP($A20,Base_Arbres,6,FALSE)*Crit4,"") -> 39.5 | F20: =IF(Base_Arbres!B94<>"",VLOOKUP($A20,Base_Arbres,7,FALSE)*Crit5,"") -> 26.5 | G20: =IF(Base_Arbres!C94<>"",VLOOKUP($A20,Base_Arbres,8,FALSE)*crit8,"") -> 10 | H20: =IF(Base_Arbres!D94<>"",VLOOKUP($A20,Base_Arbres,9,FALSE)*crit9,"") -> 40 | I20: =IF(ISNA(VLOOKUP(INDEX(Base_Typologie!$A$6:$P$1003,MATCH(A20,Base_Typologie!$A:$A,0)-5,MATCH(Typologie_Espace_Public,Base_Typologie!$6:$6,0)),TableauScoreTypologie2,2,FALSE)*Crit6),0,VLOOKUP(INDEX(Base_Typologie!$A$6:$P$1003,MATCH(A20,Base_Typologie!$A:$A,0)-5,MATCH(Typologie_Espace_Public,Base_Typologie!$6:$6,0)),TableauScoreTypologie2,2,FALSE)*Crit6) -> 10 | J20: 1 | K20: 1 | L20: 1 | M20: 1 | N20: 1 | O20: 1 | P20: 1 | Q20: 1 | R20: 1 | S20: 1 | T20: 1 | U20: 1 | V20: 297.45 | W20: =IF(Base_Arbres!V120<>"",VLOOKUP($A20,Base_Arbres,22,FALSE)*Crit7,"") -> 70
A21: =IF(Base_Arbres!A132<>"",Base_Arbres!A132,"") -> Viorne lantane | B21: =IF(Base_Arbres!A132<>"",VLOOKUP($A21,Base_Arbres,3,FALSE)*Crit1,"") -> 29.15 | C21: =IF(Base_Arbres!A132<>"",VLOOKUP($A21,Base_Arbres,4,FALSE)*Crit2,"") -> 19.75 | D21: =IF(Base_Arbres!A132<>"",VLOOKUP($A21,Base_Arbres,5,FALSE)*Crit3,"") -> 25.75 | E21: =IF(Base_Arbres!A132<>"",VLOOKUP($A21,Base_Arbres,6,FALSE)*Crit4,"") -> 16.5 | F21: =IF(Base_Arbres!B132<>"",VLOOKUP($A21,Base_Arbres,7,FALSE)*Crit5,"") -> 26.5 | G21: =IF(Base_Arbres!C132<>"",VLOOKUP($A21,Base_Arbres,8,FALSE)*crit8,"") -> 13.35 | H21: =IF(Base_Arbres!D132<>"",VLOOKUP($A21,Base_Arbres,9,FALSE)*crit9,"") -> 15 | I21: =IF(ISNA(VLOOKUP(INDEX(Base_Typologie!$A$6:$P$1003,MATCH(A21,Base_Typologie!$A:$A,0)-5,MATCH(Typologie_Espace_Public,Base_Typologie!$6:$6,0)),TableauScoreTypologie2,2,FALSE)*Crit6),0,VLOOKUP(INDEX(Base_Typologie!$A$6:$P$1003,MATCH(A21,Base_Typologie!$A:$A,0)-5,MATCH(Typologie_Espace_Public,Base_Typologie!$6:$6,0)),TableauScoreTypologie2,2,FALSE)*Crit6) -> 30 | J21: 1 | K21: 1 | L21: 1 | M21: 1 | N21: 1 | O21: 1 | P21: 1 | Q21: 1 | R21: 1 | S21: 1 | T21: 1 | U21: 1 | V21: 296 | W21: =IF(Base_Arbres!V119<>"",VLOOKUP($A21,Base_Arbres,22,FALSE)*Crit7,"") -> 80
A22: =IF(Base_Arbres!A97<>"",Base_Arbres!A97,"") -> Poirier commun | B22: =IF(Base_Arbres!A97<>"",VLOOKUP($A22,Base_Arbres,3,FALSE)*Crit1,"") -> 26.2 | C22: =IF(Base_Arbres!A97<>"",VLOOKUP($A22,Base_Arbres,4,FALSE)*Crit2,"") -> 23.7 | D22: =IF(Base_Arbres!A97<>"",VLOOKUP($A22,Base_Arbres,5,FALSE)*Crit3,"") -> 30.4 | E22: =IF(Base_Arbres!A97<>"",VLOOKUP($A22,Base_Arbres,6,FALSE)*Crit4,"") -> 31.5 | F22: =IF(Base_Arbres!B97<>"",VLOOKUP($A22,Base_Arbres,7,FALSE)*Crit5,"") -> 31 | G22: =IF(Base_Arbres!C97<>"",VLOOKUP($A22,Base_Arbres,8,FALSE)*crit8,"") -> 10 | H22: =IF(Base_Arbres!D97<>"",VLOOKUP($A22,Base_Arbres,9,FALSE)*crit9,"") -> 40 | I22: =IF(ISNA(VLOOKUP(INDEX(Base_Typologie!$A$6:$P$1003,MATCH(A22,Base_Typologie!$A:$A,0)-5,MATCH(Typologie_Espace_Public,Base_Typologie!$6:$6,0)),TableauScoreTypologie2,2,FALSE)*Crit6),0,VLOOKUP(INDEX(Base_Typologie!$A$6:$P$1003,MATCH(A22,Base_Typologie!$A:$A,0)-5,MATCH(Typologie_Espace_Public,Base_Typologie!$6:$6,0)),TableauScoreTypologie2,2,FALSE)*Crit6) -> 10 | J22: 1 | K22: 1 | L22: 1 | M22: 1 | N22: 1 | O22: 1 | P22: 1 | Q22: 1 | R22: 1 | S22: 1 | T22: 1 | U22: 1 | V22: 292.8 | W22: =IF(Base_Arbres!V122<>"",VLOOKUP($A22,Base_Arbres,22,FALSE)*Crit7,"") -> 60
A23: =IF(Base_Arbres!A5<>"",Base_Arbres!A5,"") -> Erable de Montpellier | B23: =IF(Base_Arbres!A5<>"",VLOOKUP($A23,Base_Arbres,3,FALSE)*Crit1,"") -> 25.1 | C23: =IF(Base_Arbres!A5<>"",VLOOKUP($A23,Base_Arbres,4,FALSE)*Crit2,"") -> 23.05 | D23: =IF(Base_Arbres!A5<>"",VLOOKUP($A23,Base_Arbres,5,FALSE)*Crit3,"") -> 28.85 | E23: =IF(Base_Arbres!A5<>"",VLOOKUP($A23,Base_Arbres,6,FALSE)*Crit4,"") -> 10.5 | F23: =IF(Base_Arbres!B5<>"",VLOOKUP($A23,Base_Arbres,7,FALSE)*Crit5,"") -> 29.5 | G23: =IF(Base_Arbres!C5<>"",VLOOKUP($A23,Base_Arbres,8,FALSE)*crit8,"") -> 10 | H23: =IF(Base_Arbres!D5<>"",VLOOKUP($A23,Base_Arbres,9,FALSE)*crit9,"") -> 15 | I23: =IF(ISNA(VLOOKUP(INDEX(Base_Typologie!$A$6:$P$1003,MATCH(A23,Base_Typologie!$A:$A,0)-5,MATCH(Typologie_Espace_Public,Base_Typologie!$6:$6,0)),TableauScoreTypologie2,2,FALSE)*Crit6),0,VLOOKUP(INDEX(Base_Typologie!$A$6:$P$1003,MATCH(A23,Base_Typologie!$A:$A,0)-5,MATCH(Typologie_Espace_Public,Base_Typologie!$6:$6,0)),TableauScoreTypologie2,2,FALSE)*Crit6) -> 30 | J23: 1 | K23: 1 | L23: 1 | M23: 1 | N23: 1 | O23: 1 | P23: 1 | Q23: 1 | R23: 1 | S23: 1 | T23: 1 | U23: 1 | V23: 292 | W23: =IF(Base_Arbres!V88<>"",VLOOKUP($A23,Base_Arbres,22,FALSE)*Crit7,"") -> 80
A24: =IF(Base_Arbres!A55<>"",Base_Arbres!A55,"") -> Arbre aux quarante écus Blagon | B24: =IF(Base_Arbres!A55<>"",VLOOKUP($A24,Base_Arbres,3,FALSE)*Crit1,"") -> 17.1 | C24: =IF(Base_Arbres!A55<>"",VLOOKUP($A24,Base_Arbres,4,FALSE)*Crit2,"") -> 28.1 | D24: =IF(Base_Arbres!A55<>"",VLOOKUP($A24,Base_Arbres,5,FALSE)*Crit3,"") -> 27.4 | E24: =IF(Base_Arbres!A55<>"",VLOOKUP($A24,Base_Arbres,6,FALSE)*Crit4,"") -> 4 | F24: =IF(Base_Arbres!B55<>"",VLOOKUP($A24,Base_Arbres,7,FALSE)*Crit5,"") -> 27.5 | G24: =IF(Base_Arbres!C55<>"",VLOOKUP($A24,Base_Arbres,8,FALSE)*crit8,"") -> 20 | H24: =IF(Base_Arbres!D55<>"",VLOOKUP($A24,Base_Arbres,9,FALSE)*crit9,"") -> 15 | I24: =IF(ISNA(VLOOKUP(INDEX(Base_Typologie!$A$6:$P$1003,MATCH(A24,Base_Typologie!$A:$A,0)-5,MATCH(Typologie_Espace_Public,Base_Typologie!$6:$6,0)),TableauScoreTypologie2,2,FALSE)*Crit6),0,VLOOKUP(INDEX(Base_Typologie!$A$6:$P$1003,MATCH(A24,Base_Typologie!$A:$A,0)-5,MATCH(Typologie_Espace_Public,Base_Typologie!$6:$6,0)),TableauScoreTypologie2,2,FALSE)*Crit6) -> 30 | J24: 1 | K24: 1 | L24: 1 | M24: 1 | N24: 1 | O24: 1 | P24: 1 | Q24: 1 | R24: 1 | S24: 1 | T24: 1 | U24: 1 | V24: 289.1 | W24: =IF(Base_Arbres!V97<>"",VLOOKUP($A24,Base_Arbres,22,FALSE)*Crit7,"") -> 80
A25: =IF(Base_Arbres!A37<>"",Base_Arbres!A37,"") -> Cornouiller sanguin | B25: =IF(Base_Arbres!A37<>"",VLOOKUP($A25,Base_Arbres,3,FALSE)*Crit1,"") -> 13.8 | C25: =IF(Base_Arbres!A37<>"",VLOOKUP($A25,Base_Arbres,4,FALSE)*Crit2,"") -> 27.7 | D25: =IF(Base_Arbres!A37<>"",VLOOKUP($A25,Base_Arbres,5,FALSE)*Crit3,"") -> 26.65 | E25: =IF(Base_Arbres!A37<>"",VLOOKUP($A25,Base_Arbres,6,FALSE)*Crit4,"") -> 29 | F25: =IF(Base_Arbres!B37<>"",VLOOKUP($A25,Base_Arbres,7,FALSE)*Crit5,"") -> 32.5 | G25: =IF(Base_Arbres!C37<>"",VLOOKUP($A25,Base_Arbres,8,FALSE)*crit8,"") -> 6.65 | H25: =IF(Base_Arbres!D37<>"",VLOOKUP($A25,Base_Arbres,9,FALSE)*crit9,"") -> 15 | I25: =IF(ISNA(VLOOKUP(INDEX(Base_Typologie!$A$6:$P$1003,MATCH(A25,Base_Typologie!$A:$A,0)-5,MATCH(Typologie_Espace_Public,Base_Typologie!$6:$6,0)),TableauScoreTypologie2,2,FALSE)*Crit6),0,VLOOKUP(INDEX(Base_Typologie!$A$6:$P$1003,MATCH(A25,Base_Typologie!$A:$A,0)-5,MATCH(Typologie_Espace_Public,Base_Typologie!$6:$6,0)),TableauScoreTypologie2,2,FALSE)*Crit6) -> 10 | J25: 1 | K25: 1 | L25: 1 | M25: 1 | N25: 1 | O25: 1 | P25: 1 | Q25: 1 | R25: 1 | S25: 1 | T25: 1 | U25: 1 | V25: 281.3 | W25: =IF(Base_Arbres!V94<>"",VLOOKUP($A25,Base_Arbres,22,FALSE)*Crit7,"") -> 80
A26: =IF(Base_Arbres!A122<>"",Base_Arbres!A122,"") -> Alisier de Thuringe | B26: =IF(Base_Arbres!A122<>"",VLOOKUP($A26,Base_Arbres,3,FALSE)*Crit1,"") -> 34.85 | C26: =IF(Base_Arbres!A122<>"",VLOOKUP($A26,Base_Arbres,4,FALSE)*Crit2,"") -> 23.5 | D26: =IF(Base_Arbres!A122<>"",VLOOKUP($A26,Base_Arbres,5,FALSE)*Crit3,"") -> 35.65 | E26: =IF(Base_Arbres!A122<>"",VLOOKUP($A26,Base_Arbres,6,FALSE)*Crit4,"") -> 14.5 | F26: =IF(Base_Arbres!B122<>"",VLOOKUP($A26,Base_Arbres,7,FALSE)*Crit5,"") -> 32 | G26: =IF(Base_Arbres!C122<>"",VLOOKUP($A26,Base_Arbres,8,FALSE)*crit8,"") -> 10 | H26: =IF(Base_Arbres!D122<>"",VLOOKUP($A26,Base_Arbres,9,FALSE)*crit9,"") -> 15 | I26: =IF(ISNA(VLOOKUP(INDEX(Base_Typologie!$A$6:$P$1003,MATCH(A26,Base_Typologie!$A:$A,0)-5,MATCH(Typologie_Espace_Public,Base_Typologie!$6:$6,0)),TableauScoreTypologie2,2,FALSE)*Crit6),0,VLOOKUP(INDEX(Base_Typologie!$A$6:$P$1003,MATCH(A26,Base_Typologie!$A:$A,0)-5,MATCH(Typologie_Espace_Public,Base_Typologie!$6:$6,0)),TableauScoreTypologie2,2,FALSE)*Crit6) -> 10 | J26: 1 | K26: 1 | L26: 1 | M26: 1 | N26: 1 | O26: 1 | P26: 1 | Q26: 1 | R26: 1 | S26: 1 | T26: 1 | U26: 1 | V26: 280.5 | W26: =IF(Base_Arbres!V62<>"",VLOOKUP($A26,Base_Arbres,22,FALSE)*Crit7,"") -> 70
A27: =IF(Base_Arbres!A66<>"",Base_Arbres!A66,"") -> Magnolia à grandes fleurs | B27: =IF(Base_Arbres!A66<>"",VLOOKUP($A27,Base_Arbres,3,FALSE)*Crit1,"") -> 26.7 | C27: =IF(Base_Arbres!A66<>"",VLOOKUP($A27,Base_Arbres,4,FALSE)*Crit2,"") -> 34.1 | D27: =IF(Base_Arbres!A66<>"",VLOOKUP($A27,Base_Arbres,5,FALSE)*Crit3,"") -> 33.45 | E27: =IF(Base_Arbres!A66<>"",VLOOKUP($A27,Base_Arbres,6,FALSE)*Crit4,"") -> 6.5 | F27: =IF(Base_Arbres!B66<>"",VLOOKUP($A27,Base_Arbres,7,FALSE)*Crit5,"") -> 31.5 | G27: =IF(Base_Arbres!C66<>"",VLOOKUP($A27,Base_Arbres,8,FALSE)*crit8,"") -> 20 | H27: =IF(Base_Arbres!D66<>"",VLOOKUP($A27,Base_Arbres,9,FALSE)*crit9,"") -> 15 | I27: =IF(ISNA(VLOOKUP(INDEX(Base_Typologie!$A$6:$P$1003,MATCH(A27,Base_Typologie!$A:$A,0)-5,MATCH(Typologie_Espace_Public,Base_Typologie!$6:$6,0)),TableauScoreTypologie2,2,FALSE)*Crit6),0,VLOOKUP(INDEX(Base_Typologie!$A$6:$P$1003,MATCH(A27,Base_Typologie!$A:$A,0)-5,MATCH(Typologie_Espace_Public,Base_Typologie!$6:$6,0)),TableauScoreTypologie2,2,FALSE)*Crit6) -> 50 | J27: 1 | K27: 1 | L27: 1 | M27: 1 | N27: 1 | O27: 1 | P27: 1 | Q27: 1 | R27: 1 | S27: 1 | T27: 1 | U27: 1 | V27: 277.25 | W27: =IF(Base_Arbres!V42<>"",VLOOKUP($A27,Base_Arbres,22,FALSE)*Crit7,"") -> 40
A28: =IF(Base_Arbres!A59<>"",Base_Arbres!A59,"") -> Genévrier commun | B28: =IF(Base_Arbres!A59<>"",VLOOKUP($A28,Base_Arbres,3,FALSE)*Crit1,"") -> 14.55 | C28: =IF(Base_Arbres!A59<>"",VLOOKUP($A28,Base_Arbres,4,FALSE)*Crit2,"") -> 33.25 | D28: =IF(Base_Arbres!A59<>"",VLOOKUP($A28,Base_Arbres,5,FALSE)*Crit3,"") -> 21.55 | E28: =IF(Base_Arbres!A59<>"",VLOOKUP($A28,Base_Arbres,6,FALSE)*Crit4,"") -> 21 | F28: =IF(Base_Arbres!B59<>"",VLOOKUP($A28,Base_Arbres,7,FALSE)*Crit5,"") -> 27.5 | G28: =IF(Base_Arbres!C59<>"",VLOOKUP($A28,Base_Arbres,8,FALSE)*crit8,"") -> 13.35 | H28: =IF(Base_Arbres!D59<>"",VLOOKUP($A28,Base_Arbres,9,FALSE)*crit9,"") -> 15 | I28: =IF(ISNA(VLOOKUP(INDEX(Base_Typologie!$A$6:$P$1003,MATCH(A28,Base_Typologie!$A:$A,0)-5,MATCH(Typologie_Espace_Public,Base_Typologie!$6:$6,0)),TableauScoreTypologie2,2,FALSE)*Crit6),0,VLOOKUP(INDEX(Base_Typologie!$A$6:$P$1003,MATCH(A28,Base_Typologie!$A:$A,0)-5,MATCH(Typologie_Espace_Public,Base_Typologie!$6:$6,0)),TableauScoreTypologie2,2,FALSE)*Crit6) -> 10 | J28: 1 | K28: 1 | L28: 1 | M28: 1 | N28: 1 | O28: 1 | P28: 1 | Q28: 1 | R28: 1 | S28: 1 | T28: 1 | U28: 1 | V28: 276.2 | W28: =IF(Base_Arbres!V35<>"",VLOOKUP($A28,Base_Arbres,22,FALSE)*Crit7,"") -> 80
A29: =IF(Base_Arbres!A34<>"",Base_Arbres!A34,"") -> Gainier du Canada | B29: =IF(Base_Arbres!A34<>"",VLOOKUP($A29,Base_Arbres,3,FALSE)*Crit1,"") -> 34.65 | C29: =IF(Base_Arbres!A34<>"",VLOOKUP($A29,Base_Arbres,4,FALSE)*Crit2,"") -> 23.4 | D29: =IF(Base_Arbres!A34<>"",VLOOKUP($A29,Base_Arbres,5,FALSE)*Crit3,"") -> 36.35 | E29: =IF(Base_Arbres!A34<>"",VLOOKUP($A29,Base_Arbres,6,FALSE)*Crit4,"") -> 10.5 | F29: =IF(Base_Arbres!B34<>"",VLOOKUP($A29,Base_Arbres,7,FALSE)*Crit5,"") -> 33.5 | G29: =IF(Base_Arbres!C34<>"",VLOOKUP($A29,Base_Arbres,8,FALSE)*crit8,"") -> 6.65 | H29: =IF(Base_Arbres!D34<>"",VLOOKUP($A29,Base_Arbres,9,FALSE)*crit9,"") -> 15 | I29: =IF(ISNA(VLOOKUP(INDEX(Base_Typologie!$A$6:$P$1003,MATCH(A29,Base_Typologie!$A:$A,0)-5,MATCH(Typologie_Espace_Public,Base_Typologie!$6:$6,0)),TableauScoreTypologie2,2,FALSE)*Crit6),0,VLOOKUP(INDEX(Base_Typologie!$A$6:$P$1003,MATCH(A29,Base_Typologie!$A:$A,0)-5,MATCH(Typologie_Espace_Public,Base_Typologie!$6:$6,0)),TableauScoreTypologie2,2,FALSE)*Crit6) -> 10 | J29: 1 | K29: 1 | L29: 1 | M29: 1 | N29: 1 | O29: 1 | P29: 1 | Q29: 1 | R29: 1 | S29: 1 | T29: 1 | U29: 1 | V29: 275.05 | W29: =IF(Base_Arbres!V128<>"",VLOOKUP($A29,Base_Arbres,22,FALSE)*Crit7,"") -> 70
A30: =IF(Base_Arbres!A10<>"",Base_Arbres!A10,"") -> Érable hybride de Freeman | B30: =IF(Base_Arbres!A10<>"",VLOOKUP($A30,Base_Arbres,3,FALSE)*Crit1,"") -> 36.55 | C30: =IF(Base_Arbres!A10<>"",VLOOKUP($A30,Base_Arbres,4,FALSE)*Crit2,"") -> 24.55 | D30: =IF(Base_Arbres!A10<>"",VLOOKUP($A30,Base_Arbres,5,FALSE)*Crit3,"") -> 37.6 | E30: =IF(Base_Arbres!A10<>"",VLOOKUP($A30,Base_Arbres,6,FALSE)*Crit4,"") -> 12.5 | F30: =IF(Base_Arbres!B10<>"",VLOOKUP($A30,Base_Arbres,7,FALSE)*Crit5,"") -> 35 | G30: =IF(Base_Arbres!C10<>"",VLOOKUP($A30,Base_Arbres,8,FALSE)*crit8,"") -> 13.35 | H30: =IF(Base_Arbres!D10<>"",VLOOKUP($A30,Base_Arbres,9,FALSE)*crit9,"") -> 15 | I30: =IF(ISNA(VLOOKUP(INDEX(Base_Typologie!$A$6:$P$1003,MATCH(A30,Base_Typologie!$A:$A,0)-5,MATCH(Typologie_Espace_Public,Base_Typologie!$6:$6,0)),TableauScoreTypologie2,2,FALSE)*Crit6),0,VLOOKUP(INDEX(Base_Typologie!$A$6:$P$1003,MATCH(A30,Base_Typologie!$A:$A,0)-5,MATCH(Typologie_Espace_Public,Base_Typologie!$6:$6,0)),TableauScoreTypologie2,2,FALSE)*Crit6) -> 10 | J30: 1 | K30: 1 | L30: 1 | M30: 1 | N30: 1 | O30: 1 | P30: 1 | Q30: 1 | R30: 1 | S30: 1 | T30: 1 | U30: 1 | V30: 274.55 | W30: =IF(Base_Arbres!V105<>"",VLOOKUP($A30,Base_Arbres,22,FALSE)*Crit7,"") -> 60
A31: =IF(Base_Arbres!A131<>"",Base_Arbres!A131,"") -> Orme hybride Lutèce | B31: =IF(Base_Arbres!A131<>"",VLOOKUP($A31,Base_Arbres,3,FALSE)*Crit1,"") -> 33 | C31: =IF(Base_Arbres!A131<>"",VLOOKUP($A31,Base_Arbres,4,FALSE)*Crit2,"") -> 22.4 | D31: =IF(Base_Arbres!A131<>"",VLOOKUP($A31,Base_Arbres,5,FALSE)*Crit3,"") -> 30.75 | E31: =IF(Base_Arbres!A131<>"",VLOOKUP($A31,Base_Arbres,6,FALSE)*Crit4,"") -> 14.5 | F31: =IF(Base_Arbres!B131<>"",VLOOKUP($A31,Base_Arbres,7,FALSE)*Crit5,"") -> 27 | G31: =IF(Base_Arbres!C131<>"",VLOOKUP($A31,Base_Arbres,8,FALSE)*crit8,"") -> 20 | H31: =IF(Base_Arbres!D131<>"",VLOOKUP($A31,Base_Arbres,9,FALSE)*crit9,"") -> 15 | I31: =IF(ISNA(VLOOKUP(INDEX(Base_Typologie!$A$6:$P$1003,MATCH(A31,Base_Typologie!$A:$A,0)-5,MATCH(Typologie_Espace_Public,Base_Typologie!$6:$6,0)),TableauScoreTypologie2,2,FALSE)*Crit6),0,VLOOKUP(INDEX(Base_Typologie!$A$6:$P$1003,MATCH(A31,Base_Typologie!$A:$A,0)-5,MATCH(Typologie_Espace_Public,Base_Typologie!$6:$6,0)),TableauScoreTypologie2,2,FALSE)*Crit6) -> 50 | J31: 1 | K31: 1 | L31: 1 | M31: 1 | N31: 1 | O31: 1 | P31: 1 | Q31: 1 | R31: 1 | S31: 1 | T31: 1 | U31: 1 | V31: 272.65 | W31: =IF(Base_Arbres!V99<>"",VLOOKUP($A31,Base_Arbres,22,FALSE)*Crit7,"") -> 40
A32: =IF(Base_Arbres!A117<>"",Base_Arbres!A117,"") -> Sorbier des oiseleurs | B32: =IF(Base_Arbres!A117<>"",VLOOKUP($A32,Base_Arbres,3,FALSE)*Crit1,"") -> 21.8 | C32: =IF(Base_Arbres!A117<>"",VLOOKUP($A32,Base_Arbres,4,FALSE)*Crit2,"") -> 26.75 | D32: =IF(Base_Arbres!A117<>"",VLOOKUP($A32,Base_Arbres,5,FALSE)*Crit3,"") -> 30.1 | E32: =IF(Base_Arbres!A117<>"",VLOOKUP($A32,Base_Arbres,6,FALSE)*Crit4,"") -> 33.5 | F32: =IF(Base_Arbres!B117<>"",VLOOKUP($A32,Base_Arbres,7,FALSE)*Crit5,"") -> 31.5 | G32: =IF(Base_Arbres!C117<>"",VLOOKUP($A32,Base_Arbres,8,FALSE)*crit8,"") -> 10 | H32: =IF(Base_Arbres!D117<>"",VLOOKUP($A32,Base_Arbres,9,FALSE)*crit9,"") -> 15 | I32: =IF(ISNA(VLOOKUP(INDEX(Base_Typologie!$A$6:$P$1003,MATCH(A32,Base_Typologie!$A:$A,0)-5,MATCH(Typologie_Espace_Public,Base_Typologie!$6:$6,0)),TableauScoreTypologie2,2,FALSE)*Crit6),0,VLOOKUP(INDEX(Base_Typologie!$A$6:$P$1003,MATCH(A32,Base_Typologie!$A:$A,0)-5,MATCH(Typologie_Espace_Public,Base_Typologie!$6:$6,0)),TableauScoreTypologie2,2,FALSE)*Crit6) -> 10 | J32: 1 | K32: 1 | L32: 1 | M32: 1 | N32: 1 | O32: 1 | P32: 1 | Q32: 1 | R32: 1 | S32: 1 | T32: 1 | U32: 1 | V32: 268.65 | W32: =IF(Base_Arbres!V87<>"",VLOOKUP($A32,Base_Arbres,22,FALSE)*Crit7,"") -> 60
A33: =IF(Base_Arbres!A96<>"",Base_Arbres!A96,"") -> Ptérocarier de Chine | B33: =IF(Base_Arbres!A96<>"",VLOOKUP($A33,Base_Arbres,3,FALSE)*Crit1,"") -> 30.9 | C33: =IF(Base_Arbres!A96<>"",VLOOKUP($A33,Base_Arbres,4,FALSE)*Crit2,"") -> 21.9 | D33: =IF(Base_Arbres!A96<>"",VLOOKUP($A33,Base_Arbres,5,FALSE)*Crit3,"") -> 29.05 | E33: =IF(Base_Arbres!A96<>"",VLOOKUP($A33,Base_Arbres,6,FALSE)*Crit4,"") -> 5 | F33: =IF(Base_Arbres!B96<>"",VLOOKUP($A33,Base_Arbres,7,FALSE)*Crit5,"") -> 28 | G33: =IF(Base_Arbres!C96<>"",VLOOKUP($A33,Base_Arbres,8,FALSE)*crit8,"") -> 50 | H33: =IF(Base_Arbres!D96<>"",VLOOKUP($A33,Base_Arbres,9,FALSE)*crit9,"") -> 15 | I33: =IF(ISNA(VLOOKUP(INDEX(Base_Typologie!$A$6:$P$1003,MATCH(A33,Base_Typologie!$A:$A,0)-5,MATCH(Typologie_Espace_Public,Base_Typologie!$6:$6,0)),TableauScoreTypologie2,2,FALSE)*Crit6),0,VLOOKUP(INDEX(Base_Typologie!$A$6:$P$1003,MATCH(A33,Base_Typologie!$A:$A,0)-5,MATCH(Typologie_Espace_Public,Base_Typologie!$6:$6,0)),TableauScoreTypologie2,2,FALSE)*Crit6) -> 50 | J33: 1 | K33: 1 | L33: 1 | M33: 1 | N33: 1 | O33: 1 | P33: 1 | Q33: 1 | R33: 1 | S33: 1 | T33: 1 | U33: 1 | V33: 259.85 | W33: =IF(Base_Arbres!V130<>"",VLOOKUP($A33,Base_Arbres,22,FALSE)*Crit7,"") -> 20
A34: =IF(Base_Arbres!A133<>"",Base_Arbres!A133,"") -> Viorne obier | B34: =IF(Base_Arbres!A133<>"",VLOOKUP($A34,Base_Arbres,3,FALSE)*Crit1,"") -> 29.5 | C34: =IF(Base_Arbres!A133<>"",VLOOKUP($A34,Base_Arbres,4,FALSE)*Crit2,"") -> 19.95 | D34: =IF(Base_Arbres!A133<>"",VLOOKUP($A34,Base_Arbres,5,FALSE)*Crit3,"") -> 27.8 | E34: =IF(Base_Arbres!A133<>"",VLOOKUP($A34,Base_Arbres,6,FALSE)*Crit4,"") -> 19 | F34: =IF(Base_Arbres!B133<>"",VLOOKUP($A34,Base_Arbres,7,FALSE)*Crit5,"") -> 28 | G34: =IF(Base_Arbres!C133<>"",VLOOKUP($A34,Base_Arbres,8,FALSE)*crit8,"") -> 10 | H34: =IF(Base_Arbres!D133<>"",VLOOKUP($A34,Base_Arbres,9,FALSE)*crit9,"") -> 15 | I34: =IF(ISNA(VLOOKUP(INDEX(Base_Typologie!$A$6:$P$1003,MATCH(A34,Base_Typologie!$A:$A,0)-5,MATCH(Typologie_Espace_Public,Base_Typologie!$6:$6,0)),TableauScoreTypologie2,2,FALSE)*Crit6),0,VLOOKUP(INDEX(Base_Typologie!$A$6:$P$1003,MATCH(A34,Base_Typologie!$A:$A,0)-5,MATCH(Typologie_Espace_Public,Base_Typologie!$6:$6,0)),TableauScoreTypologie2,2,FALSE)*Crit6) -> 30 | J34: 1 | K34: 1 | L34: 1 | M34: 1 | N34: 1 | O34: 1 | P34: 1 | Q34: 1 | R34: 1 | S34: 1 | T34: 1 | U34: 1 | V34: =(SUM(B34:I34)+W34*1.5)*J34*K34*L34*M34*N34*O34*P34*Q34*R34*S34*T34*U34 -> 254.25 | W34: =IF(Base_Arbres!V112<>"",VLOOKUP($A34,Base_Arbres,22,FALSE)*Crit7,"") -> 50
A35: =IF(Base_Arbres!A31<>"",Base_Arbres!A31,"") -> Micocoulier de Julian Cannabaceae | B35: =IF(Base_Arbres!A31<>"",VLOOKUP($A35,Base_Arbres,3,FALSE)*Crit1,"") -> 23.45 | C35: =IF(Base_Arbres!A31<>"",VLOOKUP($A35,Base_Arbres,4,FALSE)*Crit2,"") -> 28.5 | D35: =IF(Base_Arbres!A31<>"",VLOOKUP($A35,Base_Arbres,5,FALSE)*Crit3,"") -> 30.75 | E35: =IF(Base_Arbres!A31<>"",VLOOKUP($A35,Base_Arbres,6,FALSE)*Crit4,"") -> 4 | F35: =IF(Base_Arbres!B31<>"",VLOOKUP($A35,Base_Arbres,7,FALSE)*Crit5,"") -> 28.5 | G35: =IF(Base_Arbres!C31<>"",VLOOKUP($A35,Base_Arbres,8,FALSE)*crit8,"") -> 13.35 | H35: =IF(Base_Arbres!D31<>"",VLOOKUP($A35,Base_Arbres,9,FALSE)*crit9,"") -> 15 | I35: =IF(ISNA(VLOOKUP(INDEX(Base_Typologie!$A$6:$P$1003,MATCH(A35,Base_Typologie!$A:$A,0)-5,MATCH(Typologie_Espace_Public,Base_Typologie!$6:$6,0)),TableauScoreTypologie2,2,FALSE)*Crit6),0,VLOOKUP(INDEX(Base_Typologie!$A$6:$P$1003,MATCH(A35,Base_Typologie!$A:$A,0)-5,MATCH(Typologie_Espace_Public,Base_Typologie!$6:$6,0)),TableauScoreTypologie2,2,FALSE)*Crit6) -> 50 | J35: 1 | K35: 1 | L35: 1 | M35: 1 | N35: 1 | O35: 1 | P35: 1 | Q35: 1 | R35: 1 | S35: 1 | T35: 1 | U35: 1 | V35: 253.55 | W35: =IF(Base_Arbres!V103<>"",VLOOKUP($A35,Base_Arbres,22,FALSE)*Crit7,"") -> 40
A36: =IF(Base_Arbres!A90<>"",Base_Arbres!A90,"") -> Merisier 'Landscape Bloom' | B36: =IF(Base_Arbres!A90<>"",VLOOKUP($A36,Base_Arbres,3,FALSE)*Crit1,"") -> 34.85 | C36: =IF(Base_Arbres!A90<>"",VLOOKUP($A36,Base_Arbres,4,FALSE)*Crit2,"") -> 24.6 | D36: =IF(Base_Arbres!A90<>"",VLOOKUP($A36,Base_Arbres,5,FALSE)*Crit3,"") -> 31.9 | E36: =IF(Base_Arbres!A90<>"",VLOOKUP($A36,Base_Arbres,6,FALSE)*Crit4,"") -> 19 | F36: =IF(Base_Arbres!B90<>"",VLOOKUP($A36,Base_Arbres,7,FALSE)*Crit5,"") -> 29.5 | G36: =IF(Base_Arbres!C90<>"",VLOOKUP($A36,Base_Arbres,8,FALSE)*crit8,"") -> 13.35 | H36: =IF(Base_Arbres!D90<>"",VLOOKUP($A36,Base_Arbres,9,FALSE)*crit9,"") -> 15 | I36: =IF(ISNA(VLOOKUP(INDEX(Base_Typologie!$A$6:$P$1003,MATCH(A36,Base_Typologie!$A:$A,0)-5,MATCH(Typologie_Espace_Public,Base_Typologie!$6:$6,0)),TableauScoreTypologie2,2,FALSE)*Crit6),0,VLOOKUP(INDEX(Base_Typologie!$A$6:$P$1003,MATCH(A36,Base_Typologie!$A:$A,0)-5,MATCH(Typologie_Espace_Public,Base_Typologie!$6:$6,0)),TableauScoreTypologie2,2,FALSE)*Crit6) -> 10 | J36: 1 | K36: 1 | L36: 1 | M36: 1 | N36: 1 | O36: 1 | P36: 1 | Q36: 1 | R36: 1 | S36: 1 | T36: 1 | U36: 1 | V36: 253.2 | W36: =IF(Base_Arbres!V113<>"",VLOOKUP($A36,Base_Arbres,22,FALSE)*Crit7,"") -> 50
A37: =IF(Base_Arbres!A127<>"",Base_Arbres!A127,"") -> Orme hybride 'Columella' | B37: =IF(Base_Arbres!A127<>"",VLOOKUP($A37,Base_Arbres,3,FALSE)*Crit1,"") -> 28.35 | C37: =IF(Base_Arbres!A127<>"",VLOOKUP($A37,Base_Arbres,4,FALSE)*Crit2,"") -> 20.7 | D37: =IF(Base_Arbres!A127<>"",VLOOKUP($A37,Base_Arbres,5,FALSE)*Crit3,"") -> 22.3 | E37: =IF(Base_Arbres!A127<>"",VLOOKUP($A37,Base_Arbres,6,FALSE)*Crit4,"") -> 8.5 | F37: =IF(Base_Arbres!B127<>"",VLOOKUP($A37,Base_Arbres,7,FALSE)*Crit5,"") -> 22 | G37: =IF(Base_Arbres!C127<>"",VLOOKUP($A37,Base_Arbres,8,FALSE)*crit8,"") -> 20 | H37: =IF(Base_Arbres!D127<>"",VLOOKUP($A37,Base_Arbres,9,FALSE)*crit9,"") -> 15 | I37: =IF(ISNA(VLOOKUP(INDEX(Base_Typologie!$A$6:$P$1003,MATCH(A37,Base_Typologie!$A:$A,0)-5,MATCH(Typologie_Espace_Public,Base_Typologie!$6:$6,0)),TableauScoreTypologie2,2,FALSE)*Crit6),0,VLOOKUP(INDEX(Base_Typologie!$A$6:$P$1003,MATCH(A37,Base_Typologie!$A:$A,0)-5,MATCH(Typologie_Espace_Public,Base_Typologie!$6:$6,0)),TableauScoreTypologie2,2,FALSE)*Crit6) -> 10 | J37: 1 | K37: 1 | L37: 1 | M37: 1 | N37: 1 | O37: 1 | P37: 1 | Q37: 1 | R37: 1 | S37: 1 | T37: 1 | U37: 1 | V37: 251.85 | W37: =IF(Base_Arbres!V121<>"",VLOOKUP($A37,Base_Arbres,22,FALSE)*Crit7,"") -> 70
A38: =IF(Base_Arbres!A92<>"",Base_Arbres!A92,"") -> Cerisier à grappes | B38: =IF(Base_Arbres!A92<>"",VLOOKUP($A38,Base_Arbres,3,FALSE)*Crit1,"") -> 32.8 | C38: =IF(Base_Arbres!A92<>"",VLOOKUP($A38,Base_Arbres,4,FALSE)*Crit2,"") -> 22.3 | D38: =IF(Base_Arbres!A92<>"",VLOOKUP($A38,Base_Arbres,5,FALSE)*Crit3,"") -> 31.55 | E38: =IF(Base_Arbres!A92<>"",VLOOKUP($A38,Base_Arbres,6,FALSE)*Crit4,"") -> 25 | F38: =IF(Base_Arbres!B92<>"",VLOOKUP($A38,Base_Arbres,7,FALSE)*Crit5,"") -> 30 | G38: =IF(Base_Arbres!C92<>"",VLOOKUP($A38,Base_Arbres,8,FALSE)*crit8,"") -> 10 | H38: =IF(Base_Arbres!D92<>"",VLOOKUP($A38,Base_Arbres,9,FALSE)*crit9,"") -> 15 | I38: =IF(ISNA(VLOOKUP(INDEX(Base_Typologie!$A$6:$P$1003,MATCH(A38,Base_Typologie!$A:$A,0)-5,MATCH(Typologie_Espace_Public,Base_Typologie!$6:$6,0)),TableauScoreTypologie2,2,FALSE)*Crit6),0,VLOOKUP(INDEX(Base_Typologie!$A$6:$P$1003,MATCH(A38,Base_Typologie!$A:$A,0)-5,MATCH(Typologie_Espace_Public,Base_Typologie!$6:$6,0)),TableauScoreTypologie2,2,FALSE)*Crit6) -> 10 | J38: 1 | K38: 1 | L38: 1 | M38: 1 | N38: 1 | O38: 1 | P38: 1 | Q38: 1 | R38: 1 | S38: 1 | T38: 1 | U38: 1 | V38: 251.65 | W38: =IF(Base_Arbres!V72<>"",VLOOKUP($A38,Base_Arbres,22,FALSE)*Crit7,"") -> 50
A39: =IF(Base_Arbres!A13<>"",Base_Arbres!A13,"") -> Arbre à soie | B39: =IF(Base_Arbres!A13<>"",VLOOKUP($A39,Base_Arbres,3,FALSE)*Crit1,"") -> 27.25 | C39: =IF(Base_Arbres!A13<>"",VLOOKUP($A39,Base_Arbres,4,FALSE)*Crit2,"") -> 19.35 | D39: =IF(Base_Arbres!A13<>"",VLOOKUP($A39,Base_Arbres,5,FALSE)*Crit3,"") -> 23.25 | E39: =IF(Base_Arbres!A13<>"",VLOOKUP($A39,Base_Arbres,6,FALSE)*Crit4,"") -> 10.5 | F39: =IF(Base_Arbres!B13<>"",VLOOKUP($A39,Base_Arbres,7,FALSE)*Crit5,"") -> 25 | G39: =IF(Base_Arbres!C13<>"",VLOOKUP($A39,Base_Arbres,8,FALSE)*crit8,"") -> 6.65 | H39: =IF(Base_Arbres!D13<>"",VLOOKUP($A39,Base_Arbres,9,FALSE)*crit9,"") -> 15 | I39: =IF(ISNA(VLOOKUP(INDEX(Base_Typologie!$A$6:$P$1003,MATCH(A39,Base_Typologie!$A:$A,0)-5,MATCH(Typologie_Espace_Public,Base_Typologie!$6:$6,0)),TableauScoreTypologie2,2,FALSE)*Crit6),0,VLOOKUP(INDEX(Base_Typologie!$A$6:$P$1003,MATCH(A39,Base_Typologie!$A:$A,0)-5,MATCH(Typologie_Espace_Public,Base_Typologie!$6:$6,0)),TableauScoreTypologie2,2,FALSE)*Crit6) -> 30 | J39: 1 | K39: 1 | L39: 1 | M39: 1 | N39: 1 | O39: 1 | P39: 1 | Q39: 1 | R39: 1 | S39: 1 | T39: 1 | U39: 1 | V39: 247 | W39: =IF(Base_Arbres!V117<>"",VLOOKUP($A39,Base_Arbres,22,FALSE)*Crit7,"") -> 60
A40: =IF(Base_Arbres!A45<>"",Base_Arbres!A45,"") -> Fusain d’Europe | B40: =IF(Base_Arbres!A45<>"",VLOOKUP($A40,Base_Arbres,3,FALSE)*Crit1,"") -> 22.5 | C40: =IF(Base_Arbres!A45<>"",VLOOKUP($A40,Base_Arbres,4,FALSE)*Crit2,"") -> 21.5 | D40: =IF(Base_Arbres!A45<>"",VLOOKUP($A40,Base_Arbres,5,FALSE)*Crit3,"") -> 23.25 | E40: =IF(Base_Arbres!A45<>"",VLOOKUP($A40,Base_Arbres,6,FALSE)*Crit4,"") -> 23 | F40: =IF(Base_Arbres!B45<>"",VLOOKUP($A40,Base_Arbres,7,FALSE)*Crit5,"") -> 26.5 | G40: =IF(Base_Arbres!C45<>"",VLOOKUP($A40,Base_Arbres,8,FALSE)*crit8,"") -> 10 | H40: =IF(Base_Arbres!D45<>"",VLOOKUP($A40,Base_Arbres,9,FALSE)*crit9,"") -> 0 | I40: =IF(ISNA(VLOOKUP(INDEX(Base_Typologie!$A$6:$P$1003,MATCH(A40,Base_Typologie!$A:$A,0)-5,MATCH(Typologie_Espace_Public,Base_Typologie!$6:$6,0)),TableauScoreTypologie2,2,FALSE)*Crit6),0,VLOOKUP(INDEX(Base_Typologie!$A$6:$P$1003,MATCH(A40,Base_Typologie!$A:$A,0)-5,MATCH(Typologie_Espace_Public,Base_Typologie!$6:$6,0)),TableauScoreTypologie2,2,FALSE)*Crit6) -> 30 | J40: 1 | K40: 1 | L40: 1 | M40: 1 | N40: 1 | O40: 1 | P40: 1 | Q40: 1 | R40: 1 | S40: 1 | T40: 1 | U40: 1 | V40: 246.75 | W40: =IF(Base_Arbres!V41<>"",VLOOKUP($A40,Base_Arbres,22,FALSE)*Crit7,"") -> 60
A41: =IF(Base_Arbres!A17<>"",Base_Arbres!A17,"") -> Amélanchier arborescent Robin Hill | B41: =IF(Base_Arbres!A17<>"",VLOOKUP($A41,Base_Arbres,3,FALSE)*Crit1,"") -> 21.9 | C41: =IF(Base_Arbres!A17<>"",VLOOKUP($A41,Base_Arbres,4,FALSE)*Crit2,"") -> 22.55 | D41: =IF(Base_Arbres!A17<>"",VLOOKUP($A41,Base_Arbres,5,FALSE)*Crit3,"") -> 21.65 | E41: =IF(Base_Arbres!A17<>"",VLOOKUP($A41,Base_Arbres,6,FALSE)*Crit4,"") -> 6.5 | F41: =IF(Base_Arbres!B17<>"",VLOOKUP($A41,Base_Arbres,7,FALSE)*Crit5,"") -> 23.5 | G41: =IF(Base_Arbres!C17<>"",VLOOKUP($A41,Base_Arbres,8,FALSE)*crit8,"") -> 6.65 | H41: =IF(Base_Arbres!D17<>"",VLOOKUP($A41,Base_Arbres,9,FALSE)*crit9,"") -> 15 | I41: =IF(ISNA(VLOOKUP(INDEX(Base_Typologie!$A$6:$P$1003,MATCH(A41,Base_Typologie!$A:$A,0)-5,MATCH(Typologie_Espace_Public,Base_Typologie!$6:$6,0)),TableauScoreTypologie2,2,FALSE)*Crit6),0,VLOOKUP(INDEX(Base_Typologie!$A$6:$P$1003,MATCH(A41,Base_Typologie!$A:$A,0)-5,MATCH(Typologie_Espace_Public,Base_Typologie!$6:$6,0)),TableauScoreTypologie2,2,FALSE)*Crit6) -> 50 | J41: 1 | K41: 1 | L41: 1 | M41: 1 | N41: 1 | O41: 1 | P41: 1 | Q41: 1 | R41: 1 | S41: 1 | T41: 1 | U41: 1 | V41: 242.75 | W41: =IF(Base_Arbres!V69<>"",VLOOKUP($A41,Base_Arbres,22,FALSE)*Crit7,"") -> 50
A42: =IF(Base_Arbres!A63<>"",Base_Arbres!A63,"") -> Copalme d'Orient | B42: =IF(Base_Arbres!A63<>"",VLOOKUP($A42,Base_Arbres,3,FALSE)*Crit1,"") -> 31.5 | C42: =IF(Base_Arbres!A63<>"",VLOOKUP($A42,Base_Arbres,4,FALSE)*Crit2,"") -> 21.9 | D42: =IF(Base_Arbres!A63<>"",VLOOKUP($A42,Base_Arbres,5,FALSE)*Crit3,"") -> 30.65 | E42: =IF(Base_Arbres!A63<>"",VLOOKUP($A42,Base_Arbres,6,FALSE)*Crit4,"") -> 8.5 | F42: =IF(Base_Arbres!B63<>"",VLOOKUP($A42,Base_Arbres,7,FALSE)*Crit5,"") -> 30 | G42: =IF(Base_Arbres!C63<>"",VLOOKUP($A42,Base_Arbres,8,FALSE)*crit8,"") -> 10 | H42: =IF(Base_Arbres!D63<>"",VLOOKUP($A42,Base_Arbres,9,FALSE)*crit9,"") -> 15 | I42: =IF(ISNA(VLOOKUP(INDEX(Base_Typologie!$A$6:$P$1003,MATCH(A42,Base_Typologie!$A:$A,0)-5,MATCH(Typologie_Espace_Public,Base_Typologie!$6:$6,0)),TableauScoreTypologie2,2,FALSE)*Crit6),0,VLOOKUP(INDEX(Base_Typologie!$A$6:$P$1003,MATCH(A42,Base_Typologie!$A:$A,0)-5,MATCH(Typologie_Espace_Public,Base_Typologie!$6:$6,0)),TableauScoreTypologie2,2,FALSE)*Crit6) -> 50 | J42: 1 | K42: 1 | L42: 1 | M42: 1 | N42: 1 | O42: 1 | P42: 1 | Q42: 1 | R42: 1 | S42: 1 | T42: 1 | U42: 1 | V42: 242.55 | W42: =IF(Base_Arbres!V91<>"",VLOOKUP($A42,Base_Arbres,22,FALSE)*Crit7,"") -> 30
A43: =IF(Base_Arbres!A93<>"",Base_Arbres!A93,"") -> Cerisier de Sargent | B43: =IF(Base_Arbres!A93<>"",VLOOKUP($A43,Base_Arbres,3,FALSE)*Crit1,"") -> 35.5 | C43: =IF(Base_Arbres!A93<>"",VLOOKUP($A43,Base_Arbres,4,FALSE)*Crit2,"") -> 23.9 | D43: =IF(Base_Arbres!A93<>"",VLOOKUP($A43,Base_Arbres,5,FALSE)*Crit3,"") -> 34.8 | E43: =IF(Base_Arbres!A93<>"",VLOOKUP($A43,Base_Arbres,6,FALSE)*Crit4,"") -> 21 | F43: =IF(Base_Arbres!B93<>"",VLOOKUP($A43,Base_Arbres,7,FALSE)*Crit5,"") -> 31.5 | G43: =IF(Base_Arbres!C93<>"",VLOOKUP($A43,Base_Arbres,8,FALSE)*crit8,"") -> 6.65 | H43: =IF(Base_Arbres!D93<>"",VLOOKUP($A43,Base_Arbres,9,FALSE)*crit9,"") -> 15 | I43: =IF(ISNA(VLOOKUP(INDEX(Base_Typologie!$A$6:$P$1003,MATCH(A43,Base_Typologie!$A:$A,0)-5,MATCH(Typologie_Espace_Public,Base_Typologie!$6:$6,0)),TableauScoreTypologie2,2,FALSE)*Crit6),0,VLOOKUP(INDEX(Base_Typologie!$A$6:$P$1003,MATCH(A43,Base_Typologie!$A:$A,0)-5,MATCH(Typologie_Espace_Public,Base_Typologie!$6:$6,0)),TableauScoreTypologie2,2,FALSE)*Crit6) -> 10 | J43: 1 | K43: 1 | L43: 1 | M43: 1 | N43: 1 | O43: 1 | P43: 1 | Q43: 1 | R43: 1 | S43: 1 | T43: 1 | U43: 1 | V43: 238.35 | W43: =IF(Base_Arbres!V5<>"",VLOOKUP($A43,Base_Arbres,22,FALSE)*Crit7,"") -> 40
A44: =IF(Base_Arbres!A67<>"",Base_Arbres!A67,"") -> Magnolia de Kobé | B44: =IF(Base_Arbres!A67<>"",VLOOKUP($A44,Base_Arbres,3,FALSE)*Crit1,"") -> 25.7 | C44: =IF(Base_Arbres!A67<>"",VLOOKUP($A44,Base_Arbres,4,FALSE)*Crit2,"") -> 24.85 | D44: =IF(Base_Arbres!A67<>"",VLOOKUP($A44,Base_Arbres,5,FALSE)*Crit3,"") -> 26.65 | E44: =IF(Base_Arbres!A67<>"",VLOOKUP($A44,Base_Arbres,6,FALSE)*Crit4,"") -> 6.5 | F44: =IF(Base_Arbres!B67<>"",VLOOKUP($A44,Base_Arbres,7,FALSE)*Crit5,"") -> 26 | G44: =IF(Base_Arbres!C67<>"",VLOOKUP($A44,Base_Arbres,8,FALSE)*crit8,"") -> 13.35 | H44: =IF(Base_Arbres!D67<>"",VLOOKUP($A44,Base_Arbres,9,FALSE)*crit9,"") -> 15 | I44: =IF(ISNA(VLOOKUP(INDEX(Base_Typologie!$A$6:$P$1003,MATCH(A44,Base_Typologie!$A:$A,0)-5,MATCH(Typologie_Espace_Public,Base_Typologie!$6:$6,0)),TableauScoreTypologie2,2,FALSE)*Crit6),0,VLOOKUP(INDEX(Base_Typologie!$A$6:$P$1003,MATCH(A44,Base_Typologie!$A:$A,0)-5,MATCH(Typologie_Espace_Public,Base_Typologie!$6:$6,0)),TableauScoreTypologie2,2,FALSE)*Crit6) -> 50 | J44: 1 | K44: 1 | L44: 1 | M44: 1 | N44: 1 | O44: 1 | P44: 1 | Q44: 1 | R44: 1 | S44: 1 | T44: 1 | U44: 1 | V44: 233.05 | W44: =IF(Base_Arbres!V108<>"",VLOOKUP($A44,Base_Arbres,22,FALSE)*Crit7,"") -> 30
A45: =IF(Base_Arbres!A57<>"",Base_Arbres!A57,"") -> Houx commun | B45: =IF(Base_Arbres!A57<>"",VLOOKUP($A45,Base_Arbres,3,FALSE)*Crit1,"") -> 26.6 | C45: =IF(Base_Arbres!A57<>"",VLOOKUP($A45,Base_Arbres,4,FALSE)*Crit2,"") -> 27.25 | D45: =IF(Base_Arbres!A57<>"",VLOOKUP($A45,Base_Arbres,5,FALSE)*Crit3,"") -> 29.4 | E45: =IF(Base_Arbres!A57<>"",VLOOKUP($A45,Base_Arbres,6,FALSE)*Crit4,"") -> 27 | F45: =IF(Base_Arbres!B57<>"",VLOOKUP($A45,Base_Arbres,7,FALSE)*Crit5,"") -> 32.5 | G45: =IF(Base_Arbres!C57<>"",VLOOKUP($A45,Base_Arbres,8,FALSE)*crit8,"") -> 10 | H45: =IF(Base_Arbres!D57<>"",VLOOKUP($A45,Base_Arbres,9,FALSE)*crit9,"") -> 0 | I45: =IF(ISNA(VLOOKUP(INDEX(Base_Typologie!$A$6:$P$1003,MATCH(A45,Base_Typologie!$A:$A,0)-5,MATCH(Typologie_Espace_Public,Base_Typologie!$6:$6,0)),TableauScoreTypologie2,2,FALSE)*Crit6),0,VLOOKUP(INDEX(Base_Typologie!$A$6:$P$1003,MATCH(A45,Base_Typologie!$A:$A,0)-5,MATCH(Typologie_Espace_Public,Base_Typologie!$6:$6,0)),TableauScoreTypologie2,2,FALSE)*Crit6) -> 10 | J45: 1 | K45: 1 | L45: 1 | M45: 1 | N45: 1 | O45: 1 | P45: 1 | Q45: 1 | R45: 1 | S45: 1 | T45: 1 | U45: 1 | V45: 222.75 | W45: =IF(Base_Arbres!V45<>"",VLOOKUP($A45,Base_Arbres,22,FALSE)*Crit7,"") -> 40
A46: =IF(Base_Arbres!A80<>"",Base_Arbres!A80,"") -> Seringa, Jasmin des poètes | B46: =IF(Base_Arbres!A80<>"",VLOOKUP($A46,Base_Arbres,3,FALSE)*Crit1,"") -> 25.65 | C46: =IF(Base_Arbres!A80<>"",VLOOKUP($A46,Base_Arbres,4,FALSE)*Crit2,"") -> 19.1 | D46: =IF(Base_Arbres!A80<>"",VLOOKUP($A46,Base_Arbres,5,FALSE)*Crit3,"") -> 19.05 | E46: =IF(Base_Arbres!A80<>"",VLOOKUP($A46,Base_Arbres,6,FALSE)*Crit4,"") -> 6.5 | F46: =IF(Base_Arbres!B80<>"",VLOOKUP($A46,Base_Arbres,7,FALSE)*Crit5,"") -> 19.5 | G46: =IF(Base_Arbres!C80<>"",VLOOKUP($A46,Base_Arbres,8,FALSE)*crit8,"") -> 10 | H46: =IF(Base_Arbres!D80<>"",VLOOKUP($A46,Base_Arbres,9,FALSE)*crit9,"") -> 15 | I46: =IF(ISNA(VLOOKUP(INDEX(Base_Typologie!$A$6:$P$1003,MATCH(A46,Base_Typologie!$A:$A,0)-5,MATCH(Typologie_Espace_Public,Base_Typologie!$6:$6,0)),TableauScoreTypologie2,2,FALSE)*Crit6),0,VLOOKUP(INDEX(Base_Typologie!$A$6:$P$1003,MATCH(A46,Base_Typologie!$A:$A,0)-5,MATCH(Typologie_Espace_Public,Base_Typologie!$6:$6,0)),TableauScoreTypologie2,2,FALSE)*Crit6) -> 10 | J46: 1 | K46: 1 | L46: 1 | M46: 1 | N46: 1 | O46: 1 | P46: 1 | Q46: 1 | R46: 1 | S46: 1 | T46: 1 | U46: 1 | V46: 214.8 | W46: =IF(Base_Arbres!V109<>"",VLOOKUP($A46,Base_Arbres,22,FALSE)*Crit7,"") -> 60
A47: =IF(Base_Arbres!A43<>"",Base_Arbres!A43,"") -> Arbre aux mouchoirs | B47: =IF(Base_Arbres!A43<>"",VLOOKUP($A47,Base_Arbres,3,FALSE)*Crit1,"") -> 23.95 | C47: =IF(Base_Arbres!A43<>"",VLOOKUP($A47,Base_Arbres,4,FALSE)*Crit2,"") -> 29.1 | D47: =IF(Base_Arbres!A43<>"",VLOOKUP($A47,Base_Arbres,5,FALSE)*Crit3,"") -> 33.25 | E47: =IF(Base_Arbres!A43<>"",VLOOKUP($A47,Base_Arbres,6,FALSE)*Crit4,"") -> 6.5 | F47: =IF(Base_Arbres!B43<>"",VLOOKUP($A47,Base_Arbres,7,FALSE)*Crit5,"") -> 31.5 | G47: =IF(Base_Arbres!C43<>"",VLOOKUP($A47,Base_Arbres,8,FALSE)*crit8,"") -> 20 | H47: =IF(Base_Arbres!D43<>"",VLOOKUP($A47,Base_Arbres,9,FALSE)*crit9,"") -> 15 | I47: =IF(ISNA(VLOOKUP(INDEX(Base_Typologie!$A$6:$P$1003,MATCH(A47,Base_Typologie!$A:$A,0)-5,MATCH(Typologie_Espace_Public,Base_Typologie!$6:$6,0)),TableauScoreTypologie2,2,FALSE)*Crit6),0,VLOOKUP(INDEX(Base_Typologie!$A$6:$P$1003,MATCH(A47,Base_Typologie!$A:$A,0)-5,MATCH(Typologie_Espace_Public,Base_Typologie!$6:$6,0)),TableauScoreTypologie2,2,FALSE)*Crit6) -> 10 | J47: 1 | K47: 1 | L47: 1 | M47: 1 | N47: 1 | O47: 1 | P47: 1 | Q47: 1 | R47: 1 | S47: 1 | T47: 1 | U47: 1 | V47: 214.3 | W47: =IF(Base_Arbres!V131<>"",VLOOKUP($A47,Base_Arbres,22,FALSE)*Crit7,"") -> 30
A48: =IF(Base_Arbres!A72<>"",Base_Arbres!A72,"") -> Pommier de Sukawa | B48: =IF(Base_Arbres!A72<>"",VLOOKUP($A48,Base_Arbres,3,FALSE)*Crit1,"") -> 21.9 | C48: =IF(Base_Arbres!A72<>"",VLOOKUP($A48,Base_Arbres,4,FALSE)*Crit2,"") -> 27.55 | D48: =IF(Base_Arbres!A72<>"",VLOOKUP($A48,Base_Arbres,5,FALSE)*Crit3,"") -> 27.9 | E48: =IF(Base_Arbres!A72<>"",VLOOKUP($A48,Base_Arbres,6,FALSE)*Crit4,"") -> 14.5 | F48: =IF(Base_Arbres!B72<>"",VLOOKUP($A48,Base_Arbres,7,FALSE)*Crit5,"") -> 26 | G48: =IF(Base_Arbres!C72<>"",VLOOKUP($A48,Base_Arbres,8,FALSE)*crit8,"") -> 10 | H48: =IF(Base_Arbres!D72<>"",VLOOKUP($A48,Base_Arbres,9,FALSE)*crit9,"") -> 15 | I48: =IF(ISNA(VLOOKUP(INDEX(Base_Typologie!$A$6:$P$1003,MATCH(A48,Base_Typologie!$A:$A,0)-5,MATCH(Typologie_Espace_Public,Base_Typologie!$6:$6,0)),TableauScoreTypologie2,2,FALSE)*Crit6),0,VLOOKUP(INDEX(Base_Typologie!$A$6:$P$1003,MATCH(A48,Base_Typologie!$A:$A,0)-5,MATCH(Typologie_Espace_Public,Base_Typologie!$6:$6,0)),TableauScoreTypologie2,2,FALSE)*Crit6) -> 10 | J48: 1 | K48: 1 | L48: 1 | M48: 1 | N48: 1 | O48: 1 | P48: 1 | Q48: 1 | R48: 1 | S48: 1 | T48: 1 | U48: 1 | V48: 212.85 | W48: =IF(Base_Arbres!V70<>"",VLOOKUP($A48,Base_Arbres,22,FALSE)*Crit7,"") -> 40
A49: =IF(Base_Arbres!A68<>"",Base_Arbres!A68,"") -> Magnolia de Kobé ‘Isis’ | B49: =IF(Base_Arbres!A68<>"",VLOOKUP($A49,Base_Arbres,3,FALSE)*Crit1,"") -> 30.1 | C49: =IF(Base_Arbres!A68<>"",VLOOKUP($A49,Base_Arbres,4,FALSE)*Crit2,"") -> 20.7 | D49: =IF(Base_Arbres!A68<>"",VLOOKUP($A49,Base_Arbres,5,FALSE)*Crit3,"") -> 27 | E49: =IF(Base_Arbres!A68<>"",VLOOKUP($A49,Base_Arbres,6,FALSE)*Crit4,"") -> 6.5 | F49: =IF(Base_Arbres!B68<>"",VLOOKUP($A49,Base_Arbres,7,FALSE)*Crit5,"") -> 24.5 | G49: =IF(Base_Arbres!C68<>"",VLOOKUP($A49,Base_Arbres,8,FALSE)*crit8,"") -> 13.35 | H49: =IF(Base_Arbres!D68<>"",VLOOKUP($A49,Base_Arbres,9,FALSE)*crit9,"") -> 15 | I49: =IF(ISNA(VLOOKUP(INDEX(Base_Typologie!$A$6:$P$1003,MATCH(A49,Base_Typologie!$A:$A,0)-5,MATCH(Typologie_Espace_Public,Base_Typologie!$6:$6,0)),TableauScoreTypologie2,2,FALSE)*Crit6),0,VLOOKUP(INDEX(Base_Typologie!$A$6:$P$1003,MATCH(A49,Base_Typologie!$A:$A,0)-5,MATCH(Typologie_Espace_Public,Base_Typologie!$6:$6,0)),TableauScoreTypologie2,2,FALSE)*Crit6) -> 50 | J49: 1 | K49: 1 | L49: 1 | M49: 1 | N49: 1 | O49: 1 | P49: 1 | Q49: 1 | R49: 1 | S49: 1 | T49: 1 | U49: 1 | V49: 202.15 | W49: =IF(Base_Arbres!V102<>"",VLOOKUP($A49,Base_Arbres,22,FALSE)*Crit7,"") -> 10
A50: =IF(Base_Arbres!A118<>"",Base_Arbres!A118,"") -> Sorbier des oiseleurs fastigiata | B50: =IF(Base_Arbres!A118<>"",VLOOKUP($A50,Base_Arbres,3,FALSE)*Crit1,"") -> 18.1 | C50: =IF(Base_Arbres!A118<>"",VLOOKUP($A50,Base_Arbres,4,FALSE)*Crit2,"") -> 25.25 | D50: =IF(Base_Arbres!A118<>"",VLOOKUP($A50,Base_Arbres,5,FALSE)*Crit3,"") -> 22.9 | E50: =IF(Base_Arbres!A118<>"",VLOOKUP($A50,Base_Arbres,6,FALSE)*Crit4,"") -> 19 | F50: =IF(Base_Arbres!B118<>"",VLOOKUP($A50,Base_Arbres,7,FALSE)*Crit5,"") -> 26 | G50: =IF(Base_Arbres!C118<>"",VLOOKUP($A50,Base_Arbres,8,FALSE)*crit8,"") -> 13.35 | H50: =IF(Base_Arbres!D118<>"",VLOOKUP($A50,Base_Arbres,9,FALSE)*crit9,"") -> 15 | I50: =IF(ISNA(VLOOKUP(INDEX(Base_Typologie!$A$6:$P$1003,MATCH(A50,Base_Typologie!$A:$A,0)-5,MATCH(Typologie_Espace_Public,Base_Typologie!$6:$6,0)),TableauScoreTypologie2,2,FALSE)*Crit6),0,VLOOKUP(INDEX(Base_Typologie!$A$6:$P$1003,MATCH(A50,Base_Typologie!$A:$A,0)-5,MATCH(Typologie_Espace_Public,Base_Typologie!$6:$6,0)),TableauScoreTypologie2,2,FALSE)*Crit6) -> 10 | J50: 1 | K50: 1 | L50: 1 | M50: 1 | N50: 1 | O50: 1 | P50: 1 | Q50: 1 | R50: 1 | S50: 1 | T50: 1 | U50: 1 | V50: 194.6 | W50: =IF(Base_Arbres!V134<>"",VLOOKUP($A50,Base_Arbres,22,FALSE)*Crit7,"") -> 30
A51: =IF(Base_Arbres!A95<>"",Base_Arbres!A95,"") -> Cerisier d'hiver | B51: =IF(Base_Arbres!A95<>"",VLOOKUP($A51,Base_Arbres,3,FALSE)*Crit1,"") -> 25.95 | C51: =IF(Base_Arbres!A95<>"",VLOOKUP($A51,Base_Arbres,4,FALSE)*Crit2,"") -> 23.9 | D51: =IF(Base_Arbres!A95<>"",VLOOKUP($A51,Base_Arbres,5,FALSE)*Crit3,"") -> 28.55 | E51: =IF(Base_Arbres!A95<>"",VLOOKUP($A51,Base_Arbres,6,FALSE)*Crit4,"") -> 19 | F51: =IF(Base_Arbres!B95<>"",VLOOKUP($A51,Base_Arbres,7,FALSE)*Crit5,"") -> 28 | G51: =IF(Base_Arbres!C95<>"",VLOOKUP($A51,Base_Arbres,8,FALSE)*crit8,"") -> 6.65 | H51: =IF(Base_Arbres!D95<>"",VLOOKUP($A51,Base_Arbres,9,FALSE)*crit9,"") -> 15 | I51: =IF(ISNA(VLOOKUP(INDEX(Base_Typologie!$A$6:$P$1003,MATCH(A51,Base_Typologie!$A:$A,0)-5,MATCH(Typologie_Espace_Public,Base_Typologie!$6:$6,0)),TableauScoreTypologie2,2,FALSE)*Crit6),0,VLOOKUP(INDEX(Base_Typologie!$A$6:$P$1003,MATCH(A51,Base_Typologie!$A:$A,0)-5,MATCH(Typologie_Espace_Public,Base_Typologie!$6:$6,0)),TableauScoreTypologie2,2,FALSE)*Crit6) -> 10 | J51: 1 | K51: 1 | L51: 1 | M51: 1 | N51: 1 | O51: 1 | P51: 1 | Q51: 1 | R51: 1 | S51: 1 | T51: 1 | U51: 1 | V51: 187.05 | W51: =IF(Base_Arbres!V83<>"",VLOOKUP($A51,Base_Arbres,22,FALSE)*Crit7,"") -> 20
A52: =IF(Base_Arbres!A36<>"",Base_Arbres!A36,"") -> Arbre de neige | B52: =IF(Base_Arbres!A36<>"",VLOOKUP($A52,Base_Arbres,3,FALSE)*Crit1,"") -> 23.1 | C52: =IF(Base_Arbres!A36<>"",VLOOKUP($A52,Base_Arbres,4,FALSE)*Crit2,"") -> 28.25 | D52: =IF(Base_Arbres!A36<>"",VLOOKUP($A52,Base_Arbres,5,FALSE)*Crit3,"") -> 31.05 | E52: =IF(Base_Arbres!A36<>"",VLOOKUP($A52,Base_Arbres,6,FALSE)*Crit4,"") -> 6.5 | F52: =IF(Base_Arbres!B36<>"",VLOOKUP($A52,Base_Arbres,7,FALSE)*Crit5,"") -> 31 | G52: =IF(Base_Arbres!C36<>"",VLOOKUP($A52,Base_Arbres,8,FALSE)*crit8,"") -> 10 | H52: =IF(Base_Arbres!D36<>"",VLOOKUP($A52,Base_Arbres,9,FALSE)*crit9,"") -> 15 | I52: =IF(ISNA(VLOOKUP(INDEX(Base_Typologie!$A$6:$P$1003,MATCH(A52,Base_Typologie!$A:$A,0)-5,MATCH(Typologie_Espace_Public,Base_Typologie!$6:$6,0)),TableauScoreTypologie2,2,FALSE)*Crit6),0,VLOOKUP(INDEX(Base_Typologie!$A$6:$P$1003,MATCH(A52,Base_Typologie!$A:$A,0)-5,MATCH(Typologie_Espace_Public,Base_Typologie!$6:$6,0)),TableauScoreTypologie2,2,FALSE)*Crit6) -> 10 | J52: 1 | K52: 1 | L52: 1 | M52: 1 | N52: 1 | O52: 1 | P52: 1 | Q52: 1 | R52: 1 | S52: 1 | T52: 1 | U52: 1 | V52: 184.9 | W52: =IF(Base_Arbres!V92<>"",VLOOKUP($A52,Base_Arbres,22,FALSE)*Crit7,"") -> 20
A53: =IF(Base_Arbres!A81<>"",Base_Arbres!A81,"") -> Epicéa commun | B53: =IF(Base_Arbres!A81<>"",VLOOKUP($A53,Base_Arbres,3,FALSE)*Crit1,"") -> 17.2 | C53: =IF(Base_Arbres!A81<>"",VLOOKUP($A53,Base_Arbres,4,FALSE)*Crit2,"") -> 35.55 | D53: =IF(Base_Arbres!A81<>"",VLOOKUP($A53,Base_Arbres,5,FALSE)*Crit3,"") -> 23.45 | E53: =IF(Base_Arbres!A81<>"",VLOOKUP($A53,Base_Arbres,6,FALSE)*Crit4,"") -> 10.5 | F53: =IF(Base_Arbres!B81<>"",VLOOKUP($A53,Base_Arbres,7,FALSE)*Crit5,"") -> 29 | G53: =IF(Base_Arbres!C81<>"",VLOOKUP($A53,Base_Arbres,8,FALSE)*crit8,"") -> 20 | H53: =IF(Base_Arbres!D81<>"",VLOOKUP($A53,Base_Arbres,9,FALSE)*crit9,"") -> 15 | I53: =IF(ISNA(VLOOKUP(INDEX(Base_Typologie!$A$6:$P$1003,MATCH(A53,Base_Typologie!$A:$A,0)-5,MATCH(Typologie_Espace_Public,Base_Typologie!$6:$6,0)),TableauScoreTypologie2,2,FALSE)*Crit6),0,VLOOKUP(INDEX(Base_Typologie!$A$6:$P$1003,MATCH(A53,Base_Typologie!$A:$A,0)-5,MATCH(Typologie_Espace_Public,Base_Typologie!$6:$6,0)),TableauScoreTypologie2,2,FALSE)*Crit6) -> 10 | J53: 1 | K53: 1 | L53: 1 | M53: 1 | N53: 1 | O53: 1 | P53: 1 | Q53: 1 | R53: 1 | S53: 1 | T53: 1 | U53: 1 | V53: 175.7 | W53: =IF(Base_Arbres!V111<>"",VLOOKUP($A53,Base_Arbres,22,FALSE)*Crit7,"") -> 10
A54: =IF(Base_Arbres!A70<>"",Base_Arbres!A70,"") -> Pommier d'ornement japonais Brouwers Beauty | B54: =IF(Base_Arbres!A70<>"",VLOOKUP($A54,Base_Arbres,3,FALSE)*Crit1,"") -> 18 | C54: =IF(Base_Arbres!A70<>"",VLOOKUP($A54,Base_Arbres,4,FALSE)*Crit2,"") -> 25.9 | D54: =IF(Base_Arbres!A70<>"",VLOOKUP($A54,Base_Arbres,5,FALSE)*Crit3,"") -> 22.6 | E54: =IF(Base_Arbres!A70<>"",VLOOKUP($A54,Base_Arbres,6,FALSE)*Crit4,"") -> 19 | F54: =IF(Base_Arbres!B70<>"",VLOOKUP($A54,Base_Arbres,7,FALSE)*Crit5,"") -> 23 | G54: =IF(Base_Arbres!C70<>"",VLOOKUP($A54,Base_Arbres,8,FALSE)*crit8,"") -> 10 | H54: =IF(Base_Arbres!D70<>"",VLOOKUP($A54,Base_Arbres,9,FALSE)*crit9,"") -> 15 | I54: =IF(ISNA(VLOOKUP(INDEX(Base_Typologie!$A$6:$P$1003,MATCH(A54,Base_Typologie!$A:$A,0)-5,MATCH(Typologie_Espace_Public,Base_Typologie!$6:$6,0)),TableauScoreTypologie2,2,FALSE)*Crit6),0,VLOOKUP(INDEX(Base_Typologie!$A$6:$P$1003,MATCH(A54,Base_Typologie!$A:$A,0)-5,MATCH(Typologie_Espace_Public,Base_Typologie!$6:$6,0)),TableauScoreTypologie2,2,FALSE)*Crit6) -> 10 | J54: 1 | K54: 1 | L54: 1 | M54: 1 | N54: 1 | O54: 1 | P54: 1 | Q54: 1 | R54: 1 | S54: 1 | T54: 1 | U54: 1 | V54: 173.5 | W54: =IF(Base_Arbres!A106<>"",VLOOKUP($A54,Base_Arbres,22,FALSE)*Crit7,"") -> 20
A55: =IF(Base_Arbres!A125<>"",Base_Arbres!A125,"") -> Tilleul à grandes feuilles | B55: =IF(Base_Arbres!A125<>"",VLOOKUP($A55,Base_Arbres,3,FALSE)*Crit1,"") -> 29.5 | C55: =IF(Base_Arbres!A125<>"",VLOOKUP($A55,Base_Arbres,4,FALSE)*Crit2,"") -> 32.45 | D55: =IF(Base_Arbres!A125<>"",VLOOKUP($A55,Base_Arbres,5,FALSE)*Crit3,"") -> 41.55 | E55: =IF(Base_Arbres!A125<>"",VLOOKUP($A55,Base_Arbres,6,FALSE)*Crit4,"") -> 33.5 | F55: =IF(Base_Arbres!B125<>"",VLOOKUP($A55,Base_Arbres,7,FALSE)*Crit5,"") -> 41 | G55: =IF(Base_Arbres!C125<>"",VLOOKUP($A55,Base_Arbres,8,FALSE)*crit8,"") -> 40 | H55: =IF(Base_Arbres!D125<>"",VLOOKUP($A55,Base_Arbres,9,FALSE)*crit9,"") -> 15 | I55: =IF(ISNA(VLOOKUP(INDEX(Base_Typologie!$A$6:$P$1003,MATCH(A55,Base_Typologie!$A:$A,0)-5,MATCH(Typologie_Espace_Public,Base_Typologie!$6:$6,0)),TableauScoreTypologie2,2,FALSE)*Crit6),0,VLOOKUP(INDEX(Base_Typologie!$A$6:$P$1003,MATCH(A55,Base_Typologie!$A:$A,0)-5,MATCH(Typologie_Espace_Public,Base_Typologie!$6:$6,0)),TableauScoreTypologie2,2,FALSE)*Crit6) -> 50 | J55: 1 | K55: 1 | L55: 1 | M55: 1 | N55: 1 | O55: 1 | P55: 1 | Q55: 1 | R55: 1 | S55: 1 | T55: 1 | U55: 1 | V55: 418 | W55: =IF(Base_Arbres!V47<>"",VLOOKUP($A55,Base_Arbres,22,FALSE)*Crit7,"") -> 90
A56: =IF(Base_Arbres!A86<>"",Base_Arbres!A86,"") -> Platane commun | B56: =IF(Base_Arbres!A86<>"",VLOOKUP($A56,Base_Arbres,3,FALSE)*Crit1,"") -> 41.3 | C56: =IF(Base_Arbres!A86<>"",VLOOKUP($A56,Base_Arbres,4,FALSE)*Crit2,"") -> 27.4 | D56: =IF(Base_Arbres!A86<>"",VLOOKUP($A56,Base_Arbres,5,FALSE)*Crit3,"") -> 43.85 | E56: =IF(Base_Arbres!A86<>"",VLOOKUP($A56,Base_Arbres,6,FALSE)*Crit4,"") -> 14.5 | F56: =IF(Base_Arbres!B86<>"",VLOOKUP($A56,Base_Arbres,7,FALSE)*Crit5,"") -> 40 | G56: =IF(Base_Arbres!C86<>"",VLOOKUP($A56,Base_Arbres,8,FALSE)*crit8,"") -> 50 | H56: =IF(Base_Arbres!D86<>"",VLOOKUP($A56,Base_Arbres,9,FALSE)*crit9,"") -> 15 | I56: =IF(ISNA(VLOOKUP(INDEX(Base_Typologie!$A$6:$P$1003,MATCH(A56,Base_Typologie!$A:$A,0)-5,MATCH(Typologie_Espace_Public,Base_Typologie!$6:$6,0)),TableauScoreTypologie2,2,FALSE)*Crit6),0,VLOOKUP(INDEX(Base_Typologie!$A$6:$P$1003,MATCH(A56,Base_Typologie!$A:$A,0)-5,MATCH(Typologie_Espace_Public,Base_Typologie!$6:$6,0)),TableauScoreTypologie2,2,FALSE)*Crit6) -> 50 | J56: 1 | K56: 1 | L56: 1 | M56: 1 | N56: 1 | O56: 1 | P56: 1 | Q56: 1 | R56: 1 | S56: 1 | T56: 1 | U56: 1 | V56: 402.05 | W56: =IF(Base_Arbres!V126<>"",VLOOKUP($A56,Base_Arbres,22,FALSE)*Crit7,"") -> 80
A57: =IF(Base_Arbres!A85<>"",Base_Arbres!A85,"") -> Platane d'Orient | B57: =IF(Base_Arbres!A85<>"",VLOOKUP($A57,Base_Arbres,3,FALSE)*Crit1,"") -> 35.6 | C57: =IF(Base_Arbres!A85<>"",VLOOKUP($A57,Base_Arbres,4,FALSE)*Crit2,"") -> 29.7 | D57: =IF(Base_Arbres!A85<>"",VLOOKUP($A57,Base_Arbres,5,FALSE)*Crit3,"") -> 42.6 | E57: =IF(Base_Arbres!A85<>"",VLOOKUP($A57,Base_Arbres,6,FALSE)*Crit4,"") -> 8.5 | F57: =IF(Base_Arbres!B85<>"",VLOOKUP($A57,Base_Arbres,7,FALSE)*Crit5,"") -> 35.5 | G57: =IF(Base_Arbres!C85<>"",VLOOKUP($A57,Base_Arbres,8,FALSE)*crit8,"") -> 50 | H57: =IF(Base_Arbres!D85<>"",VLOOKUP($A57,Base_Arbres,9,FALSE)*crit9,"") -> 15 | I57: =IF(ISNA(VLOOKUP(INDEX(Base_Typologie!$A$6:$P$1003,MATCH(A57,Base_Typologie!$A:$A,0)-5,MATCH(Typologie_Espace_Public,Base_Typologie!$6:$6,0)),TableauScoreTypologie2,2,FALSE)*Crit6),0,VLOOKUP(INDEX(Base_Typologie!$A$6:$P$1003,MATCH(A57,Base_Typologie!$A:$A,0)-5,MATCH(Typologie_Espace_Public,Base_Typologie!$6:$6,0)),TableauScoreTypologie2,2,FALSE)*Crit6) -> 50 | J57: 1 | K57: 1 | L57: 1 | M57: 1 | N57: 1 | O57: 1 | P57: 1 | Q57: 1 | R57: 1 | S57: 1 | T57: 1 | U57: 1 | V57: 401.9 | W57: =IF(Base_Arbres!V67<>"",VLOOKUP($A57,Base_Arbres,22,FALSE)*Crit7,"") -> 90
A58: =IF(Base_Arbres!A124<>"",Base_Arbres!A124,"") -> Tilleul à petites feuilles | B58: =IF(Base_Arbres!A124<>"",VLOOKUP($A58,Base_Arbres,3,FALSE)*Crit1,"") -> 25.65 | C58: =IF(Base_Arbres!A124<>"",VLOOKUP($A58,Base_Arbres,4,FALSE)*Crit2,"") -> 30.15 | D58: =IF(Base_Arbres!A124<>"",VLOOKUP($A58,Base_Arbres,5,FALSE)*Crit3,"") -> 36.55 | E58: =IF(Base_Arbres!A124<>"",VLOOKUP($A58,Base_Arbres,6,FALSE)*Crit4,"") -> 37.5 | F58: =IF(Base_Arbres!B124<>"",VLOOKUP($A58,Base_Arbres,7,FALSE)*Crit5,"") -> 38 | G58: =IF(Base_Arbres!C124<>"",VLOOKUP($A58,Base_Arbres,8,FALSE)*crit8,"") -> 16.65 | H58: =IF(Base_Arbres!D124<>"",VLOOKUP($A58,Base_Arbres,9,FALSE)*crit9,"") -> 15 | I58: =IF(ISNA(VLOOKUP(INDEX(Base_Typologie!$A$6:$P$1003,MATCH(A58,Base_Typologie!$A:$A,0)-5,MATCH(Typologie_Espace_Public,Base_Typologie!$6:$6,0)),TableauScoreTypologie2,2,FALSE)*Crit6),0,VLOOKUP(INDEX(Base_Typologie!$A$6:$P$1003,MATCH(A58,Base_Typologie!$A:$A,0)-5,MATCH(Typologie_Espace_Public,Base_Typologie!$6:$6,0)),TableauScoreTypologie2,2,FALSE)*Crit6) -> 50 | J58: 1 | K58: 1 | L58: 1 | M58: 1 | N58: 1 | O58: 1 | P58: 1 | Q58: 1 | R58: 1 | S58: 1 | T58: 1 | U58: 1 | V58: 399.5 | W58: =IF(Base_Arbres!V93<>"",VLOOKUP($A58,Base_Arbres,22,FALSE)*Crit7,"") -> 100
A59: =IF(Base_Arbres!A104<>"",Base_Arbres!A104,"") -> Chêne sessile, Chêne rouvre | B59: =IF(Base_Arbres!A104<>"",VLOOKUP($A59,Base_Arbres,3,FALSE)*Crit1,"") -> 39.25 | C59: =IF(Base_Arbres!A104<>"",VLOOKUP($A59,Base_Arbres,4,FALSE)*Crit2,"") -> 26.15 | D59: =IF(Base_Arbres!A104<>"",VLOOKUP($A59,Base_Arbres,5,FALSE)*Crit3,"") -> 42.2 | E59: =IF(Base_Arbres!A104<>"",VLOOKUP($A59,Base_Arbres,6,FALSE)*Crit4,"") -> 37.5 | F59: =IF(Base_Arbres!B104<>"",VLOOKUP($A59,Base_Arbres,7,FALSE)*Crit5,"") -> 36.5 | G59: =IF(Base_Arbres!C104<>"",VLOOKUP($A59,Base_Arbres,8,FALSE)*crit8,"") -> 40 | H59: =IF(Base_Arbres!D104<>"",VLOOKUP($A59,Base_Arbres,9,FALSE)*crit9,"") -> 15 | I59: =IF(ISNA(VLOOKUP(INDEX(Base_Typologie!$A$6:$P$1003,MATCH(A59,Base_Typologie!$A:$A,0)-5,MATCH(Typologie_Espace_Public,Base_Typologie!$6:$6,0)),TableauScoreTypologie2,2,FALSE)*Crit6),0,VLOOKUP(INDEX(Base_Typologie!$A$6:$P$1003,MATCH(A59,Base_Typologie!$A:$A,0)-5,MATCH(Typologie_Espace_Public,Base_Typologie!$6:$6,0)),TableauScoreTypologie2,2,FALSE)*Crit6) -> 10 | J59: 1 | K59: 1 | L59: 1 | M59: 1 | N59: 1 | O59: 1 | P59: 1 | Q59: 1 | R59: 1 | S59: 1 | T59: 1 | U59: 1 | V59: 396.6 | W59: =IF(Base_Arbres!V68<>"",VLOOKUP($A59,Base_Arbres,22,FALSE)*Crit7,"") -> 100
A60: =IF(Base_Arbres!A6<>"",Base_Arbres!A6,"") -> Érable plane | B60: =IF(Base_Arbres!A6<>"",VLOOKUP($A60,Base_Arbres,3,FALSE)*Crit1,"") -> 34.5 | C60: =IF(Base_Arbres!A6<>"",VLOOKUP($A60,Base_Arbres,4,FALSE)*Crit2,"") -> 29 | D60: =IF(Base_Arbres!A6<>"",VLOOKUP($A60,Base_Arbres,5,FALSE)*Crit3,"") -> 42.2 | E60: =IF(Base_Arbres!A6<>"",VLOOKUP($A60,Base_Arbres,6,FALSE)*Crit4,"") -> 23 | F60: =IF(Base_Arbres!B6<>"",VLOOKUP($A60,Base_Arbres,7,FALSE)*Crit5,"") -> 41 | G60: =IF(Base_Arbres!C6<>"",VLOOKUP($A60,Base_Arbres,8,FALSE)*crit8,"") -> 16.65 | H60: =IF(Base_Arbres!D6<>"",VLOOKUP($A60,Base_Arbres,9,FALSE)*crit9,"") -> 15 | I60: =IF(ISNA(VLOOKUP(INDEX(Base_Typologie!$A$6:$P$1003,MATCH(A60,Base_Typologie!$A:$A,0)-5,MATCH(Typologie_Espace_Public,Base_Typologie!$6:$6,0)),TableauScoreTypologie2,2,FALSE)*Crit6),0,VLOOKUP(INDEX(Base_Typologie!$A$6:$P$1003,MATCH(A60,Base_Typologie!$A:$A,0)-5,MATCH(Typologie_Espace_Public,Base_Typologie!$6:$6,0)),TableauScoreTypologie2,2,FALSE)*Crit6) -> 50 | J60: 1 | K60: 1 | L60: 1 | M60: 1 | N60: 1 | O60: 1 | P60: 1 | Q60: 1 | R60: 1 | S60: 1 | T60: 1 | U60: 1 | V60: 386.35 | W60: =IF(Base_Arbres!V55<>"",VLOOKUP($A60,Base_Arbres,22,FALSE)*Crit7,"") -> 90
A61: =IF(Base_Arbres!A100<>"",Base_Arbres!A100,"") -> Chêne de Hongrie | B61: =IF(Base_Arbres!A100<>"",VLOOKUP($A61,Base_Arbres,3,FALSE)*Crit1,"") -> 40 | C61: =IF(Base_Arbres!A100<>"",VLOOKUP($A61,Base_Arbres,4,FALSE)*Crit2,"") -> 26.25 | D61: =IF(Base_Arbres!A100<>"",VLOOKUP($A61,Base_Arbres,5,FALSE)*Crit3,"") -> 42.9 | E61: =IF(Base_Arbres!A100<>"",VLOOKUP($A61,Base_Arbres,6,FALSE)*Crit4,"") -> 27 | F61: =IF(Base_Arbres!B100<>"",VLOOKUP($A61,Base_Arbres,7,FALSE)*Crit5,"") -> 37.5 | G61: =IF(Base_Arbres!C100<>"",VLOOKUP($A61,Base_Arbres,8,FALSE)*crit8,"") -> 20 | H61: =IF(Base_Arbres!D100<>"",VLOOKUP($A61,Base_Arbres,9,FALSE)*crit9,"") -> 15 | I61: =IF(ISNA(VLOOKUP(INDEX(Base_Typologie!$A$6:$P$1003,MATCH(A61,Base_Typologie!$A:$A,0)-5,MATCH(Typologie_Espace_Public,Base_Typologie!$6:$6,0)),TableauScoreTypologie2,2,FALSE)*Crit6),0,VLOOKUP(INDEX(Base_Typologie!$A$6:$P$1003,MATCH(A61,Base_Typologie!$A:$A,0)-5,MATCH(Typologie_Espace_Public,Base_Typologie!$6:$6,0)),TableauScoreTypologie2,2,FALSE)*Crit6) -> 50 | J61: 1 | K61: 1 | L61: 1 | M61: 1 | N61: 1 | O61: 1 | P61: 1 | Q61: 1 | R61: 1 | S61: 1 | T61: 1 | U61: 1 | V61: 378.65 | W61: =IF(Base_Arbres!V12<>"",VLOOKUP($A61,Base_Arbres,22,FALSE)*Crit7,"") -> 80
A62: =IF(Base_Arbres!A39<>"",Base_Arbres!A39,"") -> Noisetier de Byzance | B62: =IF(Base_Arbres!A39<>"",VLOOKUP($A62,Base_Arbres,3,FALSE)*Crit1,"") -> 30.85 | C62: =IF(Base_Arbres!A39<>"",VLOOKUP($A62,Base_Arbres,4,FALSE)*Crit2,"") -> 26.85 | D62: =IF(Base_Arbres!A39<>"",VLOOKUP($A62,Base_Arbres,5,FALSE)*Crit3,"") -> 37.6 | E62: =IF(Base_Arbres!A39<>"",VLOOKUP($A62,Base_Arbres,6,FALSE)*Crit4,"") -> 12.5 | F62: =IF(Base_Arbres!B39<>"",VLOOKUP($A62,Base_Arbres,7,FALSE)*Crit5,"") -> 35.5 | G62: =IF(Base_Arbres!C39<>"",VLOOKUP($A62,Base_Arbres,8,FALSE)*crit8,"") -> 16.65 | H62: =IF(Base_Arbres!D39<>"",VLOOKUP($A62,Base_Arbres,9,FALSE)*crit9,"") -> 50 | I62: =IF(ISNA(VLOOKUP(INDEX(Base_Typologie!$A$6:$P$1003,MATCH(A62,Base_Typologie!$A:$A,0)-5,MATCH(Typologie_Espace_Public,Base_Typologie!$6:$6,0)),TableauScoreTypologie2,2,FALSE)*Crit6),0,VLOOKUP(INDEX(Base_Typologie!$A$6:$P$1003,MATCH(A62,Base_Typologie!$A:$A,0)-5,MATCH(Typologie_Espace_Public,Base_Typologie!$6:$6,0)),TableauScoreTypologie2,2,FALSE)*Crit6) -> 30 | J62: 1 | K62: 1 | L62: 1 | M62: 1 | N62: 1 | O62: 1 | P62: 1 | Q62: 1 | R62: 1 | S62: 1 | T62: 1 | U62: 1 | V62: 374.95 | W62: =IF(Base_Arbres!V82<>"",VLOOKUP($A62,Base_Arbres,22,FALSE)*Crit7,"") -> 90
A63: =IF(Base_Arbres!A106<>"",Base_Arbres!A106,"") -> Chêne pédonculé | B63: =IF(Base_Arbres!A106<>"",VLOOKUP($A63,Base_Arbres,3,FALSE)*Crit1,"") -> 40 | C63: =IF(Base_Arbres!A106<>"",VLOOKUP($A63,Base_Arbres,4,FALSE)*Crit2,"") -> 25 | D63: =IF(Base_Arbres!A106<>"",VLOOKUP($A63,Base_Arbres,5,FALSE)*Crit3,"") -> 40 | E63: =IF(Base_Arbres!A106<>"",VLOOKUP($A63,Base_Arbres,6,FALSE)*Crit4,"") -> 40 | F63: =IF(Base_Arbres!A106<>"",VLOOKUP($A63,Base_Arbres,7,FALSE)*Crit5,"") -> 37 | G63: =IF(Base_Arbres!A106<>"",VLOOKUP($A63,Base_Arbres,8,FALSE)*crit8,"") -> 40 | H63: =IF(Base_Arbres!A106<>"",VLOOKUP($A63,Base_Arbres,9,FALSE)*crit9,"") -> 15 | I63: =IF(ISNA(VLOOKUP(INDEX(Base_Typologie!$A$6:$P$1003,MATCH(A63,Base_Typologie!$A:$A,0)-5,MATCH(Typologie_Espace_Public,Base_Typologie!$6:$6,0)),TableauScoreTypologie2,2,FALSE)*Crit6),0,VLOOKUP(INDEX(Base_Typologie!$A$6:$P$1003,MATCH(A63,Base_Typologie!$A:$A,0)-5,MATCH(Typologie_Espace_Public,Base_Typologie!$6:$6,0)),TableauScoreTypologie2,2,FALSE)*Crit6) -> 10 | J63: 1 | K63: 1 | L63: 1 | M63: 1 | N63: 1 | O63: 1 | P63: 1 | Q63: 1 | R63: 1 | S63: 1 | T63: 1 | U63: 1 | V63: 367 | W63: =IF(Base_Arbres!V90<>"",VLOOKUP($A63,Base_Arbres,22,FALSE)*Crit7,"") -> 80
A64: =IF(Base_Arbres!A101<>"",Base_Arbres!A101,"") -> Chêne vert | B64: =IF(Base_Arbres!A101<>"",VLOOKUP($A64,Base_Arbres,3,FALSE)*Crit1,"") -> 23.95 | C64: =IF(Base_Arbres!A101<>"",VLOOKUP($A64,Base_Arbres,4,FALSE)*Crit2,"") -> 31.4 | D64: =IF(Base_Arbres!A101<>"",VLOOKUP($A64,Base_Arbres,5,FALSE)*Crit3,"") -> 33.75 | E64: =IF(Base_Arbres!A101<>"",VLOOKUP($A64,Base_Arbres,6,FALSE)*Crit4,"") -> 23 | F64: =IF(Base_Arbres!B101<>"",VLOOKUP($A64,Base_Arbres,7,FALSE)*Crit5,"") -> 33 | G64: =IF(Base_Arbres!C101<>"",VLOOKUP($A64,Base_Arbres,8,FALSE)*crit8,"") -> 20 | H64: =IF(Base_Arbres!D101<>"",VLOOKUP($A64,Base_Arbres,9,FALSE)*crit9,"") -> 15 | I64: =IF(ISNA(VLOOKUP(INDEX(Base_Typologie!$A$6:$P$1003,MATCH(A64,Base_Typologie!$A:$A,0)-5,MATCH(Typologie_Espace_Public,Base_Typologie!$6:$6,0)),TableauScoreTypologie2,2,FALSE)*Crit6),0,VLOOKUP(INDEX(Base_Typologie!$A$6:$P$1003,MATCH(A64,Base_Typologie!$A:$A,0)-5,MATCH(Typologie_Espace_Public,Base_Typologie!$6:$6,0)),TableauScoreTypologie2,2,FALSE)*Crit6) -> 50 | J64: 1 | K64: 1 | L64: 1 | M64: 1 | N64: 1 | O64: 1 | P64: 1 | Q64: 1 | R64: 1 | S64: 1 | T64: 1 | U64: 1 | V64: 365.1 | W64: =IF(Base_Arbres!V115<>"",VLOOKUP($A64,Base_Arbres,22,FALSE)*Crit7,"") -> 90
A65: =IF(Base_Arbres!A4<>"",Base_Arbres!A4,"") -> Érable champêtre | B65: =IF(Base_Arbres!A4<>"",VLOOKUP($A65,Base_Arbres,3,FALSE)*Crit1,"") -> 32.95 | C65: =IF(Base_Arbres!A4<>"",VLOOKUP($A65,Base_Arbres,4,FALSE)*Crit2,"") -> 22.4 | D65: =IF(Base_Arbres!A4<>"",VLOOKUP($A65,Base_Arbres,5,FALSE)*Crit3,"") -> 33.15 | E65: =IF(Base_Arbres!A4<>"",VLOOKUP($A65,Base_Arbres,6,FALSE)*Crit4,"") -> 31.5 | F65: =IF(Base_Arbres!B4<>"",VLOOKUP($A65,Base_Arbres,7,FALSE)*Crit5,"") -> 35 | G65: =IF(Base_Arbres!C4<>"",VLOOKUP($A65,Base_Arbres,8,FALSE)*crit8,"") -> 10 | H65: =IF(Base_Arbres!D4<>"",VLOOKUP($A65,Base_Arbres,9,FALSE)*crit9,"") -> 15 | I65: =IF(ISNA(VLOOKUP(INDEX(Base_Typologie!$A$6:$P$1003,MATCH(A65,Base_Typologie!$A:$A,0)-5,MATCH(Typologie_Espace_Public,Base_Typologie!$6:$6,0)),TableauScoreTypologie2,2,FALSE)*Crit6),0,VLOOKUP(INDEX(Base_Typologie!$A$6:$P$1003,MATCH(A65,Base_Typologie!$A:$A,0)-5,MATCH(Typologie_Espace_Public,Base_Typologie!$6:$6,0)),TableauScoreTypologie2,2,FALSE)*Crit6) -> 30 | J65: 1 | K65: 1 | L65: 1 | M65: 1 | N65: 1 | O65: 1 | P65: 1 | Q65: 1 | R65: 1 | S65: 1 | T65: 1 | U65: 1 | V65: 360 | W65: =IF(Base_Arbres!V57<>"",VLOOKUP($A65,Base_Arbres,22,FALSE)*Crit7,"") -> 100
A66: =IF(Base_Arbres!A84<>"",Base_Arbres!A84,"") -> Platane d’Occident | B66: =IF(Base_Arbres!A84<>"",VLOOKUP($A66,Base_Arbres,3,FALSE)*Crit1,"") -> 40.1 | C66: =IF(Base_Arbres!A84<>"",VLOOKUP($A66,Base_Arbres,4,FALSE)*Crit2,"") -> 27.4 | D66: =IF(Base_Arbres!A84<>"",VLOOKUP($A66,Base_Arbres,5,FALSE)*Crit3,"") -> 40.75 | E66: =IF(Base_Arbres!A84<>"",VLOOKUP($A66,Base_Arbres,6,FALSE)*Crit4,"") -> 8.5 | F66: =IF(Base_Arbres!B84<>"",VLOOKUP($A66,Base_Arbres,7,FALSE)*Crit5,"") -> 34 | G66: =IF(Base_Arbres!C84<>"",VLOOKUP($A66,Base_Arbres,8,FALSE)*crit8,"") -> 40 | H66: =IF(Base_Arbres!D84<>"",VLOOKUP($A66,Base_Arbres,9,FALSE)*crit9,"") -> 15 | I66: =IF(ISNA(VLOOKUP(INDEX(Base_Typologie!$A$6:$P$1003,MATCH(A66,Base_Typologie!$A:$A,0)-5,MATCH(Typologie_Espace_Public,Base_Typologie!$6:$6,0)),TableauScoreTypologie2,2,FALSE)*Crit6),0,VLOOKUP(INDEX(Base_Typologie!$A$6:$P$1003,MATCH(A66,Base_Typologie!$A:$A,0)-5,MATCH(Typologie_Espace_Public,Base_Typologie!$6:$6,0)),TableauScoreTypologie2,2,FALSE)*Crit6) -> 50 | J66: =IF(A66<>"",IF(LEFT(VLOOKUP($A66,Base_Arbres,10,FALSE),1)>=LEFT(Cont_Racines,1),0,1),0) -> 1 | K66: =IF(A66<>"",IF(LEFT(VLOOKUP($A66,Base_Arbres,11,FALSE),1)>=LEFT(Cont_Branches,1),0,1),0) -> 1 | L66: =IF(A66<>"",IF(LEFT(VLOOKUP($A66,Base_Arbres,12,FALSE),1)>=LEFT(Cont_Chablis,1),0,1),0) -> 1 | M66: =IF(A66<>"",IF(LEFT(VLOOKUP($A66,Base_Arbres,13,FALSE),1)>=LEFT(Cont_Fructifications,1),0,1),0) -> 1 | N66: =IF(A66<>"",IF(LEFT(VLOOKUP($A66,Base_Arbres,14,FALSE),1)>=LEFT(Cont_Miellat,1),0,1),0) -> 1 | O66: =IF(A66<>"",IF(LEFT(VLOOKUP($A66,Base_Arbres,15,FALSE),1)>=LEFT(Cont_Fruits_Toxiques,1),0,1),0) -> 1 | P66: =IF(A66<>"",IF(LEFT(VLOOKUP($A66,Base_Arbres,16,FALSE),1)>=LEFT(Cont_Hauteur,1),0,1),0) -> 1 | Q66: =IF(A66<>"",IF(LEFT(VLOOKUP($A66,Base_Arbres,17,FALSE),1)>=LEFT(Cont_Envergure,1),0,1),0) -> 1 | R66: =IF(A66<>"",IF(LEFT(VLOOKUP($A66,Base_Arbres,18,FALSE),1)>=LEFT(Cont_pollen,1),0,1),0) -> 1 | S66: =IF(B66<>"",IF(LEFT(VLOOKUP($A66,Base_Arbres,19,FALSE),1)>=LEFT(Cont_malodo,1),0,1),0) -> 1 | T66: =IF(A66<>"",IF(LEFT(VLOOKUP($A66,Base_Arbres,20,FALSE),1)>=LEFT(Cont_chenilles,1),0,1),0) -> 1 | U66: =IF(A66<>"",IF(LEFT(VLOOKUP($A66,Base_Arbres,21,FALSE),1)>=LEFT(Cont_epineux,1),0,1),0) -> 1 | V66: =(SUM(B66:I66)+W66*1.5)*J66*K66*L66*M66*N66*O66*P66*Q66*R66*S66*T66*U66 -> 345.75 | W66: =IF(Base_Arbres!V32<>"",VLOOKUP($A66,Base_Arbres,22,FALSE)*Crit7,"") -> 60
A67: =IF(Base_Arbres!A98<>"",Base_Arbres!A98,"") -> Chêne blanc | B67: =IF(Base_Arbres!A98<>"",VLOOKUP($A67,Base_Arbres,3,FALSE)*Crit1,"") -> 31.65 | C67: =IF(Base_Arbres!A98<>"",VLOOKUP($A67,Base_Arbres,4,FALSE)*Crit2,"") -> 33 | D67: =IF(Base_Arbres!A98<>"",VLOOKUP($A67,Base_Arbres,5,FALSE)*Crit3,"") -> 44.7 | E67: =IF(Base_Arbres!A98<>"",VLOOKUP($A67,Base_Arbres,6,FALSE)*Crit4,"") -> 25 | F67: =IF(Base_Arbres!B98<>"",VLOOKUP($A67,Base_Arbres,7,FALSE)*Crit5,"") -> 39.5 | G67: =IF(Base_Arbres!C98<>"",VLOOKUP($A67,Base_Arbres,8,FALSE)*crit8,"") -> 40 | H67: =IF(Base_Arbres!D98<>"",VLOOKUP($A67,Base_Arbres,9,FALSE)*crit9,"") -> 15 | I67: =IF(ISNA(VLOOKUP(INDEX(Base_Typologie!$A$6:$P$1003,MATCH(A67,Base_Typologie!$A:$A,0)-5,MATCH(Typologie_Espace_Public,Base_Typologie!$6:$6,0)),TableauScoreTypologie2,2,FALSE)*Crit6),0,VLOOKUP(INDEX(Base_Typologie!$A$6:$P$1003,MATCH(A67,Base_Typologie!$A:$A,0)-5,MATCH(Typologie_Espace_Public,Base_Typologie!$6:$6,0)),TableauScoreTypologie2,2,FALSE)*Crit6) -> 10 | J67: 1 | K67: 1 | L67: 1 | M67: 1 | N67: 1 | O67: 1 | P67: 1 | Q67: 1 | R67: 1 | S67: 1 | T67: 1 | U67: 1 | V67: 343.85 | W67: =IF(Base_Arbres!V37<>"",VLOOKUP($A67,Base_Arbres,22,FALSE)*Crit7,"") -> 70
A68: =IF(Base_Arbres!A99<>"",Base_Arbres!A99,"") -> Chêne chevelu de bourgogne | B68: =IF(Base_Arbres!A99<>"",VLOOKUP($A68,Base_Arbres,3,FALSE)*Crit1,"") -> 31.45 | C68: =IF(Base_Arbres!A99<>"",VLOOKUP($A68,Base_Arbres,4,FALSE)*Crit2,"") -> 26.85 | D68: =IF(Base_Arbres!A99<>"",VLOOKUP($A68,Base_Arbres,5,FALSE)*Crit3,"") -> 37.9 | E68: =IF(Base_Arbres!A99<>"",VLOOKUP($A68,Base_Arbres,6,FALSE)*Crit4,"") -> 23 | F68: =IF(Base_Arbres!B99<>"",VLOOKUP($A68,Base_Arbres,7,FALSE)*Crit5,"") -> 33.5 | G68: =IF(Base_Arbres!C99<>"",VLOOKUP($A68,Base_Arbres,8,FALSE)*crit8,"") -> 20 | H68: =IF(Base_Arbres!D99<>"",VLOOKUP($A68,Base_Arbres,9,FALSE)*crit9,"") -> 15 | I68: =IF(ISNA(VLOOKUP(INDEX(Base_Typologie!$A$6:$P$1003,MATCH(A68,Base_Typologie!$A:$A,0)-5,MATCH(Typologie_Espace_Public,Base_Typologie!$6:$6,0)),TableauScoreTypologie2,2,FALSE)*Crit6),0,VLOOKUP(INDEX(Base_Typologie!$A$6:$P$1003,MATCH(A68,Base_Typologie!$A:$A,0)-5,MATCH(Typologie_Espace_Public,Base_Typologie!$6:$6,0)),TableauScoreTypologie2,2,FALSE)*Crit6) -> 10 | J68: 1 | K68: 1 | L68: 1 | M68: 1 | N68: 1 | O68: 1 | P68: 1 | Q68: 1 | R68: 1 | S68: 1 | T68: 1 | U68: 1 | V68: 332.7 | W68: =IF(Base_Arbres!V63<>"",VLOOKUP($A68,Base_Arbres,22,FALSE)*Crit7,"") -> 90
A69: =IF(Base_Arbres!A126<>"",Base_Arbres!A126,"") -> Tilleul de Crimée | B69: =IF(Base_Arbres!A126<>"",VLOOKUP($A69,Base_Arbres,3,FALSE)*Crit1,"") -> 29.5 | C69: =IF(Base_Arbres!A126<>"",VLOOKUP($A69,Base_Arbres,4,FALSE)*Crit2,"") -> 26.75 | D69: =IF(Base_Arbres!A126<>"",VLOOKUP($A69,Base_Arbres,5,FALSE)*Crit3,"") -> 35.3 | E69: =IF(Base_Arbres!A126<>"",VLOOKUP($A69,Base_Arbres,6,FALSE)*Crit4,"") -> 16.5 | F69: =IF(Base_Arbres!B126<>"",VLOOKUP($A69,Base_Arbres,7,FALSE)*Crit5,"") -> 34 | G69: =IF(Base_Arbres!C126<>"",VLOOKUP($A69,Base_Arbres,8,FALSE)*crit8,"") -> 16.65 | H69: =IF(Base_Arbres!D126<>"",VLOOKUP($A69,Base_Arbres,9,FALSE)*crit9,"") -> 15 | I69: =IF(ISNA(VLOOKUP(INDEX(Base_Typologie!$A$6:$P$1003,MATCH(A69,Base_Typologie!$A:$A,0)-5,MATCH(Typologie_Espace_Public,Base_Typologie!$6:$6,0)),TableauScoreTypologie2,2,FALSE)*Crit6),0,VLOOKUP(INDEX(Base_Typologie!$A$6:$P$1003,MATCH(A69,Base_Typologie!$A:$A,0)-5,MATCH(Typologie_Espace_Public,Base_Typologie!$6:$6,0)),TableauScoreTypologie2,2,FALSE)*Crit6) -> 50 | J69: 1 | K69: 1 | L69: 1 | M69: 1 | N69: 1 | O69: 1 | P69: 1 | Q69: 1 | R69: 1 | S69: 1 | T69: 1 | U69: 1 | V69: 328.7 | W69: =IF(Base_Arbres!V73<>"",VLOOKUP($A69,Base_Arbres,22,FALSE)*Crit7,"") -> 70
A70: =IF(Base_Arbres!A105<>"",Base_Arbres!A105,"") -> Chêne pubescent | B70: =IF(Base_Arbres!A105<>"",VLOOKUP($A70,Base_Arbres,3,FALSE)*Crit1,"") -> 23.7 | C70: =IF(Base_Arbres!A105<>"",VLOOKUP($A70,Base_Arbres,4,FALSE)*Crit2,"") -> 27.9 | D70: =IF(Base_Arbres!A105<>"",VLOOKUP($A70,Base_Arbres,5,FALSE)*Crit3,"") -> 32.6 | E70: =IF(Base_Arbres!A105<>"",VLOOKUP($A70,Base_Arbres,6,FALSE)*Crit4,"") -> 33.5 | F70: =IF(Base_Arbres!B105<>"",VLOOKUP($A70,Base_Arbres,7,FALSE)*Crit5,"") -> 32 | G70: =IF(Base_Arbres!C105<>"",VLOOKUP($A70,Base_Arbres,8,FALSE)*crit8,"") -> 13.35 | H70: =IF(Base_Arbres!D105<>"",VLOOKUP($A70,Base_Arbres,9,FALSE)*crit9,"") -> 15 | I70: =IF(ISNA(VLOOKUP(INDEX(Base_Typologie!$A$6:$P$1003,MATCH(A70,Base_Typologie!$A:$A,0)-5,MATCH(Typologie_Espace_Public,Base_Typologie!$6:$6,0)),TableauScoreTypologie2,2,FALSE)*Crit6),0,VLOOKUP(INDEX(Base_Typologie!$A$6:$P$1003,MATCH(A70,Base_Typologie!$A:$A,0)-5,MATCH(Typologie_Espace_Public,Base_Typologie!$6:$6,0)),TableauScoreTypologie2,2,FALSE)*Crit6) -> 10 | J70: 1 | K70: 1 | L70: 1 | M70: 1 | N70: 1 | O70: 1 | P70: 1 | Q70: 1 | R70: 1 | S70: 1 | T70: 1 | U70: 1 | V70: 323.05 | W70: =IF(Base_Arbres!V114<>"",VLOOKUP($A70,Base_Arbres,22,FALSE)*Crit7,"") -> 90
A71: =IF(Base_Arbres!A22<>"",Base_Arbres!A22,"") -> Charme commun | B71: =IF(Base_Arbres!A22<>"",VLOOKUP($A71,Base_Arbres,3,FALSE)*Crit1,"") -> 19.35 | C71: =IF(Base_Arbres!A22<>"",VLOOKUP($A71,Base_Arbres,4,FALSE)*Crit2,"") -> 31 | D71: =IF(Base_Arbres!A22<>"",VLOOKUP($A71,Base_Arbres,5,FALSE)*Crit3,"") -> 35 | E71: =IF(Base_Arbres!A22<>"",VLOOKUP($A71,Base_Arbres,6,FALSE)*Crit4,"") -> 29 | F71: =IF(Base_Arbres!B22<>"",VLOOKUP($A71,Base_Arbres,7,FALSE)*Crit5,"") -> 37.5 | G71: =IF(Base_Arbres!C22<>"",VLOOKUP($A71,Base_Arbres,8,FALSE)*crit8,"") -> 20 | H71: =IF(Base_Arbres!D22<>"",VLOOKUP($A71,Base_Arbres,9,FALSE)*crit9,"") -> 15 | I71: =IF(ISNA(VLOOKUP(INDEX(Base_Typologie!$A$6:$P$1003,MATCH(A71,Base_Typologie!$A:$A,0)-5,MATCH(Typologie_Espace_Public,Base_Typologie!$6:$6,0)),TableauScoreTypologie2,2,FALSE)*Crit6),0,VLOOKUP(INDEX(Base_Typologie!$A$6:$P$1003,MATCH(A71,Base_Typologie!$A:$A,0)-5,MATCH(Typologie_Espace_Public,Base_Typologie!$6:$6,0)),TableauScoreTypologie2,2,FALSE)*Crit6) -> 30 | J71: 1 | K71: 1 | L71: 1 | M71: 1 | N71: 1 | O71: 1 | P71: 1 | Q71: 1 | R71: 1 | S71: 1 | T71: 1 | U71: 1 | V71: 321.85 | W71: =IF(Base_Arbres!V54<>"",VLOOKUP($A71,Base_Arbres,22,FALSE)*Crit7,"") -> 70
A72: =IF(Base_Arbres!A107<>"",Base_Arbres!A107,"") -> Chêne rouge d’Amérique | B72: =IF(Base_Arbres!A107<>"",VLOOKUP($A72,Base_Arbres,3,FALSE)*Crit1,"") -> 39.4 | C72: =IF(Base_Arbres!A107<>"",VLOOKUP($A72,Base_Arbres,4,FALSE)*Crit2,"") -> 26.25 | D72: =IF(Base_Arbres!A107<>"",VLOOKUP($A72,Base_Arbres,5,FALSE)*Crit3,"") -> 41.35 | E72: =IF(Base_Arbres!A107<>"",VLOOKUP($A72,Base_Arbres,6,FALSE)*Crit4,"") -> 10 | F72: =IF(Base_Arbres!B107<>"",VLOOKUP($A72,Base_Arbres,7,FALSE)*Crit5,"") -> 34.5 | G72: =IF(Base_Arbres!C107<>"",VLOOKUP($A72,Base_Arbres,8,FALSE)*crit8,"") -> 20 | H72: =IF(Base_Arbres!D107<>"",VLOOKUP($A72,Base_Arbres,9,FALSE)*crit9,"") -> 15 | I72: =IF(ISNA(VLOOKUP(INDEX(Base_Typologie!$A$6:$P$1003,MATCH(A72,Base_Typologie!$A:$A,0)-5,MATCH(Typologie_Espace_Public,Base_Typologie!$6:$6,0)),TableauScoreTypologie2,2,FALSE)*Crit6),0,VLOOKUP(INDEX(Base_Typologie!$A$6:$P$1003,MATCH(A72,Base_Typologie!$A:$A,0)-5,MATCH(Typologie_Espace_Public,Base_Typologie!$6:$6,0)),TableauScoreTypologie2,2,FALSE)*Crit6) -> 10 | J72: 1 | K72: 1 | L72: 1 | M72: 1 | N72: 1 | O72: 1 | P72: 1 | Q72: 1 | R72: 1 | S72: 1 | T72: 1 | U72: 1 | V72: 316.5 | W72: =IF(Base_Arbres!V129<>"",VLOOKUP($A72,Base_Arbres,22,FALSE)*Crit7,"") -> 80
A73: =IF(Base_Arbres!A103<>"",Base_Arbres!A103,"") -> Chêne du Caucase | B73: =IF(Base_Arbres!A103<>"",VLOOKUP($A73,Base_Arbres,3,FALSE)*Crit1,"") -> 26.5 | C73: =IF(Base_Arbres!A103<>"",VLOOKUP($A73,Base_Arbres,4,FALSE)*Crit2,"") -> 29.6 | D73: =IF(Base_Arbres!A103<>"",VLOOKUP($A73,Base_Arbres,5,FALSE)*Crit3,"") -> 38.75 | E73: =IF(Base_Arbres!A103<>"",VLOOKUP($A73,Base_Arbres,6,FALSE)*Crit4,"") -> 23 | F73: =IF(Base_Arbres!B103<>"",VLOOKUP($A73,Base_Arbres,7,FALSE)*Crit5,"") -> 36 | G73: =IF(Base_Arbres!C103<>"",VLOOKUP($A73,Base_Arbres,8,FALSE)*crit8,"") -> 13.35 | H73: =IF(Base_Arbres!D103<>"",VLOOKUP($A73,Base_Arbres,9,FALSE)*crit9,"") -> 15 | I73: =IF(ISNA(VLOOKUP(INDEX(Base_Typologie!$A$6:$P$1003,MATCH(A73,Base_Typologie!$A:$A,0)-5,MATCH(Typologie_Espace_Public,Base_Typologie!$6:$6,0)),TableauScoreTypologie2,2,FALSE)*Crit6),0,VLOOKUP(INDEX(Base_Typologie!$A$6:$P$1003,MATCH(A73,Base_Typologie!$A:$A,0)-5,MATCH(Typologie_Espace_Public,Base_Typologie!$6:$6,0)),TableauScoreTypologie2,2,FALSE)*Crit6) -> 10 | J73: 1 | K73: 1 | L73: 1 | M73: 1 | N73: 1 | O73: 1 | P73: 1 | Q73: 1 | R73: 1 | S73: 1 | T73: 1 | U73: 1 | V73: 312.2 | W73: =IF(Base_Arbres!V65<>"",VLOOKUP($A73,Base_Arbres,22,FALSE)*Crit7,"") -> 80
A74: =IF(Base_Arbres!A52<>"",Base_Arbres!A52,"") -> Frêne à fleurs colonnaire | B74: =IF(Base_Arbres!A52<>"",VLOOKUP($A74,Base_Arbres,3,FALSE)*Crit1,"") -> 29.5 | C74: =IF(Base_Arbres!A52<>"",VLOOKUP($A74,Base_Arbres,4,FALSE)*Crit2,"") -> 20.7 | D74: =IF(Base_Arbres!A52<>"",VLOOKUP($A74,Base_Arbres,5,FALSE)*Crit3,"") -> 25.4 | E74: =IF(Base_Arbres!A52<>"",VLOOKUP($A74,Base_Arbres,6,FALSE)*Crit4,"") -> 16.5 | F74: =IF(Base_Arbres!B52<>"",VLOOKUP($A74,Base_Arbres,7,FALSE)*Crit5,"") -> 24.5 | G74: =IF(Base_Arbres!C52<>"",VLOOKUP($A74,Base_Arbres,8,FALSE)*crit8,"") -> 10 | H74: =IF(Base_Arbres!D52<>"",VLOOKUP($A74,Base_Arbres,9,FALSE)*crit9,"") -> 15 | I74: =IF(ISNA(VLOOKUP(INDEX(Base_Typologie!$A$6:$P$1003,MATCH(A74,Base_Typologie!$A:$A,0)-5,MATCH(Typologie_Espace_Public,Base_Typologie!$6:$6,0)),TableauScoreTypologie2,2,FALSE)*Crit6),0,VLOOKUP(INDEX(Base_Typologie!$A$6:$P$1003,MATCH(A74,Base_Typologie!$A:$A,0)-5,MATCH(Typologie_Espace_Public,Base_Typologie!$6:$6,0)),TableauScoreTypologie2,2,FALSE)*Crit6) -> 50 | J74: 1 | K74: 1 | L74: 1 | M74: 1 | N74: 1 | O74: 1 | P74: 1 | Q74: 1 | R74: 1 | S74: 1 | T74: 1 | U74: 1 | V74: 311.6 | W74: =IF(Base_Arbres!V29<>"",VLOOKUP($A74,Base_Arbres,22,FALSE)*Crit7,"") -> 80
A75: =IF(Base_Arbres!A109<>"",Base_Arbres!A109,"") -> Chêne de Turner Pseudoturneri | B75: =IF(Base_Arbres!A109<>"",VLOOKUP($A75,Base_Arbres,3,FALSE)*Crit1,"") -> 33.75 | C75: =IF(Base_Arbres!A109<>"",VLOOKUP($A75,Base_Arbres,4,FALSE)*Crit2,"") -> 25.85 | D75: =IF(Base_Arbres!A109<>"",VLOOKUP($A75,Base_Arbres,5,FALSE)*Crit3,"") -> 33.15 | E75: =IF(Base_Arbres!A109<>"",VLOOKUP($A75,Base_Arbres,6,FALSE)*Crit4,"") -> 25 | F75: =IF(Base_Arbres!B109<>"",VLOOKUP($A75,Base_Arbres,7,FALSE)*Crit5,"") -> 31.5 | G75: =IF(Base_Arbres!C109<>"",VLOOKUP($A75,Base_Arbres,8,FALSE)*crit8,"") -> 10 | H75: =IF(Base_Arbres!D109<>"",VLOOKUP($A75,Base_Arbres,9,FALSE)*crit9,"") -> 15 | I75: =IF(ISNA(VLOOKUP(INDEX(Base_Typologie!$A$6:$P$1003,MATCH(A75,Base_Typologie!$A:$A,0)-5,MATCH(Typologie_Espace_Public,Base_Typologie!$6:$6,0)),TableauScoreTypologie2,2,FALSE)*Crit6),0,VLOOKUP(INDEX(Base_Typologie!$A$6:$P$1003,MATCH(A75,Base_Typologie!$A:$A,0)-5,MATCH(Typologie_Espace_Public,Base_Typologie!$6:$6,0)),TableauScoreTypologie2,2,FALSE)*Crit6) -> 10 | J75: 1 | K75: 1 | L75: 1 | M75: 1 | N75: 1 | O75: 1 | P75: 1 | Q75: 1 | R75: 1 | S75: 1 | T75: 1 | U75: 1 | V75: 304.25 | W75: =IF(Base_Arbres!V79<>"",VLOOKUP($A75,Base_Arbres,22,FALSE)*Crit7,"") -> 80
A76: =IF(Base_Arbres!A38<>"",Base_Arbres!A38,"") -> Noisetier commun | B76: =IF(Base_Arbres!A38<>"",VLOOKUP($A76,Base_Arbres,3,FALSE)*Crit1,"") -> 17.7 | C76: =IF(Base_Arbres!A38<>"",VLOOKUP($A76,Base_Arbres,4,FALSE)*Crit2,"") -> 30.4 | D76: =IF(Base_Arbres!A38<>"",VLOOKUP($A76,Base_Arbres,5,FALSE)*Crit3,"") -> 33.15 | E76: =IF(Base_Arbres!A38<>"",VLOOKUP($A76,Base_Arbres,6,FALSE)*Crit4,"") -> 31.5 | F76: =IF(Base_Arbres!B38<>"",VLOOKUP($A76,Base_Arbres,7,FALSE)*Crit5,"") -> 34.5 | G76: =IF(Base_Arbres!C38<>"",VLOOKUP($A76,Base_Arbres,8,FALSE)*crit8,"") -> 6.65 | H76: =IF(Base_Arbres!D38<>"",VLOOKUP($A76,Base_Arbres,9,FALSE)*crit9,"") -> 50 | I76: =IF(ISNA(VLOOKUP(INDEX(Base_Typologie!$A$6:$P$1003,MATCH(A76,Base_Typologie!$A:$A,0)-5,MATCH(Typologie_Espace_Public,Base_Typologie!$6:$6,0)),TableauScoreTypologie2,2,FALSE)*Crit6),0,VLOOKUP(INDEX(Base_Typologie!$A$6:$P$1003,MATCH(A76,Base_Typologie!$A:$A,0)-5,MATCH(Typologie_Espace_Public,Base_Typologie!$6:$6,0)),TableauScoreTypologie2,2,FALSE)*Crit6) -> 10 | J76: 1 | K76: 1 | L76: 1 | M76: 1 | N76: 1 | O76: 1 | P76: 1 | Q76: 1 | R76: 1 | S76: 1 | T76: 1 | U76: 1 | V76: 288.9 | W76: =IF(Base_Arbres!V30<>"",VLOOKUP($A76,Base_Arbres,22,FALSE)*Crit7,"") -> 50
A77: =IF(Base_Arbres!A62<>"",Base_Arbres!A62,"") -> Troène commun | B77: =IF(Base_Arbres!A62<>"",VLOOKUP($A77,Base_Arbres,3,FALSE)*Crit1,"") -> 29.8 | C77: =IF(Base_Arbres!A62<>"",VLOOKUP($A77,Base_Arbres,4,FALSE)*Crit2,"") -> 23.5 | D77: =IF(Base_Arbres!A62<>"",VLOOKUP($A77,Base_Arbres,5,FALSE)*Crit3,"") -> 26.55 | E77: =IF(Base_Arbres!A62<>"",VLOOKUP($A77,Base_Arbres,6,FALSE)*Crit4,"") -> 25 | F77: =IF(Base_Arbres!B62<>"",VLOOKUP($A77,Base_Arbres,7,FALSE)*Crit5,"") -> 28.5 | G77: =IF(Base_Arbres!C62<>"",VLOOKUP($A77,Base_Arbres,8,FALSE)*crit8,"") -> 10 | H77: =IF(Base_Arbres!D62<>"",VLOOKUP($A77,Base_Arbres,9,FALSE)*crit9,"") -> 0 | I77: =IF(ISNA(VLOOKUP(INDEX(Base_Typologie!$A$6:$P$1003,MATCH(A77,Base_Typologie!$A:$A,0)-5,MATCH(Typologie_Espace_Public,Base_Typologie!$6:$6,0)),TableauScoreTypologie2,2,FALSE)*Crit6),0,VLOOKUP(INDEX(Base_Typologie!$A$6:$P$1003,MATCH(A77,Base_Typologie!$A:$A,0)-5,MATCH(Typologie_Espace_Public,Base_Typologie!$6:$6,0)),TableauScoreTypologie2,2,FALSE)*Crit6) -> 10 | J77: 1 | K77: 1 | L77: 1 | M77: 1 | N77: 1 | O77: 1 | P77: 1 | Q77: 1 | R77: 1 | S77: 1 | T77: 1 | U77: 1 | V77: 288.35 | W77: =IF(Base_Arbres!V33<>"",VLOOKUP($A77,Base_Arbres,22,FALSE)*Crit7,"") -> 90
A78: =IF(Base_Arbres!A46<>"",Base_Arbres!A46,"") -> Hêtre commun | B78: =IF(Base_Arbres!A46<>"",VLOOKUP($A78,Base_Arbres,3,FALSE)*Crit1,"") -> 31.5 | C78: =IF(Base_Arbres!A46<>"",VLOOKUP($A78,Base_Arbres,4,FALSE)*Crit2,"") -> 27.25 | D78: =IF(Base_Arbres!A46<>"",VLOOKUP($A78,Base_Arbres,5,FALSE)*Crit3,"") -> 36.9 | E78: =IF(Base_Arbres!A46<>"",VLOOKUP($A78,Base_Arbres,6,FALSE)*Crit4,"") -> 35.5 | F78: =IF(Base_Arbres!B46<>"",VLOOKUP($A78,Base_Arbres,7,FALSE)*Crit5,"") -> 38.5 | G78: =IF(Base_Arbres!C46<>"",VLOOKUP($A78,Base_Arbres,8,FALSE)*crit8,"") -> 40 | H78: =IF(Base_Arbres!D46<>"",VLOOKUP($A78,Base_Arbres,9,FALSE)*crit9,"") -> 15 | I78: =IF(ISNA(VLOOKUP(INDEX(Base_Typologie!$A$6:$P$1003,MATCH(A78,Base_Typologie!$A:$A,0)-5,MATCH(Typologie_Espace_Public,Base_Typologie!$6:$6,0)),TableauScoreTypologie2,2,FALSE)*Crit6),0,VLOOKUP(INDEX(Base_Typologie!$A$6:$P$1003,MATCH(A78,Base_Typologie!$A:$A,0)-5,MATCH(Typologie_Espace_Public,Base_Typologie!$6:$6,0)),TableauScoreTypologie2,2,FALSE)*Crit6) -> 10 | J78: 1 | K78: 1 | L78: 1 | M78: 1 | N78: 1 | O78: 1 | P78: 1 | Q78: 1 | R78: 1 | S78: 1 | T78: 1 | U78: 1 | V78: 279.65 | W78: =IF(Base_Arbres!V28<>"",VLOOKUP($A78,Base_Arbres,22,FALSE)*Crit7,"") -> 30
A79: =IF(Base_Arbres!A102<>"",Base_Arbres!A102,"") -> Chêne à feuilles de laurier | B79: =IF(Base_Arbres!A102<>"",VLOOKUP($A79,Base_Arbres,3,FALSE)*Crit1,"") -> 25.95 | C79: =IF(Base_Arbres!A102<>"",VLOOKUP($A79,Base_Arbres,4,FALSE)*Crit2,"") -> 29.6 | D79: =IF(Base_Arbres!A102<>"",VLOOKUP($A79,Base_Arbres,5,FALSE)*Crit3,"") -> 34.8 | E79: =IF(Base_Arbres!A102<>"",VLOOKUP($A79,Base_Arbres,6,FALSE)*Crit4,"") -> 25 | F79: =IF(Base_Arbres!B102<>"",VLOOKUP($A79,Base_Arbres,7,FALSE)*Crit5,"") -> 32 | G79: =IF(Base_Arbres!C102<>"",VLOOKUP($A79,Base_Arbres,8,FALSE)*crit8,"") -> 10 | H79: =IF(Base_Arbres!D102<>"",VLOOKUP($A79,Base_Arbres,9,FALSE)*crit9,"") -> 15 | I79: =IF(ISNA(VLOOKUP(INDEX(Base_Typologie!$A$6:$P$1003,MATCH(A79,Base_Typologie!$A:$A,0)-5,MATCH(Typologie_Espace_Public,Base_Typologie!$6:$6,0)),TableauScoreTypologie2,2,FALSE)*Crit6),0,VLOOKUP(INDEX(Base_Typologie!$A$6:$P$1003,MATCH(A79,Base_Typologie!$A:$A,0)-5,MATCH(Typologie_Espace_Public,Base_Typologie!$6:$6,0)),TableauScoreTypologie2,2,FALSE)*Crit6) -> 30 | J79: 1 | K79: 1 | L79: 1 | M79: 1 | N79: 1 | O79: 1 | P79: 1 | Q79: 1 | R79: 1 | S79: 1 | T79: 1 | U79: 1 | V79: 277.35 | W79: =IF(Base_Arbres!V123<>"",VLOOKUP($A79,Base_Arbres,22,FALSE)*Crit7,"") -> 50
A80: =IF(Base_Arbres!A2<>"",Base_Arbres!A2,"") -> Sapin du colorado | B80: =IF(Base_Arbres!A2<>"",VLOOKUP($A80,Base_Arbres,3,FALSE)*Crit1,"") -> 21 | C80: =IF(Base_Arbres!A2<>"",VLOOKUP($A80,Base_Arbres,4,FALSE)*Crit2,"") -> 37.85 | D80: =IF(Base_Arbres!A2<>"",VLOOKUP($A80,Base_Arbres,5,FALSE)*Crit3,"") -> 28.45 | E80: =IF(Base_Arbres!A2<>"",VLOOKUP($A80,Base_Arbres,6,FALSE)*Crit4,"") -> 5 | F80: =IF(Base_Arbres!B2<>"",VLOOKUP($A80,Base_Arbres,7,FALSE)*Crit5,"") -> 31.5 | G80: =IF(Base_Arbres!C2<>"",VLOOKUP($A80,Base_Arbres,8,FALSE)*crit8,"") -> 20 | H80: =IF(Base_Arbres!D2<>"",VLOOKUP($A80,Base_Arbres,9,FALSE)*crit9,"") -> 15 | I80: =IF(ISNA(VLOOKUP(INDEX(Base_Typologie!$A$6:$P$1003,MATCH(A80,Base_Typologie!$A:$A,0)-5,MATCH(Typologie_Espace_Public,Base_Typologie!$6:$6,0)),TableauScoreTypologie2,2,FALSE)*Crit6),0,VLOOKUP(INDEX(Base_Typologie!$A$6:$P$1003,MATCH(A80,Base_Typologie!$A:$A,0)-5,MATCH(Typologie_Espace_Public,Base_Typologie!$6:$6,0)),TableauScoreTypologie2,2,FALSE)*Crit6) -> 10 | J80: 1 | K80: 1 | L80: 1 | M80: 1 | N80: 1 | O80: 1 | P80: 1 | Q80: 1 | R80: 1 | S80: 1 | T80: 1 | U80: 1 | V80: 273.8 | W80: =IF(Base_Arbres!V75<>"",VLOOKUP($A80,Base_Arbres,22,FALSE)*Crit7,"") -> 70
A81: =IF(Base_Arbres!A112<>"",Base_Arbres!A112,"") -> Osier vert | B81: =IF(Base_Arbres!A112<>"",VLOOKUP($A81,Base_Arbres,3,FALSE)*Crit1,"") -> 22.6 | C81: =IF(Base_Arbres!A112<>"",VLOOKUP($A81,Base_Arbres,4,FALSE)*Crit2,"") -> 28.35 | D81: =IF(Base_Arbres!A112<>"",VLOOKUP($A81,Base_Arbres,5,FALSE)*Crit3,"") -> 27.3 | E81: =IF(Base_Arbres!A112<>"",VLOOKUP($A81,Base_Arbres,6,FALSE)*Crit4,"") -> 37.5 | F81: =IF(Base_Arbres!B112<>"",VLOOKUP($A81,Base_Arbres,7,FALSE)*Crit5,"") -> 26.5 | G81: =IF(Base_Arbres!C112<>"",VLOOKUP($A81,Base_Arbres,8,FALSE)*crit8,"") -> 13.35 | H81: =IF(Base_Arbres!D112<>"",VLOOKUP($A81,Base_Arbres,9,FALSE)*crit9,"") -> 15 | I81: =IF(ISNA(VLOOKUP(INDEX(Base_Typologie!$A$6:$P$1003,MATCH(A81,Base_Typologie!$A:$A,0)-5,MATCH(Typologie_Espace_Public,Base_Typologie!$6:$6,0)),TableauScoreTypologie2,2,FALSE)*Crit6),0,VLOOKUP(INDEX(Base_Typologie!$A$6:$P$1003,MATCH(A81,Base_Typologie!$A:$A,0)-5,MATCH(Typologie_Espace_Public,Base_Typologie!$6:$6,0)),TableauScoreTypologie2,2,FALSE)*Crit6) -> 10 | J81: 1 | K81: 1 | L81: 1 | M81: 1 | N81: 1 | O81: 1 | P81: 1 | Q81: 1 | R81: 1 | S81: 1 | T81: 1 | U81: 1 | V81: 270.6 | W81: =IF(Base_Arbres!V76<>"",VLOOKUP($A81,Base_Arbres,22,FALSE)*Crit7,"") -> 60
A82: =IF(Base_Arbres!A3<>"",Base_Arbres!A3,"") -> Sapin d'Espagne | B82: =IF(Base_Arbres!A3<>"",VLOOKUP($A82,Base_Arbres,3,FALSE)*Crit1,"") -> 16.25 | C82: =IF(Base_Arbres!A3<>"",VLOOKUP($A82,Base_Arbres,4,FALSE)*Crit2,"") -> 35 | D82: =IF(Base_Arbres!A3<>"",VLOOKUP($A82,Base_Arbres,5,FALSE)*Crit3,"") -> 22.2 | E82: =IF(Base_Arbres!A3<>"",VLOOKUP($A82,Base_Arbres,6,FALSE)*Crit4,"") -> 4 | F82: =IF(Base_Arbres!B3<>"",VLOOKUP($A82,Base_Arbres,7,FALSE)*Crit5,"") -> 25.5 | G82: =IF(Base_Arbres!C3<>"",VLOOKUP($A82,Base_Arbres,8,FALSE)*crit8,"") -> 16.65 | H82: =IF(Base_Arbres!D3<>"",VLOOKUP($A82,Base_Arbres,9,FALSE)*crit9,"") -> 15 | I82: =IF(ISNA(VLOOKUP(INDEX(Base_Typologie!$A$6:$P$1003,MATCH(A82,Base_Typologie!$A:$A,0)-5,MATCH(Typologie_Espace_Public,Base_Typologie!$6:$6,0)),TableauScoreTypologie2,2,FALSE)*Crit6),0,VLOOKUP(INDEX(Base_Typologie!$A$6:$P$1003,MATCH(A82,Base_Typologie!$A:$A,0)-5,MATCH(Typologie_Espace_Public,Base_Typologie!$6:$6,0)),TableauScoreTypologie2,2,FALSE)*Crit6) -> 10 | J82: 1 | K82: 1 | L82: 1 | M82: 1 | N82: 1 | O82: 1 | P82: 1 | Q82: 1 | R82: 1 | S82: 1 | T82: 1 | U82: 1 | V82: 264.6 | W82: =IF(Base_Arbres!V77<>"",VLOOKUP($A82,Base_Arbres,22,FALSE)*Crit7,"") -> 80
A83: =IF(Base_Arbres!A40<>"",Base_Arbres!A40,"") -> Noisetier de Byzance ‘VDB Obelisk’ | B83: =IF(Base_Arbres!A40<>"",VLOOKUP($A83,Base_Arbres,3,FALSE)*Crit1,"") -> 23.35 | C83: =IF(Base_Arbres!A40<>"",VLOOKUP($A83,Base_Arbres,4,FALSE)*Crit2,"") -> 28.4 | D83: =IF(Base_Arbres!A40<>"",VLOOKUP($A83,Base_Arbres,5,FALSE)*Crit3,"") -> 31.65 | E83: =IF(Base_Arbres!A40<>"",VLOOKUP($A83,Base_Arbres,6,FALSE)*Crit4,"") -> 10.5 | F83: =IF(Base_Arbres!B40<>"",VLOOKUP($A83,Base_Arbres,7,FALSE)*Crit5,"") -> 30.5 | G83: =IF(Base_Arbres!C40<>"",VLOOKUP($A83,Base_Arbres,8,FALSE)*crit8,"") -> 10 | H83: =IF(Base_Arbres!D40<>"",VLOOKUP($A83,Base_Arbres,9,FALSE)*crit9,"") -> 30 | I83: =IF(ISNA(VLOOKUP(INDEX(Base_Typologie!$A$6:$P$1003,MATCH(A83,Base_Typologie!$A:$A,0)-5,MATCH(Typologie_Espace_Public,Base_Typologie!$6:$6,0)),TableauScoreTypologie2,2,FALSE)*Crit6),0,VLOOKUP(INDEX(Base_Typologie!$A$6:$P$1003,MATCH(A83,Base_Typologie!$A:$A,0)-5,MATCH(Typologie_Espace_Public,Base_Typologie!$6:$6,0)),TableauScoreTypologie2,2,FALSE)*Crit6) -> 50 | J83: 1 | K83: 1 | L83: 1 | M83: 1 | N83: 1 | O83: 1 | P83: 1 | Q83: 1 | R83: 1 | S83: 1 | T83: 1 | U83: 1 | V83: 259.4 | W83: =IF(Base_Arbres!V78<>"",VLOOKUP($A83,Base_Arbres,22,FALSE)*Crit7,"") -> 30
A84: =IF(Base_Arbres!A24<>"",Base_Arbres!A24,"") -> Charme d'Orient | B84: =IF(Base_Arbres!A24<>"",VLOOKUP($A84,Base_Arbres,3,FALSE)*Crit1,"") -> 14.35 | C84: =IF(Base_Arbres!A24<>"",VLOOKUP($A84,Base_Arbres,4,FALSE)*Crit2,"") -> 28.75 | D84: =IF(Base_Arbres!A24<>"",VLOOKUP($A84,Base_Arbres,5,FALSE)*Crit3,"") -> 26.9 | E84: =IF(Base_Arbres!A24<>"",VLOOKUP($A84,Base_Arbres,6,FALSE)*Crit4,"") -> 8.5 | F84: =IF(Base_Arbres!B24<>"",VLOOKUP($A84,Base_Arbres,7,FALSE)*Crit5,"") -> 27.5 | G84: =IF(Base_Arbres!C24<>"",VLOOKUP($A84,Base_Arbres,8,FALSE)*crit8,"") -> 13.35 | H84: =IF(Base_Arbres!D24<>"",VLOOKUP($A84,Base_Arbres,9,FALSE)*crit9,"") -> 15 | I84: =IF(ISNA(VLOOKUP(INDEX(Base_Typologie!$A$6:$P$1003,MATCH(A84,Base_Typologie!$A:$A,0)-5,MATCH(Typologie_Espace_Public,Base_Typologie!$6:$6,0)),TableauScoreTypologie2,2,FALSE)*Crit6),0,VLOOKUP(INDEX(Base_Typologie!$A$6:$P$1003,MATCH(A84,Base_Typologie!$A:$A,0)-5,MATCH(Typologie_Espace_Public,Base_Typologie!$6:$6,0)),TableauScoreTypologie2,2,FALSE)*Crit6) -> 50 | J84: 1 | K84: 1 | L84: 1 | M84: 1 | N84: 1 | O84: 1 | P84: 1 | Q84: 1 | R84: 1 | S84: 1 | T84: 1 | U84: 1 | V84: 259.35 | W84: =IF(Base_Arbres!V79<>"",VLOOKUP($A84,Base_Arbres,22,FALSE)*Crit7,"") -> 50
A85: =IF(Base_Arbres!A15<>"",Base_Arbres!A15,"") -> Aulne blanc | B85: =IF(Base_Arbres!A15<>"",VLOOKUP($A85,Base_Arbres,3,FALSE)*Crit1,"") -> 21.55 | C85: =IF(Base_Arbres!A15<>"",VLOOKUP($A85,Base_Arbres,4,FALSE)*Crit2,"") -> 27.7 | D85: =IF(Base_Arbres!A15<>"",VLOOKUP($A85,Base_Arbres,5,FALSE)*Crit3,"") -> 28.25 | E85: =IF(Base_Arbres!A15<>"",VLOOKUP($A85,Base_Arbres,6,FALSE)*Crit4,"") -> 14.5 | F85: =IF(Base_Arbres!B15<>"",VLOOKUP($A85,Base_Arbres,7,FALSE)*Crit5,"") -> 29 | G85: =IF(Base_Arbres!C15<>"",VLOOKUP($A85,Base_Arbres,8,FALSE)*crit8,"") -> 6.65 | H85: =IF(Base_Arbres!D15<>"",VLOOKUP($A85,Base_Arbres,9,FALSE)*crit9,"") -> 15 | I85: =IF(ISNA(VLOOKUP(INDEX(Base_Typologie!$A$6:$P$1003,MATCH(A85,Base_Typologie!$A:$A,0)-5,MATCH(Typologie_Espace_Public,Base_Typologie!$6:$6,0)),TableauScoreTypologie2,2,FALSE)*Crit6),0,VLOOKUP(INDEX(Base_Typologie!$A$6:$P$1003,MATCH(A85,Base_Typologie!$A:$A,0)-5,MATCH(Typologie_Espace_Public,Base_Typologie!$6:$6,0)),TableauScoreTypologie2,2,FALSE)*Crit6) -> 10 | J85: 1 | K85: 1 | L85: 1 | M85: 1 | N85: 1 | O85: 1 | P85: 1 | Q85: 1 | R85: 1 | S85: 1 | T85: 1 | U85: 1 | V85: 257.65 | W85: =IF(Base_Arbres!V80<>"",VLOOKUP($A85,Base_Arbres,22,FALSE)*Crit7,"") -> 70
A86: =IF(Base_Arbres!A23<>"",Base_Arbres!A23,"") -> Charme commun 'Frans Fontaine' | B86: =IF(Base_Arbres!A23<>"",VLOOKUP($A86,Base_Arbres,3,FALSE)*Crit1,"") -> 30.3 | C86: =IF(Base_Arbres!A23<>"",VLOOKUP($A86,Base_Arbres,4,FALSE)*Crit2,"") -> 21.15 | D86: =IF(Base_Arbres!A23<>"",VLOOKUP($A86,Base_Arbres,5,FALSE)*Crit3,"") -> 27.5 | E86: =IF(Base_Arbres!A23<>"",VLOOKUP($A86,Base_Arbres,6,FALSE)*Crit4,"") -> 16.5 | F86: =IF(Base_Arbres!B23<>"",VLOOKUP($A86,Base_Arbres,7,FALSE)*Crit5,"") -> 28.5 | G86: =IF(Base_Arbres!C23<>"",VLOOKUP($A86,Base_Arbres,8,FALSE)*crit8,"") -> 13.35 | H86: =IF(Base_Arbres!D23<>"",VLOOKUP($A86,Base_Arbres,9,FALSE)*crit9,"") -> 15 | I86: =IF(ISNA(VLOOKUP(INDEX(Base_Typologie!$A$6:$P$1003,MATCH(A86,Base_Typologie!$A:$A,0)-5,MATCH(Typologie_Espace_Public,Base_Typologie!$6:$6,0)),TableauScoreTypologie2,2,FALSE)*Crit6),0,VLOOKUP(INDEX(Base_Typologie!$A$6:$P$1003,MATCH(A86,Base_Typologie!$A:$A,0)-5,MATCH(Typologie_Espace_Public,Base_Typologie!$6:$6,0)),TableauScoreTypologie2,2,FALSE)*Crit6) -> 30 | J86: 1 | K86: 1 | L86: 1 | M86: 1 | N86: 1 | O86: 1 | P86: 1 | Q86: 1 | R86: 1 | S86: 1 | T86: 1 | U86: 1 | V86: 257.3 | W86: =IF(Base_Arbres!V44<>"",VLOOKUP($A86,Base_Arbres,22,FALSE)*Crit7,"") -> 50
A87: =IF(Base_Arbres!A108<>"",Base_Arbres!A108,"") -> Chêne du Mexique Maya | B87: =IF(Base_Arbres!A108<>"",VLOOKUP($A87,Base_Arbres,3,FALSE)*Crit1,"") -> 30 | C87: =IF(Base_Arbres!A108<>"",VLOOKUP($A87,Base_Arbres,4,FALSE)*Crit2,"") -> 30 | D87: =IF(Base_Arbres!A108<>"",VLOOKUP($A87,Base_Arbres,5,FALSE)*Crit3,"") -> 35 | E87: =IF(Base_Arbres!A108<>"",VLOOKUP($A87,Base_Arbres,6,FALSE)*Crit4,"") -> 15 | F87: =IF(Base_Arbres!B108<>"",VLOOKUP($A87,Base_Arbres,7,FALSE)*Crit5,"") -> 32 | G87: =IF(Base_Arbres!C108<>"",VLOOKUP($A87,Base_Arbres,8,FALSE)*crit8,"") -> 10 | H87: =IF(Base_Arbres!D108<>"",VLOOKUP($A87,Base_Arbres,9,FALSE)*crit9,"") -> 15 | I87: =IF(ISNA(VLOOKUP(INDEX(Base_Typologie!$A$6:$P$1003,MATCH(A87,Base_Typologie!$A:$A,0)-5,MATCH(Typologie_Espace_Public,Base_Typologie!$6:$6,0)),TableauScoreTypologie2,2,FALSE)*Crit6),0,VLOOKUP(INDEX(Base_Typologie!$A$6:$P$1003,MATCH(A87,Base_Typologie!$A:$A,0)-5,MATCH(Typologie_Espace_Public,Base_Typologie!$6:$6,0)),TableauScoreTypologie2,2,FALSE)*Crit6) -> 10 | J87: 1 | K87: 1 | L87: 1 | M87: 1 | N87: 1 | O87: 1 | P87: 1 | Q87: 1 | R87: 1 | S87: 1 | T87: 1 | U87: 1 | V87: 252 | W87: =IF(Base_Arbres!V56<>"",VLOOKUP($A87,Base_Arbres,22,FALSE)*Crit7,"") -> 50
A88: =IF(Base_Arbres!A111<>"",Base_Arbres!A111,"") -> Saule de Babylone, Saule pleureur à bois vert | B88: =IF(Base_Arbres!A111<>"",VLOOKUP($A88,Base_Arbres,3,FALSE)*Crit1,"") -> 19.05 | C88: =IF(Base_Arbres!A111<>"",VLOOKUP($A88,Base_Arbres,4,FALSE)*Crit2,"") -> 31.9 | D88: =IF(Base_Arbres!A111<>"",VLOOKUP($A88,Base_Arbres,5,FALSE)*Crit3,"") -> 30.4 | E88: =IF(Base_Arbres!A111<>"",VLOOKUP($A88,Base_Arbres,6,FALSE)*Crit4,"") -> 25 | F88: =IF(Base_Arbres!B111<>"",VLOOKUP($A88,Base_Arbres,7,FALSE)*Crit5,"") -> 30.5 | G88: =IF(Base_Arbres!C111<>"",VLOOKUP($A88,Base_Arbres,8,FALSE)*crit8,"") -> 16.65 | H88: =IF(Base_Arbres!D111<>"",VLOOKUP($A88,Base_Arbres,9,FALSE)*crit9,"") -> 15 | I88: =IF(ISNA(VLOOKUP(INDEX(Base_Typologie!$A$6:$P$1003,MATCH(A88,Base_Typologie!$A:$A,0)-5,MATCH(Typologie_Espace_Public,Base_Typologie!$6:$6,0)),TableauScoreTypologie2,2,FALSE)*Crit6),0,VLOOKUP(INDEX(Base_Typologie!$A$6:$P$1003,MATCH(A88,Base_Typologie!$A:$A,0)-5,MATCH(Typologie_Espace_Public,Base_Typologie!$6:$6,0)),TableauScoreTypologie2,2,FALSE)*Crit6) -> 10 | J88: 1 | K88: 1 | L88: 1 | M88: 1 | N88: 1 | O88: 1 | P88: 1 | Q88: 1 | R88: 1 | S88: 1 | T88: 1 | U88: 1 | V88: 223.5 | W88: =IF(Base_Arbres!V133<>"",VLOOKUP($A88,Base_Arbres,22,FALSE)*Crit7,"") -> 30
A89: =IF(Base_Arbres!A47<>"",Base_Arbres!A47,"") -> Hêtre commun ‘Dawyck ’ | B89: =IF(Base_Arbres!A47<>"",VLOOKUP($A89,Base_Arbres,3,FALSE)*Crit1,"") -> 24.6 | C89: =IF(Base_Arbres!A47<>"",VLOOKUP($A89,Base_Arbres,4,FALSE)*Crit2,"") -> 23.45 | D89: =IF(Base_Arbres!A47<>"",VLOOKUP($A89,Base_Arbres,5,FALSE)*Crit3,"") -> 26.25 | E89: =IF(Base_Arbres!A47<>"",VLOOKUP($A89,Base_Arbres,6,FALSE)*Crit4,"") -> 27 | F89: =IF(Base_Arbres!B47<>"",VLOOKUP($A89,Base_Arbres,7,FALSE)*Crit5,"") -> 27 | G89: =IF(Base_Arbres!C47<>"",VLOOKUP($A89,Base_Arbres,8,FALSE)*crit8,"") -> 20 | H89: =IF(Base_Arbres!D47<>"",VLOOKUP($A89,Base_Arbres,9,FALSE)*crit9,"") -> 15 | I89: =IF(ISNA(VLOOKUP(INDEX(Base_Typologie!$A$6:$P$1003,MATCH(A89,Base_Typologie!$A:$A,0)-5,MATCH(Typologie_Espace_Public,Base_Typologie!$6:$6,0)),TableauScoreTypologie2,2,FALSE)*Crit6),0,VLOOKUP(INDEX(Base_Typologie!$A$6:$P$1003,MATCH(A89,Base_Typologie!$A:$A,0)-5,MATCH(Typologie_Espace_Public,Base_Typologie!$6:$6,0)),TableauScoreTypologie2,2,FALSE)*Crit6) -> 10 | J89: 1 | K89: 1 | L89: 1 | M89: 1 | N89: 1 | O89: 1 | P89: 1 | Q89: 1 | R89: 1 | S89: 1 | T89: 1 | U89: 1 | V89: 188.3 | W89: =IF(Base_Arbres!V76<>"",VLOOKUP($A89,Base_Arbres,22,FALSE)*Crit7,"") -> 10
A90: =IF(Base_Arbres!A18<>"",Base_Arbres!A18,"") -> Bouleau à écorce rouge, Bouleau de Chine | B90: =IF(Base_Arbres!A18<>"",VLOOKUP($A90,Base_Arbres,3,FALSE)*Crit1,"") -> 17.5 | C90: =IF(Base_Arbres!A18<>"",VLOOKUP($A90,Base_Arbres,4,FALSE)*Crit2,"") -> 25.25 | D90: =IF(Base_Arbres!A18<>"",VLOOKUP($A90,Base_Arbres,5,FALSE)*Crit3,"") -> 21.35 | E90: =IF(Base_Arbres!A18<>"",VLOOKUP($A90,Base_Arbres,6,FALSE)*Crit4,"") -> 6.5 | F90: =IF(Base_Arbres!B18<>"",VLOOKUP($A90,Base_Arbres,7,FALSE)*Crit5,"") -> 25.5 | G90: =IF(Base_Arbres!C18<>"",VLOOKUP($A90,Base_Arbres,8,FALSE)*crit8,"") -> 10 | H90: =IF(Base_Arbres!D18<>"",VLOOKUP($A90,Base_Arbres,9,FALSE)*crit9,"") -> 15 | I90: =IF(ISNA(VLOOKUP(INDEX(Base_Typologie!$A$6:$P$1003,MATCH(A90,Base_Typologie!$A:$A,0)-5,MATCH(Typologie_Espace_Public,Base_Typologie!$6:$6,0)),TableauScoreTypologie2,2,FALSE)*Crit6),0,VLOOKUP(INDEX(Base_Typologie!$A$6:$P$1003,MATCH(A90,Base_Typologie!$A:$A,0)-5,MATCH(Typologie_Espace_Public,Base_Typologie!$6:$6,0)),TableauScoreTypologie2,2,FALSE)*Crit6) -> 10 | J90: 1 | K90: 1 | L90: 1 | M90: 1 | N90: 1 | O90: 1 | P90: 1 | Q90: 1 | R90: 1 | S90: 1 | T90: 1 | U90: 1 | V90: 161.1 | W90: =IF(Base_Arbres!V127<>"",VLOOKUP($A90,Base_Arbres,22,FALSE)*Crit7,"") -> 20
A91: =IF(Base_Arbres!A48<>"",Base_Arbres!A48,"") -> Frêne d'Amérique, Frêne blanc | B91: =IF(Base_Arbres!A48<>"",VLOOKUP($A91,Base_Arbres,3,FALSE)*Crit1,"") -> 30.1 | C91: =IF(Base_Arbres!A48<>"",VLOOKUP($A91,Base_Arbres,4,FALSE)*Crit2,"") -> 32.85 | D91: =IF(Base_Arbres!A48<>"",VLOOKUP($A91,Base_Arbres,5,FALSE)*Crit3,"") -> 39.5 | E91: =IF(Base_Arbres!A48<>"",VLOOKUP($A91,Base_Arbres,6,FALSE)*Crit4,"") -> 19 | F91: =IF(Base_Arbres!B48<>"",VLOOKUP($A91,Base_Arbres,7,FALSE)*Crit5,"") -> 35 | G91: =IF(Base_Arbres!C48<>"",VLOOKUP($A91,Base_Arbres,8,FALSE)*crit8,"") -> 20 | H91: =IF(Base_Arbres!D48<>"",VLOOKUP($A91,Base_Arbres,9,FALSE)*crit9,"") -> 15 | I91: =IF(ISNA(VLOOKUP(INDEX(Base_Typologie!$A$6:$P$1003,MATCH(A91,Base_Typologie!$A:$A,0)-5,MATCH(Typologie_Espace_Public,Base_Typologie!$6:$6,0)),TableauScoreTypologie2,2,FALSE)*Crit6),0,VLOOKUP(INDEX(Base_Typologie!$A$6:$P$1003,MATCH(A91,Base_Typologie!$A:$A,0)-5,MATCH(Typologie_Espace_Public,Base_Typologie!$6:$6,0)),TableauScoreTypologie2,2,FALSE)*Crit6) -> 50 | J91: 1 | K91: 1 | L91: 1 | M91: 1 | N91: 1 | O91: 1 | P91: 1 | Q91: 1 | R91: 1 | S91: 1 | T91: 1 | U91: 1 | V91: 376.45 | W91: =IF(Base_Arbres!V59<>"",VLOOKUP($A91,Base_Arbres,22,FALSE)*Crit7,"") -> 90
A92: =IF(Base_Arbres!A7<>"",Base_Arbres!A7,"") -> Érable sycomore | B92: =IF(Base_Arbres!A7<>"",VLOOKUP($A92,Base_Arbres,3,FALSE)*Crit1,"") -> 29.15 | C92: =IF(Base_Arbres!A7<>"",VLOOKUP($A92,Base_Arbres,4,FALSE)*Crit2,"") -> 31.5 | D92: =IF(Base_Arbres!A7<>"",VLOOKUP($A92,Base_Arbres,5,FALSE)*Crit3,"") -> 40.65 | E92: =IF(Base_Arbres!A7<>"",VLOOKUP($A92,Base_Arbres,6,FALSE)*Crit4,"") -> 29 | F92: =IF(Base_Arbres!B7<>"",VLOOKUP($A92,Base_Arbres,7,FALSE)*Crit5,"") -> 38.5 | G92: =IF(Base_Arbres!C7<>"",VLOOKUP($A92,Base_Arbres,8,FALSE)*crit8,"") -> 40 | H92: =IF(Base_Arbres!D7<>"",VLOOKUP($A92,Base_Arbres,9,FALSE)*crit9,"") -> 15 | I92: =IF(ISNA(VLOOKUP(INDEX(Base_Typologie!$A$6:$P$1003,MATCH(A92,Base_Typologie!$A:$A,0)-5,MATCH(Typologie_Espace_Public,Base_Typologie!$6:$6,0)),TableauScoreTypologie2,2,FALSE)*Crit6),0,VLOOKUP(INDEX(Base_Typologie!$A$6:$P$1003,MATCH(A92,Base_Typologie!$A:$A,0)-5,MATCH(Typologie_Espace_Public,Base_Typologie!$6:$6,0)),TableauScoreTypologie2,2,FALSE)*Crit6) -> 30 | J92: 1 | K92: 1 | L92: 1 | M92: 1 | N92: 1 | O92: 1 | P92: 1 | Q92: 1 | R92: 1 | S92: 1 | T92: 1 | U92: 1 | V92: 328.8 | W92: =IF(Base_Arbres!V95<>"",VLOOKUP($A92,Base_Arbres,22,FALSE)*Crit7,"") -> 50
A93: =IF(Base_Arbres!A11<>"",Base_Arbres!A11,"") -> Marronnier d’Inde | B93: =IF(Base_Arbres!A11<>"",VLOOKUP($A93,Base_Arbres,3,FALSE)*Crit1,"") -> 40.65 | C93: =IF(Base_Arbres!A11<>"",VLOOKUP($A93,Base_Arbres,4,FALSE)*Crit2,"") -> 27 | D93: =IF(Base_Arbres!A11<>"",VLOOKUP($A93,Base_Arbres,5,FALSE)*Crit3,"") -> 43.45 | E93: =IF(Base_Arbres!A11<>"",VLOOKUP($A93,Base_Arbres,6,FALSE)*Crit4,"") -> 21 | F93: =IF(Base_Arbres!B11<>"",VLOOKUP($A93,Base_Arbres,7,FALSE)*Crit5,"") -> 40.5 | G93: =IF(Base_Arbres!C11<>"",VLOOKUP($A93,Base_Arbres,8,FALSE)*crit8,"") -> 40 | H93: =IF(Base_Arbres!D11<>"",VLOOKUP($A93,Base_Arbres,9,FALSE)*crit9,"") -> 15 | I93: =IF(ISNA(VLOOKUP(INDEX(Base_Typologie!$A$6:$P$1003,MATCH(A93,Base_Typologie!$A:$A,0)-5,MATCH(Typologie_Espace_Public,Base_Typologie!$6:$6,0)),TableauScoreTypologie2,2,FALSE)*Crit6),0,VLOOKUP(INDEX(Base_Typologie!$A$6:$P$1003,MATCH(A93,Base_Typologie!$A:$A,0)-5,MATCH(Typologie_Espace_Public,Base_Typologie!$6:$6,0)),TableauScoreTypologie2,2,FALSE)*Crit6) -> 30 | J93: 1 | K93: 1 | L93: 1 | M93: 1 | N93: 1 | O93: 1 | P93: 1 | Q93: 1 | R93: 1 | S93: 1 | T93: 1 | U93: 1 | V93: 347.6 | W93: =IF(Base_Arbres!V43<>"",VLOOKUP($A93,Base_Arbres,22,FALSE)*Crit7,"") -> 60
A94: =IF(Base_Arbres!A19<>"",Base_Arbres!A19,"") -> Bouleau pendant | B94: =IF(Base_Arbres!A19<>"",VLOOKUP($A94,Base_Arbres,3,FALSE)*Crit1,"") -> 31.7 | C94: =IF(Base_Arbres!A19<>"",VLOOKUP($A94,Base_Arbres,4,FALSE)*Crit2,"") -> 21.65 | D94: =IF(Base_Arbres!A19<>"",VLOOKUP($A94,Base_Arbres,5,FALSE)*Crit3,"") -> 29.9 | E94: =IF(Base_Arbres!A19<>"",VLOOKUP($A94,Base_Arbres,6,FALSE)*Crit4,"") -> 33.5 | F94: =IF(Base_Arbres!B19<>"",VLOOKUP($A94,Base_Arbres,7,FALSE)*Crit5,"") -> 32.5 | G94: =IF(Base_Arbres!C19<>"",VLOOKUP($A94,Base_Arbres,8,FALSE)*crit8,"") -> 16.65 | H94: =IF(Base_Arbres!D19<>"",VLOOKUP($A94,Base_Arbres,9,FALSE)*crit9,"") -> 15 | I94: =IF(ISNA(VLOOKUP(INDEX(Base_Typologie!$A$6:$P$1003,MATCH(A94,Base_Typologie!$A:$A,0)-5,MATCH(Typologie_Espace_Public,Base_Typologie!$6:$6,0)),TableauScoreTypologie2,2,FALSE)*Crit6),0,VLOOKUP(INDEX(Base_Typologie!$A$6:$P$1003,MATCH(A94,Base_Typologie!$A:$A,0)-5,MATCH(Typologie_Espace_Public,Base_Typologie!$6:$6,0)),TableauScoreTypologie2,2,FALSE)*Crit6) -> 10 | J94: 1 | K94: 1 | L94: 1 | M94: 1 | N94: 1 | O94: 1 | P94: 1 | Q94: 1 | R94: 1 | S94: 1 | T94: 1 | U94: 1 | V94: 340.9 | W94: =IF(Base_Arbres!V71<>"",VLOOKUP($A94,Base_Arbres,22,FALSE)*Crit7,"") -> 100
A95: =IF(Base_Arbres!A50<>"",Base_Arbres!A50,"") -> Frêne commun, Frêne élevé | B95: =IF(Base_Arbres!A50<>"",VLOOKUP($A95,Base_Arbres,3,FALSE)*Crit1,"") -> 22.85 | C95: =IF(Base_Arbres!A50<>"",VLOOKUP($A95,Base_Arbres,4,FALSE)*Crit2,"") -> 28.85 | D95: =IF(Base_Arbres!A50<>"",VLOOKUP($A95,Base_Arbres,5,FALSE)*Crit3,"") -> 29.15 | E95: =IF(Base_Arbres!A50<>"",VLOOKUP($A95,Base_Arbres,6,FALSE)*Crit4,"") -> 31.5 | F95: =IF(Base_Arbres!B50<>"",VLOOKUP($A95,Base_Arbres,7,FALSE)*Crit5,"") -> 30 | G95: =IF(Base_Arbres!C50<>"",VLOOKUP($A95,Base_Arbres,8,FALSE)*crit8,"") -> 40 | H95: =IF(Base_Arbres!D50<>"",VLOOKUP($A95,Base_Arbres,9,FALSE)*crit9,"") -> 15 | I95: =IF(ISNA(VLOOKUP(INDEX(Base_Typologie!$A$6:$P$1003,MATCH(A95,Base_Typologie!$A:$A,0)-5,MATCH(Typologie_Espace_Public,Base_Typologie!$6:$6,0)),TableauScoreTypologie2,2,FALSE)*Crit6),0,VLOOKUP(INDEX(Base_Typologie!$A$6:$P$1003,MATCH(A95,Base_Typologie!$A:$A,0)-5,MATCH(Typologie_Espace_Public,Base_Typologie!$6:$6,0)),TableauScoreTypologie2,2,FALSE)*Crit6) -> 10 | J95: 1 | K95: 1 | L95: 1 | M95: 1 | N95: 1 | O95: 1 | P95: 1 | Q95: 1 | R95: 1 | S95: 1 | T95: 1 | U95: 1 | V95: 312.35 | W95: =IF(Base_Arbres!V132<>"",VLOOKUP($A95,Base_Arbres,22,FALSE)*Crit7,"") -> 70
A96: =IF(Base_Arbres!A113<>"",Base_Arbres!A113,"") -> Sureau noir | B96: =IF(Base_Arbres!A113<>"",VLOOKUP($A96,Base_Arbres,3,FALSE)*Crit1,"") -> 30.65 | C96: =IF(Base_Arbres!A113<>"",VLOOKUP($A96,Base_Arbres,4,FALSE)*Crit2,"") -> 21 | D96: =IF(Base_Arbres!A113<>"",VLOOKUP($A96,Base_Arbres,5,FALSE)*Crit3,"") -> 25.85 | E96: =IF(Base_Arbres!A113<>"",VLOOKUP($A96,Base_Arbres,6,FALSE)*Crit4,"") -> 29 | F96: =IF(Base_Arbres!B113<>"",VLOOKUP($A96,Base_Arbres,7,FALSE)*Crit5,"") -> 23.5 | G96: =IF(Base_Arbres!C113<>"",VLOOKUP($A96,Base_Arbres,8,FALSE)*crit8,"") -> 10 | H96: =IF(Base_Arbres!D113<>"",VLOOKUP($A96,Base_Arbres,9,FALSE)*crit9,"") -> 40 | I96: =IF(ISNA(VLOOKUP(INDEX(Base_Typologie!$A$6:$P$1003,MATCH(A96,Base_Typologie!$A:$A,0)-5,MATCH(Typologie_Espace_Public,Base_Typologie!$6:$6,0)),TableauScoreTypologie2,2,FALSE)*Crit6),0,VLOOKUP(INDEX(Base_Typologie!$A$6:$P$1003,MATCH(A96,Base_Typologie!$A:$A,0)-5,MATCH(Typologie_Espace_Public,Base_Typologie!$6:$6,0)),TableauScoreTypologie2,2,FALSE)*Crit6) -> 10 | J96: 1 | K96: 1 | L96: 1 | M96: 1 | N96: 1 | O96: 1 | P96: 1 | Q96: 1 | R96: 1 | S96: 1 | T96: 1 | U96: 1 | V96: 295 | W96: =IF(Base_Arbres!V118<>"",VLOOKUP($A96,Base_Arbres,22,FALSE)*Crit7,"") -> 70
A97: =IF(Base_Arbres!A53<>"",Base_Arbres!A53,"") -> Frêne rouge d'Amérique | B97: =IF(Base_Arbres!A53<>"",VLOOKUP($A97,Base_Arbres,3,FALSE)*Crit1,"") -> 29.4 | C97: =IF(Base_Arbres!A53<>"",VLOOKUP($A97,Base_Arbres,4,FALSE)*Crit2,"") -> 31.7 | D97: =IF(Base_Arbres!A53<>"",VLOOKUP($A97,Base_Arbres,5,FALSE)*Crit3,"") -> 40.1 | E97: =IF(Base_Arbres!A53<>"",VLOOKUP($A97,Base_Arbres,6,FALSE)*Crit4,"") -> 19 | F97: =IF(Base_Arbres!B53<>"",VLOOKUP($A97,Base_Arbres,7,FALSE)*Crit5,"") -> 35.5 | G97: =IF(Base_Arbres!C53<>"",VLOOKUP($A97,Base_Arbres,8,FALSE)*crit8,"") -> 13.35 | H97: =IF(Base_Arbres!D53<>"",VLOOKUP($A97,Base_Arbres,9,FALSE)*crit9,"") -> 15 | I97: =IF(ISNA(VLOOKUP(INDEX(Base_Typologie!$A$6:$P$1003,MATCH(A97,Base_Typologie!$A:$A,0)-5,MATCH(Typologie_Espace_Public,Base_Typologie!$6:$6,0)),TableauScoreTypologie2,2,FALSE)*Crit6),0,VLOOKUP(INDEX(Base_Typologie!$A$6:$P$1003,MATCH(A97,Base_Typologie!$A:$A,0)-5,MATCH(Typologie_Espace_Public,Base_Typologie!$6:$6,0)),TableauScoreTypologie2,2,FALSE)*Crit6) -> 50 | J97: 1 | K97: 1 | L97: 1 | M97: 1 | N97: 1 | O97: 1 | P97: 1 | Q97: 1 | R97: 1 | S97: 1 | T97: 1 | U97: 1 | V97: 339.05 | W97: =IF(Base_Arbres!V2<>"",VLOOKUP($A97,Base_Arbres,22,FALSE)*Crit7,"") -> 70
A98: =IF(Base_Arbres!A110<>"",Base_Arbres!A110,"") -> Saule blanc | B98: =IF(Base_Arbres!A110<>"",VLOOKUP($A98,Base_Arbres,3,FALSE)*Crit1,"") -> 17.3 | C98: =IF(Base_Arbres!A110<>"",VLOOKUP($A98,Base_Arbres,4,FALSE)*Crit2,"") -> 30.85 | D98: =IF(Base_Arbres!A110<>"",VLOOKUP($A98,Base_Arbres,5,FALSE)*Crit3,"") -> 27.1 | E98: =IF(Base_Arbres!A110<>"",VLOOKUP($A98,Base_Arbres,6,FALSE)*Crit4,"") -> 39.5 | F98: =IF(Base_Arbres!B110<>"",VLOOKUP($A98,Base_Arbres,7,FALSE)*Crit5,"") -> 30.5 | G98: =IF(Base_Arbres!C110<>"",VLOOKUP($A98,Base_Arbres,8,FALSE)*crit8,"") -> 36.65 | H98: =IF(Base_Arbres!D110<>"",VLOOKUP($A98,Base_Arbres,9,FALSE)*crit9,"") -> 15 | I98: =IF(ISNA(VLOOKUP(INDEX(Base_Typologie!$A$6:$P$1003,MATCH(A98,Base_Typologie!$A:$A,0)-5,MATCH(Typologie_Espace_Public,Base_Typologie!$6:$6,0)),TableauScoreTypologie2,2,FALSE)*Crit6),0,VLOOKUP(INDEX(Base_Typologie!$A$6:$P$1003,MATCH(A98,Base_Typologie!$A:$A,0)-5,MATCH(Typologie_Espace_Public,Base_Typologie!$6:$6,0)),TableauScoreTypologie2,2,FALSE)*Crit6) -> 10 | J98: 1 | K98: 1 | L98: 1 | M98: 1 | N98: 1 | O98: 1 | P98: 1 | Q98: 1 | R98: 1 | S98: 1 | T98: 1 | U98: 1 | V98: =(SUM(B98:I98)+W98*1.5)*J98*K98*L98*M98*N98*O98*P98*Q98*R98*S98*T98*U98 -> 296.9 | W98: =IF(Base_Arbres!V77<>"",VLOOKUP($A98,Base_Arbres,22,FALSE)*Crit7,"") -> 60
A99: =IF(Base_Arbres!A28<>"",Base_Arbres!A28,"") -> Cèdre de l’Atlas | B99: =IF(Base_Arbres!A28<>"",VLOOKUP($A99,Base_Arbres,3,FALSE)*Crit1,"") -> 19.25 | C99: =IF(Base_Arbres!A28<>"",VLOOKUP($A99,Base_Arbres,4,FALSE)*Crit2,"") -> 36.8 | D99: =IF(Base_Arbres!A28<>"",VLOOKUP($A99,Base_Arbres,5,FALSE)*Crit3,"") -> 25.1 | E99: =IF(Base_Arbres!A28<>"",VLOOKUP($A99,Base_Arbres,6,FALSE)*Crit4,"") -> 4 | F99: =IF(Base_Arbres!B28<>"",VLOOKUP($A99,Base_Arbres,7,FALSE)*Crit5,"") -> 28.5 | G99: =IF(Base_Arbres!C28<>"",VLOOKUP($A99,Base_Arbres,8,FALSE)*crit8,"") -> 50 | H99: =IF(Base_Arbres!D28<>"",VLOOKUP($A99,Base_Arbres,9,FALSE)*crit9,"") -> 15 | I99: =IF(ISNA(VLOOKUP(INDEX(Base_Typologie!$A$6:$P$1003,MATCH(A99,Base_Typologie!$A:$A,0)-5,MATCH(Typologie_Espace_Public,Base_Typologie!$6:$6,0)),TableauScoreTypologie2,2,FALSE)*Crit6),0,VLOOKUP(INDEX(Base_Typologie!$A$6:$P$1003,MATCH(A99,Base_Typologie!$A:$A,0)-5,MATCH(Typologie_Espace_Public,Base_Typologie!$6:$6,0)),TableauScoreTypologie2,2,FALSE)*Crit6) -> 30 | J99: 1 | K99: 1 | L99: 1 | M99: 1 | N99: 1 | O99: 1 | P99: 1 | Q99: 1 | R99: 1 | S99: 1 | T99: 1 | U99: 1 | V99: 343.65 | W99: =IF(Base_Arbres!V36<>"",VLOOKUP($A99,Base_Arbres,22,FALSE)*Crit7,"") -> 90
A100: =IF(Base_Arbres!A87<>"",Base_Arbres!A87,"") -> Peuplier blanc | B100: =IF(Base_Arbres!A87<>"",VLOOKUP($A100,Base_Arbres,3,FALSE)*Crit1,"") -> 23.35 | C100: =IF(Base_Arbres!A87<>"",VLOOKUP($A100,Base_Arbres,4,FALSE)*Crit2,"") -> 28.75 | D100: =IF(Base_Arbres!A87<>"",VLOOKUP($A100,Base_Arbres,5,FALSE)*Crit3,"") -> 30.4 | E100: =IF(Base_Arbres!A87<>"",VLOOKUP($A100,Base_Arbres,6,FALSE)*Crit4,"") -> 25 | F100: =IF(Base_Arbres!B87<>"",VLOOKUP($A100,Base_Arbres,7,FALSE)*Crit5,"") -> 29 | G100: =IF(Base_Arbres!C87<>"",VLOOKUP($A100,Base_Arbres,8,FALSE)*crit8,"") -> 36.65 | H100: =IF(Base_Arbres!D87<>"",VLOOKUP($A100,Base_Arbres,9,FALSE)*crit9,"") -> 15 | I100: =IF(ISNA(VLOOKUP(INDEX(Base_Typologie!$A$6:$P$1003,MATCH(A100,Base_Typologie!$A:$A,0)-5,MATCH(Typologie_Espace_Public,Base_Typologie!$6:$6,0)),TableauScoreTypologie2,2,FALSE)*Crit6),0,VLOOKUP(INDEX(Base_Typologie!$A$6:$P$1003,MATCH(A100,Base_Typologie!$A:$A,0)-5,MATCH(Typologie_Espace_Public,Base_Typologie!$6:$6,0)),TableauScoreTypologie2,2,FALSE)*Crit6) -> 10 | J100: 1 | K100: 1 | L100: 1 | M100: 1 | N100: 1 | O100: 1 | P100: 1 | Q100: 1 | R100: 1 | S100: 1 | T100: 1 | U100: 1 | V100: 288.15 | W100: =IF(Base_Arbres!V60<>"",VLOOKUP($A100,Base_Arbres,22,FALSE)*Crit7,"") -> 60
A101: =IF(Base_Arbres!A123<>"",Base_Arbres!A123,"") -> Sophora du Japon | B101: =IF(Base_Arbres!A123<>"",VLOOKUP($A101,Base_Arbres,3,FALSE)*Crit1,"") -> 23.7 | C101: =IF(Base_Arbres!A123<>"",VLOOKUP($A101,Base_Arbres,4,FALSE)*Crit2,"") -> 27.9 | D101: =IF(Base_Arbres!A123<>"",VLOOKUP($A101,Base_Arbres,5,FALSE)*Crit3,"") -> 32.6 | E101: =IF(Base_Arbres!A123<>"",VLOOKUP($A101,Base_Arbres,6,FALSE)*Crit4,"") -> 12.5 | F101: =IF(Base_Arbres!B123<>"",VLOOKUP($A101,Base_Arbres,7,FALSE)*Crit5,"") -> 33.5 | G101: =IF(Base_Arbres!C123<>"",VLOOKUP($A101,Base_Arbres,8,FALSE)*crit8,"") -> 16.65 | H101: =IF(Base_Arbres!D123<>"",VLOOKUP($A101,Base_Arbres,9,FALSE)*crit9,"") -> 15 | I101: =IF(ISNA(VLOOKUP(INDEX(Base_Typologie!$A$6:$P$1003,MATCH(A101,Base_Typologie!$A:$A,0)-5,MATCH(Typologie_Espace_Public,Base_Typologie!$6:$6,0)),TableauScoreTypologie2,2,FALSE)*Crit6),0,VLOOKUP(INDEX(Base_Typologie!$A$6:$P$1003,MATCH(A101,Base_Typologie!$A:$A,0)-5,MATCH(Typologie_Espace_Public,Base_Typologie!$6:$6,0)),TableauScoreTypologie2,2,FALSE)*Crit6) -> 50 | J101: 1 | K101: 1 | L101: 1 | M101: 1 | N101: 1 | O101: 1 | P101: 1 | Q101: 1 | R101: 1 | S101: 1 | T101: 1 | U101: 1 | V101: 346.85 | W101: =IF(Base_Arbres!V31<>"",VLOOKUP($A101,Base_Arbres,22,FALSE)*Crit7,"") -> 90
A102: =IF(Base_Arbres!A79<>"",Base_Arbres!A79,"") -> Paulownia tomenteux ou impérial | B102: =IF(Base_Arbres!A79<>"",VLOOKUP($A102,Base_Arbres,3,FALSE)*Crit1,"") -> 25.85 | C102: =IF(Base_Arbres!A79<>"",VLOOKUP($A102,Base_Arbres,4,FALSE)*Crit2,"") -> 36 | D102: =IF(Base_Arbres!A79<>"",VLOOKUP($A102,Base_Arbres,5,FALSE)*Crit3,"") -> 42 | E102: =IF(Base_Arbres!A79<>"",VLOOKUP($A102,Base_Arbres,6,FALSE)*Crit4,"") -> 4 | F102: =IF(Base_Arbres!B79<>"",VLOOKUP($A102,Base_Arbres,7,FALSE)*Crit5,"") -> 37 | G102: =IF(Base_Arbres!C79<>"",VLOOKUP($A102,Base_Arbres,8,FALSE)*crit8,"") -> 16.65 | H102: =IF(Base_Arbres!D79<>"",VLOOKUP($A102,Base_Arbres,9,FALSE)*crit9,"") -> 15 | I102: =IF(ISNA(VLOOKUP(INDEX(Base_Typologie!$A$6:$P$1003,MATCH(A102,Base_Typologie!$A:$A,0)-5,MATCH(Typologie_Espace_Public,Base_Typologie!$6:$6,0)),TableauScoreTypologie2,2,FALSE)*Crit6),0,VLOOKUP(INDEX(Base_Typologie!$A$6:$P$1003,MATCH(A102,Base_Typologie!$A:$A,0)-5,MATCH(Typologie_Espace_Public,Base_Typologie!$6:$6,0)),TableauScoreTypologie2,2,FALSE)*Crit6) -> 30 | J102: 1 | K102: 1 | L102: 1 | M102: 1 | N102: 1 | O102: 1 | P102: 1 | Q102: 1 | R102: 1 | S102: 1 | T102: 1 | U102: 1 | V102: 311.5 | W102: =IF(Base_Arbres!V13<>"",VLOOKUP($A102,Base_Arbres,22,FALSE)*Crit7,"") -> 70
A103: =IF(Base_Arbres!A16<>"",Base_Arbres!A16,"") -> Aulne de Späth | B103: =IF(Base_Arbres!A16<>"",VLOOKUP($A103,Base_Arbres,3,FALSE)*Crit1,"") -> 23.2 | C103: =IF(Base_Arbres!A16<>"",VLOOKUP($A103,Base_Arbres,4,FALSE)*Crit2,"") -> 28.7 | D103: =IF(Base_Arbres!A16<>"",VLOOKUP($A103,Base_Arbres,5,FALSE)*Crit3,"") -> 28.85 | E103: =IF(Base_Arbres!A16<>"",VLOOKUP($A103,Base_Arbres,6,FALSE)*Crit4,"") -> 8.5 | F103: =IF(Base_Arbres!B16<>"",VLOOKUP($A103,Base_Arbres,7,FALSE)*Crit5,"") -> 28 | G103: =IF(Base_Arbres!C16<>"",VLOOKUP($A103,Base_Arbres,8,FALSE)*crit8,"") -> 6.65 | H103: =IF(Base_Arbres!D16<>"",VLOOKUP($A103,Base_Arbres,9,FALSE)*crit9,"") -> 15 | I103: =IF(ISNA(VLOOKUP(INDEX(Base_Typologie!$A$6:$P$1003,MATCH(A103,Base_Typologie!$A:$A,0)-5,MATCH(Typologie_Espace_Public,Base_Typologie!$6:$6,0)),TableauScoreTypologie2,2,FALSE)*Crit6),0,VLOOKUP(INDEX(Base_Typologie!$A$6:$P$1003,MATCH(A103,Base_Typologie!$A:$A,0)-5,MATCH(Typologie_Espace_Public,Base_Typologie!$6:$6,0)),TableauScoreTypologie2,2,FALSE)*Crit6) -> 10 | J103: 1 | K103: 1 | L103: 1 | M103: 1 | N103: 1 | O103: 1 | P103: 1 | Q103: 1 | R103: 1 | S103: 1 | T103: 1 | U103: 1 | V103: 283.9 | W103: =IF(Base_Arbres!V74<>"",VLOOKUP($A103,Base_Arbres,22,FALSE)*Crit7,"") -> 90
A104: =IF(Base_Arbres!A14<>"",Base_Arbres!A14,"") -> Aulne glutineux | B104: =IF(Base_Arbres!A14<>"",VLOOKUP($A104,Base_Arbres,3,FALSE)*Crit1,"") -> 25.6 | C104: =IF(Base_Arbres!A14<>"",VLOOKUP($A104,Base_Arbres,4,FALSE)*Crit2,"") -> 24.4 | D104: =IF(Base_Arbres!A14<>"",VLOOKUP($A104,Base_Arbres,5,FALSE)*Crit3,"") -> 27.6 | E104: =IF(Base_Arbres!A14<>"",VLOOKUP($A104,Base_Arbres,6,FALSE)*Crit4,"") -> 35.5 | F104: =IF(Base_Arbres!B14<>"",VLOOKUP($A104,Base_Arbres,7,FALSE)*Crit5,"") -> 29 | G104: =IF(Base_Arbres!C14<>"",VLOOKUP($A104,Base_Arbres,8,FALSE)*crit8,"") -> 16.65 | H104: =IF(Base_Arbres!D14<>"",VLOOKUP($A104,Base_Arbres,9,FALSE)*crit9,"") -> 15 | I104: =IF(ISNA(VLOOKUP(INDEX(Base_Typologie!$A$6:$P$1003,MATCH(A104,Base_Typologie!$A:$A,0)-5,MATCH(Typologie_Espace_Public,Base_Typologie!$6:$6,0)),TableauScoreTypologie2,2,FALSE)*Crit6),0,VLOOKUP(INDEX(Base_Typologie!$A$6:$P$1003,MATCH(A104,Base_Typologie!$A:$A,0)-5,MATCH(Typologie_Espace_Public,Base_Typologie!$6:$6,0)),TableauScoreTypologie2,2,FALSE)*Crit6) -> 10 | J104: 1 | K104: 1 | L104: 1 | M104: 1 | N104: 1 | O104: 1 | P104: 1 | Q104: 1 | R104: 1 | S104: 1 | T104: 1 | U104: 1 | V104: 288.75 | W104: =IF(Base_Arbres!V3<>"",VLOOKUP($A104,Base_Arbres,22,FALSE)*Crit7,"") -> 70
A105: =IF(Base_Arbres!A56<>"",Base_Arbres!A56,"") -> Févier d’Amérique | B105: =IF(Base_Arbres!A56<>"",VLOOKUP($A105,Base_Arbres,3,FALSE)*Crit1,"") -> 22.55 | C105: =IF(Base_Arbres!A56<>"",VLOOKUP($A105,Base_Arbres,4,FALSE)*Crit2,"") -> 27.2 | D105: =IF(Base_Arbres!A56<>"",VLOOKUP($A105,Base_Arbres,5,FALSE)*Crit3,"") -> 30.85 | E105: =IF(Base_Arbres!A56<>"",VLOOKUP($A105,Base_Arbres,6,FALSE)*Crit4,"") -> 16.5 | F105: =IF(Base_Arbres!B56<>"",VLOOKUP($A105,Base_Arbres,7,FALSE)*Crit5,"") -> 33 | G105: =IF(Base_Arbres!C56<>"",VLOOKUP($A105,Base_Arbres,8,FALSE)*crit8,"") -> 20 | H105: =IF(Base_Arbres!D56<>"",VLOOKUP($A105,Base_Arbres,9,FALSE)*crit9,"") -> 0 | I105: =IF(ISNA(VLOOKUP(INDEX(Base_Typologie!$A$6:$P$1003,MATCH(A105,Base_Typologie!$A:$A,0)-5,MATCH(Typologie_Espace_Public,Base_Typologie!$6:$6,0)),TableauScoreTypologie2,2,FALSE)*Crit6),0,VLOOKUP(INDEX(Base_Typologie!$A$6:$P$1003,MATCH(A105,Base_Typologie!$A:$A,0)-5,MATCH(Typologie_Espace_Public,Base_Typologie!$6:$6,0)),TableauScoreTypologie2,2,FALSE)*Crit6) -> 30 | J105: 1 | K105: 1 | L105: 1 | M105: 1 | N105: 1 | O105: 1 | P105: 1 | Q105: 1 | R105: 1 | S105: 1 | T105: 1 | U105: 1 | V105: 315.1 | W105: =IF(Base_Arbres!V61<>"",VLOOKUP($A105,Base_Arbres,22,FALSE)*Crit7,"") -> 90
A106: =IF(Base_Arbres!A29<>"",Base_Arbres!A29,"") -> Cèdre du Liban | B106: =IF(Base_Arbres!A29<>"",VLOOKUP($A106,Base_Arbres,3,FALSE)*Crit1,"") -> 19.5 | C106: =IF(Base_Arbres!A29<>"",VLOOKUP($A106,Base_Arbres,4,FALSE)*Crit2,"") -> 36.2 | D106: =IF(Base_Arbres!A29<>"",VLOOKUP($A106,Base_Arbres,5,FALSE)*Crit3,"") -> 27 | E106: =IF(Base_Arbres!A29<>"",VLOOKUP($A106,Base_Arbres,6,FALSE)*Crit4,"") -> 4 | F106: =IF(Base_Arbres!B29<>"",VLOOKUP($A106,Base_Arbres,7,FALSE)*Crit5,"") -> 29 | G106: =IF(Base_Arbres!C29<>"",VLOOKUP($A106,Base_Arbres,8,FALSE)*crit8,"") -> 50 | H106: =IF(Base_Arbres!D29<>"",VLOOKUP($A106,Base_Arbres,9,FALSE)*crit9,"") -> 15 | I106: =IF(ISNA(VLOOKUP(INDEX(Base_Typologie!$A$6:$P$1003,MATCH(A106,Base_Typologie!$A:$A,0)-5,MATCH(Typologie_Espace_Public,Base_Typologie!$6:$6,0)),TableauScoreTypologie2,2,FALSE)*Crit6),0,VLOOKUP(INDEX(Base_Typologie!$A$6:$P$1003,MATCH(A106,Base_Typologie!$A:$A,0)-5,MATCH(Typologie_Espace_Public,Base_Typologie!$6:$6,0)),TableauScoreTypologie2,2,FALSE)*Crit6) -> 30 | J106: 1 | K106: 1 | L106: 1 | M106: 1 | N106: 1 | O106: 1 | P106: 1 | Q106: 1 | R106: 1 | S106: 1 | T106: 1 | U106: 1 | V106: 330.7 | W106: =IF(Base_Arbres!V80<>"",VLOOKUP($A106,Base_Arbres,22,FALSE)*Crit7,"") -> 80
A107: =IF(Base_Arbres!A27<>"",Base_Arbres!A27,"") -> Catalpa commun | B107: =IF(Base_Arbres!A27<>"",VLOOKUP($A107,Base_Arbres,3,FALSE)*Crit1,"") -> 28.1 | C107: =IF(Base_Arbres!A27<>"",VLOOKUP($A107,Base_Arbres,4,FALSE)*Crit2,"") -> 32 | D107: =IF(Base_Arbres!A27<>"",VLOOKUP($A107,Base_Arbres,5,FALSE)*Crit3,"") -> 37.9 | E107: =IF(Base_Arbres!A27<>"",VLOOKUP($A107,Base_Arbres,6,FALSE)*Crit4,"") -> 6.5 | F107: =IF(Base_Arbres!B27<>"",VLOOKUP($A107,Base_Arbres,7,FALSE)*Crit5,"") -> 33.5 | G107: =IF(Base_Arbres!C27<>"",VLOOKUP($A107,Base_Arbres,8,FALSE)*crit8,"") -> 16.65 | H107: =IF(Base_Arbres!D27<>"",VLOOKUP($A107,Base_Arbres,9,FALSE)*crit9,"") -> 15 | I107: =IF(ISNA(VLOOKUP(INDEX(Base_Typologie!$A$6:$P$1003,MATCH(A107,Base_Typologie!$A:$A,0)-5,MATCH(Typologie_Espace_Public,Base_Typologie!$6:$6,0)),TableauScoreTypologie2,2,FALSE)*Crit6),0,VLOOKUP(INDEX(Base_Typologie!$A$6:$P$1003,MATCH(A107,Base_Typologie!$A:$A,0)-5,MATCH(Typologie_Espace_Public,Base_Typologie!$6:$6,0)),TableauScoreTypologie2,2,FALSE)*Crit6) -> 50 | J107: 1 | K107: 1 | L107: 1 | M107: 1 | N107: 1 | O107: 1 | P107: 1 | Q107: 1 | R107: 1 | S107: 1 | T107: 1 | U107: 1 | V107: 324.65 | W107: =IF(Base_Arbres!V11<>"",VLOOKUP($A107,Base_Arbres,22,FALSE)*Crit7,"") -> 70
A108: =IF(Base_Arbres!A88<>"",Base_Arbres!A88,"") -> Peuplier tremble | B108: =IF(Base_Arbres!A88<>"",VLOOKUP($A108,Base_Arbres,3,FALSE)*Crit1,"") -> 33.45 | C108: =IF(Base_Arbres!A88<>"",VLOOKUP($A108,Base_Arbres,4,FALSE)*Crit2,"") -> 23.4 | D108: =IF(Base_Arbres!A88<>"",VLOOKUP($A108,Base_Arbres,5,FALSE)*Crit3,"") -> 33.25 | E108: =IF(Base_Arbres!A88<>"",VLOOKUP($A108,Base_Arbres,6,FALSE)*Crit4,"") -> 31.5 | F108: =IF(Base_Arbres!B88<>"",VLOOKUP($A108,Base_Arbres,7,FALSE)*Crit5,"") -> 34 | G108: =IF(Base_Arbres!C88<>"",VLOOKUP($A108,Base_Arbres,8,FALSE)*crit8,"") -> 20 | H108: dcds | I108: =IF(ISNA(VLOOKUP(INDEX(Base_Typologie!$A$6:$P$1003,MATCH(A108,Base_Typologie!$A:$A,0)-5,MATCH(Typologie_Espace_Public,Base_Typologie!$6:$6,0)),TableauScoreTypologie2,2,FALSE)*Crit6),0,VLOOKUP(INDEX(Base_Typologie!$A$6:$P$1003,MATCH(A108,Base_Typologie!$A:$A,0)-5,MATCH(Typologie_Espace_Public,Base_Typologie!$6:$6,0)),TableauScoreTypologie2,2,FALSE)*Crit6) -> 10 | J108: 1 | K108: 1 | L108: 1 | M108: 1 | N108: 1 | O108: 1 | P108: 1 | Q108: 1 | R108: 1 | S108: 1 | T108: 1 | U108: 1 | V108: 290.6 | W108: =IF(Base_Arbres!V39<>"",VLOOKUP($A108,Base_Arbres,22,FALSE)*Crit7,"") -> 70
A109: =IF(Base_Arbres!A44<>"",Base_Arbres!A44,"") -> Arbre à Gutta-Percha | B109: =IF(Base_Arbres!A44<>"",VLOOKUP($A109,Base_Arbres,3,FALSE)*Crit1,"") -> 31.9 | C109: =IF(Base_Arbres!A44<>"",VLOOKUP($A109,Base_Arbres,4,FALSE)*Crit2,"") -> 27.1 | D109: =IF(Base_Arbres!A44<>"",VLOOKUP($A109,Base_Arbres,5,FALSE)*Crit3,"") -> 37.9 | E109: =IF(Base_Arbres!A44<>"",VLOOKUP($A109,Base_Arbres,6,FALSE)*Crit4,"") -> 5 | F109: =IF(Base_Arbres!B44<>"",VLOOKUP($A109,Base_Arbres,7,FALSE)*Crit5,"") -> 36 | G109: =IF(Base_Arbres!C44<>"",VLOOKUP($A109,Base_Arbres,8,FALSE)*crit8,"") -> 20 | H109: =IF(Base_Arbres!D44<>"",VLOOKUP($A109,Base_Arbres,9,FALSE)*crit9,"") -> 15 | I109: =IF(ISNA(VLOOKUP(INDEX(Base_Typologie!$A$6:$P$1003,MATCH(A109,Base_Typologie!$A:$A,0)-5,MATCH(Typologie_Espace_Public,Base_Typologie!$6:$6,0)),TableauScoreTypologie2,2,FALSE)*Crit6),0,VLOOKUP(INDEX(Base_Typologie!$A$6:$P$1003,MATCH(A109,Base_Typologie!$A:$A,0)-5,MATCH(Typologie_Espace_Public,Base_Typologie!$6:$6,0)),TableauScoreTypologie2,2,FALSE)*Crit6) -> 30 | J109: 1 | K109: 1 | L109: 1 | M109: 1 | N109: 1 | O109: 1 | P109: 1 | Q109: 1 | R109: 1 | S109: 1 | T109: 1 | U109: 1 | V109: 307.9 | W109: =IF(Base_Arbres!V86<>"",VLOOKUP($A109,Base_Arbres,22,FALSE)*Crit7,"") -> 70
A110: =IF(Base_Arbres!A130<>"",Base_Arbres!A130,"") -> Orme champêtre | B110: =IF(Base_Arbres!A130<>"",VLOOKUP($A110,Base_Arbres,3,FALSE)*Crit1,"") -> 30.35 | C110: =IF(Base_Arbres!A130<>"",VLOOKUP($A110,Base_Arbres,4,FALSE)*Crit2,"") -> 26.55 | D110: =IF(Base_Arbres!A130<>"",VLOOKUP($A110,Base_Arbres,5,FALSE)*Crit3,"") -> 35.1 | E110: =IF(Base_Arbres!A130<>"",VLOOKUP($A110,Base_Arbres,6,FALSE)*Crit4,"") -> 23 | F110: =IF(Base_Arbres!B130<>"",VLOOKUP($A110,Base_Arbres,7,FALSE)*Crit5,"") -> 33.5 | G110: =IF(Base_Arbres!C130<>"",VLOOKUP($A110,Base_Arbres,8,FALSE)*crit8,"") -> 20 | H110: =IF(Base_Arbres!D130<>"",VLOOKUP($A110,Base_Arbres,9,FALSE)*crit9,"") -> 15 | I110: =IF(ISNA(VLOOKUP(INDEX(Base_Typologie!$A$6:$P$1003,MATCH(A110,Base_Typologie!$A:$A,0)-5,MATCH(Typologie_Espace_Public,Base_Typologie!$6:$6,0)),TableauScoreTypologie2,2,FALSE)*Crit6),0,VLOOKUP(INDEX(Base_Typologie!$A$6:$P$1003,MATCH(A110,Base_Typologie!$A:$A,0)-5,MATCH(Typologie_Espace_Public,Base_Typologie!$6:$6,0)),TableauScoreTypologie2,2,FALSE)*Crit6) -> 30 | J110: 1 | K110: 1 | L110: 1 | M110: 1 | N110: 1 | O110: 1 | P110: 1 | Q110: 1 | R110: 1 | S110: 1 | T110: 1 | U110: 1 | V110: 288.5 | W110: =IF(Base_Arbres!V38<>"",VLOOKUP($A110,Base_Arbres,22,FALSE)*Crit7,"") -> 50
A111: =IF(Base_Arbres!A49<>"",Base_Arbres!A49,"") -> Frêne à feuilles étroites, Frêne du midi, Frêne oxyphylle | B111: =IF(Base_Arbres!A49<>"",VLOOKUP($A111,Base_Arbres,3,FALSE)*Crit1,"") -> 27.85 | C111: =IF(Base_Arbres!A49<>"",VLOOKUP($A111,Base_Arbres,4,FALSE)*Crit2,"") -> 25.4 | D111: =IF(Base_Arbres!A49<>"",VLOOKUP($A111,Base_Arbres,5,FALSE)*Crit3,"") -> 31.05 | E111: =IF(Base_Arbres!A49<>"",VLOOKUP($A111,Base_Arbres,6,FALSE)*Crit4,"") -> 25 | F111: =IF(Base_Arbres!B49<>"",VLOOKUP($A111,Base_Arbres,7,FALSE)*Crit5,"") -> 29 | G111: =IF(Base_Arbres!C49<>"",VLOOKUP($A111,Base_Arbres,8,FALSE)*crit8,"") -> 20 | I111: =IF(ISNA(VLOOKUP(INDEX(Base_Typologie!$A$6:$P$1003,MATCH(A111,Base_Typologie!$A:$A,0)-5,MATCH(Typologie_Espace_Public,Base_Typologie!$6:$6,0)),TableauScoreTypologie2,2,FALSE)*Crit6),0,VLOOKUP(INDEX(Base_Typologie!$A$6:$P$1003,MATCH(A111,Base_Typologie!$A:$A,0)-5,MATCH(Typologie_Espace_Public,Base_Typologie!$6:$6,0)),TableauScoreTypologie2,2,FALSE)*Crit6) -> 50 | J111: 1 | K111: 1 | L111: 1 | M111: 1 | N111: 1 | O111: 1 | P111: 1 | Q111: 1 | R111: 1 | S111: 1 | T111: 1 | U111: 1 | V111: 343.3 | W111: =IF(Base_Arbres!V48<>"",VLOOKUP($A111,Base_Arbres,22,FALSE)*Crit7,"") -> 90
A112: =IF(Base_Arbres!A82<>"",Base_Arbres!A82,"") -> Pin sylvestre | B112: =IF(Base_Arbres!A82<>"",VLOOKUP($A112,Base_Arbres,3,FALSE)*Crit1,"") -> 19.25 | C112: =IF(Base_Arbres!A82<>"",VLOOKUP($A112,Base_Arbres,4,FALSE)*Crit2,"") -> 36.8 | D112: =IF(Base_Arbres!A82<>"",VLOOKUP($A112,Base_Arbres,5,FALSE)*Crit3,"") -> 25.1 | E112: =IF(Base_Arbres!A82<>"",VLOOKUP($A112,Base_Arbres,6,FALSE)*Crit4,"") -> 23 | F112: =IF(Base_Arbres!B82<>"",VLOOKUP($A112,Base_Arbres,7,FALSE)*Crit5,"") -> 29.5 | G112: =IF(Base_Arbres!C82<>"",VLOOKUP($A112,Base_Arbres,8,FALSE)*crit8,"") -> 16.65 | H112: =IF(Base_Arbres!D82<>"",VLOOKUP($A112,Base_Arbres,9,FALSE)*crit9,"") -> 15 | I112: =IF(ISNA(VLOOKUP(INDEX(Base_Typologie!$A$6:$P$1003,MATCH(A112,Base_Typologie!$A:$A,0)-5,MATCH(Typologie_Espace_Public,Base_Typologie!$6:$6,0)),TableauScoreTypologie2,2,FALSE)*Crit6),0,VLOOKUP(INDEX(Base_Typologie!$A$6:$P$1003,MATCH(A112,Base_Typologie!$A:$A,0)-5,MATCH(Typologie_Espace_Public,Base_Typologie!$6:$6,0)),TableauScoreTypologie2,2,FALSE)*Crit6) -> 30 | J112: 1 | K112: 1 | L112: 1 | M112: 1 | N112: 1 | O112: 1 | P112: 1 | Q112: 1 | R112: 1 | S112: 1 | T112: 1 | U112: 1 | V112: 315.3 | W112: =IF(Base_Arbres!V58<>"",VLOOKUP($A112,Base_Arbres,22,FALSE)*Crit7,"") -> 80
A113: =IF(Base_Arbres!A65<>"",Base_Arbres!A65,"") -> Tulipier de Virginie | B113: =IF(Base_Arbres!A65<>"",VLOOKUP($A113,Base_Arbres,3,FALSE)*Crit1,"") -> 32.85 | C113: =IF(Base_Arbres!A65<>"",VLOOKUP($A113,Base_Arbres,4,FALSE)*Crit2,"") -> 23.05 | D113: =IF(Base_Arbres!A65<>"",VLOOKUP($A113,Base_Arbres,5,FALSE)*Crit3,"") -> 29.15 | E113: =IF(Base_Arbres!A65<>"",VLOOKUP($A113,Base_Arbres,6,FALSE)*Crit4,"") -> 14.5 | F113: =IF(Base_Arbres!B65<>"",VLOOKUP($A113,Base_Arbres,7,FALSE)*Crit5,"") -> 30 | G113: =IF(Base_Arbres!C65<>"",VLOOKUP($A113,Base_Arbres,8,FALSE)*crit8,"") -> 20 | H113: =IF(Base_Arbres!D65<>"",VLOOKUP($A113,Base_Arbres,9,FALSE)*crit9,"") -> 15 | I113: =IF(ISNA(VLOOKUP(INDEX(Base_Typologie!$A$6:$P$1003,MATCH(A113,Base_Typologie!$A:$A,0)-5,MATCH(Typologie_Espace_Public,Base_Typologie!$6:$6,0)),TableauScoreTypologie2,2,FALSE)*Crit6),0,VLOOKUP(INDEX(Base_Typologie!$A$6:$P$1003,MATCH(A113,Base_Typologie!$A:$A,0)-5,MATCH(Typologie_Espace_Public,Base_Typologie!$6:$6,0)),TableauScoreTypologie2,2,FALSE)*Crit6) -> 50 | J113: 1 | K113: 1 | L113: 1 | M113: 1 | N113: 1 | O113: 1 | P113: 1 | Q113: 1 | R113: 1 | S113: 1 | T113: 1 | U113: 1 | V113: 304.55 | W113: =IF(Base_Arbres!V50<>"",VLOOKUP($A113,Base_Arbres,22,FALSE)*Crit7,"") -> 60
A114: =IF(Base_Arbres!A75<>"",Base_Arbres!A75,"") -> Tupélo de Chine | B114: =IF(Base_Arbres!A75<>"",VLOOKUP($A114,Base_Arbres,3,FALSE)*Crit1,"") -> 29.15 | C114: =IF(Base_Arbres!A75<>"",VLOOKUP($A114,Base_Arbres,4,FALSE)*Crit2,"") -> 25.85 | D114: =IF(Base_Arbres!A75<>"",VLOOKUP($A114,Base_Arbres,5,FALSE)*Crit3,"") -> 32 | E114: =IF(Base_Arbres!A75<>"",VLOOKUP($A114,Base_Arbres,6,FALSE)*Crit4,"") -> 14.5 | F114: =IF(Base_Arbres!B75<>"",VLOOKUP($A114,Base_Arbres,7,FALSE)*Crit5,"") -> 30 | G114: =IF(Base_Arbres!C75<>"",VLOOKUP($A114,Base_Arbres,8,FALSE)*crit8,"") -> 13.35 | H114: =IF(Base_Arbres!D75<>"",VLOOKUP($A114,Base_Arbres,9,FALSE)*crit9,"") -> 15 | I114: =IF(ISNA(VLOOKUP(INDEX(Base_Typologie!$A$6:$P$1003,MATCH(A114,Base_Typologie!$A:$A,0)-5,MATCH(Typologie_Espace_Public,Base_Typologie!$6:$6,0)),TableauScoreTypologie2,2,FALSE)*Crit6),0,VLOOKUP(INDEX(Base_Typologie!$A$6:$P$1003,MATCH(A114,Base_Typologie!$A:$A,0)-5,MATCH(Typologie_Espace_Public,Base_Typologie!$6:$6,0)),TableauScoreTypologie2,2,FALSE)*Crit6) -> 10 | J114: 1 | K114: 1 | L114: 1 | M114: 1 | N114: 1 | O114: 1 | P114: 1 | Q114: 1 | R114: 1 | S114: 1 | T114: 1 | U114: 1 | V114: 259.85 | W114: =IF(Base_Arbres!V53<>"",VLOOKUP($A114,Base_Arbres,22,FALSE)*Crit7,"") -> 60
A115: =IF(Base_Arbres!A51<>"",Base_Arbres!A51,"") -> Frêne à fleurs | B115: =IF(Base_Arbres!A51<>"",VLOOKUP($A115,Base_Arbres,3,FALSE)*Crit1,"") -> 30.95 | C115: =IF(Base_Arbres!A51<>"",VLOOKUP($A115,Base_Arbres,4,FALSE)*Crit2,"") -> 20.85 | D115: =IF(Base_Arbres!A51<>"",VLOOKUP($A115,Base_Arbres,5,FALSE)*Crit3,"") -> 30.4 | E115: =IF(Base_Arbres!A51<>"",VLOOKUP($A115,Base_Arbres,6,FALSE)*Crit4,"") -> 19 | F115: =IF(Base_Arbres!B51<>"",VLOOKUP($A115,Base_Arbres,7,FALSE)*Crit5,"") -> 29.5 | G115: =IF(Base_Arbres!C51<>"",VLOOKUP($A115,Base_Arbres,8,FALSE)*crit8,"") -> 10 | H115: =IF(Base_Arbres!D51<>"",VLOOKUP($A115,Base_Arbres,9,FALSE)*crit9,"") -> 15 | I115: =IF(ISNA(VLOOKUP(INDEX(Base_Typologie!$A$6:$P$1003,MATCH(A115,Base_Typologie!$A:$A,0)-5,MATCH(Typologie_Espace_Public,Base_Typologie!$6:$6,0)),TableauScoreTypologie2,2,FALSE)*Crit6),0,VLOOKUP(INDEX(Base_Typologie!$A$6:$P$1003,MATCH(A115,Base_Typologie!$A:$A,0)-5,MATCH(Typologie_Espace_Public,Base_Typologie!$6:$6,0)),TableauScoreTypologie2,2,FALSE)*Crit6) -> 30 | J115: 1 | K115: 1 | L115: 1 | M115: 1 | N115: 1 | O115: 1 | P115: 1 | Q115: 1 | R115: 1 | S115: 1 | T115: 1 | U115: 1 | V115: 305.7 | W115: =IF(Base_Arbres!V49<>"",VLOOKUP($A115,Base_Arbres,22,FALSE)*Crit7,"") -> 80
A116: =IF(Base_Arbres!A12<>"",Base_Arbres!A12,"") -> Marronnier rouge | B116: =IF(Base_Arbres!A12<>"",VLOOKUP($A116,Base_Arbres,3,FALSE)*Crit1,"") -> 29.95 | C116: =IF(Base_Arbres!A12<>"",VLOOKUP($A116,Base_Arbres,4,FALSE)*Crit2,"") -> 27 | D116: =IF(Base_Arbres!A12<>"",VLOOKUP($A116,Base_Arbres,5,FALSE)*Crit3,"") -> 34.05 | E116: =IF(Base_Arbres!A12<>"",VLOOKUP($A116,Base_Arbres,6,FALSE)*Crit4,"") -> 14.5 | F116: =IF(Base_Arbres!B12<>"",VLOOKUP($A116,Base_Arbres,7,FALSE)*Crit5,"") -> 33.5 | G116: =IF(Base_Arbres!C12<>"",VLOOKUP($A116,Base_Arbres,8,FALSE)*crit8,"") -> 20 | H116: =IF(Base_Arbres!D12<>"",VLOOKUP($A116,Base_Arbres,9,FALSE)*crit9,"") -> 15 | I116: =IF(ISNA(VLOOKUP(INDEX(Base_Typologie!$A$6:$P$1003,MATCH(A116,Base_Typologie!$A:$A,0)-5,MATCH(Typologie_Espace_Public,Base_Typologie!$6:$6,0)),TableauScoreTypologie2,2,FALSE)*Crit6),0,VLOOKUP(INDEX(Base_Typologie!$A$6:$P$1003,MATCH(A116,Base_Typologie!$A:$A,0)-5,MATCH(Typologie_Espace_Public,Base_Typologie!$6:$6,0)),TableauScoreTypologie2,2,FALSE)*Crit6) -> 30 | J116: 1 | K116: 1 | L116: 1 | M116: 1 | N116: 1 | O116: 1 | P116: 1 | Q116: 1 | R116: 1 | S116: 1 | T116: 1 | U116: 1 | V116: 294 | W116: =IF(Base_Arbres!V85<>"",VLOOKUP($A116,Base_Arbres,22,FALSE)*Crit7,"") -> 60
A117: =IF(Base_Arbres!A9<>"",Base_Arbres!A9,"") -> Erable rouge Scanlon | B117: =IF(Base_Arbres!A9<>"",VLOOKUP($A117,Base_Arbres,3,FALSE)*Crit1,"") -> 28.55 | C117: =IF(Base_Arbres!A9<>"",VLOOKUP($A117,Base_Arbres,4,FALSE)*Crit2,"") -> 25.45 | D117: =IF(Base_Arbres!A9<>"",VLOOKUP($A117,Base_Arbres,5,FALSE)*Crit3,"") -> 32.8 | E117: =IF(Base_Arbres!A9<>"",VLOOKUP($A117,Base_Arbres,6,FALSE)*Crit4,"") -> 16.5 | F117: =IF(Base_Arbres!B9<>"",VLOOKUP($A117,Base_Arbres,7,FALSE)*Crit5,"") -> 32.5 | G117: =IF(Base_Arbres!C9<>"",VLOOKUP($A117,Base_Arbres,8,FALSE)*crit8,"") -> 20 | H117: =IF(Base_Arbres!D9<>"",VLOOKUP($A117,Base_Arbres,9,FALSE)*crit9,"") -> 15 | I117: =IF(ISNA(VLOOKUP(INDEX(Base_Typologie!$A$6:$P$1003,MATCH(A117,Base_Typologie!$A:$A,0)-5,MATCH(Typologie_Espace_Public,Base_Typologie!$6:$6,0)),TableauScoreTypologie2,2,FALSE)*Crit6),0,VLOOKUP(INDEX(Base_Typologie!$A$6:$P$1003,MATCH(A117,Base_Typologie!$A:$A,0)-5,MATCH(Typologie_Espace_Public,Base_Typologie!$6:$6,0)),TableauScoreTypologie2,2,FALSE)*Crit6) -> 30 | J117: 1 | K117: 1 | L117: 1 | M117: 1 | N117: 1 | O117: 1 | P117: 1 | Q117: 1 | R117: 1 | S117: 1 | T117: 1 | U117: 1 | V117: 290.8 | W117: =IF(Base_Arbres!V40<>"",VLOOKUP($A117,Base_Arbres,22,FALSE)*Crit7,"") -> 60
A118: =IF(Base_Arbres!A20<>"",Base_Arbres!A20,"") -> Bouleau pubescent | B118: =IF(Base_Arbres!A20<>"",VLOOKUP($A118,Base_Arbres,3,FALSE)*Crit1,"") -> 20.65 | C118: =IF(Base_Arbres!A20<>"",VLOOKUP($A118,Base_Arbres,4,FALSE)*Crit2,"") -> 27.5 | D118: =IF(Base_Arbres!A20<>"",VLOOKUP($A118,Base_Arbres,5,FALSE)*Crit3,"") -> 27.1 | E118: =IF(Base_Arbres!A20<>"",VLOOKUP($A118,Base_Arbres,6,FALSE)*Crit4,"") -> 29 | F118: =IF(Base_Arbres!B20<>"",VLOOKUP($A118,Base_Arbres,7,FALSE)*Crit5,"") -> 30 | G118: =IF(Base_Arbres!C20<>"",VLOOKUP($A118,Base_Arbres,8,FALSE)*crit8,"") -> 16.65 | H118: =IF(Base_Arbres!D20<>"",VLOOKUP($A118,Base_Arbres,9,FALSE)*crit9,"") -> 15 | I118: =IF(ISNA(VLOOKUP(INDEX(Base_Typologie!$A$6:$P$1003,MATCH(A118,Base_Typologie!$A:$A,0)-5,MATCH(Typologie_Espace_Public,Base_Typologie!$6:$6,0)),TableauScoreTypologie2,2,FALSE)*Crit6),0,VLOOKUP(INDEX(Base_Typologie!$A$6:$P$1003,MATCH(A118,Base_Typologie!$A:$A,0)-5,MATCH(Typologie_Espace_Public,Base_Typologie!$6:$6,0)),TableauScoreTypologie2,2,FALSE)*Crit6) -> 10 | J118: 1 | K118: 1 | L118: 1 | M118: 1 | N118: 1 | O118: 1 | P118: 1 | Q118: 1 | R118: 1 | S118: 1 | T118: 1 | U118: 1 | V118: 250.9 | W118: =IF(Base_Arbres!V23<>"",VLOOKUP($A118,Base_Arbres,22,FALSE)*Crit7,"") -> 50
A119: =IF(Base_Arbres!A77<>"",Base_Arbres!A77,"") -> Parrotie de Perse, Arbre de fer | B119: =IF(Base_Arbres!A77<>"",VLOOKUP($A119,Base_Arbres,3,FALSE)*Crit1,"") -> 25.6 | C119: =IF(Base_Arbres!A77<>"",VLOOKUP($A119,Base_Arbres,4,FALSE)*Crit2,"") -> 23.7 | D119: =IF(Base_Arbres!A77<>"",VLOOKUP($A119,Base_Arbres,5,FALSE)*Crit3,"") -> 28.85 | E119: =IF(Base_Arbres!A77<>"",VLOOKUP($A119,Base_Arbres,6,FALSE)*Crit4,"") -> 10.5 | F119: =IF(Base_Arbres!B77<>"",VLOOKUP($A119,Base_Arbres,7,FALSE)*Crit5,"") -> 28 | G119: =IF(Base_Arbres!C77<>"",VLOOKUP($A119,Base_Arbres,8,FALSE)*crit8,"") -> 10 | H119: =IF(Base_Arbres!D77<>"",VLOOKUP($A119,Base_Arbres,9,FALSE)*crit9,"") -> 15 | I119: =IF(ISNA(VLOOKUP(INDEX(Base_Typologie!$A$6:$P$1003,MATCH(A119,Base_Typologie!$A:$A,0)-5,MATCH(Typologie_Espace_Public,Base_Typologie!$6:$6,0)),TableauScoreTypologie2,2,FALSE)*Crit6),0,VLOOKUP(INDEX(Base_Typologie!$A$6:$P$1003,MATCH(A119,Base_Typologie!$A:$A,0)-5,MATCH(Typologie_Espace_Public,Base_Typologie!$6:$6,0)),TableauScoreTypologie2,2,FALSE)*Crit6) -> 10 | J119: 1 | K119: 1 | L119: 1 | M119: 1 | N119: 1 | O119: 1 | P119: 1 | Q119: 1 | R119: 1 | S119: 1 | T119: 1 | U119: 1 | V119: 271.65 | W119: =IF(Base_Arbres!V22<>"",VLOOKUP($A119,Base_Arbres,22,FALSE)*Crit7,"") -> 80
A120: =IF(Base_Arbres!A128<>"",Base_Arbres!A128,"") -> Orme de montagne | B120: =IF(Base_Arbres!A128<>"",VLOOKUP($A120,Base_Arbres,3,FALSE)*Crit1,"") -> 27.5 | C120: =IF(Base_Arbres!A128<>"",VLOOKUP($A120,Base_Arbres,4,FALSE)*Crit2,"") -> 30.55 | D120: =IF(Base_Arbres!A128<>"",VLOOKUP($A120,Base_Arbres,5,FALSE)*Crit3,"") -> 37.6 | E120: =IF(Base_Arbres!A128<>"",VLOOKUP($A120,Base_Arbres,6,FALSE)*Crit4,"") -> 16.5 | F120: =IF(Base_Arbres!B128<>"",VLOOKUP($A120,Base_Arbres,7,FALSE)*Crit5,"") -> 35 | G120: =IF(Base_Arbres!C128<>"",VLOOKUP($A120,Base_Arbres,8,FALSE)*crit8,"") -> 40 | H120: =IF(Base_Arbres!D128<>"",VLOOKUP($A120,Base_Arbres,9,FALSE)*crit9,"") -> 15 | I120: =IF(ISNA(VLOOKUP(INDEX(Base_Typologie!$A$6:$P$1003,MATCH(A120,Base_Typologie!$A:$A,0)-5,MATCH(Typologie_Espace_Public,Base_Typologie!$6:$6,0)),TableauScoreTypologie2,2,FALSE)*Crit6),0,VLOOKUP(INDEX(Base_Typologie!$A$6:$P$1003,MATCH(A120,Base_Typologie!$A:$A,0)-5,MATCH(Typologie_Espace_Public,Base_Typologie!$6:$6,0)),TableauScoreTypologie2,2,FALSE)*Crit6) -> 30 | J120: 1 | K120: 1 | L120: 1 | M120: 1 | N120: 1 | O120: 1 | P120: 1 | Q120: 1 | R120: 1 | S120: 1 | T120: 1 | U120: 1 | V120: 292.15 | W120: =IF(Base_Arbres!V19<>"",VLOOKUP($A120,Base_Arbres,22,FALSE)*Crit7,"") -> 40
A121: =IF(Base_Arbres!A74<>"",Base_Arbres!A74,"") -> Metaséquoia, Métaséquoia du Sechuan | B121: =IF(Base_Arbres!A74<>"",VLOOKUP($A121,Base_Arbres,3,FALSE)*Crit1,"") -> 14 | C121: =IF(Base_Arbres!A74<>"",VLOOKUP($A121,Base_Arbres,4,FALSE)*Crit2,"") -> 27 | D121: =IF(Base_Arbres!A74<>"",VLOOKUP($A121,Base_Arbres,5,FALSE)*Crit3,"") -> 19.25 | E121: =IF(Base_Arbres!A74<>"",VLOOKUP($A121,Base_Arbres,6,FALSE)*Crit4,"") -> 5 | F121: =IF(Base_Arbres!B74<>"",VLOOKUP($A121,Base_Arbres,7,FALSE)*Crit5,"") -> 22 | G121: =IF(Base_Arbres!C74<>"",VLOOKUP($A121,Base_Arbres,8,FALSE)*crit8,"") -> 40 | H121: =IF(Base_Arbres!D74<>"",VLOOKUP($A121,Base_Arbres,9,FALSE)*crit9,"") -> 15 | I121: =IF(ISNA(VLOOKUP(INDEX(Base_Typologie!$A$6:$P$1003,MATCH(A121,Base_Typologie!$A:$A,0)-5,MATCH(Typologie_Espace_Public,Base_Typologie!$6:$6,0)),TableauScoreTypologie2,2,FALSE)*Crit6),0,VLOOKUP(INDEX(Base_Typologie!$A$6:$P$1003,MATCH(A121,Base_Typologie!$A:$A,0)-5,MATCH(Typologie_Espace_Public,Base_Typologie!$6:$6,0)),TableauScoreTypologie2,2,FALSE)*Crit6) -> 50 | J121: 1 | K121: 1 | L121: 1 | M121: 1 | N121: 1 | O121: 1 | P121: 1 | Q121: 1 | R121: 1 | S121: 1 | T121: 1 | U121: 1 | V121: 282.25 | W121: =IF(Base_Arbres!V14<>"",VLOOKUP($A121,Base_Arbres,22,FALSE)*Crit7,"") -> 60
A122: =IF(Base_Arbres!A8<>"",Base_Arbres!A8,"") -> Érable rouge d'Amérique | B122: =IF(Base_Arbres!A8<>"",VLOOKUP($A122,Base_Arbres,3,FALSE)*Crit1,"") -> 24.95 | C122: =IF(Base_Arbres!A8<>"",VLOOKUP($A122,Base_Arbres,4,FALSE)*Crit2,"") -> 29 | D122: =IF(Base_Arbres!A8<>"",VLOOKUP($A122,Base_Arbres,5,FALSE)*Crit3,"") -> 35.95 | E122: =IF(Base_Arbres!A8<>"",VLOOKUP($A122,Base_Arbres,6,FALSE)*Crit4,"") -> 16.5 | F122: =IF(Base_Arbres!B8<>"",VLOOKUP($A122,Base_Arbres,7,FALSE)*Crit5,"") -> 38 | G122: =IF(Base_Arbres!C8<>"",VLOOKUP($A122,Base_Arbres,8,FALSE)*crit8,"") -> 20 | H122: =IF(Base_Arbres!D8<>"",VLOOKUP($A122,Base_Arbres,9,FALSE)*crit9,"") -> 15 | I122: =IF(ISNA(VLOOKUP(INDEX(Base_Typologie!$A$6:$P$1003,MATCH(A122,Base_Typologie!$A:$A,0)-5,MATCH(Typologie_Espace_Public,Base_Typologie!$6:$6,0)),TableauScoreTypologie2,2,FALSE)*Crit6),0,VLOOKUP(INDEX(Base_Typologie!$A$6:$P$1003,MATCH(A122,Base_Typologie!$A:$A,0)-5,MATCH(Typologie_Espace_Public,Base_Typologie!$6:$6,0)),TableauScoreTypologie2,2,FALSE)*Crit6) -> 50 | J122: 1 | K122: 1 | L122: 1 | M122: 1 | N122: 1 | O122: 1 | P122: 1 | Q122: 1 | R122: 1 | S122: 1 | T122: 1 | U122: 1 | V122: 289.4 | W122: =IF(Base_Arbres!V84<>"",VLOOKUP($A122,Base_Arbres,22,FALSE)*Crit7,"") -> 40
A123: =IF(Base_Arbres!A129<>"",Base_Arbres!A129,"") -> Orme lisse | B123: =IF(Base_Arbres!A129<>"",VLOOKUP($A123,Base_Arbres,3,FALSE)*Crit1,"") -> 25.6 | C123: =IF(Base_Arbres!A129<>"",VLOOKUP($A123,Base_Arbres,4,FALSE)*Crit2,"") -> 29.4 | D123: =IF(Base_Arbres!A129<>"",VLOOKUP($A123,Base_Arbres,5,FALSE)*Crit3,"") -> 35.1 | E123: =IF(Base_Arbres!A129<>"",VLOOKUP($A123,Base_Arbres,6,FALSE)*Crit4,"") -> 12.5 | F123: =IF(Base_Arbres!B129<>"",VLOOKUP($A123,Base_Arbres,7,FALSE)*Crit5,"") -> 32 | G123: =IF(Base_Arbres!C129<>"",VLOOKUP($A123,Base_Arbres,8,FALSE)*crit8,"") -> 20 | H123: =IF(Base_Arbres!D129<>"",VLOOKUP($A123,Base_Arbres,9,FALSE)*crit9,"") -> 15 | I123: =IF(ISNA(VLOOKUP(INDEX(Base_Typologie!$A$6:$P$1003,MATCH(A123,Base_Typologie!$A:$A,0)-5,MATCH(Typologie_Espace_Public,Base_Typologie!$6:$6,0)),TableauScoreTypologie2,2,FALSE)*Crit6),0,VLOOKUP(INDEX(Base_Typologie!$A$6:$P$1003,MATCH(A123,Base_Typologie!$A:$A,0)-5,MATCH(Typologie_Espace_Public,Base_Typologie!$6:$6,0)),TableauScoreTypologie2,2,FALSE)*Crit6) -> 30 | J123: 1 | K123: 1 | L123: 1 | M123: 1 | N123: 1 | O123: 1 | P123: 1 | Q123: 1 | R123: 1 | S123: 1 | T123: 1 | U123: 1 | V123: 244.6 | W123: =IF(Base_Arbres!V21<>"",VLOOKUP($A123,Base_Arbres,22,FALSE)*Crit7,"") -> 30
A124: =IF(Base_Arbres!A25<>"",Base_Arbres!A25,"") -> Caryer glabre | B124: =IF(Base_Arbres!A25<>"",VLOOKUP($A124,Base_Arbres,3,FALSE)*Crit1,"") -> 37.6 | C124: =IF(Base_Arbres!A25<>"",VLOOKUP($A124,Base_Arbres,4,FALSE)*Crit2,"") -> 24.85 | D124: =IF(Base_Arbres!A25<>"",VLOOKUP($A124,Base_Arbres,5,FALSE)*Crit3,"") -> 39.15 | E124: =IF(Base_Arbres!A25<>"",VLOOKUP($A124,Base_Arbres,6,FALSE)*Crit4,"") -> 6.5 | F124: =IF(Base_Arbres!B25<>"",VLOOKUP($A124,Base_Arbres,7,FALSE)*Crit5,"") -> 34 | G124: =IF(Base_Arbres!C25<>"",VLOOKUP($A124,Base_Arbres,8,FALSE)*crit8,"") -> 20 | H124: =IF(Base_Arbres!D25<>"",VLOOKUP($A124,Base_Arbres,9,FALSE)*crit9,"") -> 15 | I124: =IF(ISNA(VLOOKUP(INDEX(Base_Typologie!$A$6:$P$1003,MATCH(A124,Base_Typologie!$A:$A,0)-5,MATCH(Typologie_Espace_Public,Base_Typologie!$6:$6,0)),TableauScoreTypologie2,2,FALSE)*Crit6),0,VLOOKUP(INDEX(Base_Typologie!$A$6:$P$1003,MATCH(A124,Base_Typologie!$A:$A,0)-5,MATCH(Typologie_Espace_Public,Base_Typologie!$6:$6,0)),TableauScoreTypologie2,2,FALSE)*Crit6) -> 10 | J124: 1 | K124: 1 | L124: 1 | M124: 1 | N124: 1 | O124: 1 | P124: 1 | Q124: 1 | R124: 1 | S124: 1 | T124: 1 | U124: 1 | V124: 262.1 | W124: =IF(Base_Arbres!V52<>"",VLOOKUP($A124,Base_Arbres,22,FALSE)*Crit7,"") -> 50
A125: =IF(Base_Arbres!A60<>"",Base_Arbres!A60,"") -> Savonnier de chine | B125: =IF(Base_Arbres!A60<>"",VLOOKUP($A125,Base_Arbres,3,FALSE)*Crit1,"") -> 30.5 | C125: =IF(Base_Arbres!A60<>"",VLOOKUP($A125,Base_Arbres,4,FALSE)*Crit2,"") -> 20.55 | D125: =IF(Base_Arbres!A60<>"",VLOOKUP($A125,Base_Arbres,5,FALSE)*Crit3,"") -> 28 | E125: =IF(Base_Arbres!A60<>"",VLOOKUP($A125,Base_Arbres,6,FALSE)*Crit4,"") -> 8.5 | F125: =IF(Base_Arbres!B60<>"",VLOOKUP($A125,Base_Arbres,7,FALSE)*Crit5,"") -> 27.5 | G125: =IF(Base_Arbres!C60<>"",VLOOKUP($A125,Base_Arbres,8,FALSE)*crit8,"") -> 10 | H125: =IF(Base_Arbres!D60<>"",VLOOKUP($A125,Base_Arbres,9,FALSE)*crit9,"") -> 15 | I125: =IF(ISNA(VLOOKUP(INDEX(Base_Typologie!$A$6:$P$1003,MATCH(A125,Base_Typologie!$A:$A,0)-5,MATCH(Typologie_Espace_Public,Base_Typologie!$6:$6,0)),TableauScoreTypologie2,2,FALSE)*Crit6),0,VLOOKUP(INDEX(Base_Typologie!$A$6:$P$1003,MATCH(A125,Base_Typologie!$A:$A,0)-5,MATCH(Typologie_Espace_Public,Base_Typologie!$6:$6,0)),TableauScoreTypologie2,2,FALSE)*Crit6) -> 10 | J125: 1 | K125: 1 | L125: 1 | M125: 1 | N125: 1 | O125: 1 | P125: 1 | Q125: 1 | R125: 1 | S125: 1 | T125: 1 | U125: 1 | V125: 270.05 | W125: =IF(Base_Arbres!V64<>"",VLOOKUP($A125,Base_Arbres,22,FALSE)*Crit7,"") -> 80
A126: =IF(Base_Arbres!A69<>"",Base_Arbres!A69,"") -> Pommier sauvage | B126: =IF(Base_Arbres!A69<>"",VLOOKUP($A126,Base_Arbres,3,FALSE)*Crit1,"") -> 29.4 | C126: =IF(Base_Arbres!A69<>"",VLOOKUP($A126,Base_Arbres,4,FALSE)*Crit2,"") -> 20.25 | D126: =IF(Base_Arbres!A69<>"",VLOOKUP($A126,Base_Arbres,5,FALSE)*Crit3,"") -> 27.6 | E126: =IF(Base_Arbres!A69<>"",VLOOKUP($A126,Base_Arbres,6,FALSE)*Crit4,"") -> 29 | F126: =IF(Base_Arbres!B69<>"",VLOOKUP($A126,Base_Arbres,7,FALSE)*Crit5,"") -> 28 | G126: =IF(Base_Arbres!C69<>"",VLOOKUP($A126,Base_Arbres,8,FALSE)*crit8,"") -> 10 | H126: =IF(Base_Arbres!D69<>"",VLOOKUP($A126,Base_Arbres,9,FALSE)*crit9,"") -> 30 | I126: =IF(ISNA(VLOOKUP(INDEX(Base_Typologie!$A$6:$P$1003,MATCH(A126,Base_Typologie!$A:$A,0)-5,MATCH(Typologie_Espace_Public,Base_Typologie!$6:$6,0)),TableauScoreTypologie2,2,FALSE)*Crit6),0,VLOOKUP(INDEX(Base_Typologie!$A$6:$P$1003,MATCH(A126,Base_Typologie!$A:$A,0)-5,MATCH(Typologie_Espace_Public,Base_Typologie!$6:$6,0)),TableauScoreTypologie2,2,FALSE)*Crit6) -> 10 | J126: 1 | K126: 1 | L126: 1 | M126: 1 | N126: 1 | O126: 1 | P126: 1 | Q126: 1 | R126: 1 | S126: 1 | T126: 1 | U126: 1 | V126: 244.25 | W126: =IF(Base_Arbres!V51<>"",VLOOKUP($A126,Base_Arbres,22,FALSE)*Crit7,"") -> 40
A127: =IF(Base_Arbres!A61<>"",Base_Arbres!A61,"") -> Mélèze d’Europe | B127: =IF(Base_Arbres!A61<>"",VLOOKUP($A127,Base_Arbres,3,FALSE)*Crit1,"") -> 15.2 | C127: =IF(Base_Arbres!A61<>"",VLOOKUP($A127,Base_Arbres,4,FALSE)*Crit2,"") -> 27 | D127: =IF(Base_Arbres!A61<>"",VLOOKUP($A127,Base_Arbres,5,FALSE)*Crit3,"") -> 22.4 | E127: =IF(Base_Arbres!A61<>"",VLOOKUP($A127,Base_Arbres,6,FALSE)*Crit4,"") -> 6.5 | F127: =IF(Base_Arbres!B61<>"",VLOOKUP($A127,Base_Arbres,7,FALSE)*Crit5,"") -> 25 | G127: =IF(Base_Arbres!C61<>"",VLOOKUP($A127,Base_Arbres,8,FALSE)*crit8,"") -> 20 | H127: =IF(Base_Arbres!D61<>"",VLOOKUP($A127,Base_Arbres,9,FALSE)*crit9,"") -> 15 | I127: =IF(ISNA(VLOOKUP(INDEX(Base_Typologie!$A$6:$P$1003,MATCH(A127,Base_Typologie!$A:$A,0)-5,MATCH(Typologie_Espace_Public,Base_Typologie!$6:$6,0)),TableauScoreTypologie2,2,FALSE)*Crit6),0,VLOOKUP(INDEX(Base_Typologie!$A$6:$P$1003,MATCH(A127,Base_Typologie!$A:$A,0)-5,MATCH(Typologie_Espace_Public,Base_Typologie!$6:$6,0)),TableauScoreTypologie2,2,FALSE)*Crit6) -> 10 | J127: 1 | K127: 1 | L127: 1 | M127: 1 | N127: 1 | O127: 1 | P127: 1 | Q127: 1 | R127: 1 | S127: 1 | T127: 1 | U127: 1 | V127: 246.1 | W127: =IF(Base_Arbres!V96<>"",VLOOKUP($A127,Base_Arbres,22,FALSE)*Crit7,"") -> 70
A128: =IF(Base_Arbres!A78<>"",Base_Arbres!A78,"") -> Paulownia Fast Blue | B128: =IF(Base_Arbres!A78<>"",VLOOKUP($A128,Base_Arbres,3,FALSE)*Crit1,"") -> 35.7 | C128: =IF(Base_Arbres!A78<>"",VLOOKUP($A128,Base_Arbres,4,FALSE)*Crit2,"") -> 24.4 | D128: =IF(Base_Arbres!A78<>"",VLOOKUP($A128,Base_Arbres,5,FALSE)*Crit3,"") -> 35.4 | E128: =IF(Base_Arbres!A78<>"",VLOOKUP($A128,Base_Arbres,6,FALSE)*Crit4,"") -> 4 | F128: =IF(Base_Arbres!B78<>"",VLOOKUP($A128,Base_Arbres,7,FALSE)*Crit5,"") -> 29.5 | G128: =IF(Base_Arbres!C78<>"",VLOOKUP($A128,Base_Arbres,8,FALSE)*crit8,"") -> 10 | H128: =IF(Base_Arbres!D78<>"",VLOOKUP($A128,Base_Arbres,9,FALSE)*crit9,"") -> 15 | I128: =IF(ISNA(VLOOKUP(INDEX(Base_Typologie!$A$6:$P$1003,MATCH(A128,Base_Typologie!$A:$A,0)-5,MATCH(Typologie_Espace_Public,Base_Typologie!$6:$6,0)),TableauScoreTypologie2,2,FALSE)*Crit6),0,VLOOKUP(INDEX(Base_Typologie!$A$6:$P$1003,MATCH(A128,Base_Typologie!$A:$A,0)-5,MATCH(Typologie_Espace_Public,Base_Typologie!$6:$6,0)),TableauScoreTypologie2,2,FALSE)*Crit6) -> 30 | J128: 1 | K128: 1 | L128: 1 | M128: 1 | N128: 1 | O128: 1 | P128: 1 | Q128: 1 | R128: 1 | S128: 1 | T128: 1 | U128: 1 | V128: 259 | W128: =IF(Base_Arbres!V20<>"",VLOOKUP($A128,Base_Arbres,22,FALSE)*Crit7,"") -> 50
A129: =IF(Base_Arbres!A83<>"",Base_Arbres!A83,"") -> Pistachier de Chine | B129: =IF(Base_Arbres!A83<>"",VLOOKUP($A129,Base_Arbres,3,FALSE)*Crit1,"") -> 30 | C129: =IF(Base_Arbres!A83<>"",VLOOKUP($A129,Base_Arbres,4,FALSE)*Crit2,"") -> 20.25 | D129: =IF(Base_Arbres!A83<>"",VLOOKUP($A129,Base_Arbres,5,FALSE)*Crit3,"") -> 29.15 | E129: =IF(Base_Arbres!A83<>"",VLOOKUP($A129,Base_Arbres,6,FALSE)*Crit4,"") -> 4 | F129: =IF(Base_Arbres!B83<>"",VLOOKUP($A129,Base_Arbres,7,FALSE)*Crit5,"") -> 28.5 | G129: =IF(Base_Arbres!C83<>"",VLOOKUP($A129,Base_Arbres,8,FALSE)*crit8,"") -> 13.35 | H129: =IF(Base_Arbres!D83<>"",VLOOKUP($A129,Base_Arbres,9,FALSE)*crit9,"") -> 15 | I129: =IF(ISNA(VLOOKUP(INDEX(Base_Typologie!$A$6:$P$1003,MATCH(A129,Base_Typologie!$A:$A,0)-5,MATCH(Typologie_Espace_Public,Base_Typologie!$6:$6,0)),TableauScoreTypologie2,2,FALSE)*Crit6),0,VLOOKUP(INDEX(Base_Typologie!$A$6:$P$1003,MATCH(A129,Base_Typologie!$A:$A,0)-5,MATCH(Typologie_Espace_Public,Base_Typologie!$6:$6,0)),TableauScoreTypologie2,2,FALSE)*Crit6) -> 50 | J129: 1 | K129: 1 | L129: 1 | M129: 1 | N129: 1 | O129: 1 | P129: 1 | Q129: 1 | R129: 1 | S129: 1 | T129: 1 | U129: 1 | V129: 280.25 | W129: =IF(Base_Arbres!V24<>"",VLOOKUP($A129,Base_Arbres,22,FALSE)*Crit7,"") -> 60
A130: =IF(Base_Arbres!A115<>"",Base_Arbres!A115,"") -> Séquoia géant | B130: =IF(Base_Arbres!A115<>"",VLOOKUP($A130,Base_Arbres,3,FALSE)*Crit1,"") -> 17.55 | C130: =IF(Base_Arbres!A115<>"",VLOOKUP($A130,Base_Arbres,4,FALSE)*Crit2,"") -> 36.1 | D130: =IF(Base_Arbres!A115<>"",VLOOKUP($A130,Base_Arbres,5,FALSE)*Crit3,"") -> 23.15 | E130: =IF(Base_Arbres!A115<>"",VLOOKUP($A130,Base_Arbres,6,FALSE)*Crit4,"") -> 10.5 | F130: =IF(Base_Arbres!B115<>"",VLOOKUP($A130,Base_Arbres,7,FALSE)*Crit5,"") -> 28.5 | G130: =IF(Base_Arbres!C115<>"",VLOOKUP($A130,Base_Arbres,8,FALSE)*crit8,"") -> 50 | H130: =IF(Base_Arbres!D115<>"",VLOOKUP($A130,Base_Arbres,9,FALSE)*crit9,"") -> 15 | I130: =IF(ISNA(VLOOKUP(INDEX(Base_Typologie!$A$6:$P$1003,MATCH(A130,Base_Typologie!$A:$A,0)-5,MATCH(Typologie_Espace_Public,Base_Typologie!$6:$6,0)),TableauScoreTypologie2,2,FALSE)*Crit6),0,VLOOKUP(INDEX(Base_Typologie!$A$6:$P$1003,MATCH(A130,Base_Typologie!$A:$A,0)-5,MATCH(Typologie_Espace_Public,Base_Typologie!$6:$6,0)),TableauScoreTypologie2,2,FALSE)*Crit6) -> 10 | J130: =IF(A130<>"",IF(LEFT(VLOOKUP($A130,Base_Arbres,10,FALSE),1)>=LEFT(Cont_Racines,1),0,1),0) -> 1 | K130: =IF(A130<>"",IF(LEFT(VLOOKUP($A130,Base_Arbres,11,FALSE),1)>=LEFT(Cont_Branches,1),0,1),0) -> 1 | L130: =IF(A130<>"",IF(LEFT(VLOOKUP($A130,Base_Arbres,12,FALSE),1)>=LEFT(Cont_Chablis,1),0,1),0) -> 1 | M130: =IF(A130<>"",IF(LEFT(VLOOKUP($A130,Base_Arbres,13,FALSE),1)>=LEFT(Cont_Fructifications,1),0,1),0) -> 1 | N130: =IF(A130<>"",IF(LEFT(VLOOKUP($A130,Base_Arbres,14,FALSE),1)>=LEFT(Cont_Miellat,1),0,1),0) -> 1 | O130: =IF(A130<>"",IF(LEFT(VLOOKUP($A130,Base_Arbres,15,FALSE),1)>=LEFT(Cont_Fruits_Toxiques,1),0,1),0) -> 1 | P130: =IF(A130<>"",IF(LEFT(VLOOKUP($A130,Base_Arbres,16,FALSE),1)>=LEFT(Cont_Hauteur,1),0,1),0) -> 1 | Q130: =IF(A130<>"",IF(LEFT(VLOOKUP($A130,Base_Arbres,17,FALSE),1)>=LEFT(Cont_Envergure,1),0,1),0) -> 1 | R130: =IF(A130<>"",IF(LEFT(VLOOKUP($A130,Base_Arbres,18,FALSE),1)>=LEFT(Cont_pollen,1),0,1),0) -> 1 | S130: =IF(B130<>"",IF(LEFT(VLOOKUP($A130,Base_Arbres,19,FALSE),1)>=LEFT(Cont_malodo,1),0,1),0) -> 1 | T130: =IF(A130<>"",IF(LEFT(VLOOKUP($A130,Base_Arbres,20,FALSE),1)>=LEFT(Cont_chenilles,1),0,1),0) -> 1 | U130: =IF(A130<>"",IF(LEFT(VLOOKUP($A130,Base_Arbres,21,FALSE),1)>=LEFT(Cont_epineux,1),0,1),0) -> 1 | V130: =(SUM(B130:I130)+W130*1.5)*J130*K130*L130*M130*N130*O130*P130*Q130*R130*S130*T130*U130 -> 220.8 | W130: =IF(Base_Arbres!V25<>"",VLOOKUP($A130,Base_Arbres,22,FALSE)*Crit7,"") -> 20
A131: =IF(Base_Arbres!A71<>"",Base_Arbres!A71,"") -> Pommier trilobé | B131: =IF(Base_Arbres!A71<>"",VLOOKUP($A131,Base_Arbres,3,FALSE)*Crit1,"") -> 20.3 | C131: =IF(Base_Arbres!A71<>"",VLOOKUP($A131,Base_Arbres,4,FALSE)*Crit2,"") -> 26.6 | D131: =IF(Base_Arbres!A71<>"",VLOOKUP($A131,Base_Arbres,5,FALSE)*Crit3,"") -> 27.5 | E131: =IF(Base_Arbres!A71<>"",VLOOKUP($A131,Base_Arbres,6,FALSE)*Crit4,"") -> 19 | F131: =IF(Base_Arbres!B71<>"",VLOOKUP($A131,Base_Arbres,7,FALSE)*Crit5,"") -> 26.5 | G131: =IF(Base_Arbres!C71<>"",VLOOKUP($A131,Base_Arbres,8,FALSE)*crit8,"") -> 10 | H131: =IF(Base_Arbres!D71<>"",VLOOKUP($A131,Base_Arbres,9,FALSE)*crit9,"") -> 15 | I131: =IF(ISNA(VLOOKUP(INDEX(Base_Typologie!$A$6:$P$1003,MATCH(A131,Base_Typologie!$A:$A,0)-5,MATCH(Typologie_Espace_Public,Base_Typologie!$6:$6,0)),TableauScoreTypologie2,2,FALSE)*Crit6),0,VLOOKUP(INDEX(Base_Typologie!$A$6:$P$1003,MATCH(A131,Base_Typologie!$A:$A,0)-5,MATCH(Typologie_Espace_Public,Base_Typologie!$6:$6,0)),TableauScoreTypologie2,2,FALSE)*Crit6) -> 10 | J131: 1 | K131: 1 | L131: 1 | M131: 1 | N131: 1 | O131: 1 | P131: 1 | Q131: 1 | R131: 1 | S131: 1 | T131: 1 | U131: 1 | V131: 199.9 | W131: =IF(Base_Arbres!V81<>"",VLOOKUP($A131,Base_Arbres,22,FALSE)*Crit7,"") -> 30
A132: =IF(Base_Arbres!A21<>"",Base_Arbres!A21,"") -> Bouleau blanc de l'Himalaya | B132: =IF(Base_Arbres!A21<>"",VLOOKUP($A132,Base_Arbres,3,FALSE)*Crit1,"") -> 25.95 | C132: =IF(Base_Arbres!A21<>"",VLOOKUP($A132,Base_Arbres,4,FALSE)*Crit2,"") -> 23.9 | D132: =IF(Base_Arbres!A21<>"",VLOOKUP($A132,Base_Arbres,5,FALSE)*Crit3,"") -> 28.55 | E132: =IF(Base_Arbres!A21<>"",VLOOKUP($A132,Base_Arbres,6,FALSE)*Crit4,"") -> 12.5 | F132: =IF(Base_Arbres!B21<>"",VLOOKUP($A132,Base_Arbres,7,FALSE)*Crit5,"") -> 32.5 | G132: =IF(Base_Arbres!C21<>"",VLOOKUP($A132,Base_Arbres,8,FALSE)*crit8,"") -> 6.65 | H132: =IF(Base_Arbres!D21<>"",VLOOKUP($A132,Base_Arbres,9,FALSE)*crit9,"") -> 15 | I132: =IF(ISNA(VLOOKUP(INDEX(Base_Typologie!$A$6:$P$1003,MATCH(A132,Base_Typologie!$A:$A,0)-5,MATCH(Typologie_Espace_Public,Base_Typologie!$6:$6,0)),TableauScoreTypologie2,2,FALSE)*Crit6),0,VLOOKUP(INDEX(Base_Typologie!$A$6:$P$1003,MATCH(A132,Base_Typologie!$A:$A,0)-5,MATCH(Typologie_Espace_Public,Base_Typologie!$6:$6,0)),TableauScoreTypologie2,2,FALSE)*Crit6) -> 10 | J132: 1 | K132: 1 | L132: 1 | M132: 1 | N132: 1 | O132: 1 | P132: 1 | Q132: 1 | R132: 1 | S132: 1 | T132: 1 | U132: 1 | V132: 170.05 | W132: =IF(Base_Arbres!V15<>"",VLOOKUP($A132,Base_Arbres,22,FALSE)*Crit7,"") -> 10
A133: =IF(Base_Arbres!A33<>"",Base_Arbres!A33,"") -> Arbre au caramel | B133: =IF(Base_Arbres!A33<>"",VLOOKUP($A133,Base_Arbres,3,FALSE)*Crit1,"") -> 32.7 | C133: =IF(Base_Arbres!A33<>"",VLOOKUP($A133,Base_Arbres,4,FALSE)*Crit2,"") -> 23.3 | D133: =IF(Base_Arbres!A33<>"",VLOOKUP($A133,Base_Arbres,5,FALSE)*Crit3,"") -> 32.5 | E133: =IF(Base_Arbres!A33<>"",VLOOKUP($A133,Base_Arbres,6,FALSE)*Crit4,"") -> 5 | F133: =IF(Base_Arbres!B33<>"",VLOOKUP($A133,Base_Arbres,7,FALSE)*Crit5,"") -> 33 | G133: =IF(Base_Arbres!C33<>"",VLOOKUP($A133,Base_Arbres,8,FALSE)*crit8,"") -> 10 | H133: =IF(Base_Arbres!D33<>"",VLOOKUP($A133,Base_Arbres,9,FALSE)*crit9,"") -> 15 | I133: =IF(ISNA(VLOOKUP(INDEX(Base_Typologie!$A$6:$P$1003,MATCH(A133,Base_Typologie!$A:$A,0)-5,MATCH(Typologie_Espace_Public,Base_Typologie!$6:$6,0)),TableauScoreTypologie2,2,FALSE)*Crit6),0,VLOOKUP(INDEX(Base_Typologie!$A$6:$P$1003,MATCH(A133,Base_Typologie!$A:$A,0)-5,MATCH(Typologie_Espace_Public,Base_Typologie!$6:$6,0)),TableauScoreTypologie2,2,FALSE)*Crit6) -> 10 | J133: 1 | K133: 1 | L133: 1 | M133: 1 | N133: 1 | O133: 1 | P133: 1 | Q133: 1 | R133: 1 | S133: 1 | T133: 1 | U133: 1 | V133: 206.5 | W133: =IF(Base_Arbres!V16<>"",VLOOKUP($A133,Base_Arbres,22,FALSE)*Crit7,"") -> 30
A134: =IF(Base_Arbres!A114<>"",Base_Arbres!A114,"") -> Séquoia toujours vert | B134: =IF(Base_Arbres!A114<>"",VLOOKUP($A134,Base_Arbres,3,FALSE)*Crit1,"") -> 17.35 | C134: =IF(Base_Arbres!A114<>"",VLOOKUP($A134,Base_Arbres,4,FALSE)*Crit2,"") -> 35.65 | D134: =IF(Base_Arbres!A114<>"",VLOOKUP($A134,Base_Arbres,5,FALSE)*Crit3,"") -> 22.6 | E134: =IF(Base_Arbres!A114<>"",VLOOKUP($A134,Base_Arbres,6,FALSE)*Crit4,"") -> 8.5 | F134: =IF(Base_Arbres!B114<>"",VLOOKUP($A134,Base_Arbres,7,FALSE)*Crit5,"") -> 29.5 | G134: =IF(Base_Arbres!C114<>"",VLOOKUP($A134,Base_Arbres,8,FALSE)*crit8,"") -> 50 | H134: =IF(Base_Arbres!D114<>"",VLOOKUP($A134,Base_Arbres,9,FALSE)*crit9,"") -> 15 | I134: =IF(ISNA(VLOOKUP(INDEX(Base_Typologie!$A$6:$P$1003,MATCH(A134,Base_Typologie!$A:$A,0)-5,MATCH(Typologie_Espace_Public,Base_Typologie!$6:$6,0)),TableauScoreTypologie2,2,FALSE)*Crit6),0,VLOOKUP(INDEX(Base_Typologie!$A$6:$P$1003,MATCH(A134,Base_Typologie!$A:$A,0)-5,MATCH(Typologie_Espace_Public,Base_Typologie!$6:$6,0)),TableauScoreTypologie2,2,FALSE)*Crit6) -> 10 | J134: 1 | K134: 1 | L134: 1 | M134: 1 | N134: 1 | O134: 1 | P134: 1 | Q134: 1 | R134: 1 | S134: 1 | T134: 1 | U134: 1 | V134: 188.6 | W134: =IF(Base_Arbres!V18<>"",VLOOKUP($A134,Base_Arbres,22,FALSE)*Crit7,"") -> 0
A135: =IF(Base_Arbres!A135<>"",Base_Arbres!A135,"") ->  | B135: =IF(Base_Arbres!A135<>"",VLOOKUP($A135,Base_Arbres,3,FALSE)*Crit1,"") ->  | C135: =IF(Base_Arbres!A135<>"",VLOOKUP($A135,Base_Arbres,4,FALSE)*Crit2,"") ->  | D135: =IF(Base_Arbres!A135<>"",VLOOKUP($A135,Base_Arbres,5,FALSE)*Crit3,"") ->  | E135: =IF(Base_Arbres!A135<>"",VLOOKUP($A135,Base_Arbres,6,FALSE)*Crit4,"") ->  | F135: =IF(Base_Arbres!B135<>"",VLOOKUP($A135,Base_Arbres,7,FALSE)*Crit5,"") ->  | G135: =IF(Base_Arbres!C135<>"",VLOOKUP($A135,Base_Arbres,8,FALSE)*crit8,"") ->  | H135: =IF(Base_Arbres!D135<>"",VLOOKUP($A135,Base_Arbres,9,FALSE)*crit9,"") ->  | I135: =IF(ISNA(VLOOKUP(INDEX(Base_Typologie!$A$6:$P$1003,MATCH(A135,Base_Typologie!$A:$A,0)-5,MATCH(Typologie_Espace_Public,Base_Typologie!$6:$6,0)),TableauScoreTypologie2,2,FALSE)*Crit6),0,VLOOKUP(INDEX(Base_Typologie!$A$6:$P$1003,MATCH(A135,Base_Typologie!$A:$A,0)-5,MATCH(Typologie_Espace_Public,Base_Typologie!$6:$6,0)),TableauScoreTypologie2,2,FALSE)*Crit6) -> 0 | J135: 0 | K135: 0 | L135: 0 | M135: 0 | N135: 0 | O135: 0 | P135: 0 | Q135: 0 | R135: 0 | S135: 0 | T135: 0 | U135: 0 | W135: =IF(Base_Arbres!A238<>"",VLOOKUP($A135,Base_Arbres,4,FALSE)*Crit7,"") -> 
A136: =IF(Base_Arbres!A136<>"",Base_Arbres!A136,"") ->  | B136: =IF(Base_Arbres!A136<>"",VLOOKUP($A136,Base_Arbres,3,FALSE)*Crit1,"") ->  | C136: =IF(Base_Arbres!A136<>"",VLOOKUP($A136,Base_Arbres,4,FALSE)*Crit2,"") ->  | D136: =IF(Base_Arbres!A136<>"",VLOOKUP($A136,Base_Arbres,5,FALSE)*Crit3,"") ->  | E136: =IF(Base_Arbres!A136<>"",VLOOKUP($A136,Base_Arbres,6,FALSE)*Crit4,"") ->  | F136: =IF(Base_Arbres!B136<>"",VLOOKUP($A136,Base_Arbres,7,FALSE)*Crit5,"") ->  | G136: =IF(Base_Arbres!C136<>"",VLOOKUP($A136,Base_Arbres,8,FALSE)*crit8,"") ->  | H136: =IF(Base_Arbres!D136<>"",VLOOKUP($A136,Base_Arbres,9,FALSE)*crit9,"") ->  | I136: =IF(ISNA(VLOOKUP(INDEX(Base_Typologie!$A$6:$P$1003,MATCH(A136,Base_Typologie!$A:$A,0)-5,MATCH(Typologie_Espace_Public,Base_Typologie!$6:$6,0)),TableauScoreTypologie2,2,FALSE)*Crit6),0,VLOOKUP(INDEX(Base_Typologie!$A$6:$P$1003,MATCH(A136,Base_Typologie!$A:$A,0)-5,MATCH(Typologie_Espace_Public,Base_Typologie!$6:$6,0)),TableauScoreTypologie2,2,FALSE)*Crit6) -> 0 | J136: 0 | K136: 0 | L136: 0 | M136: 0 | N136: 0 | O136: 0 | P136: 0 | Q136: 0 | R136: 0 | S136: 0 | T136: 0 | U136: 0 | W136: =IF(Base_Arbres!A239<>"",VLOOKUP($A136,Base_Arbres,4,FALSE)*Crit7,"") -> 
A137: =IF(Base_Arbres!A137<>"",Base_Arbres!A137,"") ->  | B137: =IF(Base_Arbres!A137<>"",VLOOKUP($A137,Base_Arbres,3,FALSE)*Crit1,"") ->  | C137: =IF(Base_Arbres!A137<>"",VLOOKUP($A137,Base_Arbres,4,FALSE)*Crit2,"") ->  | D137: =IF(Base_Arbres!A137<>"",VLOOKUP($A137,Base_Arbres,5,FALSE)*Crit3,"") ->  | E137: =IF(Base_Arbres!A137<>"",VLOOKUP($A137,Base_Arbres,6,FALSE)*Crit4,"") ->  | F137: =IF(Base_Arbres!B137<>"",VLOOKUP($A137,Base_Arbres,7,FALSE)*Crit5,"") ->  | G137: =IF(Base_Arbres!C137<>"",VLOOKUP($A137,Base_Arbres,8,FALSE)*crit8,"") ->  | H137: =IF(Base_Arbres!D137<>"",VLOOKUP($A137,Base_Arbres,9,FALSE)*crit9,"") ->  | I137: =IF(ISNA(VLOOKUP(INDEX(Base_Typologie!$A$6:$P$1003,MATCH(A137,Base_Typologie!$A:$A,0)-5,MATCH(Typologie_Espace_Public,Base_Typologie!$6:$6,0)),TableauScoreTypologie2,2,FALSE)*Crit6),0,VLOOKUP(INDEX(Base_Typologie!$A$6:$P$1003,MATCH(A137,Base_Typologie!$A:$A,0)-5,MATCH(Typologie_Espace_Public,Base_Typologie!$6:$6,0)),TableauScoreTypologie2,2,FALSE)*Crit6) -> 0 | J137: 0 | K137: 0 | L137: 0 | M137: 0 | N137: 0 | O137: 0 | P137: 0 | Q137: 0 | R137: 0 | S137: 0 | T137: 0 | U137: 0 | W137: =IF(Base_Arbres!A240<>"",VLOOKUP($A137,Base_Arbres,4,FALSE)*Crit7,"") -> 
A138: =IF(Base_Arbres!A138<>"",Base_Arbres!A138,"") ->  | B138: =IF(Base_Arbres!A138<>"",VLOOKUP($A138,Base_Arbres,3,FALSE)*Crit1,"") ->  | C138: =IF(Base_Arbres!A138<>"",VLOOKUP($A138,Base_Arbres,4,FALSE)*Crit2,"") ->  | D138: =IF(Base_Arbres!A138<>"",VLOOKUP($A138,Base_Arbres,5,FALSE)*Crit3,"") ->  | E138: =IF(Base_Arbres!A138<>"",VLOOKUP($A138,Base_Arbres,6,FALSE)*Crit4,"") ->  | F138: =IF(Base_Arbres!B138<>"",VLOOKUP($A138,Base_Arbres,7,FALSE)*Crit5,"") ->  | G138: =IF(Base_Arbres!C138<>"",VLOOKUP($A138,Base_Arbres,8,FALSE)*crit8,"") ->  | H138: =IF(Base_Arbres!D138<>"",VLOOKUP($A138,Base_Arbres,9,FALSE)*crit9,"") ->  | I138: =IF(ISNA(VLOOKUP(INDEX(Base_Typologie!$A$6:$P$1003,MATCH(A138,Base_Typologie!$A:$A,0)-5,MATCH(Typologie_Espace_Public,Base_Typologie!$6:$6,0)),TableauScoreTypologie2,2,FALSE)*Crit6),0,VLOOKUP(INDEX(Base_Typologie!$A$6:$P$1003,MATCH(A138,Base_Typologie!$A:$A,0)-5,MATCH(Typologie_Espace_Public,Base_Typologie!$6:$6,0)),TableauScoreTypologie2,2,FALSE)*Crit6) -> 0 | J138: 0 | K138: 0 | L138: 0 | M138: 0 | N138: 0 | O138: 0 | P138: 0 | Q138: 0 | R138: 0 | S138: 0 | T138: 0 | U138: 0 | W138: =IF(Base_Arbres!A241<>"",VLOOKUP($A138,Base_Arbres,4,FALSE)*Crit7,"") -> 
A139: =IF(Base_Arbres!A139<>"",Base_Arbres!A139,"") ->  | B139: =IF(Base_Arbres!A139<>"",VLOOKUP($A139,Base_Arbres,3,FALSE)*Crit1,"") ->  | C139: =IF(Base_Arbres!A139<>"",VLOOKUP($A139,Base_Arbres,4,FALSE)*Crit2,"") ->  | D139: =IF(Base_Arbres!A139<>"",VLOOKUP($A139,Base_Arbres,5,FALSE)*Crit3,"") ->  | E139: =IF(Base_Arbres!A139<>"",VLOOKUP($A139,Base_Arbres,6,FALSE)*Crit4,"") ->  | F139: =IF(Base_Arbres!B139<>"",VLOOKUP($A139,Base_Arbres,7,FALSE)*Crit5,"") ->  | G139: =IF(Base_Arbres!C139<>"",VLOOKUP($A139,Base_Arbres,8,FALSE)*crit8,"") ->  | H139: =IF(Base_Arbres!D139<>"",VLOOKUP($A139,Base_Arbres,9,FALSE)*crit9,"") ->  | I139: =IF(ISNA(VLOOKUP(INDEX(Base_Typologie!$A$6:$P$1003,MATCH(A139,Base_Typologie!$A:$A,0)-5,MATCH(Typologie_Espace_Public,Base_Typologie!$6:$6,0)),TableauScoreTypologie2,2,FALSE)*Crit6),0,VLOOKUP(INDEX(Base_Typologie!$A$6:$P$1003,MATCH(A139,Base_Typologie!$A:$A,0)-5,MATCH(Typologie_Espace_Public,Base_Typologie!$6:$6,0)),TableauScoreTypologie2,2,FALSE)*Crit6) -> 0 | J139: 0 | K139: 0 | L139: 0 | M139: 0 | N139: 0 | O139: 0 | P139: 0 | Q139: 0 | R139: 0 | S139: 0 | T139: 0 | U139: 0 | W139: =IF(Base_Arbres!A242<>"",VLOOKUP($A139,Base_Arbres,4,FALSE)*Crit7,"") -> 
A140: =IF(Base_Arbres!A140<>"",Base_Arbres!A140,"") ->  | B140: =IF(Base_Arbres!A140<>"",VLOOKUP($A140,Base_Arbres,3,FALSE)*Crit1,"") ->  | C140: =IF(Base_Arbres!A140<>"",VLOOKUP($A140,Base_Arbres,4,FALSE)*Crit2,"") ->  | D140: =IF(Base_Arbres!A140<>"",VLOOKUP($A140,Base_Arbres,5,FALSE)*Crit3,"") ->  | E140: =IF(Base_Arbres!A140<>"",VLOOKUP($A140,Base_Arbres,6,FALSE)*Crit4,"") ->  | F140: =IF(Base_Arbres!B140<>"",VLOOKUP($A140,Base_Arbres,7,FALSE)*Crit5,"") ->  | G140: =IF(Base_Arbres!C140<>"",VLOOKUP($A140,Base_Arbres,8,FALSE)*crit8,"") ->  | H140: =IF(Base_Arbres!D140<>"",VLOOKUP($A140,Base_Arbres,9,FALSE)*crit9,"") ->  | I140: =IF(ISNA(VLOOKUP(INDEX(Base_Typologie!$A$6:$P$1003,MATCH(A140,Base_Typologie!$A:$A,0)-5,MATCH(Typologie_Espace_Public,Base_Typologie!$6:$6,0)),TableauScoreTypologie2,2,FALSE)*Crit6),0,VLOOKUP(INDEX(Base_Typologie!$A$6:$P$1003,MATCH(A140,Base_Typologie!$A:$A,0)-5,MATCH(Typologie_Espace_Public,Base_Typologie!$6:$6,0)),TableauScoreTypologie2,2,FALSE)*Crit6) -> 0 | J140: 0 | K140: 0 | L140: 0 | M140: 0 | N140: 0 | O140: 0 | P140: 0 | Q140: 0 | R140: 0 | S140: 0 | T140: 0 | U140: 0 | W140: =IF(Base_Arbres!A243<>"",VLOOKUP($A140,Base_Arbres,4,FALSE)*Crit7,"") -> 
A141: =IF(Base_Arbres!A141<>"",Base_Arbres!A141,"") ->  | B141: =IF(Base_Arbres!A141<>"",VLOOKUP($A141,Base_Arbres,3,FALSE)*Crit1,"") ->  | C141: =IF(Base_Arbres!A141<>"",VLOOKUP($A141,Base_Arbres,4,FALSE)*Crit2,"") ->  | D141: =IF(Base_Arbres!A141<>"",VLOOKUP($A141,Base_Arbres,5,FALSE)*Crit3,"") ->  | E141: =IF(Base_Arbres!A141<>"",VLOOKUP($A141,Base_Arbres,6,FALSE)*Crit4,"") ->  | F141: =IF(Base_Arbres!B141<>"",VLOOKUP($A141,Base_Arbres,7,FALSE)*Crit5,"") ->  | G141: =IF(Base_Arbres!C141<>"",VLOOKUP($A141,Base_Arbres,8,FALSE)*crit8,"") ->  | H141: =IF(Base_Arbres!D141<>"",VLOOKUP($A141,Base_Arbres,9,FALSE)*crit9,"") ->  | I141: =IF(ISNA(VLOOKUP(INDEX(Base_Typologie!$A$6:$P$1003,MATCH(A141,Base_Typologie!$A:$A,0)-5,MATCH(Typologie_Espace_Public,Base_Typologie!$6:$6,0)),TableauScoreTypologie2,2,FALSE)*Crit6),0,VLOOKUP(INDEX(Base_Typologie!$A$6:$P$1003,MATCH(A141,Base_Typologie!$A:$A,0)-5,MATCH(Typologie_Espace_Public,Base_Typologie!$6:$6,0)),TableauScoreTypologie2,2,FALSE)*Crit6) -> 0 | J141: 0 | K141: 0 | L141: 0 | M141: 0 | N141: 0 | O141: 0 | P141: 0 | Q141: 0 | R141: 0 | S141: 0 | T141: 0 | U141: 0 | W141: =IF(Base_Arbres!A244<>"",VLOOKUP($A141,Base_Arbres,4,FALSE)*Crit7,"") -> 
A142: =IF(Base_Arbres!A142<>"",Base_Arbres!A142,"") ->  | B142: =IF(Base_Arbres!A142<>"",VLOOKUP($A142,Base_Arbres,3,FALSE)*Crit1,"") ->  | C142: =IF(Base_Arbres!A142<>"",VLOOKUP($A142,Base_Arbres,4,FALSE)*Crit2,"") ->  | D142: =IF(Base_Arbres!A142<>"",VLOOKUP($A142,Base_Arbres,5,FALSE)*Crit3,"") ->  | E142: =IF(Base_Arbres!A142<>"",VLOOKUP($A142,Base_Arbres,6,FALSE)*Crit4,"") ->  | F142: =IF(Base_Arbres!B142<>"",VLOOKUP($A142,Base_Arbres,7,FALSE)*Crit5,"") ->  | G142: =IF(Base_Arbres!C142<>"",VLOOKUP($A142,Base_Arbres,8,FALSE)*crit8,"") ->  | H142: =IF(Base_Arbres!D142<>"",VLOOKUP($A142,Base_Arbres,9,FALSE)*crit9,"") ->  | I142: =IF(ISNA(VLOOKUP(INDEX(Base_Typologie!$A$6:$P$1003,MATCH(A142,Base_Typologie!$A:$A,0)-5,MATCH(Typologie_Espace_Public,Base_Typologie!$6:$6,0)),TableauScoreTypologie2,2,FALSE)*Crit6),0,VLOOKUP(INDEX(Base_Typologie!$A$6:$P$1003,MATCH(A142,Base_Typologie!$A:$A,0)-5,MATCH(Typologie_Espace_Public,Base_Typologie!$6:$6,0)),TableauScoreTypologie2,2,FALSE)*Crit6) -> 0 | J142: 0 | K142: 0 | L142: 0 | M142: 0 | N142: 0 | O142: 0 | P142: 0 | Q142: 0 | R142: 0 | S142: 0 | T142: 0 | U142: 0 | W142: =IF(Base_Arbres!A245<>"",VLOOKUP($A142,Base_Arbres,4,FALSE)*Crit7,"") -> 
A143: =IF(Base_Arbres!A143<>"",Base_Arbres!A143,"") ->  | B143: =IF(Base_Arbres!A143<>"",VLOOKUP($A143,Base_Arbres,3,FALSE)*Crit1,"") ->  | C143: =IF(Base_Arbres!A143<>"",VLOOKUP($A143,Base_Arbres,4,FALSE)*Crit2,"") ->  | D143: =IF(Base_Arbres!A143<>"",VLOOKUP($A143,Base_Arbres,5,FALSE)*Crit3,"") ->  | E143: =IF(Base_Arbres!A143<>"",VLOOKUP($A143,Base_Arbres,6,FALSE)*Crit4,"") ->  | F143: =IF(Base_Arbres!B143<>"",VLOOKUP($A143,Base_Arbres,7,FALSE)*Crit5,"") ->  | G143: =IF(Base_Arbres!C143<>"",VLOOKUP($A143,Base_Arbres,8,FALSE)*crit8,"") ->  | H143: =IF(Base_Arbres!D143<>"",VLOOKUP($A143,Base_Arbres,9,FALSE)*crit9,"") ->  | I143: =IF(ISNA(VLOOKUP(INDEX(Base_Typologie!$A$6:$P$1003,MATCH(A143,Base_Typologie!$A:$A,0)-5,MATCH(Typologie_Espace_Public,Base_Typologie!$6:$6,0)),TableauScoreTypologie2,2,FALSE)*Crit6),0,VLOOKUP(INDEX(Base_Typologie!$A$6:$P$1003,MATCH(A143,Base_Typologie!$A:$A,0)-5,MATCH(Typologie_Espace_Public,Base_Typologie!$6:$6,0)),TableauScoreTypologie2,2,FALSE)*Crit6) -> 0 | J143: 0 | K143: 0 | L143: 0 | M143: 0 | N143: 0 | O143: 0 | P143: 0 | Q143: 0 | R143: 0 | S143: 0 | T143: 0 | U143: 0 | W143: =IF(Base_Arbres!A246<>"",VLOOKUP($A143,Base_Arbres,4,FALSE)*Crit7,"") -> 
A144: =IF(Base_Arbres!A144<>"",Base_Arbres!A144,"") ->  | B144: =IF(Base_Arbres!A144<>"",VLOOKUP($A144,Base_Arbres,3,FALSE)*Crit1,"") ->  | C144: =IF(Base_Arbres!A144<>"",VLOOKUP($A144,Base_Arbres,4,FALSE)*Crit2,"") ->  | D144: =IF(Base_Arbres!A144<>"",VLOOKUP($A144,Base_Arbres,5,FALSE)*Crit3,"") ->  | E144: =IF(Base_Arbres!A144<>"",VLOOKUP($A144,Base_Arbres,6,FALSE)*Crit4,"") ->  | F144: =IF(Base_Arbres!B144<>"",VLOOKUP($A144,Base_Arbres,7,FALSE)*Crit5,"") ->  | G144: =IF(Base_Arbres!C144<>"",VLOOKUP($A144,Base_Arbres,8,FALSE)*crit8,"") ->  | H144: =IF(Base_Arbres!D144<>"",VLOOKUP($A144,Base_Arbres,9,FALSE)*crit9,"") ->  | I144: =IF(ISNA(VLOOKUP(INDEX(Base_Typologie!$A$6:$P$1003,MATCH(A144,Base_Typologie!$A:$A,0)-5,MATCH(Typologie_Espace_Public,Base_Typologie!$6:$6,0)),TableauScoreTypologie2,2,FALSE)*Crit6),0,VLOOKUP(INDEX(Base_Typologie!$A$6:$P$1003,MATCH(A144,Base_Typologie!$A:$A,0)-5,MATCH(Typologie_Espace_Public,Base_Typologie!$6:$6,0)),TableauScoreTypologie2,2,FALSE)*Crit6) -> 0 | J144: 0 | K144: 0 | L144: 0 | M144: 0 | N144: 0 | O144: 0 | P144: 0 | Q144: 0 | R144: 0 | S144: 0 | T144: 0 | U144: 0 | W144: =IF(Base_Arbres!A247<>"",VLOOKUP($A144,Base_Arbres,4,FALSE)*Crit7,"") -> 
A145: =IF(Base_Arbres!A145<>"",Base_Arbres!A145,"") ->  | B145: =IF(Base_Arbres!A145<>"",VLOOKUP($A145,Base_Arbres,3,FALSE)*Crit1,"") ->  | C145: =IF(Base_Arbres!A145<>"",VLOOKUP($A145,Base_Arbres,4,FALSE)*Crit2,"") ->  | D145: =IF(Base_Arbres!A145<>"",VLOOKUP($A145,Base_Arbres,5,FALSE)*Crit3,"") ->  | E145: =IF(Base_Arbres!A145<>"",VLOOKUP($A145,Base_Arbres,6,FALSE)*Crit4,"") ->  | F145: =IF(Base_Arbres!B145<>"",VLOOKUP($A145,Base_Arbres,7,FALSE)*Crit5,"") ->  | G145: =IF(Base_Arbres!C145<>"",VLOOKUP($A145,Base_Arbres,8,FALSE)*crit8,"") ->  | H145: =IF(Base_Arbres!D145<>"",VLOOKUP($A145,Base_Arbres,9,FALSE)*crit9,"") ->  | I145: =IF(ISNA(VLOOKUP(INDEX(Base_Typologie!$A$6:$P$1003,MATCH(A145,Base_Typologie!$A:$A,0)-5,MATCH(Typologie_Espace_Public,Base_Typologie!$6:$6,0)),TableauScoreTypologie2,2,FALSE)*Crit6),0,VLOOKUP(INDEX(Base_Typologie!$A$6:$P$1003,MATCH(A145,Base_Typologie!$A:$A,0)-5,MATCH(Typologie_Espace_Public,Base_Typologie!$6:$6,0)),TableauScoreTypologie2,2,FALSE)*Crit6) -> 0 | J145: 0 | K145: 0 | L145: 0 | M145: 0 | N145: 0 | O145: 0 | P145: 0 | Q145: 0 | R145: 0 | S145: 0 | T145: 0 | U145: 0 | W145: =IF(Base_Arbres!A248<>"",VLOOKUP($A145,Base_Arbres,4,FALSE)*Crit7,"") -> 
A146: =IF(Base_Arbres!A146<>"",Base_Arbres!A146,"") ->  | B146: =IF(Base_Arbres!A146<>"",VLOOKUP($A146,Base_Arbres,3,FALSE)*Crit1,"") ->  | C146: =IF(Base_Arbres!A146<>"",VLOOKUP($A146,Base_Arbres,4,FALSE)*Crit2,"") ->  | D146: =IF(Base_Arbres!A146<>"",VLOOKUP($A146,Base_Arbres,5,FALSE)*Crit3,"") ->  | E146: =IF(Base_Arbres!A146<>"",VLOOKUP($A146,Base_Arbres,6,FALSE)*Crit4,"") ->  | F146: =IF(Base_Arbres!B146<>"",VLOOKUP($A146,Base_Arbres,7,FALSE)*Crit5,"") ->  | G146: =IF(Base_Arbres!C146<>"",VLOOKUP($A146,Base_Arbres,8,FALSE)*crit8,"") ->  | H146: =IF(Base_Arbres!D146<>"",VLOOKUP($A146,Base_Arbres,9,FALSE)*crit9,"") ->  | I146: =IF(ISNA(VLOOKUP(INDEX(Base_Typologie!$A$6:$P$1003,MATCH(A146,Base_Typologie!$A:$A,0)-5,MATCH(Typologie_Espace_Public,Base_Typologie!$6:$6,0)),TableauScoreTypologie2,2,FALSE)*Crit6),0,VLOOKUP(INDEX(Base_Typologie!$A$6:$P$1003,MATCH(A146,Base_Typologie!$A:$A,0)-5,MATCH(Typologie_Espace_Public,Base_Typologie!$6:$6,0)),TableauScoreTypologie2,2,FALSE)*Crit6) -> 0 | J146: 0 | K146: 0 | L146: 0 | M146: 0 | N146: 0 | O146: 0 | P146: 0 | Q146: 0 | R146: 0 | S146: 0 | T146: 0 | U146: 0 | W146: =IF(Base_Arbres!A249<>"",VLOOKUP($A146,Base_Arbres,4,FALSE)*Crit7,"") -> 
A147: =IF(Base_Arbres!A147<>"",Base_Arbres!A147,"") ->  | B147: =IF(Base_Arbres!A147<>"",VLOOKUP($A147,Base_Arbres,3,FALSE)*Crit1,"") ->  | C147: =IF(Base_Arbres!A147<>"",VLOOKUP($A147,Base_Arbres,4,FALSE)*Crit2,"") ->  | D147: =IF(Base_Arbres!A147<>"",VLOOKUP($A147,Base_Arbres,5,FALSE)*Crit3,"") ->  | E147: =IF(Base_Arbres!A147<>"",VLOOKUP($A147,Base_Arbres,6,FALSE)*Crit4,"") ->  | F147: =IF(Base_Arbres!B147<>"",VLOOKUP($A147,Base_Arbres,7,FALSE)*Crit5,"") ->  | G147: =IF(Base_Arbres!C147<>"",VLOOKUP($A147,Base_Arbres,8,FALSE)*crit8,"") ->  | H147: =IF(Base_Arbres!D147<>"",VLOOKUP($A147,Base_Arbres,9,FALSE)*crit9,"") ->  | I147: =IF(ISNA(VLOOKUP(INDEX(Base_Typologie!$A$6:$P$1003,MATCH(A147,Base_Typologie!$A:$A,0)-5,MATCH(Typologie_Espace_Public,Base_Typologie!$6:$6,0)),TableauScoreTypologie2,2,FALSE)*Crit6),0,VLOOKUP(INDEX(Base_Typologie!$A$6:$P$1003,MATCH(A147,Base_Typologie!$A:$A,0)-5,MATCH(Typologie_Espace_Public,Base_Typologie!$6:$6,0)),TableauScoreTypologie2,2,FALSE)*Crit6) -> 0 | J147: 0 | K147: 0 | L147: 0 | M147: 0 | N147: 0 | O147: 0 | P147: 0 | Q147: 0 | R147: 0 | S147: 0 | T147: 0 | U147: 0 | W147: =IF(Base_Arbres!A250<>"",VLOOKUP($A147,Base_Arbres,4,FALSE)*Crit7,"") -> 
A148: =IF(Base_Arbres!A148<>"",Base_Arbres!A148,"") ->  | B148: =IF(Base_Arbres!A148<>"",VLOOKUP($A148,Base_Arbres,3,FALSE)*Crit1,"") ->  | C148: =IF(Base_Arbres!A148<>"",VLOOKUP($A148,Base_Arbres,4,FALSE)*Crit2,"") ->  | D148: =IF(Base_Arbres!A148<>"",VLOOKUP($A148,Base_Arbres,5,FALSE)*Crit3,"") ->  | E148: =IF(Base_Arbres!A148<>"",VLOOKUP($A148,Base_Arbres,6,FALSE)*Crit4,"") ->  | F148: =IF(Base_Arbres!B148<>"",VLOOKUP($A148,Base_Arbres,7,FALSE)*Crit5,"") ->  | G148: =IF(Base_Arbres!C148<>"",VLOOKUP($A148,Base_Arbres,8,FALSE)*crit8,"") ->  | H148: =IF(Base_Arbres!D148<>"",VLOOKUP($A148,Base_Arbres,9,FALSE)*crit9,"") ->  | I148: =IF(ISNA(VLOOKUP(INDEX(Base_Typologie!$A$6:$P$1003,MATCH(A148,Base_Typologie!$A:$A,0)-5,MATCH(Typologie_Espace_Public,Base_Typologie!$6:$6,0)),TableauScoreTypologie2,2,FALSE)*Crit6),0,VLOOKUP(INDEX(Base_Typologie!$A$6:$P$1003,MATCH(A148,Base_Typologie!$A:$A,0)-5,MATCH(Typologie_Espace_Public,Base_Typologie!$6:$6,0)),TableauScoreTypologie2,2,FALSE)*Crit6) -> 0 | J148: 0 | K148: 0 | L148: 0 | M148: 0 | N148: 0 | O148: 0 | P148: 0 | Q148: 0 | R148: 0 | S148: 0 | T148: 0 | U148: 0 | W148: =IF(Base_Arbres!A251<>"",VLOOKUP($A148,Base_Arbres,4,FALSE)*Crit7,"") -> 
A149: =IF(Base_Arbres!A149<>"",Base_Arbres!A149,"") ->  | B149: =IF(Base_Arbres!A149<>"",VLOOKUP($A149,Base_Arbres,3,FALSE)*Crit1,"") ->  | C149: =IF(Base_Arbres!A149<>"",VLOOKUP($A149,Base_Arbres,4,FALSE)*Crit2,"") ->  | D149: =IF(Base_Arbres!A149<>"",VLOOKUP($A149,Base_Arbres,5,FALSE)*Crit3,"") ->  | E149: =IF(Base_Arbres!A149<>"",VLOOKUP($A149,Base_Arbres,6,FALSE)*Crit4,"") ->  | F149: =IF(Base_Arbres!B149<>"",VLOOKUP($A149,Base_Arbres,7,FALSE)*Crit5,"") ->  | G149: =IF(Base_Arbres!C149<>"",VLOOKUP($A149,Base_Arbres,8,FALSE)*crit8,"") ->  | H149: =IF(Base_Arbres!D149<>"",VLOOKUP($A149,Base_Arbres,9,FALSE)*crit9,"") ->  | I149: =IF(ISNA(VLOOKUP(INDEX(Base_Typologie!$A$6:$P$1003,MATCH(A149,Base_Typologie!$A:$A,0)-5,MATCH(Typologie_Espace_Public,Base_Typologie!$6:$6,0)),TableauScoreTypologie2,2,FALSE)*Crit6),0,VLOOKUP(INDEX(Base_Typologie!$A$6:$P$1003,MATCH(A149,Base_Typologie!$A:$A,0)-5,MATCH(Typologie_Espace_Public,Base_Typologie!$6:$6,0)),TableauScoreTypologie2,2,FALSE)*Crit6) -> 0 | J149: 0 | K149: 0 | L149: 0 | M149: 0 | N149: 0 | O149: 0 | P149: 0 | Q149: 0 | R149: 0 | S149: 0 | T149: 0 | U149: 0 | W149: =IF(Base_Arbres!A252<>"",VLOOKUP($A149,Base_Arbres,4,FALSE)*Crit7,"") -> 
A150: =IF(Base_Arbres!A150<>"",Base_Arbres!A150,"") ->  | B150: =IF(Base_Arbres!A150<>"",VLOOKUP($A150,Base_Arbres,3,FALSE)*Crit1,"") ->  | C150: =IF(Base_Arbres!A150<>"",VLOOKUP($A150,Base_Arbres,4,FALSE)*Crit2,"") ->  | D150: =IF(Base_Arbres!A150<>"",VLOOKUP($A150,Base_Arbres,5,FALSE)*Crit3,"") ->  | E150: =IF(Base_Arbres!A150<>"",VLOOKUP($A150,Base_Arbres,6,FALSE)*Crit4,"") ->  | F150: =IF(Base_Arbres!B150<>"",VLOOKUP($A150,Base_Arbres,7,FALSE)*Crit5,"") ->  | G150: =IF(Base_Arbres!C150<>"",VLOOKUP($A150,Base_Arbres,8,FALSE)*crit8,"") ->  | H150: =IF(Base_Arbres!D150<>"",VLOOKUP($A150,Base_Arbres,9,FALSE)*crit9,"") ->  | I150: =IF(ISNA(VLOOKUP(INDEX(Base_Typologie!$A$6:$P$1003,MATCH(A150,Base_Typologie!$A:$A,0)-5,MATCH(Typologie_Espace_Public,Base_Typologie!$6:$6,0)),TableauScoreTypologie2,2,FALSE)*Crit6),0,VLOOKUP(INDEX(Base_Typologie!$A$6:$P$1003,MATCH(A150,Base_Typologie!$A:$A,0)-5,MATCH(Typologie_Espace_Public,Base_Typologie!$6:$6,0)),TableauScoreTypologie2,2,FALSE)*Crit6) -> 0 | J150: 0 | K150: 0 | L150: 0 | M150: 0 | N150: 0 | O150: 0 | P150: 0 | Q150: 0 | R150: 0 | S150: 0 | T150: 0 | U150: 0 | W150: =IF(Base_Arbres!A253<>"",VLOOKUP($A150,Base_Arbres,4,FALSE)*Crit7,"") -> 
A151: =IF(Base_Arbres!A151<>"",Base_Arbres!A151,"") ->  | B151: =IF(Base_Arbres!A151<>"",VLOOKUP($A151,Base_Arbres,3,FALSE)*Crit1,"") ->  | C151: =IF(Base_Arbres!A151<>"",VLOOKUP($A151,Base_Arbres,4,FALSE)*Crit2,"") ->  | D151: =IF(Base_Arbres!A151<>"",VLOOKUP($A151,Base_Arbres,5,FALSE)*Crit3,"") ->  | E151: =IF(Base_Arbres!A151<>"",VLOOKUP($A151,Base_Arbres,6,FALSE)*Crit4,"") ->  | F151: =IF(Base_Arbres!B151<>"",VLOOKUP($A151,Base_Arbres,7,FALSE)*Crit5,"") ->  | G151: =IF(Base_Arbres!C151<>"",VLOOKUP($A151,Base_Arbres,8,FALSE)*crit8,"") ->  | H151: =IF(Base_Arbres!D151<>"",VLOOKUP($A151,Base_Arbres,9,FALSE)*crit9,"") ->  | I151: =IF(ISNA(VLOOKUP(INDEX(Base_Typologie!$A$6:$P$1003,MATCH(A151,Base_Typologie!$A:$A,0)-5,MATCH(Typologie_Espace_Public,Base_Typologie!$6:$6,0)),TableauScoreTypologie2,2,FALSE)*Crit6),0,VLOOKUP(INDEX(Base_Typologie!$A$6:$P$1003,MATCH(A151,Base_Typologie!$A:$A,0)-5,MATCH(Typologie_Espace_Public,Base_Typologie!$6:$6,0)),TableauScoreTypologie2,2,FALSE)*Crit6) -> 0 | J151: 0 | K151: 0 | L151: 0 | M151: 0 | N151: 0 | O151: 0 | P151: 0 | Q151: 0 | R151: 0 | S151: 0 | T151: 0 | U151: 0 | W151: =IF(Base_Arbres!A254<>"",VLOOKUP($A151,Base_Arbres,4,FALSE)*Crit7,"") -> 
A152: =IF(Base_Arbres!A152<>"",Base_Arbres!A152,"") ->  | B152: =IF(Base_Arbres!A152<>"",VLOOKUP($A152,Base_Arbres,3,FALSE)*Crit1,"") ->  | C152: =IF(Base_Arbres!A152<>"",VLOOKUP($A152,Base_Arbres,4,FALSE)*Crit2,"") ->  | D152: =IF(Base_Arbres!A152<>"",VLOOKUP($A152,Base_Arbres,5,FALSE)*Crit3,"") ->  | E152: =IF(Base_Arbres!A152<>"",VLOOKUP($A152,Base_Arbres,6,FALSE)*Crit4,"") ->  | F152: =IF(Base_Arbres!B152<>"",VLOOKUP($A152,Base_Arbres,7,FALSE)*Crit5,"") ->  | G152: =IF(Base_Arbres!C152<>"",VLOOKUP($A152,Base_Arbres,8,FALSE)*crit8,"") ->  | H152: =IF(Base_Arbres!D152<>"",VLOOKUP($A152,Base_Arbres,9,FALSE)*crit9,"") ->  | I152: =IF(ISNA(VLOOKUP(INDEX(Base_Typologie!$A$6:$P$1003,MATCH(A152,Base_Typologie!$A:$A,0)-5,MATCH(Typologie_Espace_Public,Base_Typologie!$6:$6,0)),TableauScoreTypologie2,2,FALSE)*Crit6),0,VLOOKUP(INDEX(Base_Typologie!$A$6:$P$1003,MATCH(A152,Base_Typologie!$A:$A,0)-5,MATCH(Typologie_Espace_Public,Base_Typologie!$6:$6,0)),TableauScoreTypologie2,2,FALSE)*Crit6) -> 0 | J152: 0 | K152: 0 | L152: 0 | M152: 0 | N152: 0 | O152: 0 | P152: 0 | Q152: 0 | R152: 0 | S152: 0 | T152: 0 | U152: 0 | W152: =IF(Base_Arbres!A255<>"",VLOOKUP($A152,Base_Arbres,4,FALSE)*Crit7,"") -> 
